Workbook

Sheet Contents
A1: 80 | M1: ESC USE ONLY
D2: ESSENTIAL SERVICES COMMISSION
D3: Water Price Review - 2024
D4: Financial Model Template
B7: Table of Contents | F7: Water Business: | H7: =+N24 -> Greater Western Water | I7: =+O24 -> GWW
B8: Section & Sheet Titles | F8: Regulatory Period: | H8: 2024-25 to 2027-28 (Fifth) | N8: [Decision] | O8: [Month] | P8: [Year] | Q8: [Version]
F9: Model Name: | H9: =I7&"_Price Review Template_"&O9&P9&Q9 -> GWW_Price Review Template_Jun2024 - v1 | N9: Draft | O9: Jun | P9: 2024 | Q9: - v1 | R9: << Select
B10: 1 | C10: Model Quality Check | F10: Decision type: | H10: =+N9&" Decision" -> Draft Decision | N10: Draft | O10: Jan | P10: 2016 | Q10: - v1
B11: 2 | C11: =+KeyAssumptionsPriceControl_FO!B1 -> Key Assumptions Price Control | N11: Final | O11: Feb | P11: 2017
B12: 3 | C12: =+Expenditure_Detail!B1 -> Expenditure - Detail | F12: Model Key: | O12: Mar | P12: 2018
B13: 4 | C13: =Opex_FO!B1 -> Operating Expenditure - Forecast | O13: Apr | P13: 2019
B14: 5 | C14: =Opex_Breakdown!B1 -> Operating Expenditure - Breakdown | G14: BLUE | H14: =+I7&" - DATA INPUT CELL" -> GWW - DATA INPUT CELL | O14: May | P14: 2020
B15: 6 | C15: =+'Capex_FO input'!B1 -> Capital Expenditure - Forecast Input | O15: Jun | P15: 2021
B16: 7 | C16: =Capex_FO_AC!B1 -> Capital Expenditure - Asset Category Breakdown | G16: PURPLE | H16: NOTES / INSTRUCTIONS | O16: Jul | P16: 2022
B17: 8 | C17: =Rev_Summary_FO!B1 -> Expenditure and Revenue Summary | O17: Aug | P17: 2023
B18: 9 | C18: =RollForward_FO!B1 -> Rolled forward regulatory asset base (RAB) | G18: GREY | H18: MODEL PARAMETERS / ASSUMPTIONS | O18: Sep | P18: 2024
B19: 10 | C19: =PrevPerAdj_FO!B1 -> Previous period adjustments | O19: Oct
B20: 11 | C20: =RevenuePriceCap_FO!C1 -> Revenue forecast (price caps) | G20: WHITE | H20: FORMULA / HARDCODED VALUES | O20: Nov
B21: 12 | C21: Revenue forecast (tariff basket) | O21: Dec
B22: 13 | C22: =NotPres_FO!B1 -> Non Prescribed Services | G22: ORANGE | H22: FORMULA DIFFERENT TO ADJACENT CELL
B23: 14 | C23: ='Finance&Tax_FO'!B1 -> Cash, debt and tax assumptions | N23: [Business]
B24: 15 | C24: ='Rev&RAV_FO'!B1 -> Revenue requirement detail | G24: GREEN | H24: DATA FROM 2018 AND 2020 DECISIONS OR PERFORMANCE REPORT | N24: Greater Western Water | O24: =+VLOOKUP(N24,N25:O43,2,FALSE) -> GWW
B25: 16 | C25: =Indicators_FO!B1 -> Financial indicators | N25: Barwon Water | O25: BW
B26: 17 | C26: =Outcomes!B1 -> Outcomes | G26: RED | H26: ERROR CHECK | N26: Central Highlands Water | O26: CHW
B27: 18 | C27: =GSL!B1 -> Guaranteed Service Levels (GSL) | N27: Greater Western Water | O27: GWW
B28: 19 | C28: Dashboard - Pricing | N28: Coliban Water | O28: CW
B29: 20 | C29: Dashboard - Opex | N29: East Gippsland Water | O29: EGW
B30: 21 | C30: Dashboard - Capex | N30: Gippsland Water | O30: CGW
B31: 22 | C31: Dashboard - Data | N31: Goulburn Valley Water | O31: GVW
B32: 23 | C32: Household Bill - ex GWW
B33: 24 | C33: Household Bill - ex CWW | N33: GWM Water | O33: GWMW | P33: diff model
B34: 25 | C34: Household Bill - ex WW | N34: Lower Murray Water - Urban | O34: LMW-U | P34: diff model
N35: Lower Murray Water - Rural | O35: LMW-R
N36: North East Water | O36: NEW
N37: South East Water | O37: SEW
N38: South Gippsland Water | O38: SGW
N39: Southern Rural Water | O39: SRW | P39: diff model
N40: Wannon Water | O40: WNW
N41: Westernport Water | O41: WPW
N42: Yarra Valley Water | O42: YVW

Sheet Adjustments log (hidden)
A3: 1 | B3: Operating expenditure
B4: $m 2022-23
C6: 2023-24 | D6: 2024-25 | E6: 2025-26 | F6: 2026-27 | G6: 2027-28 | H6: Total
B7: Proposed - controllable operating expenditure | H7: =SUM(C7:G7) -> 0
B8: DD adjustments
B9: xx | H9: =SUM(C9:G9) -> 0
B10: xx | H10: =SUM(C10:G10) -> 0
B11: xx | H11: =SUM(C11:G11) -> 0
B12: xx | H12: =SUM(C12:G12) -> 0
B13: xx | H13: =SUM(C13:G13) -> 0
B14: FD adjustments
B15: xx | H15: =SUM(C15:G15) -> 0
B16: xx | H16: =SUM(C16:G16) -> 0
B17: xx | H17: =SUM(C17:G17) -> 0
B18: xx | H18: =SUM(C18:G18) -> 0
B19: xx | H19: 0
B20: Total adjustments | C20: =SUM(C8:C19) -> 0 | D20: 0 | E20: 0 | F20: 0 | G20: 0 | H20: 0
B21: Final decision - controllable operating expenditure | C21: =C7+C20 -> 0 | D21: 0 | E21: 0 | F21: 0 | G21: 0 | H21: 0
B23: Proposed - non-controllable operating expenditure | H23: =SUM(C23:G23) -> 0
B24: DD adjustments
B25: xx | H25: =SUM(C25:G25) -> 0
B26: xx | H26: =SUM(C26:G26) -> 0
B27: xx | H27: =SUM(C27:G27) -> 0
B28: xx | H28: =SUM(C28:G28) -> 0
B29: FD adjustments
B30: xx | H30: =SUM(C30:G30) -> 0
B31: xx | H31: =SUM(C31:G31) -> 0
B32: Total adjustments | C32: =SUM(C24:C31) -> 0 | D32: 0 | E32: 0 | F32: 0 | G32: 0 | H32: 0
B33: Final decision - non-controllable operating expenditure | C33: =C23+C32 -> 0 | D33: 0 | E33: 0 | F33: 0 | G33: 0 | H33: 0
B35: Proposed - total operating expenditure | C35: =C7+C23 -> 0 | D35: 0 | E35: 0 | F35: 0 | G35: 0 | H35: 0
B36: Total adjustments | C36: =C20+C32 -> 0 | D36: 0 | E36: 0 | F36: 0 | G36: 0 | H36: 0
B37: Final decision - total operating expenditure | C37: =SUM(C35:C36) -> 0 | D37: 0 | E37: 0 | F37: 0 | G37: 0 | H37: 0
B39: Check
A42: 2 | B42: Capital expenditure
B43: $m 2022-23
C45: 2023-24 | D45: 2024-25 | E45: 2025-26 | F45: 2026-27 | G45: 2027-28 | H45: Total
B46: Proposed - capital expenditure | H46: =SUM(C46:G46) -> 0
B47: DD adjustments
B48: xx | H48: =SUM(C48:G48) -> 0
B49: xx | H49: =SUM(C49:G49) -> 0
B50: xx | H50: =SUM(C50:G50) -> 0
B51: xx | H51: =SUM(C51:G51) -> 0
B52: FD adjustments
B53: xx | H53: =SUM(C53:G53) -> 0
B54: xx
B55: Total adjustments | C55: =SUM(C47:C54) -> 0 | D55: 0 | E55: 0 | F55: 0 | G55: 0 | H55: 0
B56: Draft decision - capital expenditure | C56: =C46+C55 -> 0 | D56: 0 | E56: 0 | F56: 0 | G56: 0 | H56: 0
B58: Check

Sheet Exp team amendments
A2: Date | B2: Tab | C2: Cells | D2: Detail
A3: 2023-07-01 | B3: Opex_Break down | C3: Row 120 | D3: Inclusion of a locked formula to calculate EC consistent with ESC methodology (falling in real terms)
A4: 2023-07-01 | B4: Opex_Break down | C4: Rows 19-22 | D4: Adding line items which show the previous price review final approved benchmarks and outlook for controllable opex, and % diff between actual and benchmark
A5: 2023-07-01 | B5: Opex_Break down | C5: AC113-AL115 | D5: Including locked formulas for ESC (falling in real terms), DH (flat real terms), EPA (flat real terms) license fees consistent with ESC methodology
A6: 2023-07-01 | B6: Opex_Break down | C6: D114 | D6: Renamed Department of Human Services license fee to Department of Health
A7: 2023-07-01 | B7: Opex_FO | C7: Rows 58-67 | D7: Inclusion of a 'baseline discrepancy' section - where businesses must quantify the difference between there approved controllable opex baseline year benchmark and its actual.
A8: 2023-07-01 | B8: Opex_FO | C8: Charts | D8: Charts and supporting data have been moved to Dashboard Opex and Dashboard - Data
A9: 2023-07-01 | B9: Capex_FO_AC | C9: Rows 19-23 | D9: Adding line items which show the previous price review final approved outlook and forecast for total capex, and % diff between actual and benchmark; regulatory year totals
A10: 2023-07-01 | B10: Capex_FO_AC | C10: AO11:AS16 AO20:AS25 | D10: Businesses must select the 2023-24 capex figure that is applied to RAB calculation;Comparison with approved 19-23 total capex
A11: 2023-07-01 | B11: Expenditure_Detail | C11: Rows 13-31 | D11: Summary rows include FD2019-20 Outlook and forecast figures
A12: 2023-07-01 | B12: Rev_Summary_FO | C12: AN:AU, Rows 32:34 | D12: Aggregated 4th,5th and 6th Reg Periods; average annual value and added in Revenue Requirement
A13: 2023-07-01 | B13: Dashboard - Capex | C13: Chart | D13: Added a new chart for prescribed capex. This is the FD 2018 benchmark and forecast vs actuals and proposed in the current Regulatory Period
A14: 2023-07-01 | B14: Dashboard - Opex | C14: Chart | D14: Streamlined Opex_FO charts here and added a new chart for controllable opex. This is the FD 2018 benchmark and forecast vs actuals and proposed in the current Regulatory Period

Sheet Model Quality Check
A1: 80 | B1: Model Quality Check
B2: =+Contents!H7 -> Greater Western Water
B3: Go to Table of Contents
K4: FIRST REG PERIOD | O4: SECOND REG PERIOD | T4: THIRD REG PERIOD | Y4: FOURTH REG PERIOD | AD4: FIFTH REG PERIOD | AI4: SIXTH REG PERIOD
F6: Straight Line | J6: 2006 | K6: 2007 | L6: 2008 | M6: 2009 | N6: 2010 | O6: 2011 | P6: 2012 | Q6: 2013 | R6: 2014 | S6: 2015 | T6: 2016 | U6: 2017 | V6: 2018 | W6: 2019 | X6: 2020 | Y6: 2021 | Z6: 2022 | AA6: 2023 | AB6: 2024 | AC6: 2025 | AD6: 2026 | AE6: 2027 | AF6: 2028 | AG6: 2029 | AH6: 2030 | AI6: 2031 | AJ6: 2032 | AK6: 2033
F7: Declining Balance | J7: =+CONCATENATE(J6-1,"-",RIGHT(J6,2)) -> 2005-06 | K7: 2006-07 | L7: 2007-08 | M7: 2008-09 | N7: 2009-10 | O7: 2010-11 | P7: 2011-12 | Q7: 2012-13 | R7: 2013-14 | S7: 2014-15 | T7: 2015-16 | U7: 2016-17 | V7: 2017-18 | W7: =+CONCATENATE(W6-1,"-",RIGHT(W6,2)) -> 2018-19 | X7: 2019-20 | Y7: 2020-21 | Z7: 2021-22 | AA7: 2022-23 | AB7: 2023-24 | AC7: 2024-25 | AD7: 2025-26 | AE7: 2026-27 | AF7: =+CONCATENATE(AF6-1,"-",RIGHT(AF6,2)) -> 2027-28 | AG7: 2028-29 | AH7: 2029-30 | AI7: 2030-31 | AJ7: 2031-32 | AK7: 2032-33
D9: Model ready for submission: | I9: =SUM(AA15:AK47) -> 10 | R9: (If No, please ensure that the error check is corrected at the source)
D11: All financial indicators satisfied: | I11: =SUM(AB52:AK57) -> 30
E14: 1. | F14: Opex_FO
G15: Reconciliation to 'Opex_Breakdown' tab row 37 | AC15: =Opex_FO!AD117 -> 0 | AD15: =Opex_FO!AE117 -> 0 | AE15: =Opex_FO!AF117 -> 0 | AF15: =Opex_FO!AG117 -> 0 | AG15: =Opex_FO!AH117 -> 0 | AH15: =Opex_FO!AI117 -> 0 | AI15: =Opex_FO!AJ117 -> 0 | AJ15: =Opex_FO!AK117 -> 0 | AK15: =Opex_FO!AL117 -> 0
E17: 2. | F17: Opex_Breakdown
G18: Reconciliation to 'Opex_FO' tab row 95 | AC18: =Opex_Breakdown!AD49 -> 0 | AD18: =Opex_Breakdown!AE49 -> 0 | AE18: =Opex_Breakdown!AF49 -> 0 | AF18: =Opex_Breakdown!AG49 -> 0 | AG18: =Opex_Breakdown!AH49 -> 0 | AH18: =Opex_Breakdown!AI49 -> 0 | AI18: =Opex_Breakdown!AJ49 -> 0 | AJ18: =Opex_Breakdown!AK49 -> 0 | AK18: =Opex_Breakdown!AL49 -> 0
G20: Reconciliation of Opex by service and function | AC20: =Opex_Breakdown!AD32 -> 0 | AD20: =Opex_Breakdown!AE32 -> 0 | AE20: =Opex_Breakdown!AF32 -> 0 | AF20: =Opex_Breakdown!AG32 -> 0 | AG20: =Opex_Breakdown!AH32 -> 0 | AH20: =Opex_Breakdown!AI32 -> 0 | AI20: =Opex_Breakdown!AJ32 -> 0 | AJ20: =Opex_Breakdown!AK32 -> 0 | AK20: =Opex_Breakdown!AL32 -> 0
E22: 3. | F22: Capex_FO input
G23: Reconciliation of total prescribed capex between cost driver and capital type | AC23: ='Capex_FO input'!E26 -> 0 | AD23: ='Capex_FO input'!F26 -> 0 | AE23: ='Capex_FO input'!G26 -> 0 | AF23: ='Capex_FO input'!H26 -> 0 | AG23: ='Capex_FO input'!I26 -> 0 | AH23: ='Capex_FO input'!J26 -> 0 | AI23: ='Capex_FO input'!K26 -> 0 | AJ23: ='Capex_FO input'!L26 -> 0 | AK23: ='Capex_FO input'!M26 -> 0
E25: 4. | F25: Capex_FO_AC
G26: Reconciliation to 'Capex_FO input' tab row 29 | AB26: =Capex_FO_AC!AC36 -> 0 | AC26: =Capex_FO_AC!AD36 -> 0 | AD26: =Capex_FO_AC!AE36 -> 0 | AE26: =Capex_FO_AC!AF36 -> 0 | AF26: =Capex_FO_AC!AG36 -> 0 | AG26: =Capex_FO_AC!AH36 -> 0 | AH26: =Capex_FO_AC!AI36 -> 0 | AI26: =Capex_FO_AC!AJ36 -> 0 | AJ26: =Capex_FO_AC!AK36 -> 0 | AK26: =Capex_FO_AC!AL36 -> 0
E29: 5. | F29: RevenuePriceCap_FO
G30: Price control - Fifth period | AB30: =IF(KeyAssumptionsPriceControl_FO!I48=1,IF(RevenuePriceCap_FO!AD34="PRICE CONTROL OK",0,1),0) -> 0 | AC30: =IF(KeyAssumptionsPriceControl_FO!I48=1,RevenuePriceCap_FO!AD34,"") -> 
G32: Price control - Sixth period | AB32: =IF(KeyAssumptionsPriceControl_FO!I48=1,IF(RevenuePriceCap_FO!AI34="PRICE CONTROL OK",0,1),0) -> 0 | AC32: =IF(KeyAssumptionsPriceControl_FO!I48=1,RevenuePriceCap_FO!AI34,"") -> 
G34: Tariff revenue reconciliation | AB34: =RevenuePriceCap_FO!AC533 -> 0 | AC34: =RevenuePriceCap_FO!AD533 -> 0 | AD34: =RevenuePriceCap_FO!AE533 -> 0 | AE34: =RevenuePriceCap_FO!AF533 -> 0 | AF34: =RevenuePriceCap_FO!AG533 -> 0 | AG34: =RevenuePriceCap_FO!AH533 -> 0 | AH34: =RevenuePriceCap_FO!AI533 -> 0 | AI34: =RevenuePriceCap_FO!AJ533 -> 0 | AJ34: =RevenuePriceCap_FO!AK533 -> 0 | AK34: =RevenuePriceCap_FO!AL533 -> 0
E36: 6. | F36: RevenueTariffBasket_FO
G37: Price control - Fifth period | AB37: =IF(KeyAssumptionsPriceControl_FO!I48=2,IF(RevenueTariffBasket_FO!AD34="PRICE CONTROL OK",0,1),0) -> 0 | AC37: =IF(KeyAssumptionsPriceControl_FO!I48=2,RevenueTariffBasket_FO!AD34,"") -> PRICE CONTROL OK
G39: Price control - Sixth period | AB39: =IF(KeyAssumptionsPriceControl_FO!I48=2,IF(RevenueTariffBasket_FO!AI34="PRICE CONTROL OK",0,1),0) -> 0 | AC39: =IF(KeyAssumptionsPriceControl_FO!I48=2,RevenueTariffBasket_FO!AI34,"") -> PRICE CONTROL OK
G41: Tariff revenue reconciliation | AB41: =RevenueTariffBasket_FO!AC533 -> 0 | AC41: =RevenueTariffBasket_FO!AD533 -> 0 | AD41: =RevenueTariffBasket_FO!AE533 -> 0 | AE41: =RevenueTariffBasket_FO!AF533 -> 0 | AF41: =RevenueTariffBasket_FO!AG533 -> 0 | AG41: =RevenueTariffBasket_FO!AH533 -> 0 | AH41: =RevenueTariffBasket_FO!AI533 -> 0 | AI41: =RevenueTariffBasket_FO!AJ533 -> 0 | AJ41: =RevenueTariffBasket_FO!AK533 -> 0 | AK41: =RevenueTariffBasket_FO!AL533 -> 0
E43: 7. | F43: Rev&RAV_FO
G44: Rolled forward RAV reconciliation | AB44: ='Rev&RAV_FO'!AC80 -> 0 | AC44: ='Rev&RAV_FO'!AD80 -> 0 | AD44: ='Rev&RAV_FO'!AE80 -> 0 | AE44: ='Rev&RAV_FO'!AF80 -> 0 | AF44: ='Rev&RAV_FO'!AG80 -> 0 | AG44: ='Rev&RAV_FO'!AH80 -> 0 | AH44: ='Rev&RAV_FO'!AI80 -> 0 | AI44: ='Rev&RAV_FO'!AJ80 -> 0 | AJ44: ='Rev&RAV_FO'!AK80 -> 0 | AK44: ='Rev&RAV_FO'!AL80 -> 0
E46: 8. | F46: GSL
G47: Reconciliation to 'Opex_Breakdown' tab row 23 | AB47: =IF(ROUND(GSL!AC40,2)=ROUND(GSL!AC39,2),0,1) -> 1 | AC47: =IF(ROUND(GSL!AD40,2)=ROUND(GSL!AD39,2),0,1) -> 1 | AD47: =IF(ROUND(GSL!AE40,2)=ROUND(GSL!AE39,2),0,1) -> 1 | AE47: =IF(ROUND(GSL!AF40,2)=ROUND(GSL!AF39,2),0,1) -> 1 | AF47: =IF(ROUND(GSL!AG40,2)=ROUND(GSL!AG39,2),0,1) -> 1 | AG47: =IF(ROUND(GSL!AH40,2)=ROUND(GSL!AH39,2),0,1) -> 1 | AH47: =IF(ROUND(GSL!AI40,2)=ROUND(GSL!AI39,2),0,1) -> 1 | AI47: =IF(ROUND(GSL!AJ40,2)=ROUND(GSL!AJ39,2),0,1) -> 1 | AJ47: =IF(ROUND(GSL!AK40,2)=ROUND(GSL!AK39,2),0,1) -> 1 | AK47: =IF(ROUND(GSL!AL40,2)=ROUND(GSL!AL39,2),0,1) -> 1
E51: 1. | F51: Primary Indicator
G52: FFO interest cover | AB52: =Indicators_FO!AC$226 -> 0 | AC52: =Indicators_FO!AD$226 -> 0 | AD52: =Indicators_FO!AE$226 -> 0 | AE52: =Indicators_FO!AF$226 -> 0 | AF52: =Indicators_FO!AG$226 -> 0 | AG52: =Indicators_FO!AH$226 -> 0 | AH52: =Indicators_FO!AI$226 -> 0 | AI52: =Indicators_FO!AJ$226 -> 0 | AJ52: =Indicators_FO!AK$226 -> 0 | AK52: =Indicators_FO!AL$226 -> 0
E54: 2. | F54: Secondary indicators
G55: Net debt / RAV | AB55: =Indicators_FO!AC$235 -> 1 | AC55: =Indicators_FO!AD$235 -> 1 | AD55: =Indicators_FO!AE$235 -> 1 | AE55: =Indicators_FO!AF$235 -> 1 | AF55: =Indicators_FO!AG$235 -> 1 | AG55: =Indicators_FO!AH$235 -> 1 | AH55: =Indicators_FO!AI$235 -> 1 | AI55: =Indicators_FO!AJ$235 -> 1 | AJ55: =Indicators_FO!AK$235 -> 1 | AK55: =Indicators_FO!AL$235 -> 1
G56: FFO / Net debt | AB56: =Indicators_FO!AC$243 -> 1 | AC56: =Indicators_FO!AD$243 -> 1 | AD56: =Indicators_FO!AE$243 -> 1 | AE56: =Indicators_FO!AF$243 -> 1 | AF56: =Indicators_FO!AG$243 -> 1 | AG56: =Indicators_FO!AH$243 -> 1 | AH56: =Indicators_FO!AI$243 -> 1 | AI56: =Indicators_FO!AJ$243 -> 1 | AJ56: =Indicators_FO!AK$243 -> 1 | AK56: =Indicators_FO!AL$243 -> 1
G57: Internal financing ratio | AB57: =Indicators_FO!AC$252 -> 1 | AC57: =Indicators_FO!AD$252 -> 1 | AD57: =Indicators_FO!AE$252 -> 1 | AE57: =Indicators_FO!AF$252 -> 1 | AF57: =Indicators_FO!AG$252 -> 1 | AG57: =Indicators_FO!AH$252 -> 1 | AH57: =Indicators_FO!AI$252 -> 1 | AI57: =Indicators_FO!AJ$252 -> 1 | AJ57: =Indicators_FO!AK$252 -> 1 | AK57: =Indicators_FO!AL$252 -> 1

Sheet KeyAssumptionsPriceControl_FO
A1: 80 | B1: Key Assumptions Price Control
B2: =+Contents!H7 -> Greater Western Water
B3: Go to Table of Contents
L4: FIRST REG PERIOD | P4: SECOND REG PERIOD | U4: THIRD REG PERIOD | Z4: FOURTH REG PERIOD | AC4: Ext Year | AE4: FIFTH REG PERIOD | AJ4: SIXTH REG PERIOD
F6: Straight Line | K6: 2006 | L6: 2007 | M6: 2008 | N6: 2009 | O6: 2010 | P6: 2011 | Q6: 2012 | R6: 2013 | S6: 2014 | T6: 2015 | U6: 2016 | V6: 2017 | W6: 2018 | X6: 2019 | Y6: 2020 | Z6: 2021 | AA6: 2022 | AB6: 2023 | AC6: 2024 | AD6: 2025 | AE6: 2026 | AF6: 2027 | AG6: 2028 | AH6: 2029 | AI6: 2030 | AJ6: 2031 | AK6: 2032 | AL6: 2033
F7: Declining Balance | I7: 2003-04 | J7: 2004-05 | K7: =+CONCATENATE(K6-1,"-",RIGHT(K6,2)) -> 2005-06 | L7: =+CONCATENATE(L6-1,"-",RIGHT(L6,2)) -> 2006-07 | M7: 2007-08 | N7: 2008-09 | O7: 2009-10 | P7: 2010-11 | Q7: 2011-12 | R7: 2012-13 | S7: 2013-14 | T7: 2014-15 | U7: 2015-16 | V7: 2016-17 | W7: 2017-18 | X7: 2018-19 | Y7: 2019-20 | Z7: 2020-21 | AA7: 2021-22 | AB7: 2022-23 | AC7: 2023-24 | AD7: 2024-25 | AE7: 2025-26 | AF7: 2026-27 | AG7: 2027-28 | AH7: =+CONCATENATE(AH6-1,"-",RIGHT(AH6,2)) -> 2028-29 | AI7: =+CONCATENATE(AI6-1,"-",RIGHT(AI6,2)) -> 2029-30 | AJ7: =+CONCATENATE(AJ6-1,"-",RIGHT(AJ6,2)) -> 2030-31 | AK7: =+CONCATENATE(AK6-1,"-",RIGHT(AK6,2)) -> 2031-32 | AL7: =+CONCATENATE(AL6-1,"-",RIGHT(AL6,2)) -> 2032-33
E11: Inflation assumptions
AC12: Actual
F13: March quarter annual CPI | I13: 141.3 | J13: 144.1 | K13: 147.5 | L13: 151.9 | M13: 155.6 | N13: 162.2 | O13: 166.2 | P13: 171 | Q13: 176.7 | R13: 99.9 | S13: 102.4 | T13: 105.4 | U13: 106.8 | V13: 108.2 | W13: 110.5 | X13: 112.6 | Y13: 114.1 | Z13: 116.6 | AA13: 117.9 | AB13: 123.9 | AC13: 132.6
F14: Inflation | J14: =+J13/I13-1 -> 0.01981599434 | K14: 0.02359472588 | L14: 0.02983050847 | M14: 0.02435813035 | N14: 0.04241645244 | O14: 0.02466091245 | P14: 0.02888086643 | Q14: 0.03333333333 | R14: 0.01584606678 | S14: =+IF(S13=0,$Z$44,S13/R13-1) -> 0.02502502503 | T14: 0.029296875 | U14: 0.01328273245 | V14: 0.01310861423 | W14: 0.02125693161 | X14: 0.01900452489 | Y14: 0.01332149201 | Z14: 0.02191060473 | AA14: 0.01114922813 | AB14: 0.05089058524 | AC14: =+IF(AC13=0,$AC$44,AC13/AB13-1) -> 0.07021791768 | AD14: =+IF(AD13=0,$AD$44,AD13/AC13-1) -> 0.035 | AE14: =+IF(AE13=0,$AD$44,AE13/AD13-1) -> 0.035 | AF14: 0.035 | AG14: 0.035 | AH14: 0.035 | AI14: 0.035 | AJ14: 0.035 | AK14: 0.035 | AL14: 0.035
F15: Inflation factor | I15: 0.7871866295 | J15: 0.8027855153 | K15: 0.8217270195 | L15: 0.8462395543 | M15: 0.8668523677 | N15: 0.9036211699 | O15: 0.9259052925 | P15: 0.9526462396 | Q15: 0.9844011142 | R15: =+R13/$AC$13 -> 0.7533936652 | S15: 0.7722473605 | T15: 0.7948717949 | U15: 0.8054298643 | V15: 0.8159879336 | W15: 0.8333333333 | X15: 0.8491704374 | Y15: 0.8604826546 | Z15: 0.8793363499 | AA15: 0.8891402715 | AB15: 0.9343891403 | AC15: =+AC13/$AC$13 -> 1 | AD15: =+AC15*(1+AD14) -> 1.035 | AE15: 1.071225 | AF15: 1.108717875 | AG15: 1.147523001 | AH15: 1.187686306 | AI15: 1.229255326 | AJ15: 1.272279263 | AK15: 1.316809037 | AL15: 1.362897353
I16: CPI index re-referenced in 2012-13, shaded values have been hardcoded to lock in RAB value.
E21: Cost of debt - 10 year trailing average (Nominal)
AC22: Estimate | AD22: Estimate | AE22: Estimate | AF22: Estimate | AG22: Estimate | AH22: Estimate | AI22: Estimate | AJ22: Estimate | AK22: Estimate | AL22: Estimate
E23: Cost of debt | L23: 0.06981666667 | M23: 0.07414 | N23: 0.0691525788 | O23: 0.07361870984 | P23: 0.07046784142 | Q23: 0.06308887941 | R23: 0.0526945046 | S23: 0.070525 | T23: 0.05360833333 | U23: 0.05270138413 | V23: 0.04908333333 | W23: 0.045283 | X23: 0.046133 | Y23: 0.03305833333 | Z23: 0.03045 | AA23: 0.037533 | AB23: 0.067608 | AC23: =AB23 -> 0.067608 | AD23: =AC23 -> 0.067608 | AE23: =AD23 -> 0.067608 | AF23: =AE23 -> 0.067608 | AG23: =AF23 -> 0.067608 | AH23: =AG23 -> 0.067608 | AI23: =AH23 -> 0.067608 | AJ23: =AI23 -> 0.067608 | AK23: =AJ23 -> 0.067608 | AL23: =AK23 -> 0.067608
E24: Re-financing weightings - average 10 yrs | L24: =1/10 -> 0.1 | M24: =1/10 -> 0.1 | N24: =1/10 -> 0.1 | O24: =1/10 -> 0.1 | P24: =1/10 -> 0.1 | Q24: 0.1 | R24: 0.1 | S24: 0.1 | T24: 0.1 | U24: 0.1 | V24: 0.1 | W24: 0.1 | X24: 0.1 | Y24: 0.1 | Z24: 0.1 | AA24: 0.1 | AB24: 0.1 | AC24: 0.1 | AD24: 0.1 | AE24: 0.1 | AF24: 0.1 | AG24: 0.1 | AH24: 0.1 | AI24: 0.1 | AJ24: 0.1 | AK24: 0.1 | AL24: 0.1
E26: Cost of debt - 10 year trailing average | V26: =IF(U23<>"",SUMPRODUCT(L23:U23,L24:U24),"") -> 0.06498138982 | W26: 0.06290805649 | X26: 0.06002235649 | Y26: 0.05772039861 | Z26: 0.05366436096 | AA26: 0.04966257681 | AB26: =IF(AA23<>"",SUMPRODUCT(R23:AA23,R24:AA24),"") -> 0.04710698887 | AC26: =IF(AB23<>"",SUMPRODUCT(S23:AB23,S24:AB24),"") -> 0.04859833841 | AD26: =IF(AC23<>"",SUMPRODUCT(T23:AC23,T24:AC24),"") -> 0.04830663841 | AE26: 0.04970660508 | AF26: 0.05119726667 | AG26: 0.05304973333 | AH26: 0.05528223333 | AI26: 0.05742973333 | AJ26: 0.0608847 | AK26: 0.0646005 | AL26: 0.067608
E30: WACC assumptions (retained for historical purposes only) | Z30: Regulatory Rate of Return (RRR) - Nominal
K32: 1st period | M32: 2nd period | O32: 3rd period | Z32: Cost of Debt | AC32: =+AC26 -> 0.04859833841 | AD32: =+AD26 -> 0.04830663841 | AE32: 0.04970660508 | AF32: 0.05119726667 | AG32: 0.05304973333 | AH32: 0.05528223333 | AI32: 0.05742973333 | AJ32: 0.0608847 | AK32: 0.0646005 | AL32: 0.067608
E33: Parameters
F34: Risk Free Rate (Real)
F35: Debt Premium
F36: Equity Premium | Z36: Regulatory Rate of Return (RRR) - Real
F37: Equity Beta
F38: Gearing (Debt/Assets) | Z38: Cost of Debt | AC38: =(1+AC32)/(1+AC44)-1 -> -0.02020110008 | AD38: =(1+AD32)/(1+AD44)-1 -> 0.01285665547 | AE38: 0.01420928027 | AF38: 0.01564953301 | AG38: 0.01743935588 | AH38: 0.01959636071 | AI38: 0.02167123994 | AJ38: 0.02500937198 | AK38: 0.02859951691 | AL38: 0.03150531401
F39: Forecast Inflation
F40: Franking credit value | Z40: Return on Equity | AC40: 0.0467 | AD40: =IF($AE$64<>0,($AE$64/100),IF($AE$62<>0,($AE$62/100),($AE$60/100))) -> 0.041 | AE40: =+$AD$40 -> 0.041 | AF40: =+$AD$40 -> 0.041 | AG40: 0.041 | AH40: 0.041 | AI40: 0.041 | AJ40: 0.041 | AK40: 0.041 | AL40: 0.041
E42: 'Vanilla' After Tax WACC (Real) | Z42: RRR (real) | AC42: =ROUND((AC40*(1-AC43)+AC38*AC43),4) -> 0.0066 | AD42: 0.0241 | AE42: 0.0249 | AF42: 0.0258 | AG42: 0.0269 | AH42: 0.0282 | AI42: 0.0294 | AJ42: 0.0314 | AK42: 0.0336 | AL42: 0.0353
Z43: Gearing | AC43: =AD43 -> 0.6 | AD43: 0.6 | AE43: =+AD43 -> 0.6 | AF43: 0.6 | AG43: 0.6 | AH43: 0.6 | AI43: 0.6 | AJ43: 0.6 | AK43: 0.6 | AL43: 0.6
Z44: Forecast Inflation* | AC44: =AC14 -> 0.07021791768 | AD44: 0.035 | AE44: =+AD44 -> 0.035 | AF44: 0.035 | AG44: 0.035 | AH44: 0.035 | AI44: 0.035 | AJ44: 0.035 | AK44: 0.035 | AL44: 0.035
L45: Regulatory Rate of Return (RRR) [retained for historical purposes only]
E46: Form of price control selected | Z46: *actual for 2023-24
O47: 4th period
E48: Price caps | I48: 2 | L48: Cost of Debt | Z48: PREMO Assessment Matrix (linked to Regulatory Rate of Return calculation above)
L49: Return on Equity | U49: PREMO Graded Scoring System (for reference only)
E50: Revenue cap / Hybrid Tariff Basket | L50: Gearing
L51: Forecast Inflation | AB51: Water business self-assessment
L52: RRR (real)
AB53: Leading | AC53: Advanced | AD53: Standard | AE53: Basic
Z54: ESC assessment of submission | AA54: Leading | AB54: 4.9
U55: Risk | AA55: Advanced | AB55: 4.3 | AC55: 4.5
U56: Engagement | V56: [Select] | AA56: Standard | AB56: 3.7 | AC56: 3.9 | AD56: 4.1
U57: Management | V57: [Select] | AA57: Basic | AD57: 3.5 | AE57: 3.7
U58: Outcomes | V58: [Select]
U60: Total Score | Z60: Water business self-assessment (Maximum allowable ROE) | AD60: Standard | AE60: =+VLOOKUP(AD60,$AD$71:$AE$75,2,FALSE) -> 4.1
Z62: ROE Override (Must be less than Maximum allowable ROE) | AE62: =+IF(AD62<=AE60,AD62,"CHECK") -> 0
U64: Rating | Z64: ESC assessment of submission | AD64: [Select] | AE64: =IFERROR(IF(AD64=AD60,AE60,VLOOKUP(AD60&AD64,AD78:AE82,2,FALSE)),0) -> 0
AD66: Difference | AE66: =IFERROR(IF(AE64=0,"",AE64-AE60),"") -> 
U70: ESC USE ONLY | AD70: Business self assessment
AD71: [Select]
AD72: Leading | AE72: =+AB54 -> 4.9
AD73: Advanced | AE73: =+AC55 -> 4.5
AD74: Standard | AE74: =+AD56 -> 4.1
AD75: Basic | AE75: =+AE57 -> 3.7
AD77: downgrading
AD78: =AD53&AA57 -> StandardBasic | AE78: =+AD57 -> 3.5
AD79: =+AC53&AA56 -> AdvancedStandard | AE79: =+AC56 -> 3.9
AD80: =+AB53&AA55 -> LeadingAdvanced | AE80: =+AB55 -> 4.3
AD81: =+AB53&AA56 -> LeadingStandard | AE81: =+AB56 -> 3.7
AD82: =+AD60&"Basic" -> StandardBasic | AE82: CHECK

Sheet Expenditure_Detail
A1: 80 | B1: Expenditure - Detail
B2: =Model_Name -> Greater Western Water
B3: Go to Table of Contents
L4: FIRST REG PERIOD | P4: SECOND REG PERIOD | U4: THIRD REG PERIOD | Z4: FOURTH REG PERIOD | AC4: EXT YR | AE4: FIFTH REG PERIOD | AJ4: SIXTH REG PERIOD
K5: 2006 | L5: 2007 | M5: 2008 | N5: 2009 | O5: 2010 | P5: 2011 | Q5: 2012 | R5: 2013 | S5: 2014 | T5: 2015 | U5: 2016 | V5: 2017 | W5: 2018 | X5: 2019 | Y5: 2020 | Z5: 2021 | AA5: 2022 | AB5: 2023 | AC5: 2024 | AD5: 2025 | AE5: 2026 | AF5: 2027 | AG5: 2028 | AH5: 2029 | AI5: 2030 | AJ5: 2031 | AK5: 2032 | AL5: 2033
B6: $m, 01/01/24 | K6: =+CONCATENATE(K5-1,"-",RIGHT(K5,2)) -> 2005-06 | L6: =+CONCATENATE(L5-1,"-",RIGHT(L5,2)) -> 2006-07 | M6: 2007-08 | N6: 2008-09 | O6: 2009-10 | P6: 2010-11 | Q6: 2011-12 | R6: 2012-13 | S6: 2013-14 | T6: 2014-15 | U6: 2015-16 | V6: 2016-17 | W6: 2017-18 | X6: 2018-19 | Y6: 2019-20 | Z6: 2020-21 | AA6: 2021-22 | AB6: 2022-23 | AC6: 2023-24 | AD6: 2024-25 | AE6: 2025-26 | AF6: 2026-27 | AG6: 2027-28 | AH6: =+CONCATENATE(AH5-1,"-",RIGHT(AH5,2)) -> 2028-29 | AI6: =+CONCATENATE(AI5-1,"-",RIGHT(AI5,2)) -> 2029-30 | AJ6: =+CONCATENATE(AJ5-1,"-",RIGHT(AJ5,2)) -> 2030-31 | AK6: =+CONCATENATE(AK5-1,"-",RIGHT(AK5,2)) -> 2031-32 | AL6: =+CONCATENATE(AL5-1,"-",RIGHT(AL5,2)) -> 2032-33
B8: This worksheet outlines the key cost drivers of operating expenditure - capitalised costs are excluded. This tab does not link to the Rev&RAV_FO worksheet
C11: Expenditure Summary
D13: Total FTEs (current and forecast at 30 June) | W13: =W48 -> 469.6631579 | X13: 471.776 | Y13: 493.152 | Z13: 586.632 | AA13: 566.944 | AB13: 634.12 | AC13: 642.3117398 | AD13: 637.3393936 | AE13: 636.1120919 | AF13: 635.0072658 | AG13: 635.0072658 | AH13: 635.0072658 | AI13: 635.0072658 | AJ13: 635.0072658 | AK13: 635.0072658 | AL13: 635.0072658
D14: Forecast FTEs (FD 2018/20 forecasts) | W14: =_xlfn.XLOOKUP("Total FTEs",Determination_Lookup!$D:$D,Determination_Lookup!M:M,0) -> 609.03 | X14: =_xlfn.XLOOKUP("Total FTEs",Determination_Lookup!$D:$D,Determination_Lookup!N:N,0) -> 620.68 | Y14: =_xlfn.XLOOKUP("Total FTEs",Determination_Lookup!$D:$D,Determination_Lookup!O:O,0) -> 623.9721053 | Z14: =_xlfn.XLOOKUP("Total FTEs",Determination_Lookup!$D:$D,Determination_Lookup!P:P,0) -> 629.9721053 | AA14: =_xlfn.XLOOKUP("Total FTEs",Determination_Lookup!$D:$D,Determination_Lookup!Q:Q,0) -> 630.9721053 | AB14: =_xlfn.XLOOKUP("Total FTEs",Determination_Lookup!$D:$D,Determination_Lookup!R:R,0) -> 630.9721053 | AC14: =_xlfn.XLOOKUP("Total FTEs",Determination_Lookup!$D:$D,Determination_Lookup!S:S,0) -> 630.9721053 | AD14: =_xlfn.XLOOKUP("Total FTEs",Determination_Lookup!$D:$D,Determination_Lookup!T:T,0) -> 630.9721053 | AE14: =_xlfn.XLOOKUP("Total FTEs",Determination_Lookup!$D:$D,Determination_Lookup!U:U,0) -> 630.9721053 | AF14: =_xlfn.XLOOKUP("Total FTEs",Determination_Lookup!$D:$D,Determination_Lookup!V:V,0) -> 630.9721053 | AG14: =_xlfn.XLOOKUP("Total FTEs",Determination_Lookup!$D:$D,Determination_Lookup!W:W,0) -> 630.9721053 | AH14: 0 | AI14: 0 | AJ14: 0 | AK14: 0 | AL14: 0
D15: Difference | W15: =IF(W14=0,"- ",W13- W14) -> -139.3668421 | X15: -148.904 | Y15: -130.8201053 | Z15: -43.34010526 | AA15: -64.02810526 | AB15: 3.147894737 | AC15: 11.33963456 | AD15: 6.367288345 | AE15: 5.139986639 | AF15: 4.035160524 | AG15: 4.035160524 | AH15: - | AI15: - | AJ15: - | AK15: - | AL15: -
D17: Total Labour costs (actual and forecast $m) | W17: =W49 -> 69.4572 | X17: =X49 -> 63.65803906 | Y17: 66.68357775 | Z17: 70.89204149 | AA17: 76.08478006 | AB17: 77.96438535 | AC17: 78.97155112 | AD17: 78.3602064 | AE17: 78.20931095 | AF17: 78.07347374 | AG17: 78.07347374 | AH17: =AH49 -> 78.07347374 | AI17: =AI49 -> 78.07347374 | AJ17: =AJ49 -> 78.07347374 | AK17: =AK49 -> 78.07347374 | AL17: =AL49 -> 78.07347374
D18: Total Labour costs (FD 2018/20 forecasts) | W18: =Determination_Lookup!M20 -> 69.81929129 | X18: =Determination_Lookup!N20 -> 70.68073714 | Y18: =Determination_Lookup!O20 -> 71.57462065 | Z18: =Determination_Lookup!P20 -> 72.2355373 | AA18: =Determination_Lookup!Q20 -> 72.2827672 | AB18: =Determination_Lookup!R20 -> 72.2488953 | AC18: =Determination_Lookup!S20 -> 72.14276778 | AD18: =Determination_Lookup!T20 -> 72.1850936 | AE18: =Determination_Lookup!U20 -> 72.16918635 | AF18: =Determination_Lookup!V20 -> 72.15418734 | AG18: =Determination_Lookup!W20 -> 72.14009285 | AH18: 0 | AI18: 0 | AJ18: 0 | AK18: 0 | AL18: 0
D19: Difference ($m) | W19: =W17-W18 -> -0.3620912901 | X19: =X17-X18 -> -7.022698081 | Y19: -4.891042902 | Z19: -1.343495816 | AA19: 3.802012858 | AB19: 5.715490049 | AC19: 6.828783349 | AD19: 6.175112801 | AE19: 6.040124597 | AF19: 5.919286408 | AG19: 5.933380892 | AH19: 78.07347374 | AI19: 78.07347374 | AJ19: 78.07347374 | AK19: 78.07347374 | AL19: 78.07347374
AC20: =SUM(X19:AC19) -> 3.089049458 | AG20: =SUM(AD19:AG19) -> 24.0679047 | AL20: =SUM(AH19:AL19) -> 390.3673687
D21: Total Energy costs (actual and forecast $m) | W21: =W107 -> 7.3332 | X21: 7.947274785 | Y21: 8.210906835 | Z21: 7.419231561 | AA21: 7.349475397 | AB21: 6.715146538 | AC21: 6.702951861 | AD21: 7.988608057 | AE21: 7.894725496 | AF21: 7.434674868 | AG21: 7.714878635 | AH21: 7.721770982 | AI21: 7.847293935 | AJ21: 8.439674787 | AK21: 8.72520189 | AL21: 8.339039325
D22: Total Energy costs (FD 2018/20 forecasts) | W22: =Determination_Lookup!M21 -> 6.5652403 | X22: =Determination_Lookup!N21 -> 8.809710999 | Y22: =Determination_Lookup!O21 -> 8.364744253 | Z22: =Determination_Lookup!P21 -> 8.622310674 | AA22: =Determination_Lookup!Q21 -> 9.794707308 | AB22: =Determination_Lookup!R21 -> 10.29117422 | AC22: =Determination_Lookup!S21 -> 11.19825217 | AD22: =Determination_Lookup!T21 -> 12.51276247 | AE22: =Determination_Lookup!U21 -> 13.27112537 | AF22: =Determination_Lookup!V21 -> 13.07054722 | AG22: =Determination_Lookup!W21 -> 13.39345299 | AH22: 0 | AI22: 0 | AJ22: 0 | AK22: 0 | AL22: 0
D23: Difference ($m) | W23: =W21-W22 -> 0.7679597004 | X23: =X21-X22 -> -0.8624362144 | Y23: -0.1538374183 | Z23: -1.203079113 | AA23: -2.44523191 | AB23: -3.57602768 | AC23: -4.495300309 | AD23: -4.524154414 | AE23: -5.376399874 | AF23: -5.635872349 | AG23: -5.678574358 | AH23: 7.721770982 | AI23: 7.847293935 | AJ23: 8.439674787 | AK23: 8.72520189 | AL23: 8.339039325
AC24: =SUM(X23:AC23) -> -12.73591265 | AG24: =SUM(AD23:AG23) -> -21.215001 | AL24: =SUM(AH23:AL23) -> 41.07298092
D25: Total IT costs (actual and forecast $m) | W25: =W118 -> 12.2628 | X25: 15.20980509 | Y25: 13.89195928 | Z25: 15.16261212 | AA25: 15.67486756 | AB25: 16.62557957 | AC25: 18.70557957 | AD25: 20.13057957 | AE25: 20.34557957 | AF25: 20.47057957 | AG25: 20.57557957 | AH25: 20.57557957 | AI25: 20.57557957 | AJ25: 20.57557957 | AK25: 20.57557957 | AL25: 20.57557957
D26: Total IT costs (FD 2018/20 forecasts) | W26: =Determination_Lookup!M22 -> 19.53911888 | X26: =Determination_Lookup!N22 -> 21.415884 | Y26: =Determination_Lookup!O22 -> 22.87064772 | Z26: =Determination_Lookup!P22 -> 23.7310729 | AA26: =Determination_Lookup!Q22 -> 24.46715898 | AB26: =Determination_Lookup!R22 -> 25.13347877 | AC26: =Determination_Lookup!S22 -> 25.28625544 | AD26: =Determination_Lookup!T22 -> 25.38256637 | AE26: =Determination_Lookup!U22 -> 25.27927619 | AF26: =Determination_Lookup!V22 -> 25.38685945 | AG26: =Determination_Lookup!W22 -> 25.49151665 | AH26: 0 | AI26: 0 | AJ26: 0 | AK26: 0 | AL26: 0
D27: Difference ($m) | W27: =W25-W26 -> -7.276318877 | X27: =X25-X26 -> -6.206078908 | Y27: =Y25-Y26 -> -8.978688436 | Z27: -8.568460774 | AA27: -8.792291417 | AB27: -8.507899199 | AC27: -6.580675866 | AD27: -5.251986804 | AE27: -4.933696619 | AF27: -4.916279881 | AG27: -4.915937081 | AH27: 20.57557957 | AI27: 20.57557957 | AJ27: 20.57557957 | AK27: 20.57557957 | AL27: 20.57557957
AC28: =SUM(X27:AC27) -> -47.6340946 | AG28: =SUM(AD27:AG27) -> -20.01790039 | AL28: =SUM(AH27:AL27) -> 102.8778978
D29: Total Chemical costs (actual and forecast $m) | W29: =W129 -> 1.8386214 | X29: 1.691087368 | Y29: 1.900602402 | Z29: 1.742671732 | AA29: 2.129145491 | AB29: 3.734855051 | AC29: 3.724969339 | AD29: 3.892126697 | AE29: 4.039353008 | AF29: 4.146593037 | AG29: 4.267882503 | AH29: 4.384814671 | AI29: 4.509409986 | AJ29: 4.637552328 | AK29: 4.77106812 | AL29: 4.904874438
D30: Total Chemical costs (FD 2018/20 forecasts) | W30: =Determination_Lookup!M23 -> 1.895101217 | X30: =Determination_Lookup!N23 -> 1.865977355 | Y30: =Determination_Lookup!O23 -> 1.762124732 | Z30: =Determination_Lookup!P23 -> 1.800943083 | AA30: =Determination_Lookup!Q23 -> 1.842609211 | AB30: =Determination_Lookup!R23 -> 1.863810025 | AC30: =Determination_Lookup!S23 -> 1.898455813 | AD30: =Determination_Lookup!T23 -> 1.933895451 | AE30: =Determination_Lookup!U23 -> 1.96257519 | AF30: =Determination_Lookup!V23 -> 2.010177448 | AG30: =Determination_Lookup!W23 -> 2.053295749 | AH30: 0 | AI30: 0 | AJ30: 0 | AK30: 0 | AL30: 0
D31: Difference ($m) | W31: =W29-W30 -> -0.05647981721 | X31: -0.1748899872 | Y31: 0.1384776693 | Z31: -0.05827135044 | AA31: 0.2865362799 | AB31: 1.871045025 | AC31: 1.826513526 | AD31: 1.958231246 | AE31: 2.076777817 | AF31: 2.136415589 | AG31: 2.214586754 | AH31: 4.384814671 | AI31: 4.509409986 | AJ31: 4.637552328 | AK31: 4.77106812 | AL31: 4.904874438
AC32: =SUM(X31:AC31) -> 3.889411163 | AG32: =SUM(AD31:AG31) -> 8.386011406 | AL32: =SUM(AH31:AL31) -> 23.20771954
C36: Labour assumptions
D38: Current FTEs (at 30 June) | W38: 469.6631579 | X38: 471.776 | Y38: 493.152 | Z38: 586.632 | AA38: 566.944 | AB38: 634.12
D39: Actual and forecast labour costs for current FTEs ($m) | W39: 69.4572 | X39: 63.65803906 | Y39: 66.68357775 | Z39: 70.89204149 | AA39: 76.08478006 | AB39: 77.96438535 | AC39: 77.96438535 | AD39: 77.96438535 | AE39: 77.96438535 | AF39: 77.96438535 | AG39: 77.96438535 | AH39: 77.96438535 | AI39: 77.96438535 | AJ39: 77.96438535 | AK39: 77.96438535 | AL39: 77.96438535
D40: Cost per FTE ($000) | W40: =+W39/W38*10^3 -> 147.8872652 | X40: 134.9327627 | Y40: 135.2191165 | Z40: 120.845848 | AA40: 134.2015791 | AB40: 122.9489455 | AC40: =+AC39/$AB$38*10^3 -> 122.9489455 | AD40: =+AD39/$AB$38*10^3 -> 122.9489455 | AE40: =+AE39/$AB$38*10^3 -> 122.9489455 | AF40: 122.9489455 | AG40: 122.9489455 | AH40: 122.9489455 | AI40: 122.9489455 | AJ40: 122.9489455 | AK40: 122.9489455 | AL40: 122.9489455
D41: Annual growth in labour costs for current FTEs | X41: =+X40/W40-1 -> -0.08759714711 | Y41: 0.00212219635 | Z41: -0.1062961282 | AA41: 0.1105187423 | AB41: -0.08384874177 | AC41: 0 | AD41: 0 | AE41: 0 | AF41: 0 | AG41: 0 | AH41: =+AH40/AG40-1 -> 0 | AI41: =+AI40/AH40-1 -> 0 | AJ41: =+AJ40/AI40-1 -> 0 | AK41: =+AK40/AJ40-1 -> 0 | AL41: =+AL40/AK40-1 -> 0
D43: Change in FTEs in future periods (net no. annual change) | AC43: 8.191739825 | AD43: -4.972346217 | AE43: -1.227301705 | AF43: -1.104826115 | AG43: 0 | AH43: 0 | AI43: 0 | AJ43: 0 | AK43: 0 | AL43: 0
D44: Increase or decrease in labour costs ($m) | AC44: 1.007165774 | AD44: 0.3958210494 | AE44: 0.2449255988 | AF44: 0.1090883929 | AG44: 0.1090883929 | AH44: 0.1090883929 | AI44: 0.1090883929 | AJ44: 0.1090883929 | AK44: 0.1090883929 | AL44: 0.1090883929
D48: Total FTEs | W48: =+W38 -> 469.6631579 | X48: 471.776 | Y48: 493.152 | Z48: 586.632 | AA48: 566.944 | AB48: 634.12 | AC48: =+$AB$38+SUM($AC43:AC43) -> 642.3117398 | AD48: =+$AB$38+SUM($AC43:AD43) -> 637.3393936 | AE48: =+$AB$38+SUM($AC43:AE43) -> 636.1120919 | AF48: =+$AB$38+SUM($AC43:AF43) -> 635.0072658 | AG48: =+$AB$38+SUM($AC43:AG43) -> 635.0072658 | AH48: =+$AB$38+SUM($AC43:AH43) -> 635.0072658 | AI48: =+$AB$38+SUM($AC43:AI43) -> 635.0072658 | AJ48: =+$AB$38+SUM($AC43:AJ43) -> 635.0072658 | AK48: =+$AB$38+SUM($AC43:AK43) -> 635.0072658 | AL48: =+$AB$38+SUM($AC43:AL43) -> 635.0072658
D49: Total labour costs ($m) | W49: 69.4572 | X49: 63.65803906 | Y49: 66.68357775 | Z49: 70.89204149 | AA49: 76.08478006 | AB49: 77.96438535 | AC49: =+AC44+AC39 -> 78.97155112 | AD49: 78.3602064 | AE49: 78.20931095 | AF49: 78.07347374 | AG49: 78.07347374 | AH49: 78.07347374 | AI49: 78.07347374 | AJ49: 78.07347374 | AK49: 78.07347374 | AL49: 78.07347374
D50: Cost per FTE | W50: =+W49/W48 -> 0.1478872652 | X50: 0.1349327627 | Y50: 0.1352191165 | Z50: 0.120845848 | AA50: 0.1342015791 | AB50: 0.1229489455 | AC50: 0.1229489455 | AD50: 0.1229489455 | AE50: 0.1229489455 | AF50: 0.1229489455 | AG50: 0.1229489455 | AH50: =+AH49/AH48 -> 0.1229489455 | AI50: =+AI49/AI48 -> 0.1229489455 | AJ50: =+AJ49/AJ48 -> 0.1229489455 | AK50: =+AK49/AK48 -> 0.1229489455 | AL50: =+AL49/AL48 -> 0.1229489455
D51: Annual growth in total labour costs | X51: =+X49/W49-1 -> -0.08349258167 | Y51: 0.04752799077 | Z51: 0.06311094695 | AA51: 0.07324854053 | AB51: 0.02470409047 | AC51: 0.01291828018 | AD51: -0.007741328562 | AE51: -0.001925664281 | AF51: -0.00173684187 | AG51: 0 | AH51: 0 | AI51: 0 | AJ51: 0 | AK51: 0 | AL51: 0
D52: Annual growth in total labour costs per FTE | X52: -0.08759714711 | Y52: 0.00212219635 | Z52: -0.1062961282 | AA52: 0.1105187423 | AB52: -0.08384874177 | AC52: 0 | AD52: 0 | AE52: 0 | AF52: 0 | AG52: 0 | AH52: 0 | AI52: 0 | AJ52: 0 | AK52: 0 | AL52: 0
C57: Energy assumptions
D59: Electricity - traditional sources
D61: BASE LOAD
D63: Large sites
D64: Total kWh | W64: 26980070.33 | X64: 27423215.76 | Y64: 30772921.57 | Z64: 29956112.89 | AA64: 29982381.58 | AB64: 31511109 | AC64: 32854430 | AD64: 34067997 | AE64: 33855946 | AF64: 33893345 | AG64: 35369459 | AH64: 36586278 | AI64: 38523985 | AJ64: 39499011 | AK64: 42571633 | AL64: 41783591
D65: Total electricity costs ($m) | W65: 6.2292 | X65: 6.791572137 | Y65: 7.147800583 | Z65: 6.062526587 | AA65: 6.060185016 | AB65: 5.507341404 | AC65: 5.203 | AD65: 5.987439614 | AE65: 5.701883358 | AF65: 5.33048139 | AG65: 5.564158624 | AH65: 5.560390794 | AI65: 5.657083481 | AJ65: 5.60411555 | AK65: 5.83607781 | AL65: 5.534532723
D66: Average c/kWh | W66: =+W65/W64*100*10^6 -> 23.0881533 | X66: 24.76577581 | Y66: 23.22756572 | Z66: 20.23802824 | AA66: 20.21248712 | AB66: 17.47745979 | AC66: =+AC65/AC64*100*10^6 -> 15.83652494 | AD66: 17.57496812 | AE66: 16.84160105 | AF66: 15.72722135 | AG66: 15.73153444 | AH66: 15.19802259 | AI66: 14.68457503 | AJ66: 14.18798954 | AK66: 13.70884178 | AL66: 13.24570864
D67: % increase p.a. | X67: =+X66/W66-1 -> 0.07266161523 | Y67: =+Y66/X66-1 -> -0.06211031313 | Z67: =+Z66/Y66-1 -> -0.1287064481 | AA67: =+AA66/Z66-1 -> -0.00126203598 | AB67: =+AB66/AA66-1 -> -0.1353137452 | AC67: =+AC66/AB66-1 -> -0.09388863547 | AD67: 0.1097742841 | AE67: -0.04172793187 | AF67: -0.06616827584 | AG67: 0.000274243725 | AH67: -0.03391352927 | AI67: -0.03378383977 | AJ67: -0.03381681009 | AK67: -0.03377136443 | AL67: -0.03378353501
D69: Medium sites
D70: Total kWh | W70: 3460695 | X70: 2592118.493 | Y70: 2609957.4 | Z70: 2813776 | AA70: 2549153.77 | AB70: 2593292 | AC70: 2575643 | AD70: 2603311 | AE70: 2633135 | AF70: 2655877 | AG70: 2680092 | AH70: 2607354 | AI70: 2673741 | AJ70: 2740616 | AK70: 2811402 | AL70: 2875039
D71: Total electricity costs ($m) | W71: 0.906 | X71: 0.7236219675 | Y71: 0.6919432214 | Z71: 0.6448044597 | AA71: 0.6073282443 | AB71: 0.5653854237 | AC71: 0.51918 | AD71: 0.6173043478 | AE71: 0.60196504 | AF71: 0.5658427758 | AG71: 0.5889293719 | AH71: 0.553572098 | AI71: 0.5484702694 | AJ71: 0.5431747732 | AK71: 0.5383620404 | AL71: 0.5319329429
D72: Average c/kWh | W72: =+W71/W70*100*10^6 -> 26.17971246 | X72: 27.91623799 | Y72: 26.51166726 | Z72: 22.91598406 | AA72: 23.82470024 | AB72: 21.80184197 | AC72: =+AC71/AC70*100*10^6 -> 20.15729664 | AD72: 23.71227824 | AE72: 22.86115372 | AF72: 21.30530803 | AG72: 21.97422222 | AH72: 21.23118295 | AI72: 20.5132161 | AJ72: 19.81944107 | AK72: 19.1492373 | AL72: 18.50176443
D73: % increase p.a. | X73: =+X72/W72-1 -> 0.0663309627 | Y73: =+Y72/X72-1 -> -0.050313754 | Z73: =+Z72/Y72-1 -> -0.1356264455 | AA73: =+AA72/Z72-1 -> 0.03965425061 | AB73: =+AB72/AA72-1 -> -0.08490592721 | AC73: =+AC72/AB72-1 -> -0.07543148559 | AD73: 0.1763620222 | AE73: -0.03589383157 | AF73: -0.06805630664 | AG73: 0.031396598 | AH73: -0.03381413286 | AI73: -0.0338166202 | AJ73: -0.03382088046 | AK73: -0.03381547301 | AL73: -0.03381194064
D75: Small sites
D76: Total kWh | W76: 605543 | X76: 1175722.948 | Y76: 1131721.84 | Z76: 1298020 | AA76: 1400040 | AB76: 1213272 | AC76: 1186705 | AD76: 1159037 | AE76: 1084997 | AF76: 1106471 | AG76: 1082256 | AH76: 1196705 | AI76: 1230092 | AJ76: 1264489 | AK76: 1298180 | AL76: 1332497
D77: Total electricity costs ($m) | W77: 0.198 | X77: 0.4320806801 | Y77: 0.3711630308 | Z77: 0.3934785592 | AA77: 0.3670511959 | AB77: 0.3267054237 | AC77: 0.30048 | AD77: 0.3990724638 | AE77: 0.3832621531 | AF77: 0.3594241682 | AG77: 0.371853113 | AH77: 0.3972681993 | AI77: 0.3945478125 | AJ77: 0.3918636534 | AK77: 0.3886972109 | AL77: 0.3854802409
D78: Average c/kWh | W78: =+W77/W76*100*10^6 -> 32.69792566 | X78: 36.75021234 | Y78: 32.79631245 | Z78: 30.31375165 | AA78: 26.2171935 | AB78: 26.92763236 | AC78: =+AC77/AC76*100*10^6 -> 25.32053038 | AD78: 34.43138258 | AE78: 35.32379842 | AF78: 32.48383086 | AG78: 34.35907151 | AH78: 33.19683626 | AI78: 32.07465885 | AJ78: 30.98988234 | AK78: 29.94170384 | AL78: 28.92916388
D79: % increase p.a. | X79: =+X78/W78-1 -> 0.1239310016 | Y79: =+Y78/X78-1 -> -0.1075884909 | Z79: =+Z78/Y78-1 -> -0.07569633956 | AA79: =+AA78/Z78-1 -> -0.1351386062 | AB79: =+AB78/AA78-1 -> 0.02709820407 | AC79: =+AC78/AB78-1 -> -0.05968226117 | AD79: 0.3598207491 | AE79: 0.02591867559 | AF79: -0.08039813616 | AG79: 0.05772843279 | AH79: -0.03382615433 | AI79: -0.03380374568 | AJ79: -0.03382035976 | AK79: -0.03382324886 | AL79: -0.03381704544
D82: NEW PROJECTS
D84: Large sites
D85: Total kWh | W85: 0 | X85: 0 | Y85: 0 | Z85: 0 | AA85: 0 | AB85: 0 | AC85: 2296387.057 | AD85: 2466405.361 | AE85: 2669745.16 | AF85: 2833527.986 | AG85: 2739470.482 | AH85: 2881792.741 | AI85: 2997641.903 | AJ85: 3116196.13 | AK85: 3239065.029 | AL85: 3375907.908
D86: Total electricity costs ($m) | W86: 0 | X86: 0 | Y86: 0 | Z86: 0 | AA86: 0 | AB86: 0 | AC86: 0.385291861 | AD86: 0.4533906657 | AE86: 0.4617398953 | AF86: 0.4546665409 | AG86: 0.4404972108 | AH86: 0.447712202 | AI86: 0.4499617416 | AJ86: 0.4519394703 | AK86: 0.4538734781 | AL86: 0.4570517537
D87: Average c/kWh | W87: =+W86/W85*100*10^6 ->  | AC87: =+AC86/AC85*100*10^6 -> 16.77817596 | AD87: 18.38265003 | AE87: 17.2952798 | AF87: 16.04595201 | AG87: 16.07964801 | AH87: 15.5358918 | AI87: 15.01052348 | AJ87: 14.50292123 | AK87: 14.01248428 | AL87: 13.53863216
D88: % increase p.a. | X88: =+X87/W87-1 ->  | Y88: =+Y87/X87-1 ->  | Z88: =+Z87/Y87-1 ->  | AA88: =+AA87/Z87-1 ->  | AB88: =+AB87/AA87-1 ->  | AC88: =+AC87/AB87-1 ->  | AD88: 0.09562863539 | AE88: -0.05915198454 | AF88: -0.072235188 | AG88: 0.002099969049 | AH88: -0.03381642512 | AI88: -0.03381642512 | AJ88: -0.03381642512 | AK88: -0.03381642512 | AL88: -0.03381642512
D90: Medium sites
D91: Total kWh | W91: 0 | X91: 0 | Y91: 0 | Z91: 0 | AA91: 0 | AB91: 0 | AC91: 0 | AD91: 0 | AE91: 0 | AF91: 0 | AG91: 0 | AH91: 0 | AI91: 0 | AJ91: 0 | AK91: 0 | AL91: 0
D92: Total electricity costs ($m) | W92: 0 | X92: 0 | Y92: 0 | Z92: 0 | AA92: 0 | AB92: 0 | AC92: 0 | AD92: 0 | AE92: 0 | AF92: 0 | AG92: 0 | AH92: 0 | AI92: 0 | AJ92: 0 | AK92: 0 | AL92: 0
D93: Average c/kWh | W93: =+W92/W91*100*10^6 ->  | AC93: =+AC92/AC91*100*10^6 -> 
D94: % increase p.a. | X94: =+X93/W93-1 ->  | Y94: =+Y93/X93-1 ->  | Z94: =+Z93/Y93-1 ->  | AA94: =+AA93/Z93-1 ->  | AB94: =+AB93/AA93-1 ->  | AC94: =+AC93/AB93-1 -> 
D96: Small sites
D97: Total kWh | W97: 0 | X97: 0 | Y97: 0 | Z97: 0 | AA97: 0 | AB97: 0 | AC97: 0 | AD97: 0 | AE97: 0 | AF97: 0 | AG97: 0 | AH97: 0 | AI97: 0 | AJ97: 0 | AK97: 0 | AL97: 0
D98: Total electricity costs ($m) | W98: 0 | X98: 0 | Y98: 0 | Z98: 0 | AA98: 0 | AB98: 0 | AC98: 0 | AD98: 0 | AE98: 0 | AF98: 0 | AG98: 0 | AH98: 0 | AI98: 0 | AJ98: 0 | AK98: 0 | AL98: 0
D99: Average c/kWh | W99: =+W98/W97*100*10^6 ->  | X99: =+X98/X97*100*10^6 ->  | AH99: =+AH98/AH97*100*10^6 ->  | AI99: =+AI98/AI97*100*10^6 ->  | AJ99: =+AJ98/AJ97*100*10^6 ->  | AK99: =+AK98/AK97*100*10^6 ->  | AL99: =+AL98/AL97*100*10^6 -> 
D100: % increase p.a. | X100: =+X99/W99-1 ->  | Y100: =+Y99/X99-1 ->  | Z100: =+Z99/Y99-1 ->  | AA100: =+AA99/Z99-1 ->  | AB100: =+AB99/AA99-1 ->  | AC100: =+AC99/AB99-1 -> 
D103: Greenhouse Gas Offsets | W103: 0 | X103: 0 | Y103: 0 | Z103: 0.3184219554 | AA103: 0.3149109415 | AB103: 0.3157142857 | AC103: 0.295 | AD103: 0.5314009662 | AE103: 0.7458750496 | AF103: 0.7242599927 | AG103: 0.7494403158 | AH103: 0.7628276892 | AI103: 0.7972306314 | AJ103: 1.448581341 | AK103: 1.508191351 | AL103: 1.430041665
D104: % increase p.a. | X104: =X103/W103-1 ->  | AA104: -0.01102629347 | AB104: 0.002551020408 | AC104: -0.06561085973 | AD104: 0.8013592074 | AE104: 0.4036012297 | AF104: -0.02897946104 | AG104: 0.03476696687 | AH104: =AH103/AG103-1 -> 0.01786316144 | AI104: =AI103/AH103-1 -> 0.04509923111 | AJ104: =AJ103/AI103-1 -> 0.8170166617 | AK104: =AK103/AJ103-1 -> 0.04115061297 | AL104: =AL103/AK103-1 -> -0.05181682405
D107: TOTAL ENERGY COSTS | W107: =+SUM(W65,W71,W77,W86,W92,W98,W103) -> 7.3332 | X107: 7.947274785 | Y107: 8.210906835 | Z107: 7.419231561 | AA107: 7.349475397 | AB107: 6.715146538 | AC107: 6.702951861 | AD107: 7.988608057 | AE107: 7.894725496 | AF107: 7.434674868 | AG107: =+SUM(AG65,AG71,AG77,AG86,AG92,AG98,AG103) -> 7.714878635 | AH107: 7.721770982 | AI107: 7.847293935 | AJ107: 8.439674787 | AK107: 8.72520189 | AL107: 8.339039325
D108: % increase p.a. | W108: =W107/V107-1 ->  | X108: 0.08373899316 | Y108: 0.03317263558 | Z108: -0.09641752001 | AA108: -0.009402073937 | AB108: -0.08630940651 | AC108: -0.001815995595 | AD108: 0.19180448 | AE108: -0.01175205499 | AF108: -0.05827316327 | AG108: 0.03768877218 | AH108: =AH107/AG107-1 -> 0.0008933837345 | AI108: =AI107/AH107-1 -> 0.01625572077 | AJ108: =AJ107/AI107-1 -> 0.07548855141 | AK108: =AK107/AJ107-1 -> 0.03383152903 | AL108: =AL107/AK107-1 -> -0.04425829557
C113: IT cost assumptions
D115: Water related IT costs | W115: 4.714557199 | X115: 5.847563043 | Y115: 5.340903924 | Z115: 5.829419231 | AA115: 6.026361004 | AB115: 6.391871828 | AC115: 7.191548816 | AD115: 7.739404445 | AE115: 7.822063365 | AF115: 7.870120876 | AG115: 7.910489186 | AH115: 7.910489186 | AI115: 7.910489186 | AJ115: 7.910489186 | AK115: 7.910489186 | AL115: 7.910489186
D116: Sewerage and trade waste related IT costs | W116: 4.686518903 | X116: 5.812786562 | Y116: 5.309140634 | Z116: 5.794750655 | AA116: 5.99052118 | AB116: 6.353858247 | AC116: 7.148779417 | AD116: 7.693376853 | AE116: 7.775544185 | AF116: 7.82331589 | AG116: 7.863444122 | AH116: 7.863444122 | AI116: 7.863444122 | AJ116: 7.863444122 | AK116: 7.863444122 | AL116: 7.863444122
D117: Other IT costs | W117: 2.861723898 | X117: 3.549455484 | Y117: 3.241914723 | Z117: 3.538442238 | AA117: 3.657985379 | AB117: 3.879849494 | AC117: 4.365251336 | AD117: 4.697798271 | AE117: 4.747972019 | AF117: 4.777142803 | AG117: 4.801646261 | AH117: 4.801646261 | AI117: 4.801646261 | AJ117: 4.801646261 | AK117: 4.801646261 | AL117: 4.801646261
D118: Total IT costs | W118: =SUM(W115:W117) -> 12.2628 | X118: 15.20980509 | Y118: 13.89195928 | Z118: 15.16261212 | AA118: 15.67486756 | AB118: 16.62557957 | AC118: =SUM(AC115:AC117) -> 18.70557957 | AD118: 20.13057957 | AE118: 20.34557957 | AF118: 20.47057957 | AG118: 20.57557957 | AH118: 20.57557957 | AI118: 20.57557957 | AJ118: 20.57557957 | AK118: 20.57557957 | AL118: 20.57557957
D119: % increase p.a. | X119: =X118/W118-1 -> 0.2403207333 | Y119: -0.08664449016 | Z119: 0.09146678423 | AA119: 0.03378411547 | AB119: 0.06065199613 | AC119: 0.1251084205 | AD119: 0.07618047838 | AE119: 0.01068026876 | AF119: 0.006143840709 | AG119: 0.005129312516 | AH119: =AH118/AG118-1 -> 0 | AI119: =AI118/AH118-1 -> 0 | AJ119: =AJ118/AI118-1 -> 0 | AK119: =AK118/AJ118-1 -> 0 | AL119: =AL118/AK118-1 -> 0
C124: Chemical cost assumptions
D126: Water related chemical costs | W126: 0.83688984 | X126: 0.5279413652 | Y126: 0.5837034568 | Z126: 0.5820048268 | AA126: 0.4256268804 | AB126: 0.5013874625 | AC126: 0.6643069253 | AD126: 0.7086935547 | AE126: 0.7342660614 | AF126: 0.7550719337 | AG126: 0.7773133779 | AH126: 0.7998264881 | AI126: 0.8234993146 | AJ126: 0.8479278069 | AK126: 0.8719597609 | AL126: 0.8968666796
D127: Sewerage and trade waste related chemical costs | W127: 1.00173156 | X127: 1.163146003 | Y127: 1.316898945 | Z127: 1.160666905 | AA127: 1.703518611 | AB127: 3.233467588 | AC127: 3.060662414 | AD127: 3.183433142 | AE127: 3.305086946 | AF127: 3.391521103 | AG127: 3.490569125 | AH127: 3.584988182 | AI127: 3.685910672 | AJ127: 3.789624521 | AK127: 3.899108359 | AL127: 4.008007758
D128: Other chemical costs | W128: 0 | X128: 0 | Y128: 0 | Z128: 0 | AA128: 0 | AB128: 0 | AC128: 0 | AD128: 0 | AE128: 0 | AF128: 0 | AG128: 0 | AH128: 0 | AI128: 0 | AJ128: 0 | AK128: 0 | AL128: 0
D129: Total chemical costs | W129: =SUM(W126:W128) -> 1.8386214 | X129: 1.691087368 | Y129: 1.900602402 | Z129: 1.742671732 | AA129: 2.129145491 | AB129: 3.734855051 | AC129: =SUM(AC126:AC128) -> 3.724969339 | AD129: 3.892126697 | AE129: 4.039353008 | AF129: 4.146593037 | AG129: 4.267882503 | AH129: 4.384814671 | AI129: 4.509409986 | AJ129: 4.637552328 | AK129: 4.77106812 | AL129: 4.904874438
D130: % increase p.a. | X130: =X129/W129-1 -> -0.08024165931 | Y130: 0.1238936779 | Z130: -0.08309505951 | AA130: 0.2217708315 | AB130: 0.7541568044 | AC130: -0.002646879527 | AD130: 0.04487482767 | AE130: 0.0378267005 | AF130: 0.02654881346 | AG130: 0.0292503906 | AH130: =AH129/AG129-1 -> 0.02739816935 | AI130: =AI129/AH129-1 -> 0.02841518404 | AJ130: =AJ129/AI129-1 -> 0.02841665355 | AK130: =AK129/AJ129-1 -> 0.02879014238 | AL130: =AL129/AK129-1 -> 0.02804535899

Sheet Opex_FO
A1: 80 | B1: Operating Expenditure - Forecast
B2: =Model_Name -> Greater Western Water
B3: Go to Table of Contents
L4: FIRST REG PERIOD | P4: SECOND REG PERIOD | U4: THIRD REG PERIOD | Z4: FOURTH REG PERIOD | AC4: EXT YR | AE4: FIFTH REG PERIOD | AJ4: SIXTH REG PERIOD
K5: 2006 | L5: 2007 | M5: 2008 | N5: 2009 | O5: 2010 | P5: 2011 | Q5: 2012 | R5: 2013 | S5: 2014 | T5: 2015 | U5: 2016 | V5: 2017 | W5: 2018 | X5: 2019 | Y5: 2020 | Z5: 2021 | AA5: 2022 | AB5: 2023 | AC5: 2024 | AD5: 2025 | AE5: 2026 | AF5: 2027 | AG5: 2028 | AH5: 2029 | AI5: 2030 | AJ5: 2031 | AK5: 2032 | AL5: 2033
B6: =Expenditure_Detail!$B$6 -> $m, 01/01/24 | K6: =+CONCATENATE(K5-1,"-",RIGHT(K5,2)) -> 2005-06 | L6: =+CONCATENATE(L5-1,"-",RIGHT(L5,2)) -> 2006-07 | M6: 2007-08 | N6: 2008-09 | O6: 2009-10 | P6: 2010-11 | Q6: 2011-12 | R6: 2012-13 | S6: 2013-14 | T6: 2014-15 | U6: 2015-16 | V6: 2016-17 | W6: 2017-18 | X6: 2018-19 | Y6: 2019-20 | Z6: 2020-21 | AA6: 2021-22 | AB6: 2022-23 | AC6: 2023-24 | AD6: 2024-25 | AE6: 2025-26 | AF6: 2026-27 | AG6: 2027-28 | AH6: =+CONCATENATE(AH5-1,"-",RIGHT(AH5,2)) -> 2028-29 | AI6: =+CONCATENATE(AI5-1,"-",RIGHT(AI5,2)) -> 2029-30 | AJ6: =+CONCATENATE(AJ5-1,"-",RIGHT(AJ5,2)) -> 2030-31 | AK6: =+CONCATENATE(AK5-1,"-",RIGHT(AK5,2)) -> 2031-32 | AL6: =+CONCATENATE(AL5-1,"-",RIGHT(AL5,2)) -> 2032-33
C9: Parameters | G9: 4th period Ave | I9: 5th period
D11: Cost efficiency improvement rate (% per annum) | G11: =IFERROR(AVERAGE(X11:AB11),"-") -> 0.02 | I11: =IFERROR(AVERAGE(AD11:AG11),"-") -> 0.03 | X11: 0.02 | Y11: 0.02 | Z11: 0.02 | AA11: 0.02 | AB11: 0.02 | AC11: 0.02 | AD11: 0.038 | AE11: 0.033 | AF11: 0.0275 | AG11: 0.0215 | AH11: 0.014 | AI11: 0.014 | AJ11: 0.014 | AK11: 0.014 | AL11: 0.014
D13: Opex growth forecast (% per annum) | G13: =IFERROR(AVERAGE(X13:AC13),"-") -> 0.0327790406 | I13: =IFERROR(AVERAGE(AD13:AG13),"-") -> 0.02811685158 | X13: =X15/W15-1 -> 0.03271027146 | Y13: =Y15/X15-1 -> 0.03568405997 | Z13: =Z15/Y15-1 -> 0.03872415817 | AA13: 0.02640072417 | AB13: 0.03023674967 | AC13: 0.03291828018 | AD13: 0.03025867144 | AE13: 0.03107433572 | AF13: 0.02576315813 | AG13: 0.02537124102 | AH13: 0.0248199743 | AI13: 0.02429040569 | AJ13: 0.02349740767 | AK13: 0.02368043129 | AL13: 0.02349357147
F14: Net baseline customer growth | G14: =IFERROR(G13-G11,"-") -> 0.0127790406 | I14: =IFERROR(I13-I11,"-") -> -0.001883148424
D15: Water customers (No.) - Residential & Non-Residential - [BED 1] | W15: =Determination_Lookup!M25 -> 524025 | X15: =Determination_Lookup!N25 -> 541166 | Y15: =Determination_Lookup!O25 -> 560477 | Z15: =Determination_Lookup!P25 -> 582181 | AA15: =Determination_Lookup!Q25 -> 597551 | AB15: 615619 | AC15: 635884.1187 | AD15: 655125.1273 | AE15: 675482.7055 | AF15: 692885.2732 | AG15: 710464.6325 | AH15: 728098.3464 | AI15: 745784.1507 | AJ15: 763308.1449 | AK15: 781383.611 | AL15: 799741.1027
D16: Water customer change (% per annum) | X16: =X15/W15-1 -> 0.03271027146 | Y16: 0.03568405997 | Z16: =IF(ISERROR(Z15/Y15-1)," ",Z15/Y15-1) -> 0.03872415817 | AA16: =IF(ISERROR(AA15/Z15-1)," ",AA15/Z15-1) -> 0.02640072417 | AB16: 0.03023674967 | AC16: =IF(ISERROR(AC15/AB15-1)," ",AC15/AB15-1) -> 0.03291828018 | AD16: =IF(ISERROR(AD15/AC15-1)," ",AD15/AC15-1) -> 0.03025867144 | AE16: =IF(ISERROR(AE15/AD15-1)," ",AE15/AD15-1) -> 0.03107433572 | AF16: =IF(ISERROR(AF15/AE15-1)," ",AF15/AE15-1) -> 0.02576315813 | AG16: =IF(ISERROR(AG15/AF15-1)," ",AG15/AF15-1) -> 0.02537124102 | AH16: =IF(ISERROR(AH15/AG15-1)," ",AH15/AG15-1) -> 0.0248199743 | AI16: =IF(ISERROR(AI15/AH15-1)," ",AI15/AH15-1) -> 0.02429040569 | AJ16: =IF(ISERROR(AJ15/AI15-1)," ",AJ15/AI15-1) -> 0.02349740767 | AK16: =IF(ISERROR(AK15/AJ15-1)," ",AK15/AJ15-1) -> 0.02368043129 | AL16: =IF(ISERROR(AL15/AK15-1)," ",AL15/AK15-1) -> 0.02349357147
D17: Sewer customers (No.) - Residential & Non-Residential - [BED 2] | W17: =Determination_Lookup!M26 -> 514568 | X17: =Determination_Lookup!N26 -> 531691 | Y17: =Determination_Lookup!O26 -> 550982 | Z17: =Determination_Lookup!P26 -> 572629 | AA17: =Determination_Lookup!Q26 -> 587954 | AB17: 605358.1648 | AC17: 624980.7734 | AD17: 643581.1783 | AE17: 663237.2987 | AF17: 680034.5326 | AG17: 696989.1028 | AH17: 713960.8187 | AI17: 730946.463 | AJ17: 747788.6182 | AK17: 765162.1216 | AL17: 782818.6528
D18: Sewer customer change (% per annum) | X18: =IF(ISERROR(X17/W17-1)," ",X17/W17-1) -> 0.03327645714 | Y18: 0.03628235197 | Z18: 0.03928803482 | AA18: 0.02676252862 | AB18: 0.02960123549 | AC18: 0.03241487394 | AD18: 0.02976156332 | AE18: 0.03054178882 | AF18: 0.02532612979 | AG18: 0.02493192537 | AH18: 0.02435004476 | AI18: 0.02379072336 | AJ18: 0.02304157144 | AK18: 0.02323317444 | AL18: 0.0230755427
D19: Total metered volume of water delivered to customers (ML) - [BED 10] | W19: =Determination_Lookup!M27 -> 115570.466 | X19: =Determination_Lookup!N27 -> 120020.25 | Y19: =Determination_Lookup!O27 -> 117807.032 | Z19: =Determination_Lookup!P27 -> 113075 | AA19: =Determination_Lookup!Q27 -> 112800 | AB19: 115170.5544 | AC19: 118507.3152 | AD19: 121220.2745 | AE19: 125137.9324 | AF19: 126473.7382 | AG19: 128591.6527 | AH19: 130721.4332 | AI19: 132071.8111 | AJ19: 134140.3221 | AK19: 136248.9046 | AL19: 138383.6313
D20: Residential & Non-Residential (Residential & Non-Residential) | X20: =IF(ISERROR(X19/W19-1)," ",X19/W19-1) -> 0.03850277804 | Y20: -0.01844037152 | Z20: -0.04016765315 | AA20: -0.00243201415 | AB20: 0.0210155536 | AC20: 0.02897234294 | AD20: 0.02289275795 | AE20: 0.03231850331 | AF20: 0.01067466738 | AG20: 0.0167458834 | AH20: 0.01656235482 | AI20: 0.01033019472 | AJ20: 0.01566201739 | AK20: 0.0157192296 | AL20: 0.01566784444
D21: Total metered volume change (% per annum)
C24: Baseline Forecast
D26: Baseline year - total prescribed operating expenditure in 2022-23: | AB26: =+Opex_Breakdown!AB43 -> 624.7048193
D28: Less non-controllable expenditure items incurred in 2022-23:
E29: External bulk water charges (excl. temporary purchases) | AB29: =+Opex_Breakdown!AB34 -> 372.0334424
E30: External temporary water purchases | AB30: =+Opex_Breakdown!AB35 -> 0 | AD30: Comparison with approved 2022-23 total controllable opex
E31: Licence fees | AB31: =+Opex_Breakdown!AB36 -> 0.8894784455 | AD31: per FD2018/2020 models
E32: Environment Contribution | AB32: =+Opex_Breakdown!AB37 -> 36.29301491
E33: Other non-controllable | AB33: =+Opex_Breakdown!AB38 -> 0
AB34: =SUM(AB29:AB33) -> 409.2159358 | AE34: 2022-23 | AF34: Difference | AG34: %
D36: Baseline year - total controllable operating expenditure in 2022-23: | AB36: =+AB26-AB34 -> 215.4888835 | AE36: =Determination_Lookup!R18 -> 184.1425517 | AF36: =+AB52-AE36 -> 25.48471192 | AG36: =+AF36/AE36 -> 0.1383966481
D38: Adjustments for non-recurring expenditure items incurred in 2022-23 and any efficiency savings to be realised from 2022-23: | AD38: ($, 2023-24)
D40: 1 | E40: Integration | AB40: 2.868641002
D41: 2 | E41: Price Submission | AB41: 1.094760155
D42: 3 | E42: Meter services | AB42: 0.515872862
D43: 4 | E43: Bonus payment | AB43: 0.07679990799
D44: 5 | E44: Greater Melbourne Urban Water & System Strategy (GMUWSS) | AB44: 0.09777082809
D45: 6 | E45: GSLs | AB45: 0.378209661
D46: 7 | E46: Redundancy expenses | AB46: 0.8295655061
D47: 8
D48: 9
D49: 10
AB50: =SUM(AB40:AB49) -> 5.861619923
D52: Adjusted baseline controllable operating expenditure (2022-23) | AB52: =+AB36-AB50 -> 209.6272636
D53: Approved 2022-23 total controllable operating expenditure (FD 2018/20) | AB53: =AE36 -> 184.1425517
D54: Difference | AB54: =AB52-AB53 -> 25.48471192
D56: Variations to the baseline year benchmark | AD56: Discrepancy between approved 22-23 benchmark and actual 22-23 controllable opex
AD57: per FD2018/20 models
D58: 1 | E58: Integration | AB58: 1.19
D59: 2 | E59: Transformation - Asset | AB59: 1.19
D60: 3 | E60: Transformation - Compliance | AB60: 3.54 | AE60: Proposed baseline difference | AF60: Unexplained Difference | AG60: Remaining unexplained (%)
D61: 4 | E61: Transformation - Corporate | AB61: 0.76
D62: 5 | E62: Transformation - Customer | AB62: 1.17 | AE62: =+AB52-AE36 -> 25.48471192 | AF62: =AE62-AB68 -> 0.3247119167 | AG62: =+AF62/AE62 -> 0.01274143957
D63: 6 | E63: Transformation - Safety | AB63: 0.29
D64: 7 | E64: Changes in Obligations | AB64: 1.33 | AD64: ($, 2023-24)
D65: 8 | E65: External cost drivers | AB65: 12.69
D66: 9 | E66: Labour movements | AB66: 3
D67: 10
AB68: =SUM(AB58:AB67) -> 25.16
D71: Adjusted baseline controllable operating expenditure (Forecast) | AB71: =AB52 -> 209.6272636 | AC71: =+$AB$71*(1+$AC$13-$AC$11) -> 212.3352873 | AD71: =+AC$71*(1+AD$13-AD$11) -> 210.6915301 | AE71: =+AD$71*(1+AE$13-AE$11) -> 210.2858089 | AF71: 209.9205757 | AG71: 210.7332289 | AH71: 213.013357 | AI71: 215.2053509 | AJ71: 217.2492438 | AK71: 219.3523102 | AL71: 221.434747
C75: Operating expenditure - reconciliation
D78: Adjusted baseline controllable operating expenditure (Forecast) | AD78: =+AD71 -> 210.6915301 | AE78: 210.2858089 | AF78: 209.9205757 | AG78: 210.7332289 | AH78: 213.013357 | AI78: 215.2053509 | AJ78: 217.2492438 | AK78: 219.3523102 | AL78: 221.434747
H79: Controllable | AG79: =SUM(AD78:AG78) -> 841.6311436 | AL79: =SUM(AH78:AL78) -> 1086.255009
D80: Forecast variations to baseline operating expenditure (above or below baseline) | H80: only
D82: 1 | E82: Opex from new assets: | H82: [Service]
D83: 2 | E83: Romsey WFP | H83: [Service] | AD83: 0 | AE83: 0.2008059071 | AF83: 0.2190631025 | AG83: 0.2190631025 | AH83: 0.2190631025 | AI83: 0.2190631025 | AJ83: 0.2190631025 | AK83: 0.2190631025 | AL83: 0.2190631025
D84: 3 | E84: Romsey RWP | H84: [Service] | AD84: 0 | AE84: 0 | AF84: 0.1030891081 | AG84: 0.1375673825 | AH84: 0.1375673825 | AI84: 0.1375673825 | AJ84: 0.1375673825 | AK84: 0.1375673825 | AL84: 0.1375673825
D85: 4 | E85: Macedon Ranges TA | H85: [Service] | AD85: 0 | AE85: 0 | AF85: 0.213224 | AG85: 0.678146 | AH85: 0.678146 | AI85: 0.678146 | AJ85: 0.678146 | AK85: 0.678146 | AL85: 0.678146
D86: 5 | E86: WIN | H86: [Service] | AD86: 0.797844 | AE86: 0.824933 | AF86: 0.841786 | AG86: 0.8465 | AH86: 0.8622 | AI86: 0.877555 | AJ86: 0.874722 | AK86: 0.900692 | AL86: 0.927775
D87: 6 | E87: Opex from B&C | H87: [Service] | AD87: 3.79 | AE87: 3.9 | AF87: 3.99 | AG87: 4.09 | AH87: 4.09 | AI87: 4.09 | AJ87: 4.09 | AK87: 4.09 | AL87: 4.09
D88: 7 | E88: Security of Critical Infrastructure | H88: [Service] | AD88: 0.985 | AE88: 1.09 | AF88: 1.195 | AG88: 1.2 | AH88: 1.2 | AI88: 1.2 | AJ88: 1.2 | AK88: 1.2 | AL88: 1.2
D89: 8 | E89: Traditional Owner Water Program | H89: [Service] | AD89: 0.6175 | AE89: 0.9175 | AF89: 1.2175 | AG89: 1.2175 | AH89: 1.2175 | AI89: 1.2175 | AJ89: 1.2175 | AK89: 1.2175 | AL89: 1.2175
D90: 9 | E90: Hardship Program | H90: [Service] | AD90: 1.3 | AE90: 1.3 | AF90: 1.3 | AG90: 1.3 | AH90: 1.3 | AI90: 1.3 | AJ90: 1.3 | AK90: 1.3 | AL90: 1.3
D91: 10 | H91: [Service]
D92: 11 | H92: [Service]
D93: 12 | H93: [Service]
D94: 13 | H94: [Service]
D95: 14 | H95: [Service]
D96: 15 | H96: [Service]
D98: Total changes required to baseline operating expenditure | AD98: =SUM(AD82:AD97) -> 7.490344 | AE98: 8.233238907 | AF98: 9.079662211 | AG98: 9.688776485 | AH98: 9.704476485 | AI98: 9.719831485 | AJ98: 9.716998485 | AK98: 9.742968485 | AL98: 9.770051485
D101: Total controllable operating expenditure | AD101: =+AD98+AD78 -> 218.1818741 | AE101: 218.5190478 | AF101: 219.0002379 | AG101: 220.4220054 | AH101: 222.7178335 | AI101: 224.9251823 | AJ101: 226.9662423 | AK101: 229.0952787 | AL101: 231.2047985
AG102: =SUM(AD101:AG101) -> 876.1231652 | AL102: =SUM(AH101:AL101) -> 1134.909335
D103: Non-controllable operating expenditure
D104: External bulk water charges (excl. temporary purchases) | AD104: =+Opex_Breakdown!AD34 -> 376.5174625 | AE104: =+Opex_Breakdown!AE34 -> 379.1031041 | AF104: =+Opex_Breakdown!AF34 -> 379.6792703 | AG104: =+Opex_Breakdown!AG34 -> 381.3586324 | AH104: =+Opex_Breakdown!AH34 -> 382.9284307 | AI104: =+Opex_Breakdown!AI34 -> 383.8313317 | AJ104: =+Opex_Breakdown!AJ34 -> 384.911231 | AK104: =+Opex_Breakdown!AK34 -> 386.3112166 | AL104: =+Opex_Breakdown!AL34 -> 386.7864517
D105: External temporary water purchases | AD105: =+Opex_Breakdown!AD35 -> 0 | AE105: =+Opex_Breakdown!AE35 -> 0 | AF105: =+Opex_Breakdown!AF35 -> 0 | AG105: =+Opex_Breakdown!AG35 -> 0 | AH105: =+Opex_Breakdown!AH35 -> 0 | AI105: =+Opex_Breakdown!AI35 -> 0 | AJ105: =+Opex_Breakdown!AJ35 -> 0 | AK105: =+Opex_Breakdown!AK35 -> 0 | AL105: =+Opex_Breakdown!AL35 -> 0
D106: Licence fees | AD106: =+Opex_Breakdown!AD36 -> 0.8894784455 | AE106: =+Opex_Breakdown!AE36 -> 0.8894784455 | AF106: =+Opex_Breakdown!AF36 -> 0.8894784455 | AG106: =+Opex_Breakdown!AG36 -> 0.8894784455 | AH106: =+Opex_Breakdown!AH36 -> 0.8894784455 | AI106: =+Opex_Breakdown!AI36 -> 0.8894784455 | AJ106: =+Opex_Breakdown!AJ36 -> 0.8894784455 | AK106: =+Opex_Breakdown!AK36 -> 0.8894784455 | AL106: =+Opex_Breakdown!AL36 -> 0.8894784455
D107: Environment Contribution | AD107: =+Opex_Breakdown!AD37 -> 32.76502319 | AE107: =+Opex_Breakdown!AE37 -> 31.65702724 | AF107: =+Opex_Breakdown!AF37 -> 30.58649974 | AG107: =+Opex_Breakdown!AG37 -> 29.55217367 | AH107: =+Opex_Breakdown!AH37 -> 28.5528248 | AI107: =+Opex_Breakdown!AI37 -> 27.58727034 | AJ107: =+Opex_Breakdown!AJ37 -> 26.65436747 | AK107: =+Opex_Breakdown!AK37 -> 25.75301205 | AL107: =+Opex_Breakdown!AL37 -> 24.88213725
D108: Other non-controllable | AD108: =+Opex_Breakdown!AD38 -> 0 | AE108: =+Opex_Breakdown!AE38 -> 0 | AF108: =+Opex_Breakdown!AF38 -> 0 | AG108: =+Opex_Breakdown!AG38 -> 0 | AH108: =+Opex_Breakdown!AH38 -> 0 | AI108: =+Opex_Breakdown!AI38 -> 0 | AJ108: =+Opex_Breakdown!AJ38 -> 0 | AK108: =+Opex_Breakdown!AK38 -> 0 | AL108: =+Opex_Breakdown!AL38 -> 0
D109: Total non-controllable operating expenditure | AD109: =SUM(AD104:AD108) -> 410.1719641 | AE109: 411.6496098 | AF109: 411.1552485 | AG109: 411.8002846 | AH109: =SUM(AH104:AH108) -> 412.370734 | AI109: =SUM(AI104:AI108) -> 412.3080805 | AJ109: =SUM(AJ104:AJ108) -> 412.4550769 | AK109: =SUM(AK104:AK108) -> 412.9537071 | AL109: =SUM(AL104:AL108) -> 412.5580674
AG110: =SUM(AD109:AG109) -> 1644.777107 | AL110: =SUM(AH109:AL109) -> 2062.645666
D112: Total prescribed operating expenditure | AD112: =+AD109+AD101 -> 628.3538382 | AE112: 630.1686576 | AF112: 630.1554864 | AG112: 632.2222899 | AH112: 635.0885675 | AI112: 637.2332628 | AJ112: 639.4213192 | AK112: 642.0489858 | AL112: 643.7628659
AG113: =SUM(AD112:AG112) -> 2520.900272 | AL113: =SUM(AH112:AL112) -> 3197.555001
AC115: To reconcile to 'Opex_Breakdown' tab row 37 >> | AD115: =+Opex_Breakdown!AD43 -> 628.3538382 | AE115: =+Opex_Breakdown!AE43 -> 630.1686576 | AF115: =+Opex_Breakdown!AF43 -> 630.1554864 | AG115: =+Opex_Breakdown!AG43 -> 632.2222899 | AH115: =+Opex_Breakdown!AH43 -> 635.0885675 | AI115: =+Opex_Breakdown!AI43 -> 637.2332628 | AJ115: =+Opex_Breakdown!AJ43 -> 639.4213192 | AK115: =+Opex_Breakdown!AK43 -> 642.0489858 | AL115: =+Opex_Breakdown!AL43 -> 643.7628659
AC116: Difference | AD116: =+AD115-AD112 -> 0 | AE116: 0 | AF116: 0 | AG116: 0 | AH116: 0 | AI116: 0 | AJ116: 0 | AK116: 0 | AL116: 0
AC117: Test | AD117: =IF(ROUND(AD115,2)=ROUND(AD112,2),0,1) -> 0 | AE117: 0 | AF117: 0 | AG117: 0 | AH117: 0 | AI117: 0 | AJ117: 0 | AK117: 0 | AL117: 0

Sheet Opex_Breakdown
A1: 80 | B1: Operating Expenditure - Breakdown
B2: =+Contents!H7 -> Greater Western Water
B3: Go to Table of Contents
L4: FIRST REG PERIOD | P4: SECOND REG PERIOD | U4: THIRD REG PERIOD | Z4: FOURTH REG PERIOD | AC4: EXT YR | AE4: FIFTH REG PERIOD | AJ4: SIXTH REG PERIOD
K6: 2006 | L6: 2007 | M6: 2008 | N6: 2009 | O6: 2010 | P6: 2011 | Q6: 2012 | R6: 2013 | S6: 2014 | T6: 2015 | U6: 2016 | V6: 2017 | W6: 2018 | X6: 2019 | Y6: 2020 | Z6: 2021 | AA6: 2022 | AB6: 2023 | AC6: 2024 | AD6: 2025 | AE6: 2026 | AF6: 2027 | AG6: 2028 | AH6: 2029 | AI6: 2030 | AJ6: 2031 | AK6: 2032 | AL6: 2033
B7: =Expenditure_Detail!$B$6 -> $m, 01/01/24 | K7: =+CONCATENATE(K6-1,"-",RIGHT(K6,2)) -> 2005-06 | L7: =+CONCATENATE(L6-1,"-",RIGHT(L6,2)) -> 2006-07 | M7: 2007-08 | N7: 2008-09 | O7: 2009-10 | P7: 2010-11 | Q7: 2011-12 | R7: 2012-13 | S7: 2013-14 | T7: 2014-15 | U7: 2015-16 | V7: 2016-17 | W7: 2017-18 | X7: =+CONCATENATE(X6-1,"-",RIGHT(X6,2)) -> 2018-19 | Y7: 2019-20 | Z7: 2020-21 | AA7: 2021-22 | AB7: 2022-23 | AC7: 2023-24 | AD7: 2024-25 | AE7: 2025-26 | AF7: 2026-27 | AG7: 2027-28 | AH7: =+CONCATENATE(AH6-1,"-",RIGHT(AH6,2)) -> 2028-29 | AI7: =+CONCATENATE(AI6-1,"-",RIGHT(AI6,2)) -> 2029-30 | AJ7: =+CONCATENATE(AJ6-1,"-",RIGHT(AJ6,2)) -> 2030-31 | AK7: =+CONCATENATE(AK6-1,"-",RIGHT(AK6,2)) -> 2031-32 | AL7: =+CONCATENATE(AL6-1,"-",RIGHT(AL6,2)) -> 2032-33
D10: Operating Expenditure Summary
E12: =C55 -> Water | W12: =+W64-W57-W61 -> 76.6836 | X12: 79.31523973 | Y12: 82.70928356 | Z12: 84.16610628 | AA12: 89.61746575 | AB12: 91.56737882 | AC12: =+AC64-AC57-AC61 -> 91.71062737 | AD12: 92.18060612 | AE12: 92.41921198 | AF12: 92.69800402 | AG12: 93.54863692 | AH12: 94.51752845 | AI12: 95.44896923 | AJ12: 96.31747769 | AK12: 97.21113064 | AL12: 98.0960175
E13: =C66 -> Sewerage | W13: =W75-W68-W72 -> 73.368 | X13: 74.93003053 | Y13: 79.2399159 | Z13: 88.24638631 | AA13: 91.81892451 | AB13: 92.19603176 | AC13: =AC75-AC68-AC72 -> 92.32705807 | AD13: 92.78315316 | AE13: 92.81984762 | AF13: 92.96933435 | AG13: 93.39150497 | AH13: 94.3670484 | AI13: 95.30488395 | AJ13: 96.17935514 | AK13: 97.07914343 | AL13: 97.97010546
E14: =C77 -> Recycled Water | W14: =W86-W79-W83 -> 20.5728 | X14: 22.10104877 | Y14: 23.38868445 | Z14: 23.43185221 | AA14: 24.37095005 | AB14: 31.72547293 | AC14: =AC86-AC79-AC83 -> 32.76981087 | AD14: 33.21811481 | AE14: 33.27998825 | AF14: 33.33289958 | AG14: 33.48186348 | AH14: 33.83325663 | AI14: 34.17132917 | AJ14: 34.46940947 | AK14: 34.8050046 | AL14: 35.13867555
E15: =C88 -> Rural Water | W15: =W97-W90-W94 -> 0 | X15: 0 | Y15: 0 | Z15: 0 | AA15: 0 | AB15: 0 | AC15: =AC97-AC90-AC94 -> 0 | AD15: 0 | AE15: 0 | AF15: 0 | AG15: 0 | AH15: 0 | AI15: 0 | AJ15: 0 | AK15: 0 | AL15: 0
E16: Bulk Water | W16: =W107-W104 -> 0 | X16: 0 | Y16: 0 | Z16: 0 | AA16: 0 | AB16: 0 | AC16: =AC107-AC104 -> 0 | AD16: 0 | AE16: 0 | AF16: 0 | AG16: 0 | AH16: 0 | AI16: 0 | AJ16: 0 | AK16: 0 | AL16: 0
E17: Total controllable operating expenditure | W17: =SUM(W12:W16) -> 170.6244 | X17: 176.346319 | Y17: 185.3378839 | Z17: 195.8443448 | AA17: 205.8073403 | AB17: 215.4888835 | AC17: 216.8074963 | AD17: 218.1818741 | AE17: 218.5190478 | AF17: 219.0002379 | AG17: 220.4220054 | AH17: =SUM(AH12:AH16) -> 222.7178335 | AI17: =SUM(AI12:AI16) -> 224.9251823 | AJ17: =SUM(AJ12:AJ16) -> 226.9662423 | AK17: =SUM(AK12:AK16) -> 229.0952787 | AL17: =SUM(AL12:AL16) -> 231.2047985
AB19: =SUM(X17:AB17) -> 978.8247716 | AC19: =SUM(X17:AC17) -> 1195.632268 | AG19: =SUM(AD17:AG17) -> 876.1231652 | AL19: =SUM(AH17:AL17) -> 1134.909335
E21: FD 2018/20 - Approved Benchmarks and Forecasts | W21: =Determination_Lookup!M18 -> 170.3221653 | X21: =Determination_Lookup!N18 -> 177.4639942 | Y21: =Determination_Lookup!O18 -> 176.5229841 | Z21: =Determination_Lookup!P18 -> 180.2732036 | AA21: =Determination_Lookup!Q18 -> 183.0802825 | AB21: =Determination_Lookup!R18 -> 184.1425517 | AC21: =Determination_Lookup!S18 -> 188.8205545 | AD21: =Determination_Lookup!T18 -> 191.2042766 | AE21: =Determination_Lookup!U18 -> 192.4287924 | AF21: =Determination_Lookup!V18 -> 194.3408412 | AG21: =Determination_Lookup!W18 -> 195.9305527 | AH21: 0 | AI21: 0 | AJ21: 0 | AK21: 0 | AL21: 0
E22: % difference | W22: =IF(W21=0,"-",W17/W21-1) -> 0.001774488426 | X22: =IF(X21=0,"-",X17/X21-1) -> -0.006298038952 | Y22: 0.04993627217 | Z22: 0.08637524003 | AA22: 0.1241371138 | AB22: 0.1702286167 | AC22: 0.1482197838 | AD22: 0.1410930656 | AE22: 0.1355839482 | AF22: 0.1268873623 | AG22: 0.1250006817 | AH22: - | AI22: - | AJ22: - | AK22: - | AL22: -
E25: Operations & Maintenance | W25: =W56+W67+W78+W89+W100 -> 62.1972 | X25: 63.63598672 | Y25: 66.84929056 | Z25: 61.15075989 | AA25: 102.0923885 | AB25: 83.78691132 | AC25: 83.50700976 | AD25: 82.87976425 | AE25: 82.94959693 | AF25: 83.15873145 | AG25: 83.97944189 | AH25: =AH56+AH67+AH78+AH89+AH100 -> 84.88344193 | AI25: =AI56+AI67+AI78+AI89+AI100 -> 85.75276133 | AJ25: =AJ56+AJ67+AJ78+AJ89+AJ100 -> 86.54619507 | AK25: =AK56+AK67+AK78+AK89+AK100 -> 87.39148479 | AL25: =AL56+AL67+AL78+AL89+AL100 -> 88.22985059
E26: Treatment | W26: =W58+W69+W80+W91+W101 -> 24.708 | X26: =X58+X69+X80+X91+X101 -> 25.24169157 | Y26: 27.02297702 | Z26: 27.97602988 | AA26: 0.03930201018 | AB26: 20.91353715 | AC26: 20.63905372 | AD26: 20.47928002 | AE26: 20.4398438 | AF26: 20.40434303 | AG26: 20.48333316 | AH26: =AH58+AH69+AH80+AH91+AH101 -> 20.7049623 | AI26: 20.91802476 | AJ26: 21.11669177 | AK26: 21.32111045 | AL26: 21.52352394
E27: Customer Service and billing | W27: =W59+W70+W81+W92+W102 -> 23.1108 | X27: =X59+X70+X81+X92+X102 -> 22.5287429 | Y27: 23.28036937 | Z27: 22.10622761 | AA27: 21.17532107 | AB27: 20.23004189 | AC27: 21.58030126 | AD27: 21.73568524 | AE27: 21.99752207 | AF27: 22.2631673 | AG27: 22.33960754 | AH27: 22.55408223 | AI27: 22.76026679 | AJ27: 22.9525206 | AK27: 23.15034041 | AL27: 23.34621976
E28: GSL Payments | W28: =W60+W71+W82+W93+W103 -> 0.066 | X28: 0.3052772548 | Y28: 0.1992463173 | Z28: 0.1857821527 | AA28: 0.05818541985 | AB28: 0.378209661 | AC28: 0 | AD28: 0 | AE28: 0 | AF28: 0 | AG28: 0 | AH28: 0 | AI28: 0 | AJ28: 0 | AK28: 0 | AL28: 0
E29: Corporate | W29: =W62+W73+W84+W95+W105 -> 60.522 | X29: 64.37133009 | Y29: 67.04796545 | Z29: 84.03293328 | AA29: 81.9190369 | AB29: 90.04762415 | AC29: 90.95029702 | AD29: 92.95732285 | AE29: 93.0025133 | AF29: 93.04464948 | AG29: 93.48977536 | AH29: =AH62+AH73+AH84+AH95+AH105 -> 94.44409466 | AI29: 95.36152647 | AJ29: 96.21697247 | AK29: 97.09718478 | AL29: 97.96876285
E30: Other operating expenditure | W30: =W63+W74+W85+W96+W106 -> 0.0204 | X30: 0.2632905011 | Y30: 0.9380351779 | Z30: 0.3926119966 | AA30: 0.5231064377 | AB30: 0.1325593317 | AC30: 0.1308345577 | AD30: 0.1298217244 | AE30: 0.1295717313 | AF30: 0.1293466857 | AG30: 0.1298474179 | AH30: 0.1312523636 | AI30: 0.1326030037 | AJ30: 0.1338623885 | AK30: 0.1351582341 | AL30: 0.1364413685
E31: Total controllable operating expenditure | W31: =SUM(W25:W30) -> 170.6244 | X31: 176.346319 | Y31: 185.3378839 | Z31: 195.8443448 | AA31: 205.8073403 | AB31: 215.4888835 | AC31: 216.8074963 | AD31: 218.1818741 | AE31: 218.5190478 | AF31: 219.0002379 | AG31: 220.4220054 | AH31: =SUM(AH25:AH30) -> 222.7178335 | AI31: =SUM(AI25:AI30) -> 224.9251823 | AJ31: =SUM(AJ25:AJ30) -> 226.9662423 | AK31: =SUM(AK25:AK30) -> 229.0952787 | AL31: =SUM(AL25:AL30) -> 231.2047985
W32: =IF(ROUND(W31,2)=ROUND(W17,2),0,1) -> 0 | X32: 0 | Y32: 0 | Z32: 0 | AA32: 0 | AB32: 0 | AC32: 0 | AD32: =IF(ROUND(AD31,2)=ROUND(AD17,2),0,1) -> 0 | AE32: 0 | AF32: 0 | AG32: 0 | AH32: 0 | AI32: 0 | AJ32: 0 | AK32: 0 | AL32: 0
E34: External bulk water charges (excl. temporary purchases) | W34: =W57+W68+W79+W90 -> 422.5457181 | X34: =X57+X68+X79+X90 -> 425.4339014 | Y34: =Y57+Y68+Y79+Y90 -> 438.4363708 | Z34: 416.0244307 | AA34: 389.5834506 | AB34: 372.0334424 | AC34: 374.6056778 | AD34: 376.5174625 | AE34: 379.1031041 | AF34: 379.6792703 | AG34: 381.3586324 | AH34: =AH57+AH68+AH79+AH90 -> 382.9284307 | AI34: =AI57+AI68+AI79+AI90 -> 383.8313317 | AJ34: =AJ57+AJ68+AJ79+AJ90 -> 384.911231 | AK34: =AK57+AK68+AK79+AK90 -> 386.3112166 | AL34: =AL57+AL68+AL79+AL90 -> 386.7864517
E35: External temporary water purchases | W35: =+W109 -> 0 | X35: 0 | Y35: 0 | Z35: 0 | AA35: 0 | AB35: 0 | AC35: 0 | AD35: 0 | AE35: 0 | AF35: 0 | AG35: 0 | AH35: =+AH109 -> 0 | AI35: =+AI109 -> 0 | AJ35: =+AJ109 -> 0 | AK35: =+AK109 -> 0 | AL35: =+AL109 -> 0
E36: Licence fees | W36: =+W116 -> 1.1748 | X36: 1.008614599 | Y36: 0.7622082752 | Z36: 1.021639786 | AA36: 0.9249901578 | AB36: 0.8894784455 | AC36: 0.8894784455 | AD36: 0.8894784455 | AE36: 0.8894784455 | AF36: 0.8894784455 | AG36: 0.8894784455 | AH36: =+AH116 -> 0.8894784455 | AI36: =+AI116 -> 0.8894784455 | AJ36: =+AJ116 -> 0.8894784455 | AK36: =+AK116 -> 0.8894784455 | AL36: =+AL116 -> 0.8894784455
E37: Environment Contribution | W37: =W120 -> 25.1676 | X37: =X120 -> 34.78689165 | Y37: 34.32957055 | Z37: 38.56573199 | AA37: 38.13998768 | AB37: 36.29301491 | AC37: 33.911799 | AD37: 32.76502319 | AE37: 31.65702724 | AF37: 30.58649974 | AG37: 29.55217367 | AH37: =AH120 -> 28.5528248 | AI37: =AI120 -> 27.58727034 | AJ37: =AJ120 -> 26.65436747 | AK37: =AK120 -> 25.75301205 | AL37: =AL120 -> 24.88213725
E38: Other non-controllable | W38: =+W134 -> 0 | X38: 0 | Y38: 0 | Z38: 0 | AA38: 0 | AB38: 0 | AC38: 0 | AD38: 0 | AE38: 0 | AF38: 0 | AG38: =+AG134 -> 0 | AH38: 0 | AI38: 0 | AJ38: 0 | AK38: 0 | AL38: 0
E39: Total non-controllable operating expenditure | W39: =SUM(W34:W38) -> 448.8881181 | X39: 461.2294077 | Y39: 473.5281496 | Z39: 455.6118025 | AA39: 428.6484284 | AB39: 409.2159358 | AC39: 409.4069552 | AD39: 410.1719641 | AE39: 411.6496098 | AF39: 411.1552485 | AG39: 411.8002846 | AH39: =SUM(AH34:AH38) -> 412.370734 | AI39: =SUM(AI34:AI38) -> 412.3080805 | AJ39: =SUM(AJ34:AJ38) -> 412.4550769 | AK39: =SUM(AK34:AK38) -> 412.9537071 | AL39: =SUM(AL34:AL38) -> 412.5580674
AB41: =SUM(X39:AB39) -> 2228.233724 | AC41: =SUM(X39:AC39) -> 2637.640679 | AG41: =SUM(AD39:AG39) -> 1644.777107 | AL41: =SUM(AH39:AL39) -> 2062.645666
E43: Total prescribed operating expenditure | W43: =+W39+W17 -> 619.5125181 | X43: 637.5757267 | Y43: 658.8660335 | Z43: 651.4561473 | AA43: 634.4557687 | AB43: 624.7048193 | AC43: 626.2144516 | AD43: 628.3538382 | AE43: 630.1686576 | AF43: 630.1554864 | AG43: 632.2222899 | AH43: =+AH39+AH17 -> 635.0885675 | AI43: =+AI39+AI17 -> 637.2332628 | AJ43: =+AJ39+AJ17 -> 639.4213192 | AK43: =+AK39+AK17 -> 642.0489858 | AL43: =+AL39+AL17 -> 643.7628659
AB45: =SUM(X43:AB43) -> 3207.058496 | AC45: =SUM(X43:AC43) -> 3833.272947 | AG45: =SUM(AD43:AG43) -> 2520.900272 | AL45: =SUM(AH43:AL43) -> 3197.555001
AC47: To reconcile to 'Opex_FO' tab row 95>> | AD47: =+Opex_FO!AD112 -> 628.3538382 | AE47: =+Opex_FO!AE112 -> 630.1686576 | AF47: =+Opex_FO!AF112 -> 630.1554864 | AG47: =+Opex_FO!AG112 -> 632.2222899 | AH47: =+Opex_FO!AH112 -> 635.0885675 | AI47: =+Opex_FO!AI112 -> 637.2332628 | AJ47: =+Opex_FO!AJ112 -> 639.4213192 | AK47: =+Opex_FO!AK112 -> 642.0489858 | AL47: =+Opex_FO!AL112 -> 643.7628659
AC48: Difference | AD48: =+AD47-AD43 -> 0 | AE48: 0 | AF48: 0 | AG48: 0 | AH48: =+AH47-AH43 -> 0 | AI48: =+AI47-AI43 -> 0 | AJ48: =+AJ47-AJ43 -> 0 | AK48: =+AK47-AK43 -> 0 | AL48: =+AL47-AL43 -> 0
AC49: Test | AD49: =IF(ROUND(AD47,2)=ROUND(AD43,2),0,1) -> 0 | AE49: 0 | AF49: 0 | AG49: 0 | AH49: 0 | AI49: 0 | AJ49: 0 | AK49: 0 | AL49: 0
B53: Total operating expenditure
C55: Water
D56: Operations & Maintenance | W56: 30.4332 | X56: 32.18587157 | Y56: 33.65222078 | Z56: 29.67655423 | AA56: 45.02071183 | AB56: 38.7897222 | AC56: 38.2934274 | AD56: 37.99698539 | AE56: 38.12462186 | AF56: 38.29023539 | AG56: 38.90171463 | AH56: 39.3129224 | AI56: 39.70823568 | AJ56: 40.07683982 | AK56: 40.45611554 | AL56: 40.83167085
D57: External bulk charges (excl. temporary purchases) | W57: =+W141 -> 304.666426 | X57: 309.7271998 | Y57: 318.5025126 | Z57: 300.2657801 | AA57: 292.707319 | AB57: 266.6485881 | AC57: 261.2633121 | AD57: 259.8629918 | AE57: 258.7334259 | AF57: 259.1660323 | AG57: 260.5274291 | AH57: 261.7989523 | AI57: 262.4600879 | AJ57: 263.2880611 | AK57: 264.4220231 | AL57: 264.6360725 | AM57: see reconciliation below
D58: Treatment | W58: 6.7548 | X58: 7.174060391 | Y58: 7.768895706 | Z58: 7.403310463 | AA58: 0 | AB58: 6.56463323 | AC58: 6.48064208 | AD58: 6.430473301 | AE58: 6.418090368 | AF58: 6.40694316 | AG58: 6.431745981 | AH58: 6.501337307 | AI58: 6.568238706 | AJ58: 6.630619946 | AK58: 6.694807207 | AL58: 6.758364838
D59: Customer Service and billing | W59: 12.9816 | X59: 12.4871375 | Y59: 12.82967644 | Z59: 12.14696599 | AA59: 12.34225223 | AB59: 10.94279177 | AC59: 11.48595203 | AD59: 11.53407031 | AE59: 11.64092513 | AF59: 11.74983981 | AG59: 11.7911844 | AH59: 11.90718835 | AI59: 12.01870838 | AJ59: 12.12269361 | AK59: 12.22968936 | AL59: 12.33563556
D60: GSL Payments | W60: 0.0336 | X60: 0.1526386274 | Y60: 0.06916620333 | Z60: 0.07387419664 | AA60: 0.02625795061 | AB60: 0.170678679 | AC60: 0 | AD60: 0 | AE60: 0 | AF60: 0 | AG60: 0 | AH60: 0 | AI60: 0 | AJ60: 0 | AK60: 0 | AL60: 0
D61: Licence Fees | W61: 0.5172 | X61: 0.4461939785 | Y61: 0.3383668051 | Z61: 0.440434384 | AA61: 0.4181169812 | AB61: 0.4067067441 | AC61: 0.4067067441 | AD61: 0.4067067441 | AE61: 0.4067067441 | AF61: 0.4067067441 | AG61: 0.4067067441 | AH61: 0.4067067441 | AI61: 0.4067067441 | AJ61: 0.4067067441 | AK61: 0.4067067441 | AL61: 0.4067067441
D62: Corporate | W62: 26.4624 | X62: 27.05224114 | Y62: 27.58579225 | Z62: 34.67896621 | AA62: 31.84975162 | AB62: 35.0306783 | AC62: 35.38261244 | AD62: 36.15161004 | AE62: 36.16823747 | AF62: 36.18376547 | AG62: 36.35651149 | AH62: 36.72786984 | AI62: 37.08487399 | AJ62: 37.41775736 | AK62: 37.76027813 | AL62: 38.09943903
D63: Other operating expenditure | W63: 0.018 | X63: 0.2632905011 | Y63: 0.8035321775 | Z63: 0.1864351844 | AA63: 0.3784921115 | AB63: 0.06887464038 | AC63: 0.06799342432 | AD63: 0.06746706489 | AE63: 0.06733714597 | AF63: 0.067220192 | AG63: 0.06748041756 | AH63: 0.06821055394 | AI63: 0.06891246822 | AJ63: 0.06956695802 | AK63: 0.07024039618 | AL63: 0.0709072284
C64: =+CONCATENATE("Total ",C55) -> Total Water | K64: =+SUM(K56:K63) -> 0 | L64: =+SUM(L56:L63) -> 0 | M64: 0 | N64: 0 | O64: 0 | P64: 0 | Q64: 0 | R64: 0 | S64: 0 | T64: 0 | U64: 0 | V64: 0 | W64: =+SUM(W56:W63) -> 381.867226 | X64: 389.4886335 | Y64: 401.5501629 | Z64: 384.8723207 | AA64: 382.7429017 | AB64: 358.6226736 | AC64: 353.3806462 | AD64: 352.4503047 | AE64: 351.5593447 | AF64: 352.2707431 | AG64: 354.4827728 | AH64: =+SUM(AH56:AH63) -> 356.7231875 | AI64: =+SUM(AI56:AI63) -> 358.3157639 | AJ64: =+SUM(AJ56:AJ63) -> 360.0122455 | AK64: =+SUM(AK56:AK63) -> 362.0398605 | AL64: =+SUM(AL56:AL63) -> 363.1387968
C66: Sewerage
D67: =+D56 -> Operations & Maintenance | W67: 24.5688 | X67: 22.96065463 | Y67: 24.5804105 | Z67: 25.61801739 | AA67: 51.91323043 | AB67: 40.57541054 | AC67: 40.07180579 | AD67: 39.76159678 | AE67: 39.68502929 | AF67: 39.71919178 | AG67: 39.90703354 | AH67: 40.33733814 | AI67: 40.75101009 | AJ67: 41.13673251 | AK67: 41.53362211 | AL67: 41.92661852
D68: =+D57 -> External bulk charges (excl. temporary purchases) | W68: =+W142 -> 117.3180875 | X68: 115.0145584 | Y68: 119.1292109 | Z68: 115.0164273 | AA68: 96.16925101 | AB68: 104.721147 | AC68: 112.6118086 | AD68: 115.923914 | AE68: 119.639122 | AF68: 119.7826828 | AG68: 120.1006501 | AH68: 120.3989288 | AI68: 120.6406956 | AJ68: 120.8926224 | AK68: 121.1586471 | AL68: 121.4198357 | AM68: see reconciliation below
D69: Treatment | W69: 15.5448 | X69: 15.8489953 | Y69: 16.46494897 | Z69: 17.9252683 | AA69: 0.03930201018 | AB69: 8.771044789 | AC69: 8.66218231 | AD69: 8.59512551 | AE69: 8.578574184 | AF69: 8.563674557 | AG69: 8.596826606 | AH69: 8.689844049 | AI69: 8.779266069 | AJ69: 8.862646338 | AK69: 8.948440577 | AL69: 9.033393237
D70: Customer Service and billing | W70: 9.3768 | X70: 9.516338764 | Y70: 9.879175051 | Z70: 9.363434103 | AA70: 8.554983258 | AB70: 8.403878813 | AC70: 8.987431432 | AD70: 9.055832392 | AE70: 9.168345555 | AF70: 9.282441275 | AG70: 9.31420554 | AH70: 9.403329167 | AI70: 9.489007879 | AJ70: 9.568897755 | AK70: 9.651100548 | AL70: 9.732496993
D71: GSL Payments | W71: 0.0324 | X71: 0.1526386274 | Y71: 0.08347839811 | Z71: 0.08952614548 | AA71: 0.03192746924 | AB71: 0.207530982 | AC71: 0 | AD71: 0 | AE71: 0 | AF71: 0 | AG71: 0 | AH71: 0 | AI71: 0 | AJ71: 0 | AK71: 0 | AL71: 0
D72: Licence Fees | W72: 0.4848 | X72: 0.4333781135 | Y72: 0.3338858507 | Z72: 0.4486290268 | AA72: 0.3713075499 | AB72: 0.3503710993 | AC72: 0.3503710993 | AD72: 0.3503710993 | AE72: 0.3503710993 | AF72: 0.3503710993 | AG72: 0.3503710993 | AH72: 0.3503710993 | AI72: 0.3503710993 | AJ72: 0.3503710993 | AK72: 0.3503710993 | AL72: 0.3503710993
D73: Corporate | W73: 23.8428 | X73: 26.45140321 | Y73: 28.14713066 | Z73: 35.11893513 | AA73: 31.18985384 | AB73: 34.19838198 | AC73: 34.56634767 | AD73: 35.33161178 | AE73: 35.34898696 | AF73: 35.3651827 | AG73: 35.53444487 | AH73: 35.89712071 | AI73: 36.24577797 | AJ73: 36.57087838 | AK73: 36.90539089 | AL73: 37.23662207
D74: Other operating expenditure | W74: 0.0024 | X74: 0 | Y74: 0.0847723177 | Z74: 0.1312052352 | AA74: 0.08962750684 | AB74: 0.03978465405 | AC74: 0.03929086383 | AD74: 0.03898670035 | AE74: 0.03891162505 | AF74: 0.03884404171 | AG74: 0.03899441636 | AH74: 0.03941633494 | AI74: 0.03982194502 | AJ74: 0.04020015026 | AK74: 0.04058930506 | AL74: 0.04097464252
C75: =+CONCATENATE("Total ",C66) -> Total Sewerage | W75: =+SUM(W67:W74) -> 191.1708875 | X75: 190.377967 | Y75: 198.7030127 | Z75: 203.7114426 | AA75: 188.3594831 | AB75: 197.2675498 | AC75: 205.2892378 | AD75: 209.0574383 | AE75: 212.8093407 | AF75: 213.1023883 | AG75: 213.8425262 | AH75: =+SUM(AH67:AH74) -> 215.1163483 | AI75: =+SUM(AI67:AI74) -> 216.2959507 | AJ75: =+SUM(AJ67:AJ74) -> 217.4223487 | AK75: =+SUM(AK67:AK74) -> 218.5881616 | AL75: =+SUM(AL67:AL74) -> 219.7403123
C77: Recycled Water
D78: =+D67 -> Operations & Maintenance | W78: 7.1952 | X78: 8.489460523 | Y78: 8.616659286 | Z78: 5.856188273 | AA78: 5.158446212 | AB78: 4.421778582 | AC78: 5.141776568 | AD78: 5.121182076 | AE78: 5.139945778 | AF78: 5.149304284 | AG78: 5.170693725 | AH78: 5.23318139 | AI78: 5.293515562 | AJ78: 5.33262274 | AK78: 5.401747141 | AL78: 5.47156123
D79: =+D68 -> External bulk charges (excl. temporary purchases) | W79: =+W143 -> 0.561204516 | X79: 0.692143219 | Y79: 0.8046473294 | Z79: 0.7422233825 | AA79: 0.7068805903 | AB79: 0.663707414 | AC79: 0.7305571398 | AD79: 0.7305566481 | AE79: 0.7305561229 | AF79: 0.7305551564 | AG79: 0.7305532188 | AH79: 0.7305496777 | AI79: 0.730548174 | AJ79: 0.7305474792 | AK79: 0.7305463399 | AL79: 0.7305434899 | AM79: see reconciliation below
D80: Treatment | W80: 2.4084 | X80: 2.218635879 | Y80: 2.78913234 | Z80: 2.647451115 | AA80: 0 | AB80: 5.577859133 | AC80: 5.496229329 | AD80: 5.453681212 | AE80: 5.443179253 | AF80: 5.433725311 | AG80: 5.454760571 | AH80: 5.513780941 | AI80: 5.570519983 | AJ80: 5.623425483 | AK80: 5.677862667 | AL80: 5.731765862
D81: Customer Service and billing | W81: 0.7524 | X81: 0.5252666378 | Y81: 0.5715178794 | Z81: 0.595827512 | AA81: 0.2780855826 | AB81: 0.883371307 | AC81: 1.106917796 | AD81: 1.145782535 | AE81: 1.188251388 | AF81: 1.230886217 | AG81: 1.234217593 | AH81: 1.24356471 | AI81: 1.252550531 | AJ81: 1.260929229 | AK81: 1.269550502 | AL81: 1.278087207
D82: GSL Payments | W82: 0 | X82: 0 | Y82: 0.04660171582 | Z82: 0.02238181054 | AA82: 0 | AB82: 0 | AC82: 0 | AD82: 0 | AE82: 0 | AF82: 0 | AG82: 0 | AH82: 0 | AI82: 0 | AJ82: 0 | AK82: 0 | AL82: 0
D83: Licence Fees | W83: 0.1728 | X83: 0.1290425067 | Y83: 0.08995561944 | Z83: 0.1325763748 | AA83: 0.1355656266 | AB83: 0.1324006021 | AC83: 0.1324006021 | AD83: 0.1324006021 | AE83: 0.1324006021 | AF83: 0.1324006021 | AG83: 0.1324006021 | AH83: 0.1324006021 | AI83: 0.1324006021 | AJ83: 0.1324006021 | AK83: 0.1324006021 | AL83: 0.1324006021
D84: Corporate | W84: 10.2168 | X84: 10.86768573 | Y84: 11.31504254 | Z84: 14.23503193 | AA84: 18.87943144 | AB84: 20.81856387 | AC84: 21.00133691 | AD84: 21.47410103 | AE84: 21.48528887 | AF84: 21.49570131 | AG84: 21.598819 | AH84: 21.81910411 | AI84: 22.0308745 | AJ84: 22.22833673 | AK84: 22.43151576 | AL84: 22.63270175
D85: Other operating expenditure | W85: 0 | X85: 0 | Y85: 0.04973068269 | Z85: 0.0749715769 | AA85: 0.05498681927 | AB85: 0.02390003729 | AC85: 0.02355026952 | AD85: 0.02336795914 | AE85: 0.0233229603 | AF85: 0.023282452 | AG85: 0.02337258399 | AH85: 0.02362547474 | AI85: 0.02386859046 | AJ85: 0.0240952802 | AK85: 0.0243285329 | AL85: 0.02455949757
C86: =+CONCATENATE("Total ",C77) -> Total Recycled Water | W86: =+SUM(W78:W85) -> 21.30680452 | X86: 22.9222345 | Y86: 24.2832874 | Z86: 24.30665197 | AA86: 25.21339627 | AB86: 32.52158094 | AC86: 33.63276861 | AD86: 34.08107206 | AE86: 34.14294497 | AF86: 34.19585533 | AG86: 34.3448173 | AH86: =+SUM(AH78:AH85) -> 34.69620691 | AI86: =+SUM(AI78:AI85) -> 35.03427794 | AJ86: =+SUM(AJ78:AJ85) -> 35.33235755 | AK86: =+SUM(AK78:AK85) -> 35.66795155 | AL86: =+SUM(AL78:AL85) -> 36.00161964
C88: Rural Water
D89: =+D67 -> Operations & Maintenance
D90: =+D68 -> External bulk charges (excl. temporary purchases) | W90: =+W144 -> 0 | X90: 0 | Y90: 0 | Z90: 0 | AA90: 0 | AB90: 0 | AC90: 0 | AD90: 0 | AE90: 0 | AF90: 0 | AG90: 0 | AH90: =+AH144 -> 0 | AI90: 0 | AJ90: 0 | AK90: 0 | AL90: 0 | AM90: see reconciliation below
D91: Treatment
D92: Customer Service and billing
D93: GSL Payments
D94: Licence Fees
D95: Corporate
D96: Other operating expenditure
C97: =+CONCATENATE("Total ",C88) -> Total Rural Water | W97: =+SUM(W89:W96) -> 0 | X97: 0 | Y97: 0 | Z97: 0 | AA97: 0 | AB97: 0 | AC97: 0 | AD97: 0 | AE97: 0 | AF97: 0 | AG97: 0 | AH97: =+SUM(AH89:AH96) -> 0 | AI97: =+SUM(AI89:AI96) -> 0 | AJ97: =+SUM(AJ89:AJ96) -> 0 | AK97: =+SUM(AK89:AK96) -> 0 | AL97: =+SUM(AL89:AL96) -> 0
C99: Bulk Water
D100: Operations & Maintenance
D101: Treatment
D102: Customer Service and billing
D103: GSL Payments
D104: Licence Fees
D105: Corporate
D106: Other operating expenditure
C107: Total Bulk water | W107: =+SUM(W100:W106) -> 0 | X107: 0 | Y107: 0 | Z107: 0 | AA107: 0 | AB107: 0 | AC107: 0 | AD107: 0 | AE107: 0 | AF107: 0 | AG107: 0 | AH107: =+SUM(AH100:AH106) -> 0 | AI107: =+SUM(AI100:AI106) -> 0 | AJ107: =+SUM(AJ100:AJ106) -> 0 | AK107: =+SUM(AK100:AK106) -> 0 | AL107: =+SUM(AL100:AL106) -> 0
C109: External temporary water purchases
C112: Licence fees
D113: Essential Services Commission | W113: 0.9216 | X113: 0.770582643 | Y113: 0.3657214917 | Z113: 0.6223295557 | AA113: 0.578479028 | AB113: 0.5649733898 | AC113: =$AB$113 -> 0.5649733898 | AD113: =$AB$113 -> 0.5649733898 | AE113: 0.5649733898 | AF113: 0.5649733898 | AG113: 0.5649733898 | AH113: 0.5649733898 | AI113: 0.5649733898 | AJ113: 0.5649733898 | AK113: 0.5649733898 | AL113: 0.5649733898
D114: Department of Health | W114: 0.1908 | X114: 0.2062362187 | Y114: 0.2047943663 | Z114: 0.2070083877 | AA114: 0.1509233181 | AB114: 0.1351321356 | AC114: =$AB$114 -> 0.1351321356 | AD114: =$AB$114 -> 0.1351321356 | AE114: 0.1351321356 | AF114: 0.1351321356 | AG114: 0.1351321356 | AH114: 0.1351321356 | AI114: 0.1351321356 | AJ114: 0.1351321356 | AK114: 0.1351321356 | AL114: 0.1351321356
D115: Environment Protection Authority | W115: 0.0624 | X115: 0.03179573712 | Y115: 0.1916924172 | Z115: 0.1923018422 | AA115: 0.1955878117 | AB115: 0.1893729201 | AC115: =$AB$115 -> 0.1893729201 | AD115: =$AB$115 -> 0.1893729201 | AE115: 0.1893729201 | AF115: 0.1893729201 | AG115: 0.1893729201 | AH115: 0.1893729201 | AI115: 0.1893729201 | AJ115: 0.1893729201 | AK115: 0.1893729201 | AL115: 0.1893729201
C116: =+CONCATENATE("Total ",C112) -> Total Licence fees | W116: =+SUM(W113:W115) -> 1.1748 | X116: 1.008614599 | Y116: 0.7622082752 | Z116: 1.021639786 | AA116: 0.9249901578 | AB116: 0.8894784455 | AC116: 0.8894784455 | AD116: 0.8894784455 | AE116: 0.8894784455 | AF116: 0.8894784455 | AG116: 0.8894784455 | AH116: =+SUM(AH113:AH115) -> 0.8894784455 | AI116: =+SUM(AI113:AI115) -> 0.8894784455 | AJ116: =+SUM(AJ113:AJ115) -> 0.8894784455 | AK116: =+SUM(AK113:AK115) -> 0.8894784455 | AL116: =+SUM(AL113:AL115) -> 0.8894784455
AN117: .
AB118: =SUM(X116:AB116) -> 4.606931263 | AC118: =SUM(X116:AC116) -> 5.496409708 | AG118: =SUM(AD116:AG116) -> 3.557913782 | AL118: =SUM(AH116:AL116) -> 4.447392228
C120: Environment Contribution | W120: 25.1676 | X120: 34.78689165 | Y120: 34.32957055 | Z120: 38.56573199 | AA120: 38.13998768 | AB120: 36.29301491 | AC120: =AB120/(1+KeyAssumptionsPriceControl_FO!AC14) -> 33.911799 | AD120: =AC120/(1+KeyAssumptionsPriceControl_FO!AD14) -> 32.76502319 | AE120: =AD120/(1+KeyAssumptionsPriceControl_FO!AE14) -> 31.65702724 | AF120: =AE120/(1+KeyAssumptionsPriceControl_FO!AF14) -> 30.58649974 | AG120: =AF120/(1+KeyAssumptionsPriceControl_FO!AG14) -> 29.55217367 | AH120: =AG120/(1+KeyAssumptionsPriceControl_FO!AH14) -> 28.5528248 | AI120: =AH120/(1+KeyAssumptionsPriceControl_FO!AI14) -> 27.58727034 | AJ120: =AI120/(1+KeyAssumptionsPriceControl_FO!AJ14) -> 26.65436747 | AK120: =AJ120/(1+KeyAssumptionsPriceControl_FO!AK14) -> 25.75301205 | AL120: =AK120/(1+KeyAssumptionsPriceControl_FO!AL14) -> 24.88213725
AB122: =SUM(X120:AB120) -> 182.1151968 | AC122: =SUM(X120:AC120) -> 216.0269958 | AG122: =SUM(AD120:AG120) -> 124.5607238 | AL122: =SUM(AH120:AL120) -> 133.4296119
C123: Other non-controllable
D124: [Non-controllable 1]
D125: [Non-controllable 2]
D126: [Non-controllable 3]
D127: [Non-controllable 4]
D128: [Non-controllable 5]
D129: [Non-controllable 6]
D130: [Non-controllable 7]
D131: [Non-controllable 8]
D132: [Non-controllable 9]
D133: [Non-controllable 10]
W134: =SUM(W124:W133) -> 0 | X134: 0 | Y134: 0 | Z134: 0 | AA134: 0 | AB134: 0 | AC134: 0 | AD134: 0 | AE134: 0 | AF134: 0 | AG134: 0 | AH134: =SUM(AH124:AH133) -> 0 | AI134: =SUM(AI124:AI133) -> 0 | AJ134: =SUM(AJ124:AJ133) -> 0 | AK134: =SUM(AK124:AK133) -> 0 | AL134: =SUM(AL124:AL133) -> 0
C137: External bulk charges (excl. temporary purchases)
C138: Reconciliation
C140: Service | W140: =+W7 -> 2017-18 | X140: =+X7 -> 2018-19 | Y140: 2019-20 | Z140: 2020-21 | AA140: 2021-22 | AB140: 2022-23 | AC140: 2023-24 | AD140: 2024-25 | AE140: 2025-26 | AF140: 2026-27 | AG140: 2027-28 | AH140: =+AH7 -> 2028-29 | AI140: =+AI7 -> 2029-30 | AJ140: =+AJ7 -> 2030-31 | AK140: =+AK7 -> 2031-32 | AL140: =+AL7 -> 2032-33
D141: Water | W141: =+SUMIF($I$148:$I$189,$D$141,W$148:W$189) -> 304.666426 | X141: 309.7271998 | Y141: 318.5025126 | Z141: 300.2657801 | AA141: 292.707319 | AB141: 266.6485881 | AC141: 261.2633121 | AD141: 259.8629918 | AE141: 258.7334259 | AF141: 259.1660323 | AG141: 260.5274291 | AH141: 261.7989523 | AI141: 262.4600879 | AJ141: 263.2880611 | AK141: 264.4220231 | AL141: 264.6360725
D142: Sewerage | W142: =+SUMIF($I$148:$I$189,$D$142,W$148:W$189) -> 117.3180875 | X142: 115.0145584 | Y142: 119.1292109 | Z142: 115.0164273 | AA142: 96.16925101 | AB142: 104.721147 | AC142: 112.6118086 | AD142: 115.923914 | AE142: 119.639122 | AF142: 119.7826828 | AG142: 120.1006501 | AH142: 120.3989288 | AI142: 120.6406956 | AJ142: 120.8926224 | AK142: 121.1586471 | AL142: 121.4198357
D143: Recycled Water | W143: =+SUMIF($I$148:$I$189,$D$143,W$148:W$189) -> 0.561204516 | X143: 0.692143219 | Y143: 0.8046473294 | Z143: 0.7422233825 | AA143: 0.7068805903 | AB143: 0.663707414 | AC143: 0.7305571398 | AD143: 0.7305566481 | AE143: 0.7305561229 | AF143: 0.7305551564 | AG143: 0.7305532188 | AH143: 0.7305496777 | AI143: 0.730548174 | AJ143: 0.7305474792 | AK143: 0.7305463399 | AL143: 0.7305434899
D144: Rural Water | W144: =+SUMIF($I$148:$I$189,$D$144,W$148:W$189) -> 0 | X144: 0 | Y144: 0 | Z144: 0 | AA144: 0 | AB144: 0 | AC144: 0 | AD144: 0 | AE144: 0 | AF144: 0 | AG144: 0 | AH144: 0 | AI144: 0 | AJ144: 0 | AK144: 0 | AL144: 0
C145: Total External Bulk Charges | W145: =SUM(W141:W144) -> 422.5457181 | X145: 425.4339014 | Y145: 438.4363708 | Z145: 416.0244307 | AA145: 389.5834506 | AB145: 372.0334424 | AC145: 374.6056778 | AD145: 376.5174625 | AE145: 379.1031041 | AF145: 379.6792703 | AG145: 381.3586324 | AH145: =SUM(AH141:AH144) -> 382.9284307 | AI145: =SUM(AI141:AI144) -> 383.8313317 | AJ145: =SUM(AJ141:AJ144) -> 384.911231 | AK145: =SUM(AK141:AK144) -> 386.3112166 | AL145: =SUM(AL141:AL144) -> 386.7864517
C147: Description | H147: Source | I147: Service | J147: Price
B148: 1 | C148: Goulburn and Murray System Storage | H148: Goulburn-Murray Water | I148: Water | J148: Variable | W148: 0.4472755371 | X148: 0.4480681945 | Y148: 0.4445298045 | Z148: 0.4110284194 | AA148: 0.4679288384 | AB148: 0.4451762623 | AC148: 0.4702702871 | AD148: 0.4167024481 | AE148: 0.401546395 | AF148: 0.3963433522 | AG148: 0.3913573319 | AH148: 0.3856696263 | AI148: 0.3801742586 | AJ148: 0.3748647246 | AK148: 0.3697347401 | AL148: 0.3647782333 | AO148: ESC USE ONLY
B149: 2 | C149: Access to Barwon Water's M-G Pipeline | H149: Other Sources | I149: Water | J149: Variable | W149: 0 | X149: 0 | Y149: 0 | Z149: 0.2362769377 | AA149: 0.3244944946 | AB149: 0.3244944946 | AC149: 0.3244944946 | AD149: 0.3244944946 | AE149: 0.3244944946 | AF149: 0.3244944946 | AG149: 0.3244944946 | AH149: 0.3244944946 | AI149: 0.3244944946 | AJ149: 0.3244944946 | AK149: 0.3244944946 | AL149: 0.3244944946
B150: 3 | C150: Access to Western Water's Sewers | H150: Other Sources | I150: Sewerage | J150: Variable | K150: [Price] | L150: [Price] | M150: [Price] | N150: [Price] | O150: [Price] | P150: [Price] | Q150: [Price] | R150: [Price] | S150: [Price] | T150: [Price] | U150: [Price] | V150: [Price] | W150: 0 | X150: 0.1580722585 | Y150: 0.1580722585 | Z150: 0.1611477012 | AO150: [Service]
B151: 4 | C151: Access to City West Water's Sewers | H151: Other Sources | I151: Sewerage | J151: Variable | X151: 0.707749556 | Y151: 0.6984452235 | Z151: 0.7164493997 | AO151: Water
B152: 5 | C152: Bulk water charges - Desalination Security | H152: Melbourne Water | I152: Water | J152: Fixed | W152: 179.6523346 | X152: 182.8255064 | Y152: 176.0644075 | Z152: 155.1300662 | AA152: 158.3835142 | AB152: 149.5364251 | AC152: 141.2456597 | AD152: 136.7964214 | AE152: 132.4873341 | AF152: 132.4873341 | AG152: 132.4873341 | AH152: 132.4873341 | AI152: 132.4873341 | AJ152: 132.4873341 | AK152: 132.4873341 | AL152: 132.4873341 | AO152: Sewerage
B153: 6 | C153: Bulk water charges - Desalination Orders | H153: Melbourne Water | I153: Water | J153: Variable | W153: 0 | X153: 0 | Y153: 20.46128016 | Z153: 24.07024026 | AA153: 22.77652168 | AB153: 3.753051287 | AC153: 0 | AD153: 0 | AE153: 0 | AF153: 0 | AG153: 0 | AH153: 0 | AI153: 0 | AJ153: 0 | AK153: 0 | AL153: 0 | AO153: Recycled Water
B154: 7 | C154: Bulk water charges - Greater Yarra – Thomson | H154: Melbourne Water | I154: Water | J154: Fixed | W154: 71.33275669 | X154: 71.5453356 | Y154: 71.08184738 | Z154: 70.50509811 | AA154: 61.78651133 | AB154: 62.9168848 | AC154: 65.48363348 | AD154: 67.6053032 | AE154: 69.79571503 | AF154: 69.79571503 | AG154: 69.79571503 | AH154: 69.79571503 | AI154: 69.79571503 | AJ154: 69.79571503 | AK154: 69.79571503 | AL154: 69.79571503 | AO154: Rural Water
B155: 8 | C155: Bulk water charges - North-South Pipeline | H155: Melbourne Water | I155: Water | J155: Fixed | W155: 15.3375 | X155: 14.81975755 | Y155: 14.53341323 | Z155: 13.95626372 | AA155: 13.30048855 | AB155: 13.11873123 | AC155: 13.22525 | AD155: 13.22525 | AE155: 13.22525 | AF155: 13.22525 | AG155: 13.22525 | AH155: 13.22525 | AI155: 13.22525 | AJ155: 13.22525 | AK155: 13.22525 | AL155: 13.22525
B156: 9 | C156: Bulk water charges - Transfers | H156: Melbourne Water | I156: Water | J156: Variable | W156: 35.98979681 | X156: 37.99267843 | Y156: 33.45029948 | Z156: 33.50304323 | AA156: 33.11817679 | AB156: 33.89040243 | AC156: 37.93584913 | AD156: 38.90275245 | AE156: 39.89845634 | AF156: 40.27419313 | AG156: 41.59455654 | AH156: 42.87176741 | AI156: 43.53839843 | AJ156: 44.37168111 | AK156: 45.51077318 | AL156: 45.72977906 | AO156: [Source]
B157: 10 | C157: Bulk water charges - Southern Rural Water | H157: Other Sources | I157: Water | J157: Variable | W157: 1.906762433 | X157: 2.095853639 | Y157: 2.466735015 | Z157: 2.453763246 | AA157: 2.549683092 | AB157: 2.663422436 | AC157: 2.578154964 | AD157: 2.592067797 | AE157: 2.60062954 | AF157: 2.662702179 | AG157: 2.70872155 | AH157: 2.70872155 | AI157: 2.70872155 | AJ157: 2.70872155 | AK157: 2.70872155 | AL157: 2.70872155 | AO157: Melbourne Water
B158: 11 | C158: Bulk sewage charges - BOD | H158: Melbourne Water | I158: Sewerage | J158: Variable | W158: 2.605741374 | X158: 2.565962385 | Y158: 2.409530412 | Z158: 2.628061775 | AA158: 4.151050541 | AB158: 4.165438874 | AC158: 4.291582596 | AD158: 4.240486976 | AE158: 4.315222871 | AF158: 4.320838775 | AG158: 4.35985835 | AH158: 4.387731048 | AI158: 4.423512434 | AJ158: 4.456164102 | AK158: 4.482332862 | AL158: 4.507111741 | AO158: Goulburn-Murray Water
B159: 12 | C159: Bulk sewage charges - TKN | H159: Melbourne Water | I159: Sewerage | J159: Variable | W159: 0.3251270578 | X159: 0.3205047724 | Y159: 0.3053634485 | Z159: 0.2808370559 | AA159: 1.030581836 | AB159: 1.072881642 | AC159: 1.164302716 | AD159: 1.171792841 | AE159: 1.225563238 | AF159: 1.248593272 | AG159: 1.285931732 | AH159: 1.323786852 | AI159: 1.364787449 | AJ159: 1.405599748 | AK159: 1.436233075 | AL159: 1.466130431 | AO159: Other Sources
B160: 13 | C160: Bulk sewage charges - ITDS | H160: Melbourne Water | I160: Sewerage | J160: Variable | W160: 0.9714593854 | X160: 0.9845025262 | Y160: 1.107026506 | Z160: 1.113494584 | AA160: 0.9380702444 | AB160: 0.9787525696 | AC160: 1.021727667 | AD160: 1.022577784 | AE160: 1.02942636 | AF160: 1.032451631 | AG160: 1.037139135 | AH160: 1.041499421 | AI160: 1.046186783 | AJ160: 1.050719036 | AK160: 1.054371885 | AL160: 1.05789035
B161: 14 | C161: Bulk sewage charges - SS | H161: Melbourne Water | I161: Sewerage | J161: Variable | W161: 0.4406356635 | X161: 0.4523533719 | Y161: 0.4363662883 | Z161: 0.4407209381 | AA161: 2.085359482 | AB161: 2.382974954 | AC161: 2.332954881 | AD161: 2.333424079 | AE161: 2.434110161 | AF161: 2.471530234 | AG161: 2.538570489 | AH161: 2.603654038 | AI161: 2.675341169 | AJ161: 2.745938945 | AK161: 2.799500653 | AL161: 2.851570197
B162: 15 | C162: Bulk sewage charges - Service | H162: Melbourne Water | I162: Sewerage | J162: Fixed | W162: 78.09593472 | X162: 78.79595508 | Y162: 78.675677 | Z162: 77.72753942 | AA162: 77.72753939 | AB162: 85.61176216 | AC162: 93.4110702 | AD162: 96.43758887 | AE162: 99.56216675 | AF162: 99.56216675 | AG162: 99.56216675 | AH162: 99.56216675 | AI162: 99.56216675 | AJ162: 99.56216675 | AK162: 99.56216675 | AL162: 99.56216675
B163: 16 | C163: Bulk sewage charges - Treatment | H163: Melbourne Water | I163: Sewerage | J163: Variable | W163: 30.6819866 | X163: 27.295515 | Y163: 31.08623294 | Z163: 28.10368678 | AA163: 6.134808369 | AB163: 6.298228244 | AC163: 6.226809618 | AD163: 6.423303242 | AE163: 6.635807864 | AF163: 6.680437298 | AG163: 6.782246976 | AH163: 6.8799967 | AI163: 6.933100705 | AJ163: 6.995027873 | AK163: 7.086126014 | AL163: 7.176574693
B164: 17 | C164: Bulk sewage charges - Transfers | H164: Melbourne Water | I164: Sewerage | J164: Variable | W164: 4.197202707 | X164: 3.733943411 | Y164: 4.252496829 | Z164: 3.844489627 | AA164: 4.101841144 | AB164: 4.211108519 | AC164: 4.163360925 | AD164: 4.294740223 | AE164: 4.436824772 | AF164: 4.466664844 | AG164: 4.534736691 | AH164: 4.600093978 | AI164: 4.635600305 | AJ164: 4.677005963 | AK164: 4.737915877 | AL164: 4.798391549
B165: 18 | C165: Bulk recycling charges | H165: Melbourne Water | I165: Recycled Water | J165: Variable | W165: 0.561204516 | X165: 0.692143219 | Y165: 0.8046473294 | Z165: 0.7422233825 | AA165: 0.7068805903 | AB165: 0.663707414 | AC165: 0.7305571398 | AD165: 0.7305566481 | AE165: 0.7305561229 | AF165: 0.7305551564 | AG165: 0.7305532188 | AH165: 0.7305496777 | AI165: 0.730548174 | AJ165: 0.7305474792 | AK165: 0.7305463399 | AL165: 0.7305434899
B166: 19 | H166: [Source] | I166: [Service] | J166: [Price]
B167: 20 | H167: [Source] | I167: [Service] | J167: [Price]
B168: 21 | H168: [Source] | I168: [Service] | J168: [Price]
B169: 22 | H169: [Source] | I169: [Service] | J169: [Price]
B170: 23 | H170: [Source] | I170: [Service] | J170: [Price]
B171: 24 | H171: [Source] | I171: [Service] | J171: [Price]
B172: 25 | H172: [Source] | I172: [Service] | J172: [Price]
B173: 26 | H173: [Source] | I173: [Service] | J173: [Price]
B174: 27 | H174: [Source] | I174: [Service] | J174: [Price]
B175: 28 | H175: [Source] | I175: [Service] | J175: [Price]
B176: 29 | H176: [Source] | I176: [Service] | J176: [Price]
B177: 30 | H177: [Source] | I177: [Service] | J177: [Price]
B178: 31 | H178: [Source] | I178: [Service] | J178: [Price]
B179: 32 | H179: [Source] | I179: [Service] | J179: [Price]
B180: 33 | H180: [Source] | I180: [Service] | J180: [Price]
B181: 34 | H181: [Source] | I181: [Service] | J181: [Price]
B182: 35 | H182: [Source] | I182: [Service] | J182: [Price]
B183: 36 | H183: [Source] | I183: [Service] | J183: [Price]
B184: 37 | H184: [Source] | I184: [Service] | J184: [Price]
B185: 38 | H185: [Source] | I185: [Service] | J185: [Price]
B186: 39 | H186: [Source] | I186: [Service] | J186: [Price]
B187: 40 | H187: [Source] | I187: [Service] | J187: [Price]

Sheet Capex_FO_AC
A1: 80 | B1: Capital Expenditure - Asset Category Breakdown
B2: =+Contents!H7 -> Greater Western Water
B3: Go to Table of Contents
L4: FIRST REG PERIOD | P4: SECOND REG PERIOD | U4: THIRD REG PERIOD | Z4: FOURTH REG PERIOD | AC4: EXT YR | AE4: FIFTH REG PERIOD | AJ4: SIXTH REG PERIOD
J6: 2005 | K6: 2006 | L6: 2007 | M6: 2008 | N6: 2009 | O6: 2010 | P6: 2011 | Q6: 2012 | R6: 2013 | S6: 2014 | T6: 2015 | U6: 2016 | V6: 2017 | W6: 2018 | X6: 2019 | Y6: 2020 | Z6: 2021 | AA6: 2022 | AB6: 2023 | AC6: 2024 | AD6: 2025 | AE6: 2026 | AF6: 2027 | AG6: 2028 | AH6: 2029 | AI6: 2030 | AJ6: 2031 | AK6: 2032 | AL6: 2033
B7: =Expenditure_Detail!$B$6 -> $m, 01/01/24 | J7: =+CONCATENATE(J6-1,"-",RIGHT(J6,2)) -> 2004-05 | K7: =+CONCATENATE(K6-1,"-",RIGHT(K6,2)) -> 2005-06 | L7: 2006-07 | M7: 2007-08 | N7: 2008-09 | O7: 2009-10 | P7: 2010-11 | Q7: 2011-12 | R7: =+CONCATENATE(R6-1,"-",RIGHT(R6,2)) -> 2012-13 | S7: 2013-14 | T7: 2014-15 | U7: 2015-16 | V7: 2016-17 | W7: 2017-18 | X7: =+CONCATENATE(X6-1,"-",RIGHT(X6,2)) -> 2018-19 | Y7: 2019-20 | Z7: 2020-21 | AA7: 2021-22 | AB7: 2022-23 | AC7: 2023-24 | AD7: 2024-25 | AE7: 2025-26 | AF7: 2026-27 | AG7: 2027-28 | AH7: =+CONCATENATE(AH6-1,"-",RIGHT(AH6,2)) -> 2028-29 | AI7: 2029-30 | AJ7: 2030-31 | AK7: 2031-32 | AL7: 2032-33
AO9: ê
D10: Capital Expenditure Summary | AO10: Select FD 2018/20 outlook or updated forecast for RAB calculation | AZ10: 2
AO11: $, 2023-24
E12: Water | W12: =+W43 -> 60.96 | X12: =+X43 -> 93.06250899 | Y12: =+Y43 -> 99.29969701 | Z12: =+Z43 -> 110.6371127 | AA12: =+AA43 -> 121.1050265 | AB12: 151.6144495 | AC12: =+AC43 -> 154.5889634 | AD12: 185.1630064 | AE12: 174.7211551 | AF12: 178.7648327 | AG12: 132.7139684 | AH12: 152.6373327 | AI12: 172.1490482 | AJ12: 198.538791 | AK12: 185.9062247 | AL12: 176.2570074
E13: Sewerage | W13: =+W50 -> 109.104 | X13: =+X50 -> 101.9859662 | Y13: =+Y50 -> 148.9938525 | Z13: =+Z50 -> 136.7192161 | AA13: 107.263014 | AB13: =+AB50 -> 112.7979164 | AC13: =+AC50 -> 142.7921462 | AD13: 150.6975945 | AE13: 142.351529 | AF13: 158.5289973 | AG13: 161.0956515 | AH13: 163.9267405 | AI13: 178.4370613 | AJ13: 133.8077341 | AK13: 144.5497772 | AL13: 120.0103956
E14: Recycled Water | W14: =+W57 -> 36.9456 | X14: =+X57 -> 35.05387457 | Y14: =+Y57 -> 26.16701649 | Z14: =+Z57 -> 39.43726528 | AA14: 52.99354736 | AB14: =+AB57 -> 72.00381158 | AC14: =+AC57 -> 36.96990853 | AD14: 35.00211612 | AE14: 31.69283629 | AF14: 20.62273701 | AG14: 15.71152142 | AH14: 23.53802505 | AI14: 38.57458679 | AJ14: 48.45269817 | AK14: 55.33419938 | AL14: 40.78993788
E15: Rural Water | W15: =+W64 -> 0 | X15: =+X64 -> 0 | Y15: =+Y64 -> 0 | Z15: =+Z64 -> 0 | AA15: 0 | AB15: =+AB64 -> 0 | AC15: =+AC64 -> 0 | AD15: 0 | AE15: 0 | AF15: 0 | AG15: 0 | AH15: 0 | AI15: 0 | AJ15: 0 | AK15: 0 | AL15: 0 | AQ15: Amount applied to RAB calculations | AR15: =IF(Pre_RP_Estimate = 1,Capex_FO_AC!AC22,Capex_FO_AC!AC17) -> 334.3510181
E16: Bulk Water | W16: =+W71 -> 0 | X16: =+X71 -> 0 | Y16: =+Y71 -> 0 | Z16: =+Z71 -> 0 | AA16: 0 | AB16: =+AB71 -> 0 | AC16: =+AC71 -> 0 | AD16: 0 | AE16: 0 | AF16: 0 | AG16: 0 | AH16: 0 | AI16: 0 | AJ16: 0 | AK16: 0 | AL16: 0
E17: Total prescribed capex | W17: =+SUM(W12:W16) -> 207.0096 | X17: =+SUM(X12:X16) -> 230.1023498 | Y17: =+SUM(Y12:Y16) -> 274.460566 | Z17: 286.7935941 | AA17: 281.3615878 | AB17: 336.4161774 | AC17: 334.3510181 | AD17: =+SUM(AD12:AD16) -> 370.862717 | AE17: 348.7655204 | AF17: 357.916567 | AG17: 309.5211413 | AH17: 340.1020983 | AI17: 389.1606963 | AJ17: 380.7992232 | AK17: 385.7902013 | AL17: 337.0573408 | AO17: =IF(Pre_RP_Estimate=2,"^Please contact ESC to explain the reasons for this selection","") -> ^Please contact ESC to explain the reasons for this selection
AB19: Actual & 23-24 update | AC19: =SUM(X17:AC17) -> 1743.485293 | AD19: Difference | AF19: Forecast | AG19: =SUM(AD17:AG17) -> 1387.065946 | AH19: Difference | AO19: Comparison: benchmark 2017-18 to 2022-23 total capex
AB20: FD 2018/20 Forecast | AC20: =SUM(X22:AC22) -> 1352.993324 | AD20: =AC19/AC20-1 -> 0.2886133744 | AF20: FD 2018/20 Forecast | AG20: =SUM(AD22:AG22) -> 801.304917 | AH20: =AG19/AG20-1 -> 0.7310089035
AP21: Actual 2017-18 to 2022-23 | AR21: =SUM(W17:AB17) -> 1616.143875
E22: FD 2018/20 - Approved Benchmarks and Forecasts | W22: =Determination_Lookup!M19 -> 206.6992278 | X22: =Determination_Lookup!N19 -> 227.6009378 | Y22: =Determination_Lookup!O19 -> 234.1533912 | Z22: =Determination_Lookup!P19 -> 226.6402035 | AA22: =Determination_Lookup!Q19 -> 217.5757919 | AB22: =Determination_Lookup!R19 -> 222.3825206 | AC22: =Determination_Lookup!S19 -> 224.6404793 | AD22: =Determination_Lookup!T19 -> 239.8801754 | AE22: =Determination_Lookup!U19 -> 201.2913921 | AF22: =Determination_Lookup!V19 -> 188.2998294 | AG22: =Determination_Lookup!W19 -> 171.8335201 | AP22: Benchmark 2017-18 to 2022-23 | AR22: =SUM(W22:AB22) -> 1335.052073
E23: % difference | W23: =W17/W22-1 -> 0.001501564461 | X23: 0.01099034116 | Y23: 0.1721400429 | Z23: 0.2654135925 | AA23: 0.2931658685 | AB23: 0.5127815642 | AC23: 0.4883827666 | AD23: 0.5460332073 | AE23: 0.7326400144 | AF23: 0.9007800915 | AG23: 0.8012849947 | AP23: $ Difference | AR23: =AR21-AR22 -> 281.0918024
AP24: % Difference | AR24: =AR23/AR22 -> 0.2105474446
E26: Government contributions | W26: =+W82 -> 0 | X26: 0 | Y26: 0 | Z26: 0 | AA26: 12.1093327 | AB26: 5.672154964 | AC26: =+AC82 -> 15.6 | AD26: 18.16425121 | AE26: 0.1596303298 | AF26: 0 | AG26: 0 | AH26: 0 | AI26: 0 | AJ26: 0 | AK26: 0 | AL26: 0
E27: Customer contributions | W27: =+W90 -> 58.668 | X27: 68.7899659 | Y27: 85.28619382 | Z27: 72.94899658 | AA27: 67.72992898 | AB27: 88.05187936 | AC27: =+AC90 -> 75.52657441 | AD27: 76.11320566 | AE27: 84.89381063 | AF27: 76.55595199 | AG27: 81.40577807 | AH27: 82.66069796 | AI27: 85.22105863 | AJ27: 84.18672512 | AK27: 88.0545068 | AL27: 89.50318208
E29: Gifted Assets | W29: =+W94 -> 89.202 | X29: =+X94 -> 103.4521914 | Y29: 137.132684 | Z29: 121.5211745 | AA29: 106.8574824 | AB29: 101.3002441 | AC29: 96.004 | AD29: 98.597 | AE29: 101.357 | AF29: 103.486 | AG29: 105.866 | AH29: =+AH94 -> 98.17750213 | AI29: =+AI94 -> 101.9849508 | AJ29: =+AJ94 -> 99.6906942 | AK29: =+AK94 -> 105.4033834 | AL29: =+AL94 -> 107.329314
E30: Proceeds from disposals | W30: =+W97 -> 1.0404 | X30: =+X97 -> 1.340588449 | Y30: 0.8115549991 | Z30: 0.9714883276 | AA30: 3.038375481 | AB30: 1.022365264 | AC30: 0.807246865 | AD30: 0.8150463516 | AE30: 0.8091402186 | AF30: 0.7993679938 | AG30: 0.7897137909 | AH30: =+AH97 -> 0.7801761848 | AI30: =+AI97 -> 0.7707537671 | AJ30: =+AJ97 -> 0.7614451467 | AK30: =+AK97 -> 0.7522489493 | AL30: =+AL97 -> 0.7431638171
E31: Written down value of assets disposed | W31: =W98 -> 1.998640937 | X31: =X98 -> 1.750263302 | Y31: 3.27155055 | Z31: 3.869662868 | AA31: 2.103852767 | AB31: 2.140435835 | AC31: 2.140435835 | AD31: 4.280871671 | AE31: 2.140435835 | AF31: 2.140435835 | AG31: 4.280871671 | AH31: =AH98 -> 2.140435835 | AI31: =AI98 -> 2.140435835 | AJ31: =AJ98 -> 2.140435835 | AK31: =AK98 -> 4.280871671 | AL31: =AL98 -> 4.280871671
AB34: Check | AC34: =SUM(AC43,AC50,AC57,AC64,AC71) -> 334.3510181 | AD34: =+'Capex_FO input'!E29 -> 370.862717 | AE34: =+'Capex_FO input'!F29 -> 348.7655204 | AF34: =+'Capex_FO input'!G29 -> 357.916567 | AG34: =+'Capex_FO input'!H29 -> 309.5211413 | AH34: =+'Capex_FO input'!I29 -> 340.1020983 | AI34: =+'Capex_FO input'!J29 -> 389.1606963 | AJ34: =+'Capex_FO input'!K29 -> 380.7992232 | AK34: =+'Capex_FO input'!L29 -> 385.7902013 | AL34: =+'Capex_FO input'!M29 -> 337.0573408
AB35: Difference | AC35: =+AC34-AC17 -> 0 | AD35: 0 | AE35: 0 | AF35: 0 | AG35: 0 | AH35: 0 | AI35: 0 | AJ35: 0 | AK35: 0 | AL35: 0
B36: Total capital expenditure | AB36: Test | AC36: =IF(+AC34=AC17,0,1) -> 0 | AD36: 0 | AE36: 0 | AF36: 0 | AG36: 0 | AH36: 0 | AI36: =IF(ROUND(AI34,6)=ROUND(AI17,6),0,1) -> 0 | AJ36: 0 | AK36: 0 | AL36: 0
C38: =E12 -> Water
D39: Headworks | W39: 0.3564 | X39: 0.1589786856 | Y39: 5.040194566 | Z39: 3.823087719 | AA39: 0 | AB39: 0.8841815946 | AC39: 4.3630675 | AD39: =+SUMIFS('Capex_FO input'!R$42:R$1014,'Capex_FO input'!$E$42:$E$1014,Capex_FO_AC!$C$38,'Capex_FO input'!$G$42:$G$1014,Capex_FO_AC!$D39) -> 5.8708875 | AE39: =+SUMIFS('Capex_FO input'!S$42:S$1014,'Capex_FO input'!$E$42:$E$1014,Capex_FO_AC!$C$38,'Capex_FO input'!$G$42:$G$1014,Capex_FO_AC!$D39) -> 5.077625673 | AF39: =+SUMIFS('Capex_FO input'!T$42:T$1014,'Capex_FO input'!$E$42:$E$1014,Capex_FO_AC!$C$38,'Capex_FO input'!$G$42:$G$1014,Capex_FO_AC!$D39) -> 2.557343391 | AG39: =+SUMIFS('Capex_FO input'!U$42:U$1014,'Capex_FO input'!$E$42:$E$1014,Capex_FO_AC!$C$38,'Capex_FO input'!$G$42:$G$1014,Capex_FO_AC!$D39) -> 3.389713641 | AH39: =+SUMIFS('Capex_FO input'!V$42:V$1014,'Capex_FO input'!$E$42:$E$1014,Capex_FO_AC!$C$38,'Capex_FO input'!$G$42:$G$1014,Capex_FO_AC!$D39) -> 3.389713641 | AI39: =+SUMIFS('Capex_FO input'!W$42:W$1014,'Capex_FO input'!$E$42:$E$1014,Capex_FO_AC!$C$38,'Capex_FO input'!$G$42:$G$1014,Capex_FO_AC!$D39) -> 3.389713641 | AJ39: =+SUMIFS('Capex_FO input'!X$42:X$1014,'Capex_FO input'!$E$42:$E$1014,Capex_FO_AC!$C$38,'Capex_FO input'!$G$42:$G$1014,Capex_FO_AC!$D39) -> 3.389713641 | AK39: =+SUMIFS('Capex_FO input'!Y$42:Y$1014,'Capex_FO input'!$E$42:$E$1014,Capex_FO_AC!$C$38,'Capex_FO input'!$G$42:$G$1014,Capex_FO_AC!$D39) -> 3.389713641 | AL39: =+SUMIFS('Capex_FO input'!Z$42:Z$1014,'Capex_FO input'!$E$42:$E$1014,Capex_FO_AC!$C$38,'Capex_FO input'!$G$42:$G$1014,Capex_FO_AC!$D39) -> 3.389713641
D40: Pipelines/network | W40: 48.8148 | X40: 77.03475429 | Y40: 77.53954905 | Z40: 87.98825046 | AA40: 100.7199642 | AB40: 111.8103812 | AC40: 111.0188605 | AD40: =+SUMIFS('Capex_FO input'!R$42:R$1014,'Capex_FO input'!$E$42:$E$1014,Capex_FO_AC!$C$38,'Capex_FO input'!$G$42:$G$1014,Capex_FO_AC!$D40) -> 131.4889073 | AE40: =+SUMIFS('Capex_FO input'!S$42:S$1014,'Capex_FO input'!$E$42:$E$1014,Capex_FO_AC!$C$38,'Capex_FO input'!$G$42:$G$1014,Capex_FO_AC!$D40) -> 124.2393743 | AF40: =+SUMIFS('Capex_FO input'!T$42:T$1014,'Capex_FO input'!$E$42:$E$1014,Capex_FO_AC!$C$38,'Capex_FO input'!$G$42:$G$1014,Capex_FO_AC!$D40) -> 135.6529306 | AG40: =+SUMIFS('Capex_FO input'!U$42:U$1014,'Capex_FO input'!$E$42:$E$1014,Capex_FO_AC!$C$38,'Capex_FO input'!$G$42:$G$1014,Capex_FO_AC!$D40) -> 99.64723215 | AH40: =+SUMIFS('Capex_FO input'!V$42:V$1014,'Capex_FO input'!$E$42:$E$1014,Capex_FO_AC!$C$38,'Capex_FO input'!$G$42:$G$1014,Capex_FO_AC!$D40) -> 114.0054633 | AI40: =+SUMIFS('Capex_FO input'!W$42:W$1014,'Capex_FO input'!$E$42:$E$1014,Capex_FO_AC!$C$38,'Capex_FO input'!$G$42:$G$1014,Capex_FO_AC!$D40) -> 128.1660892 | AJ40: =+SUMIFS('Capex_FO input'!X$42:X$1014,'Capex_FO input'!$E$42:$E$1014,Capex_FO_AC!$C$38,'Capex_FO input'!$G$42:$G$1014,Capex_FO_AC!$D40) -> 154.555832 | AK40: =+SUMIFS('Capex_FO input'!Y$42:Y$1014,'Capex_FO input'!$E$42:$E$1014,Capex_FO_AC!$C$38,'Capex_FO input'!$G$42:$G$1014,Capex_FO_AC!$D40) -> 152.6254449 | AL40: =+SUMIFS('Capex_FO input'!Z$42:Z$1014,'Capex_FO input'!$E$42:$E$1014,Capex_FO_AC!$C$38,'Capex_FO input'!$G$42:$G$1014,Capex_FO_AC!$D40) -> 142.9762276
D41: Treatment | W41: 2.718 | X41: 1.897145648 | Y41: 2.253386503 | Z41: 1.29758084 | AA41: 0 | AB41: 8.094493027 | AC41: 6.316234581 | AD41: =+SUMIFS('Capex_FO input'!R$42:R$1014,'Capex_FO input'!$E$42:$E$1014,Capex_FO_AC!$C$38,'Capex_FO input'!$G$42:$G$1014,Capex_FO_AC!$D41) -> 21.2277724 | AE41: =+SUMIFS('Capex_FO input'!S$42:S$1014,'Capex_FO input'!$E$42:$E$1014,Capex_FO_AC!$C$38,'Capex_FO input'!$G$42:$G$1014,Capex_FO_AC!$D41) -> 20.75152542 | AF41: =+SUMIFS('Capex_FO input'!T$42:T$1014,'Capex_FO input'!$E$42:$E$1014,Capex_FO_AC!$C$38,'Capex_FO input'!$G$42:$G$1014,Capex_FO_AC!$D41) -> 20.38765133 | AG41: =+SUMIFS('Capex_FO input'!U$42:U$1014,'Capex_FO input'!$E$42:$E$1014,Capex_FO_AC!$C$38,'Capex_FO input'!$G$42:$G$1014,Capex_FO_AC!$D41) -> 13.69878935 | AH41: =+SUMIFS('Capex_FO input'!V$42:V$1014,'Capex_FO input'!$E$42:$E$1014,Capex_FO_AC!$C$38,'Capex_FO input'!$G$42:$G$1014,Capex_FO_AC!$D41) -> 19.26392252 | AI41: =+SUMIFS('Capex_FO input'!W$42:W$1014,'Capex_FO input'!$E$42:$E$1014,Capex_FO_AC!$C$38,'Capex_FO input'!$G$42:$G$1014,Capex_FO_AC!$D41) -> 24.61501211 | AJ41: =+SUMIFS('Capex_FO input'!X$42:X$1014,'Capex_FO input'!$E$42:$E$1014,Capex_FO_AC!$C$38,'Capex_FO input'!$G$42:$G$1014,Capex_FO_AC!$D41) -> 24.61501211 | AK41: =+SUMIFS('Capex_FO input'!Y$42:Y$1014,'Capex_FO input'!$E$42:$E$1014,Capex_FO_AC!$C$38,'Capex_FO input'!$G$42:$G$1014,Capex_FO_AC!$D41) -> 13.91283293 | AL41: =+SUMIFS('Capex_FO input'!Z$42:Z$1014,'Capex_FO input'!$E$42:$E$1014,Capex_FO_AC!$C$38,'Capex_FO input'!$G$42:$G$1014,Capex_FO_AC!$D41) -> 13.91283293
D42: Corporate | W42: 9.0708 | X42: 13.97163036 | Y42: 14.4665669 | Z42: 17.52819369 | AA42: 20.38506231 | AB42: 30.82539366 | AC42: 32.89080079 | AD42: =+SUMIFS('Capex_FO input'!R$42:R$1014,'Capex_FO input'!$E$42:$E$1014,Capex_FO_AC!$C$38,'Capex_FO input'!$G$42:$G$1014,Capex_FO_AC!$D42) -> 26.57543914 | AE42: =+SUMIFS('Capex_FO input'!S$42:S$1014,'Capex_FO input'!$E$42:$E$1014,Capex_FO_AC!$C$38,'Capex_FO input'!$G$42:$G$1014,Capex_FO_AC!$D42) -> 24.65262975 | AF42: =+SUMIFS('Capex_FO input'!T$42:T$1014,'Capex_FO input'!$E$42:$E$1014,Capex_FO_AC!$C$38,'Capex_FO input'!$G$42:$G$1014,Capex_FO_AC!$D42) -> 20.16690742 | AG42: =+SUMIFS('Capex_FO input'!U$42:U$1014,'Capex_FO input'!$E$42:$E$1014,Capex_FO_AC!$C$38,'Capex_FO input'!$G$42:$G$1014,Capex_FO_AC!$D42) -> 15.97823321 | AH42: =+SUMIFS('Capex_FO input'!V$42:V$1014,'Capex_FO input'!$E$42:$E$1014,Capex_FO_AC!$C$38,'Capex_FO input'!$G$42:$G$1014,Capex_FO_AC!$D42) -> 15.97823321 | AI42: =+SUMIFS('Capex_FO input'!W$42:W$1014,'Capex_FO input'!$E$42:$E$1014,Capex_FO_AC!$C$38,'Capex_FO input'!$G$42:$G$1014,Capex_FO_AC!$D42) -> 15.97823321 | AJ42: =+SUMIFS('Capex_FO input'!X$42:X$1014,'Capex_FO input'!$E$42:$E$1014,Capex_FO_AC!$C$38,'Capex_FO input'!$G$42:$G$1014,Capex_FO_AC!$D42) -> 15.97823321 | AK42: =+SUMIFS('Capex_FO input'!Y$42:Y$1014,'Capex_FO input'!$E$42:$E$1014,Capex_FO_AC!$C$38,'Capex_FO input'!$G$42:$G$1014,Capex_FO_AC!$D42) -> 15.97823321 | AL42: =+SUMIFS('Capex_FO input'!Z$42:Z$1014,'Capex_FO input'!$E$42:$E$1014,Capex_FO_AC!$C$38,'Capex_FO input'!$G$42:$G$1014,Capex_FO_AC!$D42) -> 15.97823321
C43: =+CONCATENATE("Total ",C38) -> Total Water | W43: =+SUM(W39:W42) -> 60.96 | X43: 93.06250899 | Y43: 99.29969701 | Z43: 110.6371127 | AA43: 121.1050265 | AB43: 151.6144495 | AC43: 154.5889634 | AD43: 185.1630064 | AE43: 174.7211551 | AF43: 178.7648327 | AG43: 132.7139684 | AH43: =+SUM(AH39:AH42) -> 152.6373327 | AI43: =+SUM(AI39:AI42) -> 172.1490482 | AJ43: =+SUM(AJ39:AJ42) -> 198.538791 | AK43: =+SUM(AK39:AK42) -> 185.9062247 | AL43: =+SUM(AL39:AL42) -> 176.2570074
C45: =E13 -> Sewerage
D46: =+D39 -> Headworks | W46: 0 | X46: 0 | Y46: 1.853610868 | Z46: 0.7944059177 | AA46: 0 | AB46: 0.0340497001 | AC46: 0 | AD46: =+SUMIFS('Capex_FO input'!R$42:R$1014,'Capex_FO input'!$E$42:$E$1014,Capex_FO_AC!$C$45,'Capex_FO input'!$G$42:$G$1014,Capex_FO_AC!$D46) -> 0 | AE46: =+SUMIFS('Capex_FO input'!S$42:S$1014,'Capex_FO input'!$E$42:$E$1014,Capex_FO_AC!$C$45,'Capex_FO input'!$G$42:$G$1014,Capex_FO_AC!$D46) -> 0 | AF46: =+SUMIFS('Capex_FO input'!T$42:T$1014,'Capex_FO input'!$E$42:$E$1014,Capex_FO_AC!$C$45,'Capex_FO input'!$G$42:$G$1014,Capex_FO_AC!$D46) -> 0 | AG46: =+SUMIFS('Capex_FO input'!U$42:U$1014,'Capex_FO input'!$E$42:$E$1014,Capex_FO_AC!$C$45,'Capex_FO input'!$G$42:$G$1014,Capex_FO_AC!$D46) -> 0 | AH46: =+SUMIFS('Capex_FO input'!V$42:V$1014,'Capex_FO input'!$E$42:$E$1014,Capex_FO_AC!$C$45,'Capex_FO input'!$G$42:$G$1014,Capex_FO_AC!$D46) -> 0 | AI46: =+SUMIFS('Capex_FO input'!W$42:W$1014,'Capex_FO input'!$E$42:$E$1014,Capex_FO_AC!$C$45,'Capex_FO input'!$G$42:$G$1014,Capex_FO_AC!$D46) -> 0 | AJ46: =+SUMIFS('Capex_FO input'!X$42:X$1014,'Capex_FO input'!$E$42:$E$1014,Capex_FO_AC!$C$45,'Capex_FO input'!$G$42:$G$1014,Capex_FO_AC!$D46) -> 0 | AK46: =+SUMIFS('Capex_FO input'!Y$42:Y$1014,'Capex_FO input'!$E$42:$E$1014,Capex_FO_AC!$C$45,'Capex_FO input'!$G$42:$G$1014,Capex_FO_AC!$D46) -> 0 | AL46: =+SUMIFS('Capex_FO input'!Z$42:Z$1014,'Capex_FO input'!$E$42:$E$1014,Capex_FO_AC!$C$45,'Capex_FO input'!$G$42:$G$1014,Capex_FO_AC!$D46) -> 0
D47: =+D40 -> Pipelines/network | W47: 61.686 | X47: 79.20654186 | Y47: 122.9326468 | Z47: 104.3059263 | AA47: 85.47629747 | AB47: 76.59546381 | AC47: 65.72428211 | AD47: =+SUMIFS('Capex_FO input'!R$42:R$1014,'Capex_FO input'!$E$42:$E$1014,Capex_FO_AC!$C$45,'Capex_FO input'!$G$42:$G$1014,Capex_FO_AC!$D47) -> 66.27789821 | AE47: =+SUMIFS('Capex_FO input'!S$42:S$1014,'Capex_FO input'!$E$42:$E$1014,Capex_FO_AC!$C$45,'Capex_FO input'!$G$42:$G$1014,Capex_FO_AC!$D47) -> 63.86859777 | AF47: =+SUMIFS('Capex_FO input'!T$42:T$1014,'Capex_FO input'!$E$42:$E$1014,Capex_FO_AC!$C$45,'Capex_FO input'!$G$42:$G$1014,Capex_FO_AC!$D47) -> 88.31503148 | AG47: =+SUMIFS('Capex_FO input'!U$42:U$1014,'Capex_FO input'!$E$42:$E$1014,Capex_FO_AC!$C$45,'Capex_FO input'!$G$42:$G$1014,Capex_FO_AC!$D47) -> 106.8185666 | AH47: =+SUMIFS('Capex_FO input'!V$42:V$1014,'Capex_FO input'!$E$42:$E$1014,Capex_FO_AC!$C$45,'Capex_FO input'!$G$42:$G$1014,Capex_FO_AC!$D47) -> 116.1533045 | AI47: =+SUMIFS('Capex_FO input'!W$42:W$1014,'Capex_FO input'!$E$42:$E$1014,Capex_FO_AC!$C$45,'Capex_FO input'!$G$42:$G$1014,Capex_FO_AC!$D47) -> 120.1433832 | AJ47: =+SUMIFS('Capex_FO input'!X$42:X$1014,'Capex_FO input'!$E$42:$E$1014,Capex_FO_AC!$C$45,'Capex_FO input'!$G$42:$G$1014,Capex_FO_AC!$D47) -> 82.13121332 | AK47: =+SUMIFS('Capex_FO input'!Y$42:Y$1014,'Capex_FO input'!$E$42:$E$1014,Capex_FO_AC!$C$45,'Capex_FO input'!$G$42:$G$1014,Capex_FO_AC!$D47) -> 92.87325642 | AL47: =+SUMIFS('Capex_FO input'!Z$42:Z$1014,'Capex_FO input'!$E$42:$E$1014,Capex_FO_AC!$C$45,'Capex_FO input'!$G$42:$G$1014,Capex_FO_AC!$D47) -> 68.33387482
D48: =+D41 -> Treatment | W48: 38.6664 | X48: 9.804792811 | Y48: 10.28563945 | Z48: 13.38528099 | AA48: 1.598143932 | AB48: 5.428032552 | AC48: 44.19256174 | AD48: =+SUMIFS('Capex_FO input'!R$42:R$1014,'Capex_FO input'!$E$42:$E$1014,Capex_FO_AC!$C$45,'Capex_FO input'!$G$42:$G$1014,Capex_FO_AC!$D48) -> 57.96427342 | AE48: =+SUMIFS('Capex_FO input'!S$42:S$1014,'Capex_FO input'!$E$42:$E$1014,Capex_FO_AC!$C$45,'Capex_FO input'!$G$42:$G$1014,Capex_FO_AC!$D48) -> 54.06792584 | AF48: =+SUMIFS('Capex_FO input'!T$42:T$1014,'Capex_FO input'!$E$42:$E$1014,Capex_FO_AC!$C$45,'Capex_FO input'!$G$42:$G$1014,Capex_FO_AC!$D48) -> 50.24144534 | AG48: =+SUMIFS('Capex_FO input'!U$42:U$1014,'Capex_FO input'!$E$42:$E$1014,Capex_FO_AC!$C$45,'Capex_FO input'!$G$42:$G$1014,Capex_FO_AC!$D48) -> 38.45286441 | AH48: =+SUMIFS('Capex_FO input'!V$42:V$1014,'Capex_FO input'!$E$42:$E$1014,Capex_FO_AC!$C$45,'Capex_FO input'!$G$42:$G$1014,Capex_FO_AC!$D48) -> 31.9492155 | AI48: =+SUMIFS('Capex_FO input'!W$42:W$1014,'Capex_FO input'!$E$42:$E$1014,Capex_FO_AC!$C$45,'Capex_FO input'!$G$42:$G$1014,Capex_FO_AC!$D48) -> 42.46945763 | AJ48: =+SUMIFS('Capex_FO input'!X$42:X$1014,'Capex_FO input'!$E$42:$E$1014,Capex_FO_AC!$C$45,'Capex_FO input'!$G$42:$G$1014,Capex_FO_AC!$D48) -> 35.85230024 | AK48: =+SUMIFS('Capex_FO input'!Y$42:Y$1014,'Capex_FO input'!$E$42:$E$1014,Capex_FO_AC!$C$45,'Capex_FO input'!$G$42:$G$1014,Capex_FO_AC!$D48) -> 35.85230024 | AL48: =+SUMIFS('Capex_FO input'!Z$42:Z$1014,'Capex_FO input'!$E$42:$E$1014,Capex_FO_AC!$C$45,'Capex_FO input'!$G$42:$G$1014,Capex_FO_AC!$D48) -> 35.85230024
D49: =+D42 -> Corporate | W49: 8.7516 | X49: 12.97463153 | Y49: 13.92195536 | Z49: 18.23360285 | AA49: 20.18857261 | AB49: 30.74037035 | AC49: 32.87530232 | AD49: =+SUMIFS('Capex_FO input'!R$42:R$1014,'Capex_FO input'!$E$42:$E$1014,Capex_FO_AC!$C$45,'Capex_FO input'!$G$42:$G$1014,Capex_FO_AC!$D49) -> 26.45542288 | AE49: =+SUMIFS('Capex_FO input'!S$42:S$1014,'Capex_FO input'!$E$42:$E$1014,Capex_FO_AC!$C$45,'Capex_FO input'!$G$42:$G$1014,Capex_FO_AC!$D49) -> 24.41500538 | AF49: =+SUMIFS('Capex_FO input'!T$42:T$1014,'Capex_FO input'!$E$42:$E$1014,Capex_FO_AC!$C$45,'Capex_FO input'!$G$42:$G$1014,Capex_FO_AC!$D49) -> 19.9725205 | AG49: =+SUMIFS('Capex_FO input'!U$42:U$1014,'Capex_FO input'!$E$42:$E$1014,Capex_FO_AC!$C$45,'Capex_FO input'!$G$42:$G$1014,Capex_FO_AC!$D49) -> 15.82422053 | AH49: =+SUMIFS('Capex_FO input'!V$42:V$1014,'Capex_FO input'!$E$42:$E$1014,Capex_FO_AC!$C$45,'Capex_FO input'!$G$42:$G$1014,Capex_FO_AC!$D49) -> 15.82422053 | AI49: =+SUMIFS('Capex_FO input'!W$42:W$1014,'Capex_FO input'!$E$42:$E$1014,Capex_FO_AC!$C$45,'Capex_FO input'!$G$42:$G$1014,Capex_FO_AC!$D49) -> 15.82422053 | AJ49: =+SUMIFS('Capex_FO input'!X$42:X$1014,'Capex_FO input'!$E$42:$E$1014,Capex_FO_AC!$C$45,'Capex_FO input'!$G$42:$G$1014,Capex_FO_AC!$D49) -> 15.82422053 | AK49: =+SUMIFS('Capex_FO input'!Y$42:Y$1014,'Capex_FO input'!$E$42:$E$1014,Capex_FO_AC!$C$45,'Capex_FO input'!$G$42:$G$1014,Capex_FO_AC!$D49) -> 15.82422053 | AL49: =+SUMIFS('Capex_FO input'!Z$42:Z$1014,'Capex_FO input'!$E$42:$E$1014,Capex_FO_AC!$C$45,'Capex_FO input'!$G$42:$G$1014,Capex_FO_AC!$D49) -> 15.82422053
C50: =+CONCATENATE("Total ",C45) -> Total Sewerage | W50: =+SUM(W46:W49) -> 109.104 | X50: =+SUM(X46:X49) -> 101.9859662 | Y50: 148.9938525 | Z50: 136.7192161 | AA50: 107.263014 | AB50: 112.7979164 | AC50: 142.7921462 | AD50: 150.6975945 | AE50: 142.351529 | AF50: 158.5289973 | AG50: 161.0956515 | AH50: =+SUM(AH46:AH49) -> 163.9267405 | AI50: =+SUM(AI46:AI49) -> 178.4370613 | AJ50: =+SUM(AJ46:AJ49) -> 133.8077341 | AK50: =+SUM(AK46:AK49) -> 144.5497772 | AL50: =+SUM(AL46:AL49) -> 120.0103956
C52: =E14 -> Recycled Water
D53: =+D46 -> Headworks | W53: 3.7716 | X53: 0 | Y53: 0.1301595092 | Z53: 1.957840137 | AA53: 0 | AB53: 0.02271058073 | AC53: 0 | AD53: =+SUMIFS('Capex_FO input'!R$42:R$1014,'Capex_FO input'!$E$42:$E$1014,Capex_FO_AC!$C$52,'Capex_FO input'!$G$42:$G$1014,Capex_FO_AC!$D53) -> 0 | AE53: =+SUMIFS('Capex_FO input'!S$42:S$1014,'Capex_FO input'!$E$42:$E$1014,Capex_FO_AC!$C$52,'Capex_FO input'!$G$42:$G$1014,Capex_FO_AC!$D53) -> 0 | AF53: =+SUMIFS('Capex_FO input'!T$42:T$1014,'Capex_FO input'!$E$42:$E$1014,Capex_FO_AC!$C$52,'Capex_FO input'!$G$42:$G$1014,Capex_FO_AC!$D53) -> 0 | AG53: =+SUMIFS('Capex_FO input'!U$42:U$1014,'Capex_FO input'!$E$42:$E$1014,Capex_FO_AC!$C$52,'Capex_FO input'!$G$42:$G$1014,Capex_FO_AC!$D53) -> 0 | AH53: =+SUMIFS('Capex_FO input'!V$42:V$1014,'Capex_FO input'!$E$42:$E$1014,Capex_FO_AC!$C$52,'Capex_FO input'!$G$42:$G$1014,Capex_FO_AC!$D53) -> 0 | AI53: =+SUMIFS('Capex_FO input'!W$42:W$1014,'Capex_FO input'!$E$42:$E$1014,Capex_FO_AC!$C$52,'Capex_FO input'!$G$42:$G$1014,Capex_FO_AC!$D53) -> 0 | AJ53: =+SUMIFS('Capex_FO input'!X$42:X$1014,'Capex_FO input'!$E$42:$E$1014,Capex_FO_AC!$C$52,'Capex_FO input'!$G$42:$G$1014,Capex_FO_AC!$D53) -> 0 | AK53: =+SUMIFS('Capex_FO input'!Y$42:Y$1014,'Capex_FO input'!$E$42:$E$1014,Capex_FO_AC!$C$52,'Capex_FO input'!$G$42:$G$1014,Capex_FO_AC!$D53) -> 0 | AL53: =+SUMIFS('Capex_FO input'!Z$42:Z$1014,'Capex_FO input'!$E$42:$E$1014,Capex_FO_AC!$C$52,'Capex_FO input'!$G$42:$G$1014,Capex_FO_AC!$D53) -> 0
D54: =+D47 -> Pipelines/network | W54: 28.1892 | X54: 12.13655494 | Y54: 13.75230633 | Z54: 14.2648267 | AA54: 39.2694966 | AB54: 30.43132763 | AC54: 16.52174986 | AD54: =+SUMIFS('Capex_FO input'!R$42:R$1014,'Capex_FO input'!$E$42:$E$1014,Capex_FO_AC!$C$52,'Capex_FO input'!$G$42:$G$1014,Capex_FO_AC!$D54) -> 18.0225181 | AE54: =+SUMIFS('Capex_FO input'!S$42:S$1014,'Capex_FO input'!$E$42:$E$1014,Capex_FO_AC!$C$52,'Capex_FO input'!$G$42:$G$1014,Capex_FO_AC!$D54) -> 16.13925039 | AF54: =+SUMIFS('Capex_FO input'!T$42:T$1014,'Capex_FO input'!$E$42:$E$1014,Capex_FO_AC!$C$52,'Capex_FO input'!$G$42:$G$1014,Capex_FO_AC!$D54) -> 7.801870426 | AG54: =+SUMIFS('Capex_FO input'!U$42:U$1014,'Capex_FO input'!$E$42:$E$1014,Capex_FO_AC!$C$52,'Capex_FO input'!$G$42:$G$1014,Capex_FO_AC!$D54) -> 5.442411283 | AH54: =+SUMIFS('Capex_FO input'!V$42:V$1014,'Capex_FO input'!$E$42:$E$1014,Capex_FO_AC!$C$52,'Capex_FO input'!$G$42:$G$1014,Capex_FO_AC!$D54) -> 13.26891492 | AI54: =+SUMIFS('Capex_FO input'!W$42:W$1014,'Capex_FO input'!$E$42:$E$1014,Capex_FO_AC!$C$52,'Capex_FO input'!$G$42:$G$1014,Capex_FO_AC!$D54) -> 28.30547666 | AJ54: =+SUMIFS('Capex_FO input'!X$42:X$1014,'Capex_FO input'!$E$42:$E$1014,Capex_FO_AC!$C$52,'Capex_FO input'!$G$42:$G$1014,Capex_FO_AC!$D54) -> 38.18358804 | AK54: =+SUMIFS('Capex_FO input'!Y$42:Y$1014,'Capex_FO input'!$E$42:$E$1014,Capex_FO_AC!$C$52,'Capex_FO input'!$G$42:$G$1014,Capex_FO_AC!$D54) -> 45.06508925 | AL54: =+SUMIFS('Capex_FO input'!Z$42:Z$1014,'Capex_FO input'!$E$42:$E$1014,Capex_FO_AC!$C$52,'Capex_FO input'!$G$42:$G$1014,Capex_FO_AC!$D54) -> 30.52082775
D55: =+D48 -> Treatment | W55: 1.542 | X55: 17.75526639 | Y55: 6.652462394 | Z55: 13.66711032 | AA55: 1.30539234 | AB55: 22.70759521 | AC55: 0.3210653753 | AD55: =+SUMIFS('Capex_FO input'!R$42:R$1014,'Capex_FO input'!$E$42:$E$1014,Capex_FO_AC!$C$52,'Capex_FO input'!$G$42:$G$1014,Capex_FO_AC!$D55) -> 0.7491525424 | AE55: =+SUMIFS('Capex_FO input'!S$42:S$1014,'Capex_FO input'!$E$42:$E$1014,Capex_FO_AC!$C$52,'Capex_FO input'!$G$42:$G$1014,Capex_FO_AC!$D55) -> 0.5351089588 | AF55: =+SUMIFS('Capex_FO input'!T$42:T$1014,'Capex_FO input'!$E$42:$E$1014,Capex_FO_AC!$C$52,'Capex_FO input'!$G$42:$G$1014,Capex_FO_AC!$D55) -> 0.5351089588 | AG55: =+SUMIFS('Capex_FO input'!U$42:U$1014,'Capex_FO input'!$E$42:$E$1014,Capex_FO_AC!$C$52,'Capex_FO input'!$G$42:$G$1014,Capex_FO_AC!$D55) -> 0.5351089588 | AH55: =+SUMIFS('Capex_FO input'!V$42:V$1014,'Capex_FO input'!$E$42:$E$1014,Capex_FO_AC!$C$52,'Capex_FO input'!$G$42:$G$1014,Capex_FO_AC!$D55) -> 0.5351089588 | AI55: =+SUMIFS('Capex_FO input'!W$42:W$1014,'Capex_FO input'!$E$42:$E$1014,Capex_FO_AC!$C$52,'Capex_FO input'!$G$42:$G$1014,Capex_FO_AC!$D55) -> 0.5351089588 | AJ55: =+SUMIFS('Capex_FO input'!X$42:X$1014,'Capex_FO input'!$E$42:$E$1014,Capex_FO_AC!$C$52,'Capex_FO input'!$G$42:$G$1014,Capex_FO_AC!$D55) -> 0.5351089588 | AK55: =+SUMIFS('Capex_FO input'!Y$42:Y$1014,'Capex_FO input'!$E$42:$E$1014,Capex_FO_AC!$C$52,'Capex_FO input'!$G$42:$G$1014,Capex_FO_AC!$D55) -> 0.5351089588 | AL55: =+SUMIFS('Capex_FO input'!Z$42:Z$1014,'Capex_FO input'!$E$42:$E$1014,Capex_FO_AC!$C$52,'Capex_FO input'!$G$42:$G$1014,Capex_FO_AC!$D55) -> 0.5351089588
D56: =+D49 -> Corporate | W56: 3.4428 | X56: 5.162053235 | Y56: 5.632088256 | Z56: 9.547488128 | AA56: 12.41865842 | AB56: 18.84217815 | AC56: 20.12709329 | AD56: =+SUMIFS('Capex_FO input'!R$42:R$1014,'Capex_FO input'!$E$42:$E$1014,Capex_FO_AC!$C$52,'Capex_FO input'!$G$42:$G$1014,Capex_FO_AC!$D56) -> 16.23044548 | AE56: =+SUMIFS('Capex_FO input'!S$42:S$1014,'Capex_FO input'!$E$42:$E$1014,Capex_FO_AC!$C$52,'Capex_FO input'!$G$42:$G$1014,Capex_FO_AC!$D56) -> 15.01847694 | AF56: =+SUMIFS('Capex_FO input'!T$42:T$1014,'Capex_FO input'!$E$42:$E$1014,Capex_FO_AC!$C$52,'Capex_FO input'!$G$42:$G$1014,Capex_FO_AC!$D56) -> 12.28575763 | AG56: =+SUMIFS('Capex_FO input'!U$42:U$1014,'Capex_FO input'!$E$42:$E$1014,Capex_FO_AC!$C$52,'Capex_FO input'!$G$42:$G$1014,Capex_FO_AC!$D56) -> 9.734001177 | AH56: =+SUMIFS('Capex_FO input'!V$42:V$1014,'Capex_FO input'!$E$42:$E$1014,Capex_FO_AC!$C$52,'Capex_FO input'!$G$42:$G$1014,Capex_FO_AC!$D56) -> 9.734001177 | AI56: =+SUMIFS('Capex_FO input'!W$42:W$1014,'Capex_FO input'!$E$42:$E$1014,Capex_FO_AC!$C$52,'Capex_FO input'!$G$42:$G$1014,Capex_FO_AC!$D56) -> 9.734001177 | AJ56: =+SUMIFS('Capex_FO input'!X$42:X$1014,'Capex_FO input'!$E$42:$E$1014,Capex_FO_AC!$C$52,'Capex_FO input'!$G$42:$G$1014,Capex_FO_AC!$D56) -> 9.734001177 | AK56: =+SUMIFS('Capex_FO input'!Y$42:Y$1014,'Capex_FO input'!$E$42:$E$1014,Capex_FO_AC!$C$52,'Capex_FO input'!$G$42:$G$1014,Capex_FO_AC!$D56) -> 9.734001177 | AL56: =+SUMIFS('Capex_FO input'!Z$42:Z$1014,'Capex_FO input'!$E$42:$E$1014,Capex_FO_AC!$C$52,'Capex_FO input'!$G$42:$G$1014,Capex_FO_AC!$D56) -> 9.734001177
C57: =+CONCATENATE("Total ",C52) -> Total Recycled Water | W57: =+SUM(W53:W56) -> 36.9456 | X57: 35.05387457 | Y57: 26.16701649 | Z57: 39.43726528 | AA57: 52.99354736 | AB57: 72.00381158 | AC57: 36.96990853 | AD57: 35.00211612 | AE57: 31.69283629 | AF57: 20.62273701 | AG57: 15.71152142 | AH57: =+SUM(AH53:AH56) -> 23.53802505 | AI57: =+SUM(AI53:AI56) -> 38.57458679 | AJ57: =+SUM(AJ53:AJ56) -> 48.45269817 | AK57: =+SUM(AK53:AK56) -> 55.33419938 | AL57: =+SUM(AL53:AL56) -> 40.78993788
C59: =E15 -> Rural Water
D60: =+D53 -> Headworks | AC60: =+SUMIFS('Capex_FO input'!Q$42:Q$1014,'Capex_FO input'!$E$42:$E$1014,Capex_FO_AC!$C$59,'Capex_FO input'!$G$42:$G$1014,Capex_FO_AC!$D$60) -> 0 | AD60: =+SUMIFS('Capex_FO input'!R$42:R$1014,'Capex_FO input'!$E$42:$E$1014,Capex_FO_AC!$C$59,'Capex_FO input'!$G$42:$G$1014,Capex_FO_AC!$D$60) -> 0 | AE60: =+SUMIFS('Capex_FO input'!S$42:S$1014,'Capex_FO input'!$E$42:$E$1014,Capex_FO_AC!$C$59,'Capex_FO input'!$G$42:$G$1014,Capex_FO_AC!$D$60) -> 0 | AF60: =+SUMIFS('Capex_FO input'!T$42:T$1014,'Capex_FO input'!$E$42:$E$1014,Capex_FO_AC!$C$59,'Capex_FO input'!$G$42:$G$1014,Capex_FO_AC!$D$60) -> 0 | AG60: =+SUMIFS('Capex_FO input'!U$42:U$1014,'Capex_FO input'!$E$42:$E$1014,Capex_FO_AC!$C$59,'Capex_FO input'!$G$42:$G$1014,Capex_FO_AC!$D$60) -> 0 | AH60: =+SUMIFS('Capex_FO input'!V$42:V$1014,'Capex_FO input'!$E$42:$E$1014,Capex_FO_AC!$C$59,'Capex_FO input'!$G$42:$G$1014,Capex_FO_AC!$D$60) -> 0 | AI60: =+SUMIFS('Capex_FO input'!W$42:W$1014,'Capex_FO input'!$E$42:$E$1014,Capex_FO_AC!$C$59,'Capex_FO input'!$G$42:$G$1014,Capex_FO_AC!$D$60) -> 0 | AJ60: =+SUMIFS('Capex_FO input'!X$42:X$1014,'Capex_FO input'!$E$42:$E$1014,Capex_FO_AC!$C$59,'Capex_FO input'!$G$42:$G$1014,Capex_FO_AC!$D$60) -> 0 | AK60: =+SUMIFS('Capex_FO input'!Y$42:Y$1014,'Capex_FO input'!$E$42:$E$1014,Capex_FO_AC!$C$59,'Capex_FO input'!$G$42:$G$1014,Capex_FO_AC!$D$60) -> 0 | AL60: =+SUMIFS('Capex_FO input'!Z$42:Z$1014,'Capex_FO input'!$E$42:$E$1014,Capex_FO_AC!$C$59,'Capex_FO input'!$G$42:$G$1014,Capex_FO_AC!$D$60) -> 0
D61: =+D54 -> Pipelines/network | AC61: =+SUMIFS('Capex_FO input'!Q$42:Q$1014,'Capex_FO input'!$E$42:$E$1014,Capex_FO_AC!$C$59,'Capex_FO input'!$G$42:$G$1014,Capex_FO_AC!$D$60) -> 0 | AD61: =+SUMIFS('Capex_FO input'!R$42:R$1014,'Capex_FO input'!$E$42:$E$1014,Capex_FO_AC!$C$59,'Capex_FO input'!$G$42:$G$1014,Capex_FO_AC!$D$60) -> 0 | AE61: =+SUMIFS('Capex_FO input'!S$42:S$1014,'Capex_FO input'!$E$42:$E$1014,Capex_FO_AC!$C$59,'Capex_FO input'!$G$42:$G$1014,Capex_FO_AC!$D$60) -> 0 | AF61: =+SUMIFS('Capex_FO input'!T$42:T$1014,'Capex_FO input'!$E$42:$E$1014,Capex_FO_AC!$C$59,'Capex_FO input'!$G$42:$G$1014,Capex_FO_AC!$D$60) -> 0 | AG61: =+SUMIFS('Capex_FO input'!U$42:U$1014,'Capex_FO input'!$E$42:$E$1014,Capex_FO_AC!$C$59,'Capex_FO input'!$G$42:$G$1014,Capex_FO_AC!$D$60) -> 0 | AH61: =+SUMIFS('Capex_FO input'!V$42:V$1014,'Capex_FO input'!$E$42:$E$1014,Capex_FO_AC!$C$59,'Capex_FO input'!$G$42:$G$1014,Capex_FO_AC!$D$60) -> 0 | AI61: =+SUMIFS('Capex_FO input'!W$42:W$1014,'Capex_FO input'!$E$42:$E$1014,Capex_FO_AC!$C$59,'Capex_FO input'!$G$42:$G$1014,Capex_FO_AC!$D$60) -> 0 | AJ61: =+SUMIFS('Capex_FO input'!X$42:X$1014,'Capex_FO input'!$E$42:$E$1014,Capex_FO_AC!$C$59,'Capex_FO input'!$G$42:$G$1014,Capex_FO_AC!$D$60) -> 0 | AK61: =+SUMIFS('Capex_FO input'!Y$42:Y$1014,'Capex_FO input'!$E$42:$E$1014,Capex_FO_AC!$C$59,'Capex_FO input'!$G$42:$G$1014,Capex_FO_AC!$D$60) -> 0 | AL61: =+SUMIFS('Capex_FO input'!Z$42:Z$1014,'Capex_FO input'!$E$42:$E$1014,Capex_FO_AC!$C$59,'Capex_FO input'!$G$42:$G$1014,Capex_FO_AC!$D$60) -> 0
D62: =+D55 -> Treatment | AC62: =+SUMIFS('Capex_FO input'!Q$42:Q$1014,'Capex_FO input'!$E$42:$E$1014,Capex_FO_AC!$C$59,'Capex_FO input'!$G$42:$G$1014,Capex_FO_AC!$D$60) -> 0 | AD62: =+SUMIFS('Capex_FO input'!R$42:R$1014,'Capex_FO input'!$E$42:$E$1014,Capex_FO_AC!$C$59,'Capex_FO input'!$G$42:$G$1014,Capex_FO_AC!$D$60) -> 0 | AE62: =+SUMIFS('Capex_FO input'!S$42:S$1014,'Capex_FO input'!$E$42:$E$1014,Capex_FO_AC!$C$59,'Capex_FO input'!$G$42:$G$1014,Capex_FO_AC!$D$60) -> 0 | AF62: =+SUMIFS('Capex_FO input'!T$42:T$1014,'Capex_FO input'!$E$42:$E$1014,Capex_FO_AC!$C$59,'Capex_FO input'!$G$42:$G$1014,Capex_FO_AC!$D$60) -> 0 | AG62: =+SUMIFS('Capex_FO input'!U$42:U$1014,'Capex_FO input'!$E$42:$E$1014,Capex_FO_AC!$C$59,'Capex_FO input'!$G$42:$G$1014,Capex_FO_AC!$D$60) -> 0 | AH62: =+SUMIFS('Capex_FO input'!V$42:V$1014,'Capex_FO input'!$E$42:$E$1014,Capex_FO_AC!$C$59,'Capex_FO input'!$G$42:$G$1014,Capex_FO_AC!$D$60) -> 0 | AI62: =+SUMIFS('Capex_FO input'!W$42:W$1014,'Capex_FO input'!$E$42:$E$1014,Capex_FO_AC!$C$59,'Capex_FO input'!$G$42:$G$1014,Capex_FO_AC!$D$60) -> 0 | AJ62: =+SUMIFS('Capex_FO input'!X$42:X$1014,'Capex_FO input'!$E$42:$E$1014,Capex_FO_AC!$C$59,'Capex_FO input'!$G$42:$G$1014,Capex_FO_AC!$D$60) -> 0 | AK62: =+SUMIFS('Capex_FO input'!Y$42:Y$1014,'Capex_FO input'!$E$42:$E$1014,Capex_FO_AC!$C$59,'Capex_FO input'!$G$42:$G$1014,Capex_FO_AC!$D$60) -> 0 | AL62: =+SUMIFS('Capex_FO input'!Z$42:Z$1014,'Capex_FO input'!$E$42:$E$1014,Capex_FO_AC!$C$59,'Capex_FO input'!$G$42:$G$1014,Capex_FO_AC!$D$60) -> 0
D63: =+D56 -> Corporate | AC63: =+SUMIFS('Capex_FO input'!Q$42:Q$1014,'Capex_FO input'!$E$42:$E$1014,Capex_FO_AC!$C$59,'Capex_FO input'!$G$42:$G$1014,Capex_FO_AC!$D$60) -> 0 | AD63: =+SUMIFS('Capex_FO input'!R$42:R$1014,'Capex_FO input'!$E$42:$E$1014,Capex_FO_AC!$C$59,'Capex_FO input'!$G$42:$G$1014,Capex_FO_AC!$D$60) -> 0 | AE63: =+SUMIFS('Capex_FO input'!S$42:S$1014,'Capex_FO input'!$E$42:$E$1014,Capex_FO_AC!$C$59,'Capex_FO input'!$G$42:$G$1014,Capex_FO_AC!$D$60) -> 0 | AF63: =+SUMIFS('Capex_FO input'!T$42:T$1014,'Capex_FO input'!$E$42:$E$1014,Capex_FO_AC!$C$59,'Capex_FO input'!$G$42:$G$1014,Capex_FO_AC!$D$60) -> 0 | AG63: =+SUMIFS('Capex_FO input'!U$42:U$1014,'Capex_FO input'!$E$42:$E$1014,Capex_FO_AC!$C$59,'Capex_FO input'!$G$42:$G$1014,Capex_FO_AC!$D$60) -> 0 | AH63: =+SUMIFS('Capex_FO input'!V$42:V$1014,'Capex_FO input'!$E$42:$E$1014,Capex_FO_AC!$C$59,'Capex_FO input'!$G$42:$G$1014,Capex_FO_AC!$D$60) -> 0 | AI63: =+SUMIFS('Capex_FO input'!W$42:W$1014,'Capex_FO input'!$E$42:$E$1014,Capex_FO_AC!$C$59,'Capex_FO input'!$G$42:$G$1014,Capex_FO_AC!$D$60) -> 0 | AJ63: =+SUMIFS('Capex_FO input'!X$42:X$1014,'Capex_FO input'!$E$42:$E$1014,Capex_FO_AC!$C$59,'Capex_FO input'!$G$42:$G$1014,Capex_FO_AC!$D$60) -> 0 | AK63: =+SUMIFS('Capex_FO input'!Y$42:Y$1014,'Capex_FO input'!$E$42:$E$1014,Capex_FO_AC!$C$59,'Capex_FO input'!$G$42:$G$1014,Capex_FO_AC!$D$60) -> 0 | AL63: =+SUMIFS('Capex_FO input'!Z$42:Z$1014,'Capex_FO input'!$E$42:$E$1014,Capex_FO_AC!$C$59,'Capex_FO input'!$G$42:$G$1014,Capex_FO_AC!$D$60) -> 0
C64: =+CONCATENATE("Total ",C59) -> Total Rural Water | W64: =+SUM(W60:W63) -> 0 | X64: =+SUM(X60:X63) -> 0 | Y64: 0 | Z64: 0 | AA64: 0 | AB64: 0 | AC64: 0 | AD64: 0 | AE64: 0 | AF64: 0 | AG64: 0 | AH64: =+SUM(AH60:AH63) -> 0 | AI64: =+SUM(AI60:AI63) -> 0 | AJ64: =+SUM(AJ60:AJ63) -> 0 | AK64: =+SUM(AK60:AK63) -> 0 | AL64: =+SUM(AL60:AL63) -> 0
C66: Bulk Water
D67: =+D60 -> Headworks | AC67: =+SUMIFS('Capex_FO input'!Q$42:Q$1014,'Capex_FO input'!$E$42:$E$1014,Capex_FO_AC!$C$66,'Capex_FO input'!$G$42:$G$1014,Capex_FO_AC!$D67) -> 0 | AD67: =+SUMIFS('Capex_FO input'!R$42:R$1014,'Capex_FO input'!$E$42:$E$1014,Capex_FO_AC!$C$66,'Capex_FO input'!$G$42:$G$1014,Capex_FO_AC!$D67) -> 0 | AE67: =+SUMIFS('Capex_FO input'!S$42:S$1014,'Capex_FO input'!$E$42:$E$1014,Capex_FO_AC!$C$66,'Capex_FO input'!$G$42:$G$1014,Capex_FO_AC!$D67) -> 0 | AF67: =+SUMIFS('Capex_FO input'!T$42:T$1014,'Capex_FO input'!$E$42:$E$1014,Capex_FO_AC!$C$66,'Capex_FO input'!$G$42:$G$1014,Capex_FO_AC!$D67) -> 0 | AG67: =+SUMIFS('Capex_FO input'!U$42:U$1014,'Capex_FO input'!$E$42:$E$1014,Capex_FO_AC!$C$66,'Capex_FO input'!$G$42:$G$1014,Capex_FO_AC!$D67) -> 0 | AH67: =+SUMIFS('Capex_FO input'!V$42:V$1014,'Capex_FO input'!$E$42:$E$1014,Capex_FO_AC!$C$66,'Capex_FO input'!$G$42:$G$1014,Capex_FO_AC!$D67) -> 0 | AI67: =+SUMIFS('Capex_FO input'!W$42:W$1014,'Capex_FO input'!$E$42:$E$1014,Capex_FO_AC!$C$66,'Capex_FO input'!$G$42:$G$1014,Capex_FO_AC!$D67) -> 0 | AJ67: =+SUMIFS('Capex_FO input'!X$42:X$1014,'Capex_FO input'!$E$42:$E$1014,Capex_FO_AC!$C$66,'Capex_FO input'!$G$42:$G$1014,Capex_FO_AC!$D67) -> 0 | AK67: =+SUMIFS('Capex_FO input'!Y$42:Y$1014,'Capex_FO input'!$E$42:$E$1014,Capex_FO_AC!$C$66,'Capex_FO input'!$G$42:$G$1014,Capex_FO_AC!$D67) -> 0 | AL67: =+SUMIFS('Capex_FO input'!Z$42:Z$1014,'Capex_FO input'!$E$42:$E$1014,Capex_FO_AC!$C$66,'Capex_FO input'!$G$42:$G$1014,Capex_FO_AC!$D67) -> 0
D68: =+D61 -> Pipelines/network | AC68: =+SUMIFS('Capex_FO input'!Q$42:Q$1014,'Capex_FO input'!$E$42:$E$1014,Capex_FO_AC!$C$66,'Capex_FO input'!$G$42:$G$1014,Capex_FO_AC!$D68) -> 0 | AD68: =+SUMIFS('Capex_FO input'!R$42:R$1014,'Capex_FO input'!$E$42:$E$1014,Capex_FO_AC!$C$66,'Capex_FO input'!$G$42:$G$1014,Capex_FO_AC!$D68) -> 0 | AE68: =+SUMIFS('Capex_FO input'!S$42:S$1014,'Capex_FO input'!$E$42:$E$1014,Capex_FO_AC!$C$66,'Capex_FO input'!$G$42:$G$1014,Capex_FO_AC!$D68) -> 0 | AF68: =+SUMIFS('Capex_FO input'!T$42:T$1014,'Capex_FO input'!$E$42:$E$1014,Capex_FO_AC!$C$66,'Capex_FO input'!$G$42:$G$1014,Capex_FO_AC!$D68) -> 0 | AG68: =+SUMIFS('Capex_FO input'!U$42:U$1014,'Capex_FO input'!$E$42:$E$1014,Capex_FO_AC!$C$66,'Capex_FO input'!$G$42:$G$1014,Capex_FO_AC!$D68) -> 0 | AH68: =+SUMIFS('Capex_FO input'!V$42:V$1014,'Capex_FO input'!$E$42:$E$1014,Capex_FO_AC!$C$66,'Capex_FO input'!$G$42:$G$1014,Capex_FO_AC!$D68) -> 0 | AI68: =+SUMIFS('Capex_FO input'!W$42:W$1014,'Capex_FO input'!$E$42:$E$1014,Capex_FO_AC!$C$66,'Capex_FO input'!$G$42:$G$1014,Capex_FO_AC!$D68) -> 0 | AJ68: =+SUMIFS('Capex_FO input'!X$42:X$1014,'Capex_FO input'!$E$42:$E$1014,Capex_FO_AC!$C$66,'Capex_FO input'!$G$42:$G$1014,Capex_FO_AC!$D68) -> 0 | AK68: =+SUMIFS('Capex_FO input'!Y$42:Y$1014,'Capex_FO input'!$E$42:$E$1014,Capex_FO_AC!$C$66,'Capex_FO input'!$G$42:$G$1014,Capex_FO_AC!$D68) -> 0 | AL68: =+SUMIFS('Capex_FO input'!Z$42:Z$1014,'Capex_FO input'!$E$42:$E$1014,Capex_FO_AC!$C$66,'Capex_FO input'!$G$42:$G$1014,Capex_FO_AC!$D68) -> 0
D69: =+D62 -> Treatment | AC69: =+SUMIFS('Capex_FO input'!Q$42:Q$1014,'Capex_FO input'!$E$42:$E$1014,Capex_FO_AC!$C$66,'Capex_FO input'!$G$42:$G$1014,Capex_FO_AC!$D69) -> 0 | AD69: =+SUMIFS('Capex_FO input'!R$42:R$1014,'Capex_FO input'!$E$42:$E$1014,Capex_FO_AC!$C$66,'Capex_FO input'!$G$42:$G$1014,Capex_FO_AC!$D69) -> 0 | AE69: =+SUMIFS('Capex_FO input'!S$42:S$1014,'Capex_FO input'!$E$42:$E$1014,Capex_FO_AC!$C$66,'Capex_FO input'!$G$42:$G$1014,Capex_FO_AC!$D69) -> 0 | AF69: =+SUMIFS('Capex_FO input'!T$42:T$1014,'Capex_FO input'!$E$42:$E$1014,Capex_FO_AC!$C$66,'Capex_FO input'!$G$42:$G$1014,Capex_FO_AC!$D69) -> 0 | AG69: =+SUMIFS('Capex_FO input'!U$42:U$1014,'Capex_FO input'!$E$42:$E$1014,Capex_FO_AC!$C$66,'Capex_FO input'!$G$42:$G$1014,Capex_FO_AC!$D69) -> 0 | AH69: =+SUMIFS('Capex_FO input'!V$42:V$1014,'Capex_FO input'!$E$42:$E$1014,Capex_FO_AC!$C$66,'Capex_FO input'!$G$42:$G$1014,Capex_FO_AC!$D69) -> 0 | AI69: =+SUMIFS('Capex_FO input'!W$42:W$1014,'Capex_FO input'!$E$42:$E$1014,Capex_FO_AC!$C$66,'Capex_FO input'!$G$42:$G$1014,Capex_FO_AC!$D69) -> 0 | AJ69: =+SUMIFS('Capex_FO input'!X$42:X$1014,'Capex_FO input'!$E$42:$E$1014,Capex_FO_AC!$C$66,'Capex_FO input'!$G$42:$G$1014,Capex_FO_AC!$D69) -> 0 | AK69: =+SUMIFS('Capex_FO input'!Y$42:Y$1014,'Capex_FO input'!$E$42:$E$1014,Capex_FO_AC!$C$66,'Capex_FO input'!$G$42:$G$1014,Capex_FO_AC!$D69) -> 0 | AL69: =+SUMIFS('Capex_FO input'!Z$42:Z$1014,'Capex_FO input'!$E$42:$E$1014,Capex_FO_AC!$C$66,'Capex_FO input'!$G$42:$G$1014,Capex_FO_AC!$D69) -> 0
D70: =+D63 -> Corporate | AC70: =+SUMIFS('Capex_FO input'!Q$42:Q$1014,'Capex_FO input'!$E$42:$E$1014,Capex_FO_AC!$C$66,'Capex_FO input'!$G$42:$G$1014,Capex_FO_AC!$D70) -> 0 | AD70: =+SUMIFS('Capex_FO input'!R$42:R$1014,'Capex_FO input'!$E$42:$E$1014,Capex_FO_AC!$C$66,'Capex_FO input'!$G$42:$G$1014,Capex_FO_AC!$D70) -> 0 | AE70: =+SUMIFS('Capex_FO input'!S$42:S$1014,'Capex_FO input'!$E$42:$E$1014,Capex_FO_AC!$C$66,'Capex_FO input'!$G$42:$G$1014,Capex_FO_AC!$D70) -> 0 | AF70: =+SUMIFS('Capex_FO input'!T$42:T$1014,'Capex_FO input'!$E$42:$E$1014,Capex_FO_AC!$C$66,'Capex_FO input'!$G$42:$G$1014,Capex_FO_AC!$D70) -> 0 | AG70: =+SUMIFS('Capex_FO input'!U$42:U$1014,'Capex_FO input'!$E$42:$E$1014,Capex_FO_AC!$C$66,'Capex_FO input'!$G$42:$G$1014,Capex_FO_AC!$D70) -> 0 | AH70: =+SUMIFS('Capex_FO input'!V$42:V$1014,'Capex_FO input'!$E$42:$E$1014,Capex_FO_AC!$C$66,'Capex_FO input'!$G$42:$G$1014,Capex_FO_AC!$D70) -> 0 | AI70: =+SUMIFS('Capex_FO input'!W$42:W$1014,'Capex_FO input'!$E$42:$E$1014,Capex_FO_AC!$C$66,'Capex_FO input'!$G$42:$G$1014,Capex_FO_AC!$D70) -> 0 | AJ70: =+SUMIFS('Capex_FO input'!X$42:X$1014,'Capex_FO input'!$E$42:$E$1014,Capex_FO_AC!$C$66,'Capex_FO input'!$G$42:$G$1014,Capex_FO_AC!$D70) -> 0 | AK70: =+SUMIFS('Capex_FO input'!Y$42:Y$1014,'Capex_FO input'!$E$42:$E$1014,Capex_FO_AC!$C$66,'Capex_FO input'!$G$42:$G$1014,Capex_FO_AC!$D70) -> 0 | AL70: =+SUMIFS('Capex_FO input'!Z$42:Z$1014,'Capex_FO input'!$E$42:$E$1014,Capex_FO_AC!$C$66,'Capex_FO input'!$G$42:$G$1014,Capex_FO_AC!$D70) -> 0
C71: =+CONCATENATE("Total ",C66) -> Total Bulk Water | W71: =+SUM(W67:W70) -> 0 | X71: =+SUM(X67:X70) -> 0 | Y71: 0 | Z71: 0 | AA71: 0 | AB71: 0 | AC71: 0 | AD71: 0 | AE71: 0 | AF71: 0 | AG71: 0 | AH71: =+SUM(AH67:AH70) -> 0 | AI71: =+SUM(AI67:AI70) -> 0 | AJ71: =+SUM(AJ67:AJ70) -> 0 | AK71: =+SUM(AK67:AK70) -> 0 | AL71: =+SUM(AL67:AL70) -> 0
D74: Above figures include contributions from:
E76: Government contributions
F77: =C38 -> Water | W77: 0 | X77: 0 | Y77: 0 | Z77: 0 | AA77: 0 | AB77: 0 | AC77: =+SUMIF('Capex_FO input'!$E$42:$E$1014,Capex_FO_AC!$F77,'Capex_FO input'!AB$42:AB$1014) -> 0 | AD77: =+SUMIF('Capex_FO input'!$E$42:$E$1014,Capex_FO_AC!$F77,'Capex_FO input'!AC$42:AC$1014) -> 0 | AE77: =+SUMIF('Capex_FO input'!$E$42:$E$1014,Capex_FO_AC!$F77,'Capex_FO input'!AD$42:AD$1014) -> 0 | AF77: =+SUMIF('Capex_FO input'!$E$42:$E$1014,Capex_FO_AC!$F77,'Capex_FO input'!AE$42:AE$1014) -> 0 | AG77: =+SUMIF('Capex_FO input'!$E$42:$E$1014,Capex_FO_AC!$F77,'Capex_FO input'!AF$42:AF$1014) -> 0 | AH77: =+SUMIF('Capex_FO input'!$E$42:$E$1014,Capex_FO_AC!$F77,'Capex_FO input'!AG$42:AG$1014) -> 0 | AI77: =+SUMIF('Capex_FO input'!$E$42:$E$1014,Capex_FO_AC!$F77,'Capex_FO input'!AH$42:AH$1014) -> 0 | AJ77: =+SUMIF('Capex_FO input'!$E$42:$E$1014,Capex_FO_AC!$F77,'Capex_FO input'!AI$42:AI$1014) -> 0 | AK77: =+SUMIF('Capex_FO input'!$E$42:$E$1014,Capex_FO_AC!$F77,'Capex_FO input'!AJ$42:AJ$1014) -> 0 | AL77: =+SUMIF('Capex_FO input'!$E$42:$E$1014,Capex_FO_AC!$F77,'Capex_FO input'!AK$42:AK$1014) -> 0
F78: =C45 -> Sewerage | W78: 0 | X78: 0 | Y78: 0 | Z78: 0 | AA78: 0 | AB78: 0 | AC78: =+SUMIF('Capex_FO input'!$E$42:$E$1014,Capex_FO_AC!$F78,'Capex_FO input'!AB$42:AB$1014) -> 0 | AD78: =+SUMIF('Capex_FO input'!$E$42:$E$1014,Capex_FO_AC!$F78,'Capex_FO input'!AC$42:AC$1014) -> 0 | AE78: =+SUMIF('Capex_FO input'!$E$42:$E$1014,Capex_FO_AC!$F78,'Capex_FO input'!AD$42:AD$1014) -> 0 | AF78: =+SUMIF('Capex_FO input'!$E$42:$E$1014,Capex_FO_AC!$F78,'Capex_FO input'!AE$42:AE$1014) -> 0 | AG78: =+SUMIF('Capex_FO input'!$E$42:$E$1014,Capex_FO_AC!$F78,'Capex_FO input'!AF$42:AF$1014) -> 0 | AH78: =+SUMIF('Capex_FO input'!$E$42:$E$1014,Capex_FO_AC!$F78,'Capex_FO input'!AG$42:AG$1014) -> 0 | AI78: =+SUMIF('Capex_FO input'!$E$42:$E$1014,Capex_FO_AC!$F78,'Capex_FO input'!AH$42:AH$1014) -> 0 | AJ78: =+SUMIF('Capex_FO input'!$E$42:$E$1014,Capex_FO_AC!$F78,'Capex_FO input'!AI$42:AI$1014) -> 0 | AK78: =+SUMIF('Capex_FO input'!$E$42:$E$1014,Capex_FO_AC!$F78,'Capex_FO input'!AJ$42:AJ$1014) -> 0 | AL78: =+SUMIF('Capex_FO input'!$E$42:$E$1014,Capex_FO_AC!$F78,'Capex_FO input'!AK$42:AK$1014) -> 0
F79: =C52 -> Recycled Water | W79: 0 | X79: 0 | Y79: 0 | Z79: 0 | AA79: 12.1093327 | AB79: 5.672154964 | AC79: =+SUMIF('Capex_FO input'!$E$42:$E$1014,Capex_FO_AC!$F79,'Capex_FO input'!AB$42:AB$1014) -> 15.6 | AD79: =+SUMIF('Capex_FO input'!$E$42:$E$1014,Capex_FO_AC!$F79,'Capex_FO input'!AC$42:AC$1014) -> 18.16425121 | AE79: =+SUMIF('Capex_FO input'!$E$42:$E$1014,Capex_FO_AC!$F79,'Capex_FO input'!AD$42:AD$1014) -> 0.1596303298 | AF79: =+SUMIF('Capex_FO input'!$E$42:$E$1014,Capex_FO_AC!$F79,'Capex_FO input'!AE$42:AE$1014) -> 0 | AG79: =+SUMIF('Capex_FO input'!$E$42:$E$1014,Capex_FO_AC!$F79,'Capex_FO input'!AF$42:AF$1014) -> 0 | AH79: =+SUMIF('Capex_FO input'!$E$42:$E$1014,Capex_FO_AC!$F79,'Capex_FO input'!AG$42:AG$1014) -> 0 | AI79: =+SUMIF('Capex_FO input'!$E$42:$E$1014,Capex_FO_AC!$F79,'Capex_FO input'!AH$42:AH$1014) -> 0 | AJ79: =+SUMIF('Capex_FO input'!$E$42:$E$1014,Capex_FO_AC!$F79,'Capex_FO input'!AI$42:AI$1014) -> 0 | AK79: =+SUMIF('Capex_FO input'!$E$42:$E$1014,Capex_FO_AC!$F79,'Capex_FO input'!AJ$42:AJ$1014) -> 0 | AL79: =+SUMIF('Capex_FO input'!$E$42:$E$1014,Capex_FO_AC!$F79,'Capex_FO input'!AK$42:AK$1014) -> 0
F80: =C59 -> Rural Water | AC80: =+SUMIF('Capex_FO input'!$E$42:$E$1014,Capex_FO_AC!$F80,'Capex_FO input'!AB$42:AB$1014) -> 0 | AD80: =+SUMIF('Capex_FO input'!$E$42:$E$1014,Capex_FO_AC!$F80,'Capex_FO input'!AC$42:AC$1014) -> 0 | AE80: =+SUMIF('Capex_FO input'!$E$42:$E$1014,Capex_FO_AC!$F80,'Capex_FO input'!AD$42:AD$1014) -> 0 | AF80: =+SUMIF('Capex_FO input'!$E$42:$E$1014,Capex_FO_AC!$F80,'Capex_FO input'!AE$42:AE$1014) -> 0 | AG80: =+SUMIF('Capex_FO input'!$E$42:$E$1014,Capex_FO_AC!$F80,'Capex_FO input'!AF$42:AF$1014) -> 0 | AH80: =+SUMIF('Capex_FO input'!$E$42:$E$1014,Capex_FO_AC!$F80,'Capex_FO input'!AG$42:AG$1014) -> 0 | AI80: =+SUMIF('Capex_FO input'!$E$42:$E$1014,Capex_FO_AC!$F80,'Capex_FO input'!AH$42:AH$1014) -> 0 | AJ80: =+SUMIF('Capex_FO input'!$E$42:$E$1014,Capex_FO_AC!$F80,'Capex_FO input'!AI$42:AI$1014) -> 0 | AK80: =+SUMIF('Capex_FO input'!$E$42:$E$1014,Capex_FO_AC!$F80,'Capex_FO input'!AJ$42:AJ$1014) -> 0 | AL80: =+SUMIF('Capex_FO input'!$E$42:$E$1014,Capex_FO_AC!$F80,'Capex_FO input'!AK$42:AK$1014) -> 0
F81: =C66 -> Bulk Water | AC81: =+SUMIF('Capex_FO input'!$E$42:$E$1014,Capex_FO_AC!$F81,'Capex_FO input'!AB$42:AB$1014) -> 0 | AD81: =+SUMIF('Capex_FO input'!$E$42:$E$1014,Capex_FO_AC!$F81,'Capex_FO input'!AC$42:AC$1014) -> 0 | AE81: =+SUMIF('Capex_FO input'!$E$42:$E$1014,Capex_FO_AC!$F81,'Capex_FO input'!AD$42:AD$1014) -> 0 | AF81: =+SUMIF('Capex_FO input'!$E$42:$E$1014,Capex_FO_AC!$F81,'Capex_FO input'!AE$42:AE$1014) -> 0 | AG81: =+SUMIF('Capex_FO input'!$E$42:$E$1014,Capex_FO_AC!$F81,'Capex_FO input'!AF$42:AF$1014) -> 0 | AH81: =+SUMIF('Capex_FO input'!$E$42:$E$1014,Capex_FO_AC!$F81,'Capex_FO input'!AG$42:AG$1014) -> 0 | AI81: =+SUMIF('Capex_FO input'!$E$42:$E$1014,Capex_FO_AC!$F81,'Capex_FO input'!AH$42:AH$1014) -> 0 | AJ81: =+SUMIF('Capex_FO input'!$E$42:$E$1014,Capex_FO_AC!$F81,'Capex_FO input'!AI$42:AI$1014) -> 0 | AK81: =+SUMIF('Capex_FO input'!$E$42:$E$1014,Capex_FO_AC!$F81,'Capex_FO input'!AJ$42:AJ$1014) -> 0 | AL81: =+SUMIF('Capex_FO input'!$E$42:$E$1014,Capex_FO_AC!$F81,'Capex_FO input'!AK$42:AK$1014) -> 0
E82: =+CONCATENATE("Total ",E76) -> Total Government contributions | W82: =+SUM(W77:W81) -> 0 | X82: 0 | Y82: 0 | Z82: =+SUM(Z77:Z81) -> 0 | AA82: 12.1093327 | AB82: 5.672154964 | AC82: 15.6 | AD82: 18.16425121 | AE82: 0.1596303298 | AF82: 0 | AG82: 0 | AH82: =+SUM(AH77:AH81) -> 0 | AI82: =+SUM(AI77:AI81) -> 0 | AJ82: =+SUM(AJ77:AJ81) -> 0 | AK82: =+SUM(AK77:AK81) -> 0 | AL82: =+SUM(AL77:AL81) -> 0
E84: Customer contributions
F85: =+F77 -> Water | W85: 24.522 | X85: 24.61156186 | Y85: 34.75742763 | Z85: 30.48364594 | AA85: 49.72556752 | AB85: 63.03132452 | AC85: =+SUMIF('Capex_FO input'!$E$42:$E$1014,Capex_FO_AC!$F85,'Capex_FO input'!AM$42:AM$1014) -> 30.3807204 | AD85: =+SUMIF('Capex_FO input'!$E$42:$E$1014,Capex_FO_AC!$F85,'Capex_FO input'!AN$42:AN$1014) -> 32.72857943 | AE85: =+SUMIF('Capex_FO input'!$E$42:$E$1014,Capex_FO_AC!$F85,'Capex_FO input'!AO$42:AO$1014) -> 36.74502283 | AF85: =+SUMIF('Capex_FO input'!$E$42:$E$1014,Capex_FO_AC!$F85,'Capex_FO input'!AP$42:AP$1014) -> 33.15719287 | AG85: =+SUMIF('Capex_FO input'!$E$42:$E$1014,Capex_FO_AC!$F85,'Capex_FO input'!AQ$42:AQ$1014) -> 35.47005623 | AH85: =+SUMIF('Capex_FO input'!$E$42:$E$1014,Capex_FO_AC!$F85,'Capex_FO input'!AR$42:AR$1014) -> 36.26884543 | AI85: =+SUMIF('Capex_FO input'!$E$42:$E$1014,Capex_FO_AC!$F85,'Capex_FO input'!AS$42:AS$1014) -> 37.54173516 | AJ85: =+SUMIF('Capex_FO input'!$E$42:$E$1014,Capex_FO_AC!$F85,'Capex_FO input'!AT$42:AT$1014) -> 37.11387833 | AK85: =+SUMIF('Capex_FO input'!$E$42:$E$1014,Capex_FO_AC!$F85,'Capex_FO input'!AU$42:AU$1014) -> 38.87643992 | AL85: =+SUMIF('Capex_FO input'!$E$42:$E$1014,Capex_FO_AC!$F85,'Capex_FO input'!AV$42:AV$1014) -> 39.54245271
F86: =+F78 -> Sewerage | W86: 22.086 | X86: 26.50879634 | Y86: 33.91757137 | Z86: 30.28778994 | AA86: 10.34703754 | AB86: 11.55840618 | AC86: =+SUMIF('Capex_FO input'!$E$42:$E$1014,Capex_FO_AC!$F86,'Capex_FO input'!AM$42:AM$1014) -> 30.3807204 | AD86: =+SUMIF('Capex_FO input'!$E$42:$E$1014,Capex_FO_AC!$F86,'Capex_FO input'!AN$42:AN$1014) -> 32.72857943 | AE86: =+SUMIF('Capex_FO input'!$E$42:$E$1014,Capex_FO_AC!$F86,'Capex_FO input'!AO$42:AO$1014) -> 36.74502283 | AF86: =+SUMIF('Capex_FO input'!$E$42:$E$1014,Capex_FO_AC!$F86,'Capex_FO input'!AP$42:AP$1014) -> 33.15719287 | AG86: =+SUMIF('Capex_FO input'!$E$42:$E$1014,Capex_FO_AC!$F86,'Capex_FO input'!AQ$42:AQ$1014) -> 35.47005623 | AH86: =+SUMIF('Capex_FO input'!$E$42:$E$1014,Capex_FO_AC!$F86,'Capex_FO input'!AR$42:AR$1014) -> 36.26884543 | AI86: =+SUMIF('Capex_FO input'!$E$42:$E$1014,Capex_FO_AC!$F86,'Capex_FO input'!AS$42:AS$1014) -> 37.54173516 | AJ86: =+SUMIF('Capex_FO input'!$E$42:$E$1014,Capex_FO_AC!$F86,'Capex_FO input'!AT$42:AT$1014) -> 37.11387833 | AK86: =+SUMIF('Capex_FO input'!$E$42:$E$1014,Capex_FO_AC!$F86,'Capex_FO input'!AU$42:AU$1014) -> 38.87643992 | AL86: =+SUMIF('Capex_FO input'!$E$42:$E$1014,Capex_FO_AC!$F86,'Capex_FO input'!AV$42:AV$1014) -> 39.54245271
F87: =+F79 -> Recycled Water | W87: 12.06 | X87: 17.6696077 | Y87: 16.61119483 | Z87: 12.1775607 | AA87: 7.657323918 | AB87: 13.46214866 | AC87: =+SUMIF('Capex_FO input'!$E$42:$E$1014,Capex_FO_AC!$F87,'Capex_FO input'!AM$42:AM$1014) -> 14.76513361 | AD87: =+SUMIF('Capex_FO input'!$E$42:$E$1014,Capex_FO_AC!$F87,'Capex_FO input'!AN$42:AN$1014) -> 10.6560468 | AE87: =+SUMIF('Capex_FO input'!$E$42:$E$1014,Capex_FO_AC!$F87,'Capex_FO input'!AO$42:AO$1014) -> 11.40376498 | AF87: =+SUMIF('Capex_FO input'!$E$42:$E$1014,Capex_FO_AC!$F87,'Capex_FO input'!AP$42:AP$1014) -> 10.24156626 | AG87: =+SUMIF('Capex_FO input'!$E$42:$E$1014,Capex_FO_AC!$F87,'Capex_FO input'!AQ$42:AQ$1014) -> 10.46566561 | AH87: =+SUMIF('Capex_FO input'!$E$42:$E$1014,Capex_FO_AC!$F87,'Capex_FO input'!AR$42:AR$1014) -> 10.12300711 | AI87: =+SUMIF('Capex_FO input'!$E$42:$E$1014,Capex_FO_AC!$F87,'Capex_FO input'!AS$42:AS$1014) -> 10.13758832 | AJ87: =+SUMIF('Capex_FO input'!$E$42:$E$1014,Capex_FO_AC!$F87,'Capex_FO input'!AT$42:AT$1014) -> 9.958968462 | AK87: =+SUMIF('Capex_FO input'!$E$42:$E$1014,Capex_FO_AC!$F87,'Capex_FO input'!AU$42:AU$1014) -> 10.30162697 | AL87: =+SUMIF('Capex_FO input'!$E$42:$E$1014,Capex_FO_AC!$F87,'Capex_FO input'!AV$42:AV$1014) -> 10.41827667
F88: =+F80 -> Rural Water | AC88: =+SUMIF('Capex_FO input'!$E$42:$E$1014,Capex_FO_AC!$F88,'Capex_FO input'!AM$42:AM$1014) -> 0 | AD88: =+SUMIF('Capex_FO input'!$E$42:$E$1014,Capex_FO_AC!$F88,'Capex_FO input'!AN$42:AN$1014) -> 0 | AE88: =+SUMIF('Capex_FO input'!$E$42:$E$1014,Capex_FO_AC!$F88,'Capex_FO input'!AO$42:AO$1014) -> 0 | AF88: =+SUMIF('Capex_FO input'!$E$42:$E$1014,Capex_FO_AC!$F88,'Capex_FO input'!AP$42:AP$1014) -> 0 | AG88: =+SUMIF('Capex_FO input'!$E$42:$E$1014,Capex_FO_AC!$F88,'Capex_FO input'!AQ$42:AQ$1014) -> 0 | AH88: =+SUMIF('Capex_FO input'!$E$42:$E$1014,Capex_FO_AC!$F88,'Capex_FO input'!AR$42:AR$1014) -> 0 | AI88: =+SUMIF('Capex_FO input'!$E$42:$E$1014,Capex_FO_AC!$F88,'Capex_FO input'!AS$42:AS$1014) -> 0 | AJ88: =+SUMIF('Capex_FO input'!$E$42:$E$1014,Capex_FO_AC!$F88,'Capex_FO input'!AT$42:AT$1014) -> 0 | AK88: =+SUMIF('Capex_FO input'!$E$42:$E$1014,Capex_FO_AC!$F88,'Capex_FO input'!AU$42:AU$1014) -> 0 | AL88: =+SUMIF('Capex_FO input'!$E$42:$E$1014,Capex_FO_AC!$F88,'Capex_FO input'!AV$42:AV$1014) -> 0
F89: =F81 -> Bulk Water | AC89: =+SUMIF('Capex_FO input'!$E$42:$E$1014,Capex_FO_AC!$F89,'Capex_FO input'!AM$42:AM$1014) -> 0 | AD89: =+SUMIF('Capex_FO input'!$E$42:$E$1014,Capex_FO_AC!$F89,'Capex_FO input'!AN$42:AN$1014) -> 0 | AE89: =+SUMIF('Capex_FO input'!$E$42:$E$1014,Capex_FO_AC!$F89,'Capex_FO input'!AO$42:AO$1014) -> 0 | AF89: =+SUMIF('Capex_FO input'!$E$42:$E$1014,Capex_FO_AC!$F89,'Capex_FO input'!AP$42:AP$1014) -> 0 | AG89: =+SUMIF('Capex_FO input'!$E$42:$E$1014,Capex_FO_AC!$F89,'Capex_FO input'!AQ$42:AQ$1014) -> 0 | AH89: =+SUMIF('Capex_FO input'!$E$42:$E$1014,Capex_FO_AC!$F89,'Capex_FO input'!AR$42:AR$1014) -> 0 | AI89: =+SUMIF('Capex_FO input'!$E$42:$E$1014,Capex_FO_AC!$F89,'Capex_FO input'!AS$42:AS$1014) -> 0 | AJ89: =+SUMIF('Capex_FO input'!$E$42:$E$1014,Capex_FO_AC!$F89,'Capex_FO input'!AT$42:AT$1014) -> 0 | AK89: =+SUMIF('Capex_FO input'!$E$42:$E$1014,Capex_FO_AC!$F89,'Capex_FO input'!AU$42:AU$1014) -> 0 | AL89: =+SUMIF('Capex_FO input'!$E$42:$E$1014,Capex_FO_AC!$F89,'Capex_FO input'!AV$42:AV$1014) -> 0
E90: =+CONCATENATE("Total ",E84) -> Total Customer contributions | W90: =+SUM(W85:W89) -> 58.668 | X90: 68.7899659 | Y90: 85.28619382 | Z90: =+SUM(Z85:Z89) -> 72.94899658 | AA90: 67.72992898 | AB90: 88.05187936 | AC90: 75.52657441 | AD90: 76.11320566 | AE90: 84.89381063 | AF90: 76.55595199 | AG90: 81.40577807 | AH90: =+SUM(AH85:AH89) -> 82.66069796 | AI90: =+SUM(AI85:AI89) -> 85.22105863 | AJ90: =+SUM(AJ85:AJ89) -> 84.18672512 | AK90: =+SUM(AK85:AK89) -> 88.0545068 | AL90: =+SUM(AL85:AL89) -> 89.50318208
C94: Gifted Assets | W94: 89.202 | X94: 103.4521914 | Y94: 137.132684 | Z94: 121.5211745 | AA94: 106.8574824 | AB94: 101.3002441 | AC94: 96.004 | AD94: 98.597 | AE94: 101.357 | AF94: 103.486 | AG94: 105.866 | AH94: 98.17750213 | AI94: 101.9849508 | AJ94: 99.6906942 | AK94: 105.4033834 | AL94: 107.329314
C96: Asset disposals
D97: Proceeds from disposals | W97: 1.0404 | X97: 1.340588449 | Y97: 0.8115549991 | Z97: 0.9714883276 | AA97: 3.038375481 | AB97: 1.022365264 | AC97: 0.807246865 | AD97: 0.8150463516 | AE97: 0.8091402186 | AF97: 0.7993679938 | AG97: 0.7897137909 | AH97: 0.7801761848 | AI97: 0.7707537671 | AJ97: 0.7614451467 | AK97: 0.7522489493 | AL97: 0.7431638171
D98: Written down value of assets disposed | W98: 1.998640937 | X98: 1.750263302 | Y98: 3.27155055 | Z98: 3.869662868 | AA98: 2.103852767 | AB98: 2.140435835 | AC98: 2.140435835 | AD98: 4.280871671 | AE98: 2.140435835 | AF98: 2.140435835 | AG98: 4.280871671 | AH98: 2.140435835 | AI98: 2.140435835 | AJ98: 2.140435835 | AK98: 4.280871671 | AL98: 4.280871671

Sheet Capex_FO input
B1: Capital Expenditure - Forecast Input | Q1: =Q36 -> Gross capital expenditure | AB1: =AB36 -> Government contributions | AM1: =AM36 -> Customer contributions | AX1: =AX36 -> Net capital expenditure | BI1: =BI36 -> Regulatory Depreciation | BT1: =BT36 -> Accumulated capex | CE1: =CE36 -> Gross capital expenditure | CP1: =CP36 -> Tax Depreciation
B2: =+Contents!H7 -> Greater Western Water | Q2: =Q37 -> $m, 01/01/24 | AB2: =AB37 -> $m, 01/01/24 | AM2: =AM37 -> $m, 01/01/24 | AX2: =AX37 -> $m, 01/01/24 | BI2: =BI37 -> $m, 01/01/24 | BT2: =BT37 -> $m, 01/01/24 | CE2: =CE37 -> Nominal,$ | CP2: =CP37 -> Nominal,$
B3: Go to Table of Contents | Q3: =Q39 -> 2023-24 | R3: =R39 -> 2024-25 | S3: 2025-26 | T3: 2026-27 | U3: 2027-28 | V3: 2028-29 | W3: 2029-30 | X3: 2030-31 | Y3: =Y39 -> 2031-32 | Z3: =Z39 -> 2032-33 | AB3: 2023-24 | AC3: 2024-25 | AD3: 2025-26 | AE3: 2026-27 | AF3: 2027-28 | AG3: 2028-29 | AH3: 2029-30 | AI3: 2030-31 | AJ3: 2031-32 | AK3: 2032-33 | AM3: 2023-24 | AN3: 2024-25 | AO3: 2025-26 | AP3: 2026-27 | AQ3: 2027-28 | AR3: 2028-29 | AS3: 2029-30 | AT3: 2030-31 | AU3: 2031-32 | AV3: 2032-33 | AX3: 2023-24 | AY3: 2024-25 | AZ3: 2025-26 | BA3: 2026-27 | BB3: 2027-28 | BC3: 2028-29 | BD3: 2029-30 | BE3: 2030-31 | BF3: 2031-32 | BG3: 2032-33 | BI3: 2023-24 | BJ3: 2024-25 | BK3: 2025-26 | BL3: 2026-27 | BM3: 2027-28 | BN3: 2028-29 | BO3: 2029-30 | BP3: 2030-31 | BQ3: 2031-32 | BR3: 2032-33 | BT3: 2023-24 | BU3: 2024-25 | BV3: 2025-26 | BW3: 2026-27 | BX3: 2027-28 | BY3: 2028-29 | BZ3: 2029-30 | CA3: 2030-31 | CB3: =CB39 -> 2031-32 | CC3: =CC39 -> 2032-33 | CE3: 2023-24 | CF3: 2024-25 | CG3: 2025-26 | CH3: 2026-27 | CI3: 2027-28 | CJ3: 2028-29 | CK3: 2029-30 | CL3: 2030-31 | CM3: =CM39 -> 2031-32 | CN3: =CN39 -> 2032-33 | CP3: 2023-24 | CQ3: 2024-25 | CR3: =CR39 -> 2025-26 | CS3: 2026-27 | CT3: 2027-28 | CU3: 2028-29 | CV3: 2029-30 | CW3: 2030-31 | CX3: =CX39 -> 2031-32 | CY3: =CY39 -> 2032-33
C7: Input Summary | D7: EXT YR | F7: FIFTH REG PERIOD | K7: SIXTH REG PERIOD
D9: =+Q39 -> 2023-24 | E9: =+R39 -> 2024-25 | F9: 2025-26 | G9: 2026-27 | H9: 2027-28 | I9: 2028-29 | J9: 2029-30 | K9: 2030-31 | L9: =+Y39 -> 2031-32 | M9: =+Z39 -> 2032-33
C10: By Cost Driver
C11: Net capital expenditure - Renewals | D11: =+SUMIF($F$42:$F$1016,"Renewals",AX$42:AX$1016) -> 95.96095528 | E11: 113.7111915 | F11: 105.5054424 | G11: 110.5219565 | H11: 106.1140744 | I11: 106.8924542 | J11: 120.2701782 | K11: 131.8285317 | L11: =+SUMIF($F$42:$F$1016,"Renewals",BF$42:BF$1016) -> 129.1529869 | M11: =+SUMIF($F$42:$F$1016,"Renewals",BG$42:BG$1016) -> 136.6445123
C12: Net capital expenditure - Growth | D12: =+SUMIF($F$42:$F$1016,"Growth",AX$42:AX$1016) -> 57.58844771 | E12: 88.16700871 | F12: 82.65777987 | G12: 109.0526937 | H12: 76.94674224 | I12: 104.3208667 | J12: 131.6462801 | K12: 114.505237 | L12: =+SUMIF($F$42:$F$1016,"Growth",BF$42:BF$1016) -> 124.0475782 | M12: =+SUMIF($F$42:$F$1016,"Growth",BG$42:BG$1016) -> 61.80771704
C13: Net capital expenditure - Improvements / Compliance | D13: =+SUMIF($F$42:$F$1016,"Improvements / Compliance",AX$42:AX$1016) -> 89.67504065 | E13: =+SUMIF($F$42:$F$1016,"Improvements / Compliance",AY$42:AY$1016) -> 74.7070599 | F13: 75.54885717 | G13: 61.78596485 | H13: 45.05454657 | I13: 46.22807938 | J13: 52.02317938 | K13: 50.27872938 | L13: 44.53512938 | M13: 49.10192938
C14: Government Contributions | D14: =+AB41 -> 15.6 | E14: 18.16425121 | F14: 0.1596303298 | G14: 0 | H14: 0 | I14: 0 | J14: 0 | K14: 0 | L14: =+AJ41 -> 0 | M14: =+AK41 -> 0
C15: Customer Contributions | D15: =+AM41 -> 75.52657441 | E15: 76.11320566 | F15: 84.89381063 | G15: 76.55595199 | H15: 81.40577807 | I15: 82.66069796 | J15: 85.22105863 | K15: 84.18672512 | L15: =+AU41 -> 88.0545068 | M15: =+AV41 -> 89.50318208
C16: Total prescribed capex | D16: =SUM(D11:D15) -> 334.3510181 | E16: 370.862717 | F16: 348.7655204 | G16: 357.916567 | H16: 309.5211413 | I16: 340.1020983 | J16: 389.1606963 | K16: 380.7992232 | L16: =SUM(L11:L15) -> 385.7902013 | M16: =SUM(M11:M15) -> 337.0573408
C18: By Capital Type
C19: Top 10 Major Projects | D19: =+SUMIF($H$42:$H$1016,$C$19,Q$42:Q$1016) -> 79.6491138 | E19: 52.86003274 | F19: 67.10446434 | G19: 105.5713623 | H19: 74.18155448 | I19: 12.15018402 | J19: 18.6060678 | K19: 0.91 | L19: =+SUMIF($H$42:$H$1016,$C$19,Y$42:Y$1016) -> 0 | M19: =+SUMIF($H$42:$H$1016,$C$19,Z$42:Z$1016) -> 0
C20: Significant projects | D20: =+SUMIF($H$42:$H$1016,$C$20,Q$42:Q$1016) -> 9.913883775 | E20: 10.0993053 | F20: 8.687472863 | G20: 1.25429968 | H20: 0 | I20: 0 | J20: 0 | K20: 0 | L20: =+SUMIF($H$42:$H$1016,$C$20,Y$42:Y$1016) -> 0 | M20: =+SUMIF($H$42:$H$1016,$C$20,Z$42:Z$1016) -> 0
C21: Capital Programs / Allocation | D21: =+SUMIF($H$42:$H$1016,$C$21,Q$42:Q$1016) -> 244.7880205 | E21: 307.9033789 | F21: 272.9735832 | G21: 251.090905 | H21: 235.3395868 | I21: 327.9519142 | J21: 370.5546285 | K21: 379.8892232 | L21: =+SUMIF($H$42:$H$1016,$C$21,Y$42:Y$1016) -> 385.7902013 | M21: =+SUMIF($H$42:$H$1016,$C$21,Z$42:Z$1016) -> 337.0573408
C22: Other Capital expenditure | D22: =+SUMIF($H$42:$H$1016,$C$22,Q$42:Q$1016) -> 0 | E22: 0 | F22: 0 | G22: 0 | H22: 0 | I22: 0 | J22: 0 | K22: 0 | L22: =+SUMIF($H$42:$H$1016,$C$22,Y$42:Y$1016) -> 0 | M22: =+SUMIF($H$42:$H$1016,$C$22,Z$42:Z$1016) -> 0
C23: Total prescribed capex | D23: =SUM(D19:D22) -> 334.3510181 | E23: 370.862717 | F23: 348.7655204 | G23: 357.916567 | H23: 309.5211413 | I23: 340.1020983 | J23: 389.1606963 | K23: 380.7992232 | L23: =SUM(L19:L22) -> 385.7902013 | M23: =SUM(M19:M22) -> 337.0573408
C25: Difference | D25: =+D23-D16 -> 0 | E25: 0 | F25: 0 | G25: 0 | H25: 0 | I25: 0 | J25: 0 | K25: 0 | L25: =+L23-L16 -> 0 | M25: =+M23-M16 -> 0
C26: Test | D26: =IF(+D23=D16,0,1) -> 0 | E26: 0 | F26: 0 | G26: 0 | H26: 0 | I26: 0 | J26: =IF(ROUND(J23,6)=ROUND(J16,6),0,1) -> 0 | K26: 0 | L26: 0 | M26: 0
C29: Total prescribed capex | D29: =+D23 -> 334.3510181 | E29: 370.862717 | F29: 348.7655204 | G29: 357.916567 | H29: 309.5211413 | I29: 340.1020983 | J29: 389.1606963 | K29: 380.7992232 | L29: =+L23 -> 385.7902013 | M29: =+M23 -> 337.0573408
C32: Regulatory Depreciation | D32: =+BI41 -> 3.534295391 | E32: 10.67667541 | F32: 17.26771633 | G32: 23.23967228 | H32: 29.09566077 | I32: 34.53256561 | J32: 39.90486616 | K32: 45.90671783 | L32: =+BQ41 -> 51.95840917 | M32: =+BR41 -> 57.38407126
B35: =Expenditure_Detail!$B$6 -> $m, 01/01/24
Q36: Gross capital expenditure | AB36: Government contributions | AM36: Customer contributions | AX36: Net capital expenditure | BI36: Regulatory Depreciation | BT36: Accumulated capex | CE36: Gross capital expenditure | CP36: Tax Depreciation
Q37: =Expenditure_Detail!$B$6 -> $m, 01/01/24 | AB37: =Expenditure_Detail!$B$6 -> $m, 01/01/24 | AM37: =Expenditure_Detail!$B$6 -> $m, 01/01/24 | AX37: =Expenditure_Detail!$B$6 -> $m, 01/01/24 | BI37: =Expenditure_Detail!$B$6 -> $m, 01/01/24 | BT37: =Expenditure_Detail!$B$6 -> $m, 01/01/24 | CE37: Nominal,$ | CP37: Nominal,$
Q39: 2023-24 | R39: 2024-25 | S39: 2025-26 | T39: 2026-27 | U39: 2027-28 | V39: 2028-29 | W39: 2029-30 | X39: 2030-31 | Y39: 2031-32 | Z39: 2032-33 | AB39: 2023-24 | AC39: 2024-25 | AD39: 2025-26 | AE39: 2026-27 | AF39: 2027-28 | AG39: 2028-29 | AH39: 2029-30 | AI39: 2030-31 | AJ39: 2031-32 | AK39: 2032-33 | AM39: 2023-24 | AN39: 2024-25 | AO39: 2025-26 | AP39: 2026-27 | AQ39: 2027-28 | AR39: 2028-29 | AS39: 2029-30 | AT39: 2030-31 | AU39: 2031-32 | AV39: 2032-33 | AX39: 2023-24 | AY39: 2024-25 | AZ39: 2025-26 | BA39: 2026-27 | BB39: 2027-28 | BC39: 2028-29 | BD39: 2029-30 | BE39: 2030-31 | BF39: 2031-32 | BG39: 2032-33 | BI39: 2023-24 | BJ39: 2024-25 | BK39: 2025-26 | BL39: 2026-27 | BM39: 2027-28 | BN39: 2028-29 | BO39: 2029-30 | BP39: 2030-31 | BQ39: 2031-32 | BR39: 2032-33 | BT39: 2023-24 | BU39: 2024-25 | BV39: 2025-26 | BW39: 2026-27 | BX39: 2027-28 | BY39: 2028-29 | BZ39: 2029-30 | CA39: 2030-31 | CB39: 2031-32 | CC39: 2032-33 | CE39: 2023-24 | CF39: 2024-25 | CG39: 2025-26 | CH39: 2026-27 | CI39: 2027-28 | CJ39: 2028-29 | CK39: 2029-30 | CL39: 2030-31 | CM39: 2031-32 | CN39: 2032-33 | CP39: 2023-24 | CQ39: 2024-25 | CR39: 2025-26 | CS39: 2026-27 | CT39: 2027-28 | CU39: 2028-29 | CV39: 2029-30 | CW39: 2030-31 | CX39: 2031-32 | CY39: 2032-33
BI40: 1 | BJ40: 2 | BK40: 3 | BL40: 4 | BM40: 5 | BN40: 6 | BO40: 7 | BP40: 8 | BQ40: 9 | BR40: 10 | CP40: 1 | CQ40: 2 | CR40: 3 | CS40: 4 | CT40: 5 | CU40: 6 | CV40: 7 | CW40: 8 | CX40: 9 | CY40: 10
C41: Project/program Name | E41: Service | F41: Major cost driver | G41: Asset category | H41: Capital type | J41: Reg Depreciation Method | K41: Year asset operational | L41: Asset life (Regulatory) | M41: Asset life (Tax) | Q41: =SUM(Q42:Q1016) -> 334.3510181 | R41: 370.862717 | S41: 348.7655204 | T41: 357.916567 | U41: 309.5211413 | V41: 340.1020983 | W41: 389.1606963 | X41: 380.7992232 | Y41: =SUM(Y42:Y1016) -> 385.7902013 | Z41: =SUM(Z42:Z1016) -> 337.0573408 | AB41: =SUM(AB42:AB1016) -> 15.6 | AC41: 18.16425121 | AD41: 0.1596303298 | AE41: 0 | AF41: 0 | AG41: 0 | AH41: 0 | AI41: 0 | AJ41: 0 | AK41: 0 | AM41: =SUM(AM42:AM1016) -> 75.52657441 | AN41: 76.11320566 | AO41: 84.89381063 | AP41: 76.55595199 | AQ41: 81.40577807 | AR41: 82.66069796 | AS41: 85.22105863 | AT41: 84.18672512 | AU41: 88.0545068 | AV41: 89.50318208 | AX41: =SUM(AX42:AX1016) -> 243.2244436 | AY41: 276.5852601 | AZ41: 263.7120795 | BA41: 281.3606151 | BB41: 228.1153632 | BC41: 257.4414003 | BD41: 303.9396377 | BE41: 296.6124981 | BF41: 297.7356945 | BG41: 247.5541588 | BI41: =SUM(BI42:BI1016) -> 3.534295391 | BJ41: 10.67667541 | BK41: 17.26771633 | BL41: 23.23967228 | BM41: 29.09566077 | BN41: 34.53256561 | BO41: 39.90486616 | BP41: 45.90671783 | BQ41: =SUM(BQ42:BQ1016) -> 51.95840917 | BR41: =SUM(BR42:BR1016) -> 57.38407126 | BT41: =SUM(BT42:BT1016) -> 201.0453298 | BU41: 288.5905349 | BV41: 207.6097943 | BW41: 266.2774705 | BX41: 295.2276586 | BY41: 246.7392211 | BZ41: 286.5996377 | CA41: 358.9016507 | CB41: =SUM(CB42:CB1016) -> 297.7356945 | CC41: =SUM(CC42:CC1016) -> 247.5541588 | CE41: =SUM(CE42:CE1016) -> 334.3510181 | CF41: 383.8429121 | CG41: 373.6063446 | CH41: 396.8284956 | CI41: 355.1826288 | CJ41: 403.9346046 | CK41: 478.3778587 | CL41: 484.482955 | CM41: =SUM(CM42:CM1016) -> 508.0120234 | CN41: =SUM(CN42:CN1016) -> 459.3745577 | CP41: =SUM(CP42:CP1016) -> 4.290845925 | CQ41: 12.7797516 | CR41: 21.03153037 | CS41: 28.96709667 | CT41: 36.19897236 | CU41: 43.2172871 | CV41: 51.03082916 | CW41: 59.40147738 | CX41: =SUM(CX42:CX1016) -> 68.02687655 | CY41: =SUM(CY42:CY1016) -> 76.61190185
C42: Woodend RWP - Major Upgrade | E42: Sewerage | F42: Growth | G42: Treatment | H42: Top 10 Major Projects | J42: Straight line | K42: 2027-28 | L42: 80 | M42: 80 | Q42: 0.4494915254 | R42: 3.218145278 | S42: 12.21653753 | T42: 23.05463438 | U42: 19.44692978 | V42: 1.448004843 | W42: 1.266067797 | X42: 0 | Y42: 0 | Z42: 0 | AB42: 0 | AC42: 0 | AD42: 0 | AE42: 0 | AF42: 0 | AG42: 0 | AH42: 0 | AI42: 0 | AJ42: 0 | AK42: 0 | AM42: 0 | AN42: 0 | AO42: 0 | AP42: 0 | AQ42: 0 | AR42: 0 | AS42: 0 | AT42: 0 | AU42: 0 | AV42: 0 | AX42: =+Q42-AB42-AM42 -> 0.4494915254 | AY42: =+R42-AC42-AN42 -> 3.218145278 | AZ42: =+S42-AD42-AO42 -> 12.21653753 | BA42: =+T42-AE42-AP42 -> 23.05463438 | BB42: =+U42-AF42-AQ42 -> 19.44692978 | BC42: =+V42-AG42-AR42 -> 1.448004843 | BD42: =+W42-AH42-AS42 -> 1.266067797 | BE42: =+X42-AI42-AT42 -> 0 | BF42: =+Y42-AJ42-AU42 -> 0 | BG42: =+Z42-AK42-AV42 -> 0 | BI42: =IF($L42=0,0, IF($L42<=0.5,BT42, IF($J42="straight line", IF((LEFT(BI$39,4)*1)-INT($L42)<LEFT($BI$39,4)*1,0,((OFFSET(BT42,0,-INT($L42+0.5),1,1))/$L42)*(IF($L42-INT($L42)>0.5,$L42-0.5-INT($L42),IF($L42-INT($L42)<=0.5,$L42-0.5-INT($L42)+1,0)))) +BT42/$L42*0.5, IF($J42="Declining Balance",-$BI$38,0)))) -> 0 | BJ42: =IF($L42=0,0, IF($L42<=0.5,BU42, IF(AND($J42="straight line",$L42<1.51),(BT42-((BT42/$L42)*0.5))+BU42/$L42*0.5, IF($J42="straight line", IF((LEFT(BJ$39,4)*1)-INT($L42)<LEFT($BI$39,4)*1,0,((OFFSET(BU42,0,-INT($L42+0.5),1,1))/$L42)*(IF($L42-INT($L42)>0.5,$L42-0.5-INT($L42),IF($L42-INT($L42)<=0.5,$L42-0.5-INT($L42)+1,0)))) +BU42/$L42*0.5 +SUM(OFFSET(BU42,0,MAX(-INT($L42+(0.5-(10^-12))),-BJ$40)+1,1,MIN(INT($L42+(0.5-(10^-12))),BJ$40)-1))*1/$L42, IF($J42="Declining Balance",-$BI$38,0))))) -> 0 | BK42: =IF($L42=0,0, IF($L42<=0.5,BV42, IF(AND($J42="straight line",$L42<1.51),(BU42-((BU42/$L42)*0.5))+BV42/$L42*0.5, IF($J42="straight line", IF((LEFT(BK$39,4)*1)-INT($L42)<LEFT($BI$39,4)*1,0,((OFFSET(BV42,0,-INT($L42+0.5),1,1))/$L42)*(IF($L42-INT($L42)>0.5,$L42-0.5-INT($L42),IF($L42-INT($L42)<=0.5,$L42-0.5-INT($L42)+1,0)))) +BV42/$L42*0.5 +SUM(OFFSET(BV42,0,MAX(-INT($L42+(0.5-(10^-12))),-BK$40)+1,1,MIN(INT($L42+(0.5-(10^-12))),BK$40)-1))*1/$L42, IF($J42="Declining Balance",-$BI$38,0))))) -> 0 | BL42: =IF($L42=0,0, IF($L42<=0.5,BW42, IF(AND($J42="straight line",$L42<1.51),(BV42-((BV42/$L42)*0.5))+BW42/$L42*0.5, IF($J42="straight line", IF((LEFT(BL$39,4)*1)-INT($L42)<LEFT($BI$39,4)*1,0,((OFFSET(BW42,0,-INT($L42+0.5),1,1))/$L42)*(IF($L42-INT($L42)>0.5,$L42-0.5-INT($L42),IF($L42-INT($L42)<=0.5,$L42-0.5-INT($L42)+1,0)))) +BW42/$L42*0.5 +SUM(OFFSET(BW42,0,MAX(-INT($L42+(0.5-(10^-12))),-BL$40)+1,1,MIN(INT($L42+(0.5-(10^-12))),BL$40)-1))*1/$L42, IF($J42="Declining Balance",-$BI$38,0))))) -> 0 | BM42: =IF($L42=0,0, IF($L42<=0.5,BX42, IF(AND($J42="straight line",$L42<1.51),(BW42-((BW42/$L42)*0.5))+BX42/$L42*0.5, IF($J42="straight line", IF((LEFT(BM$39,4)*1)-INT($L42)<LEFT($BI$39,4)*1,0,((OFFSET(BX42,0,-INT($L42+0.5),1,1))/$L42)*(IF($L42-INT($L42)>0.5,$L42-0.5-INT($L42),IF($L42-INT($L42)<=0.5,$L42-0.5-INT($L42)+1,0)))) +BX42/$L42*0.5 +SUM(OFFSET(BX42,0,MAX(-INT($L42+(0.5-(10^-12))),-BM$40)+1,1,MIN(INT($L42+(0.5-(10^-12))),BM$40)-1))*1/$L42, IF($J42="Declining Balance",-$BI$38,0))))) -> 0.3649108656 | BN42: =IF($L42=0,0, IF($L42<=0.5,BY42, IF(AND($J42="straight line",$L42<1.51),(BX42-((BX42/$L42)*0.5))+BY42/$L42*0.5, IF($J42="straight line", IF((LEFT(BN$39,4)*1)-INT($L42)<LEFT($BI$39,4)*1,0,((OFFSET(BY42,0,-INT($L42+0.5),1,1))/$L42)*(IF($L42-INT($L42)>0.5,$L42-0.5-INT($L42),IF($L42-INT($L42)<=0.5,$L42-0.5-INT($L42)+1,0)))) +BY42/$L42*0.5 +SUM(OFFSET(BY42,0,MAX(-INT($L42+(0.5-(10^-12))),-BN$40)+1,1,MIN(INT($L42+(0.5-(10^-12))),BN$40)-1))*1/$L42, IF($J42="Declining Balance",-$BI$38,0))))) -> 0.7388717615 | BO42: =IF($L42=0,0, IF($L42<=0.5,BZ42, IF(AND($J42="straight line",$L42<1.51),(BY42-((BY42/$L42)*0.5))+BZ42/$L42*0.5, IF($J42="straight line", IF((LEFT(BO$39,4)*1)-INT($L42)<LEFT($BI$39,4)*1,0,((OFFSET(BZ42,0,-INT($L42+0.5),1,1))/$L42)*(IF($L42-INT($L42)>0.5,$L42-0.5-INT($L42),IF($L42-INT($L42)<=0.5,$L42-0.5-INT($L42)+1,0)))) +BZ42/$L42*0.5 +SUM(OFFSET(BZ42,0,MAX(-INT($L42+(0.5-(10^-12))),-BO$40)+1,1,MIN(INT($L42+(0.5-(10^-12))),BO$40)-1))*1/$L42, IF($J42="Declining Balance",-$BI$38,0))))) -> 0.7558347155 | BP42: =IF($L42=0,0, IF($L42<=0.5,CA42, IF(AND($J42="straight line",$L42<1.51),(BZ42-((BZ42/$L42)*0.5))+CA42/$L42*0.5, IF($J42="straight line", IF((LEFT(BP$39,4)*1)-INT($L42)<LEFT($BI$39,4)*1,0,((OFFSET(CA42,0,-INT($L42+0.5),1,1))/$L42)*(IF($L42-INT($L42)>0.5,$L42-0.5-INT($L42),IF($L42-INT($L42)<=0.5,$L42-0.5-INT($L42)+1,0)))) +CA42/$L42*0.5 +SUM(OFFSET(CA42,0,MAX(-INT($L42+(0.5-(10^-12))),-BP$40)+1,1,MIN(INT($L42+(0.5-(10^-12))),BP$40)-1))*1/$L42, IF($J42="Declining Balance",-$BI$38,0))))) -> 0.7637476392 | BQ42: =IF($L42=0,0, IF($L42<=0.5,CB42, IF(AND($J42="straight line",$L42<1.51),(CA42-((CA42/$L42)*0.5))+CB42/$L42*0.5, IF($J42="straight line", IF((LEFT(BQ$39,4)*1)-INT($L42)<LEFT($BI$39,4)*1,0,((OFFSET(CB42,0,-INT($L42+0.5),1,1))/$L42)*(IF($L42-INT($L42)>0.5,$L42-0.5-INT($L42),IF($L42-INT($L42)<=0.5,$L42-0.5-INT($L42)+1,0)))) +CB42/$L42*0.5 +SUM(OFFSET(CB42,0,MAX(-INT($L42+(0.5-(10^-12))),-BQ$40)+1,1,MIN(INT($L42+(0.5-(10^-12))),BQ$40)-1))*1/$L42, IF($J42="Declining Balance",-$BI$38,0))))) -> 0.7637476392 | BR42: =IF($L42=0,0, IF($L42<=0.5,CC42, IF(AND($J42="straight line",$L42<1.51),(CB42-((CB42/$L42)*0.5))+CC42/$L42*0.5, IF($J42="straight line", IF((LEFT(BR$39,4)*1)-INT($L42)<LEFT($BI$39,4)*1,0,((OFFSET(CC42,0,-INT($L42+0.5),1,1))/$L42)*(IF($L42-INT($L42)>0.5,$L42-0.5-INT($L42),IF($L42-INT($L42)<=0.5,$L42-0.5-INT($L42)+1,0)))) +CC42/$L42*0.5 +SUM(OFFSET(CC42,0,MAX(-INT($L42+(0.5-(10^-12))),-BR$40)+1,1,MIN(INT($L42+(0.5-(10^-12))),BR$40)-1))*1/$L42, IF($J42="Declining Balance",-$BI$38,0))))) -> 0.7637476392 | BT42: =+IF($K42="Ongoing",AX42,IF(RIGHT($K42,2)=RIGHT(BT$39,2),SUM($AX42:AX42),0)+IF(RIGHT(BT$39,2)>RIGHT($K42,2),AX42,0)) -> 0 | BU42: =+IF($K42="Ongoing",AY42,IF(RIGHT($K42,2)=RIGHT(BU$39,2),SUM($AX42:AY42),0)+IF(RIGHT(BU$39,2)>RIGHT($K42,2),AY42,0)) -> 0 | BV42: =+IF($K42="Ongoing",AZ42,IF(RIGHT($K42,2)=RIGHT(BV$39,2),SUM($AX42:AZ42),0)+IF(RIGHT(BV$39,2)>RIGHT($K42,2),AZ42,0)) -> 0 | BW42: =+IF($K42="Ongoing",BA42,IF(RIGHT($K42,2)=RIGHT(BW$39,2),SUM($AX42:BA42),0)+IF(RIGHT(BW$39,2)>RIGHT($K42,2),BA42,0)) -> 0 | BX42: =+IF($K42="Ongoing",BB42,IF(RIGHT($K42,2)=RIGHT(BX$39,2),SUM($AX42:BB42),0)+IF(RIGHT(BX$39,2)>RIGHT($K42,2),BB42,0)) -> 58.3857385 | BY42: =+IF($K42="Ongoing",BC42,IF(RIGHT($K42,2)=RIGHT(BY$39,2),SUM($AX42:BC42),0)+IF(RIGHT(BY$39,2)>RIGHT($K42,2),BC42,0)) -> 1.448004843 | BZ42: =+IF($K42="Ongoing",BD42,IF(RIGHT($K42,2)=RIGHT(BZ$39,2),SUM($AX42:BD42),0)+IF(RIGHT(BZ$39,2)>RIGHT($K42,2),BD42,0)) -> 1.266067797 | CA42: =+IF($K42="Ongoing",BE42,IF(RIGHT($K42,2)=RIGHT(CA$39,2),SUM($AX42:BE42),0)+IF(RIGHT(CA$39,2)>RIGHT($K42,2),BE42,0)) -> 0 | CB42: =+IF($K42="Ongoing",BF42,IF(RIGHT($K42,2)=RIGHT(CB$39,2),SUM($AX42:BF42),0)+IF(RIGHT(CB$39,2)>RIGHT($K42,2),BF42,0)) -> 0 | CC42: =+IF($K42="Ongoing",BG42,IF(RIGHT($K42,2)=RIGHT(CC$39,2),SUM($AX42:BG42),0)+IF(RIGHT(CC$39,2)>RIGHT($K42,2),BG42,0)) -> 0 | CE42: =+Q42*KeyAssumptionsPriceControl_FO!AC$15 -> 0.4494915254 | CF42: =+R42*KeyAssumptionsPriceControl_FO!AD$15 -> 3.330780363 | CG42: =+S42*KeyAssumptionsPriceControl_FO!AE$15 -> 13.08666042 | CH42: =+T42*KeyAssumptionsPriceControl_FO!AF$15 -> 25.56108524 | CI42: =+U42*KeyAssumptionsPriceControl_FO!AG$15 -> 22.31579922 | CJ42: =+V42*KeyAssumptionsPriceControl_FO!AH$15 -> 1.719775522 | CK42: =+W42*KeyAssumptionsPriceControl_FO!AI$15 -> 1.556320582 | CL42: =+X42*KeyAssumptionsPriceControl_FO!AJ$15 -> 0 | CM42: =+Y42*KeyAssumptionsPriceControl_FO!AK$15 -> 0 | CN42: =+Z42*KeyAssumptionsPriceControl_FO!AL$15 -> 0 | CP42: =IF($M42=0,0, IF($M42<=0.5,CE42, IF($J42="straight line", IF((LEFT(CP$39,4)*1)-INT($M42)<LEFT($CP$39,4)*1,0,((OFFSET(CE42,0,-INT($M42+0.5),1,1))/$M42)*(IF($M42-INT($M42)>0.5,$M42-0.5-INT($M42),IF($M42-INT($M42)<=0.5,$M42-0.5-INT($M42)+1,0)))) +CE42/$M42*0.5, IF($J42="Declining Balance",-$CP$38,0)))) -> 0.002809322034 | CQ42: =IF($M42=0,0, IF($M42<=0.5,CF42, IF(AND($J42="straight line",$M42<1.51),(CE42-((CE42/$M42)*0.5))+CF42/$M42*0.5, IF($J42="straight line", IF((LEFT(CQ$39,4)*1)-INT($M42)<LEFT($CP$39,4)*1,0,((OFFSET(CF42,0,-INT($M42+0.5),1,1))/$M42)*(IF($M42-INT($M42)>0.5,$M42-0.5-INT($M42),IF($M42-INT($M42)<=0.5,$M42-0.5-INT($M42)+1,0)))) +CF42/$M42*0.5 +SUM(OFFSET(CF42,0,MAX(-INT($M42+(0.5-(10^-12))),-CQ$40)+1,1,MIN(INT($M42+(0.5-(10^-12))),CQ$40)-1))*1/$M42, IF($J42="Declining Balance",-$CP$38,0))))) -> 0.02643602134 | CR42: =IF($M42=0,0, IF($M42<=0.5,CG42, IF(AND($J42="straight line",$M42<1.51),(CF42-((CF42/$M42)*0.5))+CG42/$M42*0.5, IF($J42="straight line", IF((LEFT(CR$39,4)*1)-INT($M42)<LEFT($CP$39,4)*1,0,((OFFSET(CG42,0,-INT($M42+0.5),1,1))/$M42)*(IF($M42-INT($M42)>0.5,$M42-0.5-INT($M42),IF($M42-INT($M42)<=0.5,$M42-0.5-INT($M42)+1,0)))) +CG42/$M42*0.5 +SUM(OFFSET(CG42,0,MAX(-INT($M42+(0.5-(10^-12))),-CR$40)+1,1,MIN(INT($M42+(0.5-(10^-12))),CR$40)-1))*1/$M42, IF($J42="Declining Balance",-$CP$38,0))))) -> 0.1290450262 | CS42: =IF($M42=0,0, IF($M42<=0.5,CH42, IF(AND($J42="straight line",$M42<1.51),(CG42-((CG42/$M42)*0.5))+CH42/$M42*0.5, IF($J42="straight line", IF((LEFT(CS$39,4)*1)-INT($M42)<LEFT($CP$39,4)*1,0,((OFFSET(CH42,0,-INT($M42+0.5),1,1))/$M42)*(IF($M42-INT($M42)>0.5,$M42-0.5-INT($M42),IF($M42-INT($M42)<=0.5,$M42-0.5-INT($M42)+1,0)))) +CH42/$M42*0.5 +SUM(OFFSET(CH42,0,MAX(-INT($M42+(0.5-(10^-12))),-CS$40)+1,1,MIN(INT($M42+(0.5-(10^-12))),CS$40)-1))*1/$M42, IF($J42="Declining Balance",-$CP$38,0))))) -> 0.3705934366 | CT42: =IF($M42=0,0, IF($M42<=0.5,CI42, IF(AND($J42="straight line",$M42<1.51),(CH42-((CH42/$M42)*0.5))+CI42/$M42*0.5, IF($J42="straight line", IF((LEFT(CT$39,4)*1)-INT($M42)<LEFT($CP$39,4)*1,0,((OFFSET(CI42,0,-INT($M42+0.5),1,1))/$M42)*(IF($M42-INT($M42)>0.5,$M42-0.5-INT($M42),IF($M42-INT($M42)<=0.5,$M42-0.5-INT($M42)+1,0)))) +CI42/$M42*0.5 +SUM(OFFSET(CI42,0,MAX(-INT($M42+(0.5-(10^-12))),-CT$40)+1,1,MIN(INT($M42+(0.5-(10^-12))),CT$40)-1))*1/$M42, IF($J42="Declining Balance",-$CP$38,0))))) -> 0.6698239644 | CU42: =IF($M42=0,0, IF($M42<=0.5,CJ42, IF(AND($J42="straight line",$M42<1.51),(CI42-((CI42/$M42)*0.5))+CJ42/$M42*0.5, IF($J42="straight line", IF((LEFT(CU$39,4)*1)-INT($M42)<LEFT($CP$39,4)*1,0,((OFFSET(CJ42,0,-INT($M42+0.5),1,1))/$M42)*(IF($M42-INT($M42)>0.5,$M42-0.5-INT($M42),IF($M42-INT($M42)<=0.5,$M42-0.5-INT($M42)+1,0)))) +CJ42/$M42*0.5 +SUM(OFFSET(CJ42,0,MAX(-INT($M42+(0.5-(10^-12))),-CU$40)+1,1,MIN(INT($M42+(0.5-(10^-12))),CU$40)-1))*1/$M42, IF($J42="Declining Balance",-$CP$38,0))))) -> 0.8200463065 | CV42: =IF($M42=0,0, IF($M42<=0.5,CK42, IF(AND($J42="straight line",$M42<1.51),(CJ42-((CJ42/$M42)*0.5))+CK42/$M42*0.5, IF($J42="straight line", IF((LEFT(CV$39,4)*1)-INT($M42)<LEFT($CP$39,4)*1,0,((OFFSET(CK42,0,-INT($M42+0.5),1,1))/$M42)*(IF($M42-INT($M42)>0.5,$M42-0.5-INT($M42),IF($M42-INT($M42)<=0.5,$M42-0.5-INT($M42)+1,0)))) +CK42/$M42*0.5 +SUM(OFFSET(CK42,0,MAX(-INT($M42+(0.5-(10^-12))),-CV$40)+1,1,MIN(INT($M42+(0.5-(10^-12))),CV$40)-1))*1/$M42, IF($J42="Declining Balance",-$CP$38,0))))) -> 0.8405219072 | CW42: =IF($M42=0,0, IF($M42<=0.5,CL42, IF(AND($J42="straight line",$M42<1.51),(CK42-((CK42/$M42)*0.5))+CL42/$M42*0.5, IF($J42="straight line", IF((LEFT(CW$39,4)*1)-INT($M42)<LEFT($CP$39,4)*1,0,((OFFSET(CL42,0,-INT($M42+0.5),1,1))/$M42)*(IF($M42-INT($M42)>0.5,$M42-0.5-INT($M42),IF($M42-INT($M42)<=0.5,$M42-0.5-INT($M42)+1,0)))) +CL42/$M42*0.5 +SUM(OFFSET(CL42,0,MAX(-INT($M42+(0.5-(10^-12))),-CW$40)+1,1,MIN(INT($M42+(0.5-(10^-12))),CW$40)-1))*1/$M42, IF($J42="Declining Balance",-$CP$38,0))))) -> 0.8502489108 | CX42: =IF($M42=0,0, IF($M42<=0.5,CM42, IF(AND($J42="straight line",$M42<1.51),(CL42-((CL42/$M42)*0.5))+CM42/$M42*0.5, IF($J42="straight line", IF((LEFT(CX$39,4)*1)-INT($M42)<LEFT($CP$39,4)*1,0,((OFFSET(CM42,0,-INT($M42+0.5),1,1))/$M42)*(IF($M42-INT($M42)>0.5,$M42-0.5-INT($M42),IF($M42-INT($M42)<=0.5,$M42-0.5-INT($M42)+1,0)))) +CM42/$M42*0.5 +SUM(OFFSET(CM42,0,MAX(-INT($M42+(0.5-(10^-12))),-CX$40)+1,1,MIN(INT($M42+(0.5-(10^-12))),CX$40)-1))*1/$M42, IF($J42="Declining Balance",-$CP$38,0))))) -> 0.8502489108 | CY42: =IF($M42=0,0, IF($M42<=0.5,CN42, IF(AND($J42="straight line",$M42<1.51),(CM42-((CM42/$M42)*0.5))+CN42/$M42*0.5, IF($J42="straight line", IF((LEFT(CY$39,4)*1)-INT($M42)<LEFT($CP$39,4)*1,0,((OFFSET(CN42,0,-INT($M42+0.5),1,1))/$M42)*(IF($M42-INT($M42)>0.5,$M42-0.5-INT($M42),IF($M42-INT($M42)<=0.5,$M42-0.5-INT($M42)+1,0)))) +CN42/$M42*0.5 +SUM(OFFSET(CN42,0,MAX(-INT($M42+(0.5-(10^-12))),-CY$40)+1,1,MIN(INT($M42+(0.5-(10^-12))),CY$40)-1))*1/$M42, IF($J42="Declining Balance",-$CP$38,0))))) -> 0.8502489108
C43: Macedon Ranges Transfer Augmentations | E43: Water | F43: Growth | G43: Pipelines/network | H43: Top 10 Major Projects | J43: Straight line | K43: 2026-27 | L43: 90 | M43: 90 | Q43: 1.070217918 | R43: 10.91622276 | S43: 19.79903148 | T43: 24.08115914 | U43: 0 | V43: 0 | W43: 0 | X43: 0 | Y43: 0 | Z43: 0 | AB43: 0 | AC43: 0 | AD43: 0 | AE43: 0 | AF43: 0 | AG43: 0 | AH43: 0 | AI43: 0 | AJ43: 0 | AK43: 0 | AM43: 0 | AN43: 0 | AO43: 0 | AP43: 0 | AQ43: 0 | AR43: 0 | AS43: 0 | AT43: 0 | AU43: 0 | AV43: 0 | AX43: 1.070217918 | AY43: 10.91622276 | AZ43: 19.79903148 | BA43: 24.08115914 | BB43: 0 | BC43: 0 | BD43: 0 | BE43: 0 | BF43: 0 | BG43: 0 | BI43: =IF($L43=0,0, IF($L43<=0.5,BT43, IF($J43="straight line", IF((LEFT(BI$39,4)*1)-INT($L43)<LEFT($BI$39,4)*1,0,((OFFSET(BT43,0,-INT($L43+0.5),1,1))/$L43)*(IF($L43-INT($L43)>0.5,$L43-0.5-INT($L43),IF($L43-INT($L43)<=0.5,$L43-0.5-INT($L43)+1,0)))) +BT43/$L43*0.5, IF($J43="Declining Balance",-$BI$38,0)))) -> 0 | BJ43: =IF($L43=0,0, IF($L43<=0.5,BU43, IF(AND($J43="straight line",$L43<1.51),(BT43-((BT43/$L43)*0.5))+BU43/$L43*0.5, IF($J43="straight line", IF((LEFT(BJ$39,4)*1)-INT($L43)<LEFT($BI$39,4)*1,0,((OFFSET(BU43,0,-INT($L43+0.5),1,1))/$L43)*(IF($L43-INT($L43)>0.5,$L43-0.5-INT($L43),IF($L43-INT($L43)<=0.5,$L43-0.5-INT($L43)+1,0)))) +BU43/$L43*0.5 +SUM(OFFSET(BU43,0,MAX(-INT($L43+(0.5-(10^-12))),-BJ$40)+1,1,MIN(INT($L43+(0.5-(10^-12))),BJ$40)-1))*1/$L43, IF($J43="Declining Balance",-$BI$38,0))))) -> 0 | BK43: 0 | BL43: 0.3103701739 | BM43: 0.6207403478 | BN43: 0.6207403478 | BO43: 0.6207403478 | BP43: 0.6207403478 | BQ43: 0.6207403478 | BR43: 0.6207403478 | BT43: =+IF($K43="Ongoing",AX43,IF(RIGHT($K43,2)=RIGHT(BT$39,2),SUM($AX43:AX43),0)+IF(RIGHT(BT$39,2)>RIGHT($K43,2),AX43,0)) -> 0 | BU43: =+IF($K43="Ongoing",AY43,IF(RIGHT($K43,2)=RIGHT(BU$39,2),SUM($AX43:AY43),0)+IF(RIGHT(BU$39,2)>RIGHT($K43,2),AY43,0)) -> 0 | BV43: =+IF($K43="Ongoing",AZ43,IF(RIGHT($K43,2)=RIGHT(BV$39,2),SUM($AX43:AZ43),0)+IF(RIGHT(BV$39,2)>RIGHT($K43,2),AZ43,0)) -> 0 | BW43: =+IF($K43="Ongoing",BA43,IF(RIGHT($K43,2)=RIGHT(BW$39,2),SUM($AX43:BA43),0)+IF(RIGHT(BW$39,2)>RIGHT($K43,2),BA43,0)) -> 55.8666313 | BX43: =+IF($K43="Ongoing",BB43,IF(RIGHT($K43,2)=RIGHT(BX$39,2),SUM($AX43:BB43),0)+IF(RIGHT(BX$39,2)>RIGHT($K43,2),BB43,0)) -> 0 | BY43: =+IF($K43="Ongoing",BC43,IF(RIGHT($K43,2)=RIGHT(BY$39,2),SUM($AX43:BC43),0)+IF(RIGHT(BY$39,2)>RIGHT($K43,2),BC43,0)) -> 0 | BZ43: =+IF($K43="Ongoing",BD43,IF(RIGHT($K43,2)=RIGHT(BZ$39,2),SUM($AX43:BD43),0)+IF(RIGHT(BZ$39,2)>RIGHT($K43,2),BD43,0)) -> 0 | CA43: =+IF($K43="Ongoing",BE43,IF(RIGHT($K43,2)=RIGHT(CA$39,2),SUM($AX43:BE43),0)+IF(RIGHT(CA$39,2)>RIGHT($K43,2),BE43,0)) -> 0 | CB43: =+IF($K43="Ongoing",BF43,IF(RIGHT($K43,2)=RIGHT(CB$39,2),SUM($AX43:BF43),0)+IF(RIGHT(CB$39,2)>RIGHT($K43,2),BF43,0)) -> 0 | CC43: =+IF($K43="Ongoing",BG43,IF(RIGHT($K43,2)=RIGHT(CC$39,2),SUM($AX43:BG43),0)+IF(RIGHT(CC$39,2)>RIGHT($K43,2),BG43,0)) -> 0 | CE43: =+Q43*KeyAssumptionsPriceControl_FO!AC$15 -> 1.070217918 | CF43: =+R43*KeyAssumptionsPriceControl_FO!AD$15 -> 11.29829056 | CG43: =+S43*KeyAssumptionsPriceControl_FO!AE$15 -> 21.20921749 | CH43: =+T43*KeyAssumptionsPriceControl_FO!AF$15 -> 26.69921159 | CI43: =+U43*KeyAssumptionsPriceControl_FO!AG$15 -> 0 | CJ43: =+V43*KeyAssumptionsPriceControl_FO!AH$15 -> 0 | CK43: =+W43*KeyAssumptionsPriceControl_FO!AI$15 -> 0 | CL43: =+X43*KeyAssumptionsPriceControl_FO!AJ$15 -> 0 | CM43: =+Y43*KeyAssumptionsPriceControl_FO!AK$15 -> 0 | CN43: =+Z43*KeyAssumptionsPriceControl_FO!AL$15 -> 0 | CP43: =IF($M43=0,0, IF($M43<=0.5,CE43, IF($J43="straight line", IF((LEFT(CP$39,4)*1)-INT($M43)<LEFT($CP$39,4)*1,0,((OFFSET(CE43,0,-INT($M43+0.5),1,1))/$M43)*(IF($M43-INT($M43)>0.5,$M43-0.5-INT($M43),IF($M43-INT($M43)<=0.5,$M43-0.5-INT($M43)+1,0)))) +CE43/$M43*0.5, IF($J43="Declining Balance",-$CP$38,0)))) -> 0.005945655098 | CQ43: 0.07465959107 | CR43: 0.255256858 | CS43: 0.5214147974 | CT43: 0.6697437507 | CU43: 0.6697437507 | CV43: 0.6697437507 | CW43: 0.6697437507 | CX43: 0.6697437507 | CY43: 0.6697437507
C44: CBD Stage 4 - Siddeley St (MMS) | E44: Sewerage | F44: Growth | G44: Pipelines/network | H44: Top 10 Major Projects | J44: Straight line | K44: 2027-28 | L44: 90 | M44: 90 | Q44: 0.6421307506 | R44: 1.926392252 | S44: 3.210653753 | T44: 14.98305085 | U44: 25.68523002 | V44: 0 | W44: 0 | X44: 0 | Y44: 0 | Z44: 0 | AB44: 0 | AC44: 0 | AD44: 0 | AE44: 0 | AF44: 0 | AG44: 0 | AH44: 0 | AI44: 0 | AJ44: 0 | AK44: 0 | AM44: 0 | AN44: 0 | AO44: 0 | AP44: 0 | AQ44: 0 | AR44: 0 | AS44: 0 | AT44: 0 | AU44: 0 | AV44: 0 | AX44: 0.6421307506 | AY44: 1.926392252 | AZ44: 3.210653753 | BA44: 14.98305085 | BB44: 25.68523002 | BC44: 0 | BD44: 0 | BE44: 0 | BF44: 0 | BG44: 0 | BI44: 0 | BJ44: 0 | BK44: 0 | BL44: 0 | BM44: 0.2580414313 | BN44: 0.5160828625 | BO44: 0.5160828625 | BP44: 0.5160828625 | BQ44: 0.5160828625 | BR44: 0.5160828625 | BT44: =+IF($K44="Ongoing",AX44,IF(RIGHT($K44,2)=RIGHT(BT$39,2),SUM($AX44:AX44),0)+IF(RIGHT(BT$39,2)>RIGHT($K44,2),AX44,0)) -> 0 | BU44: =+IF($K44="Ongoing",AY44,IF(RIGHT($K44,2)=RIGHT(BU$39,2),SUM($AX44:AY44),0)+IF(RIGHT(BU$39,2)>RIGHT($K44,2),AY44,0)) -> 0 | BV44: =+IF($K44="Ongoing",AZ44,IF(RIGHT($K44,2)=RIGHT(BV$39,2),SUM($AX44:AZ44),0)+IF(RIGHT(BV$39,2)>RIGHT($K44,2),AZ44,0)) -> 0 | BW44: =+IF($K44="Ongoing",BA44,IF(RIGHT($K44,2)=RIGHT(BW$39,2),SUM($AX44:BA44),0)+IF(RIGHT(BW$39,2)>RIGHT($K44,2),BA44,0)) -> 0 | BX44: =+IF($K44="Ongoing",BB44,IF(RIGHT($K44,2)=RIGHT(BX$39,2),SUM($AX44:BB44),0)+IF(RIGHT(BX$39,2)>RIGHT($K44,2),BB44,0)) -> 46.44745763 | BY44: =+IF($K44="Ongoing",BC44,IF(RIGHT($K44,2)=RIGHT(BY$39,2),SUM($AX44:BC44),0)+IF(RIGHT(BY$39,2)>RIGHT($K44,2),BC44,0)) -> 0 | BZ44: =+IF($K44="Ongoing",BD44,IF(RIGHT($K44,2)=RIGHT(BZ$39,2),SUM($AX44:BD44),0)+IF(RIGHT(BZ$39,2)>RIGHT($K44,2),BD44,0)) -> 0 | CA44: =+IF($K44="Ongoing",BE44,IF(RIGHT($K44,2)=RIGHT(CA$39,2),SUM($AX44:BE44),0)+IF(RIGHT(CA$39,2)>RIGHT($K44,2),BE44,0)) -> 0 | CB44: =+IF($K44="Ongoing",BF44,IF(RIGHT($K44,2)=RIGHT(CB$39,2),SUM($AX44:BF44),0)+IF(RIGHT(CB$39,2)>RIGHT($K44,2),BF44,0)) -> 0 | CC44: =+IF($K44="Ongoing",BG44,IF(RIGHT($K44,2)=RIGHT(CC$39,2),SUM($AX44:BG44),0)+IF(RIGHT(CC$39,2)>RIGHT($K44,2),BG44,0)) -> 0 | CE44: =+Q44*KeyAssumptionsPriceControl_FO!AC$15 -> 0.6421307506 | CF44: =+R44*KeyAssumptionsPriceControl_FO!AD$15 -> 1.993815981 | CG44: =+S44*KeyAssumptionsPriceControl_FO!AE$15 -> 3.439332567 | CH44: =+T44*KeyAssumptionsPriceControl_FO!AF$15 -> 16.6119763 | CI44: =+U44*KeyAssumptionsPriceControl_FO!AG$15 -> 29.47439223 | CJ44: =+V44*KeyAssumptionsPriceControl_FO!AH$15 -> 0 | CK44: =+W44*KeyAssumptionsPriceControl_FO!AI$15 -> 0 | CL44: =+X44*KeyAssumptionsPriceControl_FO!AJ$15 -> 0 | CM44: =+Y44*KeyAssumptionsPriceControl_FO!AK$15 -> 0 | CN44: =+Z44*KeyAssumptionsPriceControl_FO!AL$15 -> 0 | CP44: 0.003567393059 | CQ44: 0.01821154157 | CR44: 0.04839570016 | CS44: 0.1597918605 | CT44: 0.4158272412 | CU44: 0.5795738647 | CV44: 0.5795738647 | CW44: 0.5795738647 | CX44: 0.5795738647 | CY44: 0.5795738647
C45: Holden Tank WPS & Transfer Main | E45: Water | F45: Growth | G45: Pipelines/network | H45: Top 10 Major Projects | J45: Straight line | K45: 2027-28 | L45: 90 | M45: 90 | Q45: 1.926392252 | R45: 2.675544794 | S45: 7.491525424 | T45: 16.72215496 | U45: 7.491525424 | V45: 0 | W45: 0 | X45: 0 | Y45: 0 | Z45: 0 | AB45: 0 | AC45: 0 | AD45: 0 | AE45: 0 | AF45: 0 | AG45: 0 | AH45: 0 | AI45: 0 | AJ45: 0 | AK45: 0 | AM45: 0 | AN45: 0 | AO45: 0 | AP45: 0 | AQ45: 0 | AR45: 0 | AS45: 0 | AT45: 0 | AU45: 0 | AV45: 0 | AX45: 1.926392252 | AY45: 2.675544794 | AZ45: 7.491525424 | BA45: 16.72215496 | BB45: 7.491525424 | BC45: 0 | BD45: 0 | BE45: 0 | BF45: 0 | BG45: 0 | BI45: 0 | BJ45: 0 | BK45: 0 | BL45: 0 | BM45: 0.2017063492 | BN45: 0.4034126984 | BO45: 0.4034126984 | BP45: 0.4034126984 | BQ45: 0.4034126984 | BR45: 0.4034126984 | BT45: =+IF($K45="Ongoing",AX45,IF(RIGHT($K45,2)=RIGHT(BT$39,2),SUM($AX45:AX45),0)+IF(RIGHT(BT$39,2)>RIGHT($K45,2),AX45,0)) -> 0 | BU45: =+IF($K45="Ongoing",AY45,IF(RIGHT($K45,2)=RIGHT(BU$39,2),SUM($AX45:AY45),0)+IF(RIGHT(BU$39,2)>RIGHT($K45,2),AY45,0)) -> 0 | BV45: =+IF($K45="Ongoing",AZ45,IF(RIGHT($K45,2)=RIGHT(BV$39,2),SUM($AX45:AZ45),0)+IF(RIGHT(BV$39,2)>RIGHT($K45,2),AZ45,0)) -> 0 | BW45: =+IF($K45="Ongoing",BA45,IF(RIGHT($K45,2)=RIGHT(BW$39,2),SUM($AX45:BA45),0)+IF(RIGHT(BW$39,2)>RIGHT($K45,2),BA45,0)) -> 0 | BX45: =+IF($K45="Ongoing",BB45,IF(RIGHT($K45,2)=RIGHT(BX$39,2),SUM($AX45:BB45),0)+IF(RIGHT(BX$39,2)>RIGHT($K45,2),BB45,0)) -> 36.30714286 | BY45: =+IF($K45="Ongoing",BC45,IF(RIGHT($K45,2)=RIGHT(BY$39,2),SUM($AX45:BC45),0)+IF(RIGHT(BY$39,2)>RIGHT($K45,2),BC45,0)) -> 0 | BZ45: =+IF($K45="Ongoing",BD45,IF(RIGHT($K45,2)=RIGHT(BZ$39,2),SUM($AX45:BD45),0)+IF(RIGHT(BZ$39,2)>RIGHT($K45,2),BD45,0)) -> 0 | CA45: =+IF($K45="Ongoing",BE45,IF(RIGHT($K45,2)=RIGHT(CA$39,2),SUM($AX45:BE45),0)+IF(RIGHT(CA$39,2)>RIGHT($K45,2),BE45,0)) -> 0 | CB45: =+IF($K45="Ongoing",BF45,IF(RIGHT($K45,2)=RIGHT(CB$39,2),SUM($AX45:BF45),0)+IF(RIGHT(CB$39,2)>RIGHT($K45,2),BF45,0)) -> 0 | CC45: =+IF($K45="Ongoing",BG45,IF(RIGHT($K45,2)=RIGHT(CC$39,2),SUM($AX45:BG45),0)+IF(RIGHT(CC$39,2)>RIGHT($K45,2),BG45,0)) -> 0 | CE45: =+Q45*KeyAssumptionsPriceControl_FO!AC$15 -> 1.926392252 | CF45: =+R45*KeyAssumptionsPriceControl_FO!AD$15 -> 2.769188862 | CG45: =+S45*KeyAssumptionsPriceControl_FO!AE$15 -> 8.025109322 | CH45: =+T45*KeyAssumptionsPriceControl_FO!AF$15 -> 18.54015212 | CI45: =+U45*KeyAssumptionsPriceControl_FO!AG$15 -> 8.596697733 | CJ45: =+V45*KeyAssumptionsPriceControl_FO!AH$15 -> 0 | CK45: =+W45*KeyAssumptionsPriceControl_FO!AI$15 -> 0 | CL45: =+X45*KeyAssumptionsPriceControl_FO!AJ$15 -> 0 | CM45: =+Y45*KeyAssumptionsPriceControl_FO!AK$15 -> 0 | CN45: =+Z45*KeyAssumptionsPriceControl_FO!AL$15 -> 0 | CP45: 0.01070217918 | CQ45: 0.03678874092 | CR45: 0.09675706416 | CS45: 0.2443418499 | CT45: 0.3951021269 | CU45: 0.4428615587 | CV45: 0.4428615587 | CW45: 0.4428615587 | CX45: 0.4428615587 | CY45: 0.4428615587
C46: Bald Hill Tank Construction | E46: Water | F46: Growth | G46: Pipelines/network | H46: Top 10 Major Projects | J46: Straight line | K46: 2024-25 | L46: 90 | M46: 90 | Q46: 15.018 | R46: 14.026 | S46: 0 | T46: 0 | U46: 0 | V46: 0 | W46: 0 | X46: 0 | Y46: 0 | Z46: 0 | AB46: 0 | AC46: 0 | AD46: 0 | AE46: 0 | AF46: 0 | AG46: 0 | AH46: 0 | AI46: 0 | AJ46: 0 | AK46: 0 | AM46: 0 | AN46: 0 | AO46: 0 | AP46: 0 | AQ46: 0 | AR46: 0 | AS46: 0 | AT46: 0 | AU46: 0 | AV46: 0 | AX46: 15.018 | AY46: 14.026 | AZ46: 0 | BA46: 0 | BB46: 0 | BC46: 0 | BD46: 0 | BE46: 0 | BF46: 0 | BG46: 0 | BI46: 0 | BJ46: 0.1613555556 | BK46: 0.3227111111 | BL46: 0.3227111111 | BM46: 0.3227111111 | BN46: 0.3227111111 | BO46: 0.3227111111 | BP46: 0.3227111111 | BQ46: 0.3227111111 | BR46: 0.3227111111 | BT46: =+IF($K46="Ongoing",AX46,IF(RIGHT($K46,2)=RIGHT(BT$39,2),SUM($AX46:AX46),0)+IF(RIGHT(BT$39,2)>RIGHT($K46,2),AX46,0)) -> 0 | BU46: =+IF($K46="Ongoing",AY46,IF(RIGHT($K46,2)=RIGHT(BU$39,2),SUM($AX46:AY46),0)+IF(RIGHT(BU$39,2)>RIGHT($K46,2),AY46,0)) -> 29.044 | BV46: =+IF($K46="Ongoing",AZ46,IF(RIGHT($K46,2)=RIGHT(BV$39,2),SUM($AX46:AZ46),0)+IF(RIGHT(BV$39,2)>RIGHT($K46,2),AZ46,0)) -> 0 | BW46: =+IF($K46="Ongoing",BA46,IF(RIGHT($K46,2)=RIGHT(BW$39,2),SUM($AX46:BA46),0)+IF(RIGHT(BW$39,2)>RIGHT($K46,2),BA46,0)) -> 0 | BX46: =+IF($K46="Ongoing",BB46,IF(RIGHT($K46,2)=RIGHT(BX$39,2),SUM($AX46:BB46),0)+IF(RIGHT(BX$39,2)>RIGHT($K46,2),BB46,0)) -> 0 | BY46: =+IF($K46="Ongoing",BC46,IF(RIGHT($K46,2)=RIGHT(BY$39,2),SUM($AX46:BC46),0)+IF(RIGHT(BY$39,2)>RIGHT($K46,2),BC46,0)) -> 0 | BZ46: =+IF($K46="Ongoing",BD46,IF(RIGHT($K46,2)=RIGHT(BZ$39,2),SUM($AX46:BD46),0)+IF(RIGHT(BZ$39,2)>RIGHT($K46,2),BD46,0)) -> 0 | CA46: =+IF($K46="Ongoing",BE46,IF(RIGHT($K46,2)=RIGHT(CA$39,2),SUM($AX46:BE46),0)+IF(RIGHT(CA$39,2)>RIGHT($K46,2),BE46,0)) -> 0 | CB46: =+IF($K46="Ongoing",BF46,IF(RIGHT($K46,2)=RIGHT(CB$39,2),SUM($AX46:BF46),0)+IF(RIGHT(CB$39,2)>RIGHT($K46,2),BF46,0)) -> 0 | CC46: =+IF($K46="Ongoing",BG46,IF(RIGHT($K46,2)=RIGHT(CC$39,2),SUM($AX46:BG46),0)+IF(RIGHT(CC$39,2)>RIGHT($K46,2),BG46,0)) -> 0 | CE46: =+Q46*KeyAssumptionsPriceControl_FO!AC$15 -> 15.018 | CF46: =+R46*KeyAssumptionsPriceControl_FO!AD$15 -> 14.51691 | CG46: =+S46*KeyAssumptionsPriceControl_FO!AE$15 -> 0 | CH46: =+T46*KeyAssumptionsPriceControl_FO!AF$15 -> 0 | CI46: =+U46*KeyAssumptionsPriceControl_FO!AG$15 -> 0 | CJ46: =+V46*KeyAssumptionsPriceControl_FO!AH$15 -> 0 | CK46: =+W46*KeyAssumptionsPriceControl_FO!AI$15 -> 0 | CL46: =+X46*KeyAssumptionsPriceControl_FO!AJ$15 -> 0 | CM46: =+Y46*KeyAssumptionsPriceControl_FO!AK$15 -> 0 | CN46: =+Z46*KeyAssumptionsPriceControl_FO!AL$15 -> 0 | CP46: 0.08343333333 | CQ46: 0.2475161667 | CR46: 0.3281656667 | CS46: 0.3281656667 | CT46: 0.3281656667 | CU46: 0.3281656667 | CV46: 0.3281656667 | CW46: 0.3281656667 | CX46: 0.3281656667 | CY46: 0.3281656667
C47: Emu Creek Branch Sewerage main (Melbourne-Lancefield Rd) & Sunbury road outfall Sewerage | E47: Sewerage | F47: Growth | G47: Pipelines/network | H47: Top 10 Major Projects | J47: Straight line | K47: 2030-31 | L47: 90 | M47: 90 | Q47: 0.5351089588 | R47: 0.5351089588 | S47: 1.070217918 | T47: 10.70217918 | U47: 21.40435835 | V47: 10.70217918 | W47: 17.34 | X47: 0.91 | Y47: 0 | Z47: 0 | AB47: 0 | AC47: 0 | AD47: 0 | AE47: 0 | AF47: 0 | AG47: 0 | AH47: 0 | AI47: 0 | AJ47: 0 | AK47: 0 | AM47: 0 | AN47: 0 | AO47: 0 | AP47: 0 | AQ47: 0 | AR47: 0 | AS47: 0 | AT47: 0 | AU47: 0 | AV47: 0 | AX47: 0.5351089588 | AY47: 0.5351089588 | AZ47: 1.070217918 | BA47: 10.70217918 | BB47: 21.40435835 | BC47: 10.70217918 | BD47: 17.34 | BE47: 0.91 | BF47: 0 | BG47: 0 | BI47: 0 | BJ47: 0 | BK47: 0 | BL47: 0 | BM47: 0 | BN47: 0 | BO47: 0 | BP47: 0.351106403 | BQ47: 0.702212806 | BR47: 0.702212806 | BT47: =+IF($K47="Ongoing",AX47,IF(RIGHT($K47,2)=RIGHT(BT$39,2),SUM($AX47:AX47),0)+IF(RIGHT(BT$39,2)>RIGHT($K47,2),AX47,0)) -> 0 | BU47: =+IF($K47="Ongoing",AY47,IF(RIGHT($K47,2)=RIGHT(BU$39,2),SUM($AX47:AY47),0)+IF(RIGHT(BU$39,2)>RIGHT($K47,2),AY47,0)) -> 0 | BV47: =+IF($K47="Ongoing",AZ47,IF(RIGHT($K47,2)=RIGHT(BV$39,2),SUM($AX47:AZ47),0)+IF(RIGHT(BV$39,2)>RIGHT($K47,2),AZ47,0)) -> 0 | BW47: =+IF($K47="Ongoing",BA47,IF(RIGHT($K47,2)=RIGHT(BW$39,2),SUM($AX47:BA47),0)+IF(RIGHT(BW$39,2)>RIGHT($K47,2),BA47,0)) -> 0 | BX47: =+IF($K47="Ongoing",BB47,IF(RIGHT($K47,2)=RIGHT(BX$39,2),SUM($AX47:BB47),0)+IF(RIGHT(BX$39,2)>RIGHT($K47,2),BB47,0)) -> 0 | BY47: =+IF($K47="Ongoing",BC47,IF(RIGHT($K47,2)=RIGHT(BY$39,2),SUM($AX47:BC47),0)+IF(RIGHT(BY$39,2)>RIGHT($K47,2),BC47,0)) -> 0 | BZ47: =+IF($K47="Ongoing",BD47,IF(RIGHT($K47,2)=RIGHT(BZ$39,2),SUM($AX47:BD47),0)+IF(RIGHT(BZ$39,2)>RIGHT($K47,2),BD47,0)) -> 0 | CA47: =+IF($K47="Ongoing",BE47,IF(RIGHT($K47,2)=RIGHT(CA$39,2),SUM($AX47:BE47),0)+IF(RIGHT(CA$39,2)>RIGHT($K47,2),BE47,0)) -> 63.19915254 | CB47: =+IF($K47="Ongoing",BF47,IF(RIGHT($K47,2)=RIGHT(CB$39,2),SUM($AX47:BF47),0)+IF(RIGHT(CB$39,2)>RIGHT($K47,2),BF47,0)) -> 0 | CC47: =+IF($K47="Ongoing",BG47,IF(RIGHT($K47,2)=RIGHT(CC$39,2),SUM($AX47:BG47),0)+IF(RIGHT(CC$39,2)>RIGHT($K47,2),BG47,0)) -> 0 | CE47: =+Q47*KeyAssumptionsPriceControl_FO!AC$15 -> 0.5351089588 | CF47: =+R47*KeyAssumptionsPriceControl_FO!AD$15 -> 0.5538377724 | CG47: =+S47*KeyAssumptionsPriceControl_FO!AE$15 -> 1.146444189 | CH47: =+T47*KeyAssumptionsPriceControl_FO!AF$15 -> 11.86569735 | CI47: =+U47*KeyAssumptionsPriceControl_FO!AG$15 -> 24.56199352 | CJ47: =+V47*KeyAssumptionsPriceControl_FO!AH$15 -> 12.71083165 | CK47: =+W47*KeyAssumptionsPriceControl_FO!AI$15 -> 21.31528736 | CL47: =+X47*KeyAssumptionsPriceControl_FO!AJ$15 -> 1.157774129 | CM47: =+Y47*KeyAssumptionsPriceControl_FO!AK$15 -> 0 | CN47: =+Z47*KeyAssumptionsPriceControl_FO!AL$15 -> 0 | CP47: 0.002972827549 | CQ47: 0.009022531612 | CR47: 0.01846854251 | CS47: 0.09075821775 | CT47: 0.2931342782 | CU47: 0.5002055291 | CV47: 0.6892395236 | CW47: 0.8140898652 | CX47: 0.8205219437 | CY47: 0.8205219437
C48: Gisborne RWP - Upgrade | E48: Sewerage | F48: Growth | G48: Treatment | H48: Top 10 Major Projects | J48: Straight line | K48: 2024-25 | L48: 80 | M48: 80 | Q48: 21.2 | R48: 8.2 | S48: 0.3 | T48: 0.1 | U48: 0.1 | V48: 0 | W48: 0 | X48: 0 | Y48: 0 | Z48: 0 | AB48: 0 | AC48: 0 | AD48: 0 | AE48: 0 | AF48: 0 | AG48: 0 | AH48: 0 | AI48: 0 | AJ48: 0 | AK48: 0 | AM48: 0 | AN48: 0 | AO48: 0 | AP48: 0 | AQ48: 0 | AR48: 0 | AS48: 0 | AT48: 0 | AU48: 0 | AV48: 0 | AX48: 21.2 | AY48: 8.2 | AZ48: 0.3 | BA48: 0.1 | BB48: 0.1 | BC48: 0 | BD48: 0 | BE48: 0 | BF48: 0 | BG48: 0 | BI48: 0 | BJ48: 0.18375 | BK48: 0.369375 | BL48: 0.371875 | BM48: 0.373125 | BN48: 0.37375 | BO48: 0.37375 | BP48: 0.37375 | BQ48: 0.37375 | BR48: 0.37375 | BT48: =+IF($K48="Ongoing",AX48,IF(RIGHT($K48,2)=RIGHT(BT$39,2),SUM($AX48:AX48),0)+IF(RIGHT(BT$39,2)>RIGHT($K48,2),AX48,0)) -> 0 | BU48: =+IF($K48="Ongoing",AY48,IF(RIGHT($K48,2)=RIGHT(BU$39,2),SUM($AX48:AY48),0)+IF(RIGHT(BU$39,2)>RIGHT($K48,2),AY48,0)) -> 29.4 | BV48: =+IF($K48="Ongoing",AZ48,IF(RIGHT($K48,2)=RIGHT(BV$39,2),SUM($AX48:AZ48),0)+IF(RIGHT(BV$39,2)>RIGHT($K48,2),AZ48,0)) -> 0.3 | BW48: =+IF($K48="Ongoing",BA48,IF(RIGHT($K48,2)=RIGHT(BW$39,2),SUM($AX48:BA48),0)+IF(RIGHT(BW$39,2)>RIGHT($K48,2),BA48,0)) -> 0.1 | BX48: =+IF($K48="Ongoing",BB48,IF(RIGHT($K48,2)=RIGHT(BX$39,2),SUM($AX48:BB48),0)+IF(RIGHT(BX$39,2)>RIGHT($K48,2),BB48,0)) -> 0.1 | BY48: =+IF($K48="Ongoing",BC48,IF(RIGHT($K48,2)=RIGHT(BY$39,2),SUM($AX48:BC48),0)+IF(RIGHT(BY$39,2)>RIGHT($K48,2),BC48,0)) -> 0 | BZ48: =+IF($K48="Ongoing",BD48,IF(RIGHT($K48,2)=RIGHT(BZ$39,2),SUM($AX48:BD48),0)+IF(RIGHT(BZ$39,2)>RIGHT($K48,2),BD48,0)) -> 0 | CA48: =+IF($K48="Ongoing",BE48,IF(RIGHT($K48,2)=RIGHT(CA$39,2),SUM($AX48:BE48),0)+IF(RIGHT(CA$39,2)>RIGHT($K48,2),BE48,0)) -> 0 | CB48: =+IF($K48="Ongoing",BF48,IF(RIGHT($K48,2)=RIGHT(CB$39,2),SUM($AX48:BF48),0)+IF(RIGHT(CB$39,2)>RIGHT($K48,2),BF48,0)) -> 0 | CC48: =+IF($K48="Ongoing",BG48,IF(RIGHT($K48,2)=RIGHT(CC$39,2),SUM($AX48:BG48),0)+IF(RIGHT(CC$39,2)>RIGHT($K48,2),BG48,0)) -> 0 | CE48: =+Q48*KeyAssumptionsPriceControl_FO!AC$15 -> 21.2 | CF48: =+R48*KeyAssumptionsPriceControl_FO!AD$15 -> 8.487 | CG48: =+S48*KeyAssumptionsPriceControl_FO!AE$15 -> 0.3213675 | CH48: =+T48*KeyAssumptionsPriceControl_FO!AF$15 -> 0.1108717875 | CI48: =+U48*KeyAssumptionsPriceControl_FO!AG$15 -> 0.1147523001 | CJ48: =+V48*KeyAssumptionsPriceControl_FO!AH$15 -> 0 | CK48: =+W48*KeyAssumptionsPriceControl_FO!AI$15 -> 0 | CL48: =+X48*KeyAssumptionsPriceControl_FO!AJ$15 -> 0 | CM48: =+Y48*KeyAssumptionsPriceControl_FO!AK$15 -> 0 | CN48: =+Z48*KeyAssumptionsPriceControl_FO!AL$15 -> 0 | CP48: 0.1325 | CQ48: 0.31804375 | CR48: 0.3730960469 | CS48: 0.3757975424 | CT48: 0.377207693 | CU48: 0.3779248948 | CV48: 0.3779248948 | CW48: 0.3779248948 | CX48: 0.3779248948 | CY48: 0.3779248948
C49: Platypus (B&C) | E49: Water | F49: Improvements / Compliance | G49: Corporate | H49: Top 10 Major Projects | J49: Straight line | K49: 2023-24 | L49: 15 | M49: 15 | Q49: 14.41395034 | R49: 0 | S49: 0 | T49: 0 | U49: 0 | V49: 0 | W49: 0 | X49: 0 | Y49: 0 | Z49: 0 | AB49: 0 | AC49: 0 | AD49: 0 | AE49: 0 | AF49: 0 | AG49: 0 | AH49: 0 | AI49: 0 | AJ49: 0 | AK49: 0 | AM49: 0 | AN49: 0 | AO49: 0 | AP49: 0 | AQ49: 0 | AR49: 0 | AS49: 0 | AT49: 0 | AU49: 0 | AV49: 0 | AX49: 14.41395034 | AY49: 0 | AZ49: 0 | BA49: 0 | BB49: 0 | BC49: 0 | BD49: 0 | BE49: 0 | BF49: 0 | BG49: 0 | BI49: 0.4804650113 | BJ49: 0.9609300226 | BK49: 0.9609300226 | BL49: 0.9609300226 | BM49: 0.9609300226 | BN49: 0.9609300226 | BO49: 0.9609300226 | BP49: 0.9609300226 | BQ49: 0.9609300226 | BR49: 0.9609300226 | BT49: =+IF($K49="Ongoing",AX49,IF(RIGHT($K49,2)=RIGHT(BT$39,2),SUM($AX49:AX49),0)+IF(RIGHT(BT$39,2)>RIGHT($K49,2),AX49,0)) -> 14.41395034 | BU49: =+IF($K49="Ongoing",AY49,IF(RIGHT($K49,2)=RIGHT(BU$39,2),SUM($AX49:AY49),0)+IF(RIGHT(BU$39,2)>RIGHT($K49,2),AY49,0)) -> 0 | BV49: =+IF($K49="Ongoing",AZ49,IF(RIGHT($K49,2)=RIGHT(BV$39,2),SUM($AX49:AZ49),0)+IF(RIGHT(BV$39,2)>RIGHT($K49,2),AZ49,0)) -> 0 | BW49: =+IF($K49="Ongoing",BA49,IF(RIGHT($K49,2)=RIGHT(BW$39,2),SUM($AX49:BA49),0)+IF(RIGHT(BW$39,2)>RIGHT($K49,2),BA49,0)) -> 0 | BX49: =+IF($K49="Ongoing",BB49,IF(RIGHT($K49,2)=RIGHT(BX$39,2),SUM($AX49:BB49),0)+IF(RIGHT(BX$39,2)>RIGHT($K49,2),BB49,0)) -> 0 | BY49: =+IF($K49="Ongoing",BC49,IF(RIGHT($K49,2)=RIGHT(BY$39,2),SUM($AX49:BC49),0)+IF(RIGHT(BY$39,2)>RIGHT($K49,2),BC49,0)) -> 0 | BZ49: =+IF($K49="Ongoing",BD49,IF(RIGHT($K49,2)=RIGHT(BZ$39,2),SUM($AX49:BD49),0)+IF(RIGHT(BZ$39,2)>RIGHT($K49,2),BD49,0)) -> 0 | CA49: =+IF($K49="Ongoing",BE49,IF(RIGHT($K49,2)=RIGHT(CA$39,2),SUM($AX49:BE49),0)+IF(RIGHT(CA$39,2)>RIGHT($K49,2),BE49,0)) -> 0 | CB49: =+IF($K49="Ongoing",BF49,IF(RIGHT($K49,2)=RIGHT(CB$39,2),SUM($AX49:BF49),0)+IF(RIGHT(CB$39,2)>RIGHT($K49,2),BF49,0)) -> 0 | CC49: =+IF($K49="Ongoing",BG49,IF(RIGHT($K49,2)=RIGHT(CC$39,2),SUM($AX49:BG49),0)+IF(RIGHT(CC$39,2)>RIGHT($K49,2),BG49,0)) -> 0 | CE49: =+Q49*KeyAssumptionsPriceControl_FO!AC$15 -> 14.41395034 | CF49: =+R49*KeyAssumptionsPriceControl_FO!AD$15 -> 0 | CG49: =+S49*KeyAssumptionsPriceControl_FO!AE$15 -> 0 | CH49: =+T49*KeyAssumptionsPriceControl_FO!AF$15 -> 0 | CI49: =+U49*KeyAssumptionsPriceControl_FO!AG$15 -> 0 | CJ49: =+V49*KeyAssumptionsPriceControl_FO!AH$15 -> 0 | CK49: =+W49*KeyAssumptionsPriceControl_FO!AI$15 -> 0 | CL49: =+X49*KeyAssumptionsPriceControl_FO!AJ$15 -> 0 | CM49: =+Y49*KeyAssumptionsPriceControl_FO!AK$15 -> 0 | CN49: =+Z49*KeyAssumptionsPriceControl_FO!AL$15 -> 0 | CP49: 0.4804650113 | CQ49: 0.9609300226 | CR49: 0.9609300226 | CS49: 0.9609300226 | CT49: 0.9609300226 | CU49: 0.9609300226 | CV49: 0.9609300226 | CW49: 0.9609300226 | CX49: 0.9609300226 | CY49: 0.9609300226
C50: Platypus (B&C) | E50: Sewerage | F50: Improvements / Compliance | G50: Corporate | H50: Top 10 Major Projects | J50: Straight line | K50: 2023-24 | L50: 15 | M50: 15 | Q50: 14.27501563 | R50: 0 | S50: 0 | T50: 0 | U50: 0 | V50: 0 | W50: 0 | X50: 0 | Y50: 0 | Z50: 0 | AB50: 0 | AC50: 0 | AD50: 0 | AE50: 0 | AF50: 0 | AG50: 0 | AH50: 0 | AI50: 0 | AJ50: 0 | AK50: 0 | AM50: 0 | AN50: 0 | AO50: 0 | AP50: 0 | AQ50: 0 | AR50: 0 | AS50: 0 | AT50: 0 | AU50: 0 | AV50: 0 | AX50: 14.27501563 | AY50: 0 | AZ50: 0 | BA50: 0 | BB50: 0 | BC50: 0 | BD50: 0 | BE50: 0 | BF50: 0 | BG50: 0 | BI50: 0.4758338544 | BJ50: 0.9516677088 | BK50: 0.9516677088 | BL50: 0.9516677088 | BM50: 0.9516677088 | BN50: 0.9516677088 | BO50: 0.9516677088 | BP50: 0.9516677088 | BQ50: 0.9516677088 | BR50: 0.9516677088 | BT50: =+IF($K50="Ongoing",AX50,IF(RIGHT($K50,2)=RIGHT(BT$39,2),SUM($AX50:AX50),0)+IF(RIGHT(BT$39,2)>RIGHT($K50,2),AX50,0)) -> 14.27501563 | BU50: =+IF($K50="Ongoing",AY50,IF(RIGHT($K50,2)=RIGHT(BU$39,2),SUM($AX50:AY50),0)+IF(RIGHT(BU$39,2)>RIGHT($K50,2),AY50,0)) -> 0 | BV50: =+IF($K50="Ongoing",AZ50,IF(RIGHT($K50,2)=RIGHT(BV$39,2),SUM($AX50:AZ50),0)+IF(RIGHT(BV$39,2)>RIGHT($K50,2),AZ50,0)) -> 0 | BW50: =+IF($K50="Ongoing",BA50,IF(RIGHT($K50,2)=RIGHT(BW$39,2),SUM($AX50:BA50),0)+IF(RIGHT(BW$39,2)>RIGHT($K50,2),BA50,0)) -> 0 | BX50: =+IF($K50="Ongoing",BB50,IF(RIGHT($K50,2)=RIGHT(BX$39,2),SUM($AX50:BB50),0)+IF(RIGHT(BX$39,2)>RIGHT($K50,2),BB50,0)) -> 0 | BY50: =+IF($K50="Ongoing",BC50,IF(RIGHT($K50,2)=RIGHT(BY$39,2),SUM($AX50:BC50),0)+IF(RIGHT(BY$39,2)>RIGHT($K50,2),BC50,0)) -> 0 | BZ50: =+IF($K50="Ongoing",BD50,IF(RIGHT($K50,2)=RIGHT(BZ$39,2),SUM($AX50:BD50),0)+IF(RIGHT(BZ$39,2)>RIGHT($K50,2),BD50,0)) -> 0 | CA50: =+IF($K50="Ongoing",BE50,IF(RIGHT($K50,2)=RIGHT(CA$39,2),SUM($AX50:BE50),0)+IF(RIGHT(CA$39,2)>RIGHT($K50,2),BE50,0)) -> 0 | CB50: =+IF($K50="Ongoing",BF50,IF(RIGHT($K50,2)=RIGHT(CB$39,2),SUM($AX50:BF50),0)+IF(RIGHT(CB$39,2)>RIGHT($K50,2),BF50,0)) -> 0 | CC50: =+IF($K50="Ongoing",BG50,IF(RIGHT($K50,2)=RIGHT(CC$39,2),SUM($AX50:BG50),0)+IF(RIGHT(CC$39,2)>RIGHT($K50,2),BG50,0)) -> 0 | CE50: =+Q50*KeyAssumptionsPriceControl_FO!AC$15 -> 14.27501563 | CF50: =+R50*KeyAssumptionsPriceControl_FO!AD$15 -> 0 | CG50: =+S50*KeyAssumptionsPriceControl_FO!AE$15 -> 0 | CH50: =+T50*KeyAssumptionsPriceControl_FO!AF$15 -> 0 | CI50: =+U50*KeyAssumptionsPriceControl_FO!AG$15 -> 0 | CJ50: =+V50*KeyAssumptionsPriceControl_FO!AH$15 -> 0 | CK50: =+W50*KeyAssumptionsPriceControl_FO!AI$15 -> 0 | CL50: =+X50*KeyAssumptionsPriceControl_FO!AJ$15 -> 0 | CM50: =+Y50*KeyAssumptionsPriceControl_FO!AK$15 -> 0 | CN50: =+Z50*KeyAssumptionsPriceControl_FO!AL$15 -> 0 | CP50: 0.4758338544 | CQ50: 0.9516677088 | CR50: 0.9516677088 | CS50: 0.9516677088 | CT50: 0.9516677088 | CU50: 0.9516677088 | CV50: 0.9516677088 | CW50: 0.9516677088 | CX50: 0.9516677088 | CY50: 0.9516677088
C51: Platypus (B&C) | E51: Recycled Water | F51: Improvements / Compliance | G51: Corporate | H51: Top 10 Major Projects | J51: Straight line | K51: 2023-24 | L51: 15 | M51: 15 | Q51: 8.781034028 | R51: 0 | S51: 0 | T51: 0 | U51: 0 | V51: 0 | W51: 0 | X51: 0 | Y51: 0 | Z51: 0 | AB51: 0 | AC51: 0 | AD51: 0 | AE51: 0 | AF51: 0 | AG51: 0 | AH51: 0 | AI51: 0 | AJ51: 0 | AK51: 0 | AM51: 0 | AN51: 0 | AO51: 0 | AP51: 0 | AQ51: 0 | AR51: 0 | AS51: 0 | AT51: 0 | AU51: 0 | AV51: 0 | AX51: 8.781034028 | AY51: 0 | AZ51: 0 | BA51: 0 | BB51: 0 | BC51: 0 | BD51: 0 | BE51: 0 | BF51: 0 | BG51: 0 | BI51: 0.2927011343 | BJ51: 0.5854022685 | BK51: 0.5854022685 | BL51: 0.5854022685 | BM51: 0.5854022685 | BN51: 0.5854022685 | BO51: 0.5854022685 | BP51: 0.5854022685 | BQ51: 0.5854022685 | BR51: 0.5854022685 | BT51: =+IF($K51="Ongoing",AX51,IF(RIGHT($K51,2)=RIGHT(BT$39,2),SUM($AX51:AX51),0)+IF(RIGHT(BT$39,2)>RIGHT($K51,2),AX51,0)) -> 8.781034028 | BU51: =+IF($K51="Ongoing",AY51,IF(RIGHT($K51,2)=RIGHT(BU$39,2),SUM($AX51:AY51),0)+IF(RIGHT(BU$39,2)>RIGHT($K51,2),AY51,0)) -> 0 | BV51: =+IF($K51="Ongoing",AZ51,IF(RIGHT($K51,2)=RIGHT(BV$39,2),SUM($AX51:AZ51),0)+IF(RIGHT(BV$39,2)>RIGHT($K51,2),AZ51,0)) -> 0 | BW51: =+IF($K51="Ongoing",BA51,IF(RIGHT($K51,2)=RIGHT(BW$39,2),SUM($AX51:BA51),0)+IF(RIGHT(BW$39,2)>RIGHT($K51,2),BA51,0)) -> 0 | BX51: =+IF($K51="Ongoing",BB51,IF(RIGHT($K51,2)=RIGHT(BX$39,2),SUM($AX51:BB51),0)+IF(RIGHT(BX$39,2)>RIGHT($K51,2),BB51,0)) -> 0 | BY51: =+IF($K51="Ongoing",BC51,IF(RIGHT($K51,2)=RIGHT(BY$39,2),SUM($AX51:BC51),0)+IF(RIGHT(BY$39,2)>RIGHT($K51,2),BC51,0)) -> 0 | BZ51: =+IF($K51="Ongoing",BD51,IF(RIGHT($K51,2)=RIGHT(BZ$39,2),SUM($AX51:BD51),0)+IF(RIGHT(BZ$39,2)>RIGHT($K51,2),BD51,0)) -> 0 | CA51: =+IF($K51="Ongoing",BE51,IF(RIGHT($K51,2)=RIGHT(CA$39,2),SUM($AX51:BE51),0)+IF(RIGHT(CA$39,2)>RIGHT($K51,2),BE51,0)) -> 0 | CB51: =+IF($K51="Ongoing",BF51,IF(RIGHT($K51,2)=RIGHT(CB$39,2),SUM($AX51:BF51),0)+IF(RIGHT(CB$39,2)>RIGHT($K51,2),BF51,0)) -> 0 | CC51: =+IF($K51="Ongoing",BG51,IF(RIGHT($K51,2)=RIGHT(CC$39,2),SUM($AX51:BG51),0)+IF(RIGHT(CC$39,2)>RIGHT($K51,2),BG51,0)) -> 0 | CE51: =+Q51*KeyAssumptionsPriceControl_FO!AC$15 -> 8.781034028 | CF51: =+R51*KeyAssumptionsPriceControl_FO!AD$15 -> 0 | CG51: =+S51*KeyAssumptionsPriceControl_FO!AE$15 -> 0 | CH51: =+T51*KeyAssumptionsPriceControl_FO!AF$15 -> 0 | CI51: =+U51*KeyAssumptionsPriceControl_FO!AG$15 -> 0 | CJ51: =+V51*KeyAssumptionsPriceControl_FO!AH$15 -> 0 | CK51: =+W51*KeyAssumptionsPriceControl_FO!AI$15 -> 0 | CL51: =+X51*KeyAssumptionsPriceControl_FO!AJ$15 -> 0 | CM51: =+Y51*KeyAssumptionsPriceControl_FO!AK$15 -> 0 | CN51: =+Z51*KeyAssumptionsPriceControl_FO!AL$15 -> 0 | CP51: 0.2927011343 | CQ51: 0.5854022685 | CR51: 0.5854022685 | CS51: 0.5854022685 | CT51: 0.5854022685 | CU51: 0.5854022685 | CV51: 0.5854022685 | CW51: 0.5854022685 | CX51: 0.5854022685 | CY51: 0.5854022685
C53: Romsey WFP - New Filtration Plant | E53: Water | F53: Growth | G53: Treatment | H53: Top 10 Major Projects | J53: Straight line | K53: 2024-25 | L53: 80 | M53: 80 | Q53: 1.070217918 | R53: 5.351089588 | S53: 10.70217918 | T53: 10.70217918 | U53: 0 | V53: 0 | W53: 0 | X53: 0 | Y53: 0 | Z53: 0 | AB53: 0 | AC53: 0 | AD53: 0 | AE53: 0 | AF53: 0 | AG53: 0 | AH53: 0 | AI53: 0 | AJ53: 0 | AK53: 0 | AM53: 0 | AN53: 0 | AO53: 0 | AP53: 0 | AQ53: 0 | AR53: 0 | AS53: 0 | AT53: 0 | AU53: 0 | AV53: 0 | AX53: =+Q53-AB53-AM53 -> 1.070217918 | AY53: =+R53-AC53-AN53 -> 5.351089588 | AZ53: =+S53-AD53-AO53 -> 10.70217918 | BA53: =+T53-AE53-AP53 -> 10.70217918 | BB53: =+U53-AF53-AQ53 -> 0 | BC53: =+V53-AG53-AR53 -> 0 | BD53: =+W53-AH53-AS53 -> 0 | BE53: =+X53-AI53-AT53 -> 0 | BF53: =+Y53-AJ53-AU53 -> 0 | BG53: =+Z53-AK53-AV53 -> 0 | BI53: =IF($L53=0,0, IF($L53<=0.5,BT53, IF($J53="straight line", IF((LEFT(BI$39,4)*1)-INT($L53)<LEFT($BI$39,4)*1,0,((OFFSET(BT53,0,-INT($L53+0.5),1,1))/$L53)*(IF($L53-INT($L53)>0.5,$L53-0.5-INT($L53),IF($L53-INT($L53)<=0.5,$L53-0.5-INT($L53)+1,0)))) +BT53/$L53*0.5, IF($J53="Declining Balance",-$BI$38,0)))) -> 0 | BJ53: =IF($L53=0,0, IF($L53<=0.5,BU53, IF(AND($J53="straight line",$L53<1.51),(BT53-((BT53/$L53)*0.5))+BU53/$L53*0.5, IF($J53="straight line", IF((LEFT(BJ$39,4)*1)-INT($L53)<LEFT($BI$39,4)*1,0,((OFFSET(BU53,0,-INT($L53+0.5),1,1))/$L53)*(IF($L53-INT($L53)>0.5,$L53-0.5-INT($L53),IF($L53-INT($L53)<=0.5,$L53-0.5-INT($L53)+1,0)))) +BU53/$L53*0.5 +SUM(OFFSET(BU53,0,MAX(-INT($L53+(0.5-(10^-12))),-BJ$40)+1,1,MIN(INT($L53+(0.5-(10^-12))),BJ$40)-1))*1/$L53, IF($J53="Declining Balance",-$BI$38,0))))) -> 0.04013317191 | BK53: =IF($L53=0,0, IF($L53<=0.5,BV53, IF(AND($J53="straight line",$L53<1.51),(BU53-((BU53/$L53)*0.5))+BV53/$L53*0.5, IF($J53="straight line", IF((LEFT(BK$39,4)*1)-INT($L53)<LEFT($BI$39,4)*1,0,((OFFSET(BV53,0,-INT($L53+0.5),1,1))/$L53)*(IF($L53-INT($L53)>0.5,$L53-0.5-INT($L53),IF($L53-INT($L53)<=0.5,$L53-0.5-INT($L53)+1,0)))) +BV53/$L53*0.5 +SUM(OFFSET(BV53,0,MAX(-INT($L53+(0.5-(10^-12))),-BK$40)+1,1,MIN(INT($L53+(0.5-(10^-12))),BK$40)-1))*1/$L53, IF($J53="Declining Balance",-$BI$38,0))))) -> 0.1471549637 | BL53: =IF($L53=0,0, IF($L53<=0.5,BW53, IF(AND($J53="straight line",$L53<1.51),(BV53-((BV53/$L53)*0.5))+BW53/$L53*0.5, IF($J53="straight line", IF((LEFT(BL$39,4)*1)-INT($L53)<LEFT($BI$39,4)*1,0,((OFFSET(BW53,0,-INT($L53+0.5),1,1))/$L53)*(IF($L53-INT($L53)>0.5,$L53-0.5-INT($L53),IF($L53-INT($L53)<=0.5,$L53-0.5-INT($L53)+1,0)))) +BW53/$L53*0.5 +SUM(OFFSET(BW53,0,MAX(-INT($L53+(0.5-(10^-12))),-BL$40)+1,1,MIN(INT($L53+(0.5-(10^-12))),BL$40)-1))*1/$L53, IF($J53="Declining Balance",-$BI$38,0))))) -> 0.2809322034 | BM53: =IF($L53=0,0, IF($L53<=0.5,BX53, IF(AND($J53="straight line",$L53<1.51),(BW53-((BW53/$L53)*0.5))+BX53/$L53*0.5, IF($J53="straight line", IF((LEFT(BM$39,4)*1)-INT($L53)<LEFT($BI$39,4)*1,0,((OFFSET(BX53,0,-INT($L53+0.5),1,1))/$L53)*(IF($L53-INT($L53)>0.5,$L53-0.5-INT($L53),IF($L53-INT($L53)<=0.5,$L53-0.5-INT($L53)+1,0)))) +BX53/$L53*0.5 +SUM(OFFSET(BX53,0,MAX(-INT($L53+(0.5-(10^-12))),-BM$40)+1,1,MIN(INT($L53+(0.5-(10^-12))),BM$40)-1))*1/$L53, IF($J53="Declining Balance",-$BI$38,0))))) -> 0.3478208232 | BN53: =IF($L53=0,0, IF($L53<=0.5,BY53, IF(AND($J53="straight line",$L53<1.51),(BX53-((BX53/$L53)*0.5))+BY53/$L53*0.5, IF($J53="straight line", IF((LEFT(BN$39,4)*1)-INT($L53)<LEFT($BI$39,4)*1,0,((OFFSET(BY53,0,-INT($L53+0.5),1,1))/$L53)*(IF($L53-INT($L53)>0.5,$L53-0.5-INT($L53),IF($L53-INT($L53)<=0.5,$L53-0.5-INT($L53)+1,0)))) +BY53/$L53*0.5 +SUM(OFFSET(BY53,0,MAX(-INT($L53+(0.5-(10^-12))),-BN$40)+1,1,MIN(INT($L53+(0.5-(10^-12))),BN$40)-1))*1/$L53, IF($J53="Declining Balance",-$BI$38,0))))) -> 0.3478208232 | BO53: =IF($L53=0,0, IF($L53<=0.5,BZ53, IF(AND($J53="straight line",$L53<1.51),(BY53-((BY53/$L53)*0.5))+BZ53/$L53*0.5, IF($J53="straight line", IF((LEFT(BO$39,4)*1)-INT($L53)<LEFT($BI$39,4)*1,0,((OFFSET(BZ53,0,-INT($L53+0.5),1,1))/$L53)*(IF($L53-INT($L53)>0.5,$L53-0.5-INT($L53),IF($L53-INT($L53)<=0.5,$L53-0.5-INT($L53)+1,0)))) +BZ53/$L53*0.5 +SUM(OFFSET(BZ53,0,MAX(-INT($L53+(0.5-(10^-12))),-BO$40)+1,1,MIN(INT($L53+(0.5-(10^-12))),BO$40)-1))*1/$L53, IF($J53="Declining Balance",-$BI$38,0))))) -> 0.3478208232 | BP53: =IF($L53=0,0, IF($L53<=0.5,CA53, IF(AND($J53="straight line",$L53<1.51),(BZ53-((BZ53/$L53)*0.5))+CA53/$L53*0.5, IF($J53="straight line", IF((LEFT(BP$39,4)*1)-INT($L53)<LEFT($BI$39,4)*1,0,((OFFSET(CA53,0,-INT($L53+0.5),1,1))/$L53)*(IF($L53-INT($L53)>0.5,$L53-0.5-INT($L53),IF($L53-INT($L53)<=0.5,$L53-0.5-INT($L53)+1,0)))) +CA53/$L53*0.5 +SUM(OFFSET(CA53,0,MAX(-INT($L53+(0.5-(10^-12))),-BP$40)+1,1,MIN(INT($L53+(0.5-(10^-12))),BP$40)-1))*1/$L53, IF($J53="Declining Balance",-$BI$38,0))))) -> 0.3478208232 | BQ53: =IF($L53=0,0, IF($L53<=0.5,CB53, IF(AND($J53="straight line",$L53<1.51),(CA53-((CA53/$L53)*0.5))+CB53/$L53*0.5, IF($J53="straight line", IF((LEFT(BQ$39,4)*1)-INT($L53)<LEFT($BI$39,4)*1,0,((OFFSET(CB53,0,-INT($L53+0.5),1,1))/$L53)*(IF($L53-INT($L53)>0.5,$L53-0.5-INT($L53),IF($L53-INT($L53)<=0.5,$L53-0.5-INT($L53)+1,0)))) +CB53/$L53*0.5 +SUM(OFFSET(CB53,0,MAX(-INT($L53+(0.5-(10^-12))),-BQ$40)+1,1,MIN(INT($L53+(0.5-(10^-12))),BQ$40)-1))*1/$L53, IF($J53="Declining Balance",-$BI$38,0))))) -> 0.3478208232 | BR53: =IF($L53=0,0, IF($L53<=0.5,CC53, IF(AND($J53="straight line",$L53<1.51),(CB53-((CB53/$L53)*0.5))+CC53/$L53*0.5, IF($J53="straight line", IF((LEFT(BR$39,4)*1)-INT($L53)<LEFT($BI$39,4)*1,0,((OFFSET(CC53,0,-INT($L53+0.5),1,1))/$L53)*(IF($L53-INT($L53)>0.5,$L53-0.5-INT($L53),IF($L53-INT($L53)<=0.5,$L53-0.5-INT($L53)+1,0)))) +CC53/$L53*0.5 +SUM(OFFSET(CC53,0,MAX(-INT($L53+(0.5-(10^-12))),-BR$40)+1,1,MIN(INT($L53+(0.5-(10^-12))),BR$40)-1))*1/$L53, IF($J53="Declining Balance",-$BI$38,0))))) -> 0.3478208232 | BT53: =+IF($K53="Ongoing",AX53,IF(RIGHT($K53,2)=RIGHT(BT$39,2),SUM($AX53:AX53),0)+IF(RIGHT(BT$39,2)>RIGHT($K53,2),AX53,0)) -> 0 | BU53: =+IF($K53="Ongoing",AY53,IF(RIGHT($K53,2)=RIGHT(BU$39,2),SUM($AX53:AY53),0)+IF(RIGHT(BU$39,2)>RIGHT($K53,2),AY53,0)) -> 6.421307506 | BV53: =+IF($K53="Ongoing",AZ53,IF(RIGHT($K53,2)=RIGHT(BV$39,2),SUM($AX53:AZ53),0)+IF(RIGHT(BV$39,2)>RIGHT($K53,2),AZ53,0)) -> 10.70217918 | BW53: =+IF($K53="Ongoing",BA53,IF(RIGHT($K53,2)=RIGHT(BW$39,2),SUM($AX53:BA53),0)+IF(RIGHT(BW$39,2)>RIGHT($K53,2),BA53,0)) -> 10.70217918 | BX53: =+IF($K53="Ongoing",BB53,IF(RIGHT($K53,2)=RIGHT(BX$39,2),SUM($AX53:BB53),0)+IF(RIGHT(BX$39,2)>RIGHT($K53,2),BB53,0)) -> 0 | BY53: =+IF($K53="Ongoing",BC53,IF(RIGHT($K53,2)=RIGHT(BY$39,2),SUM($AX53:BC53),0)+IF(RIGHT(BY$39,2)>RIGHT($K53,2),BC53,0)) -> 0 | BZ53: =+IF($K53="Ongoing",BD53,IF(RIGHT($K53,2)=RIGHT(BZ$39,2),SUM($AX53:BD53),0)+IF(RIGHT(BZ$39,2)>RIGHT($K53,2),BD53,0)) -> 0 | CA53: =+IF($K53="Ongoing",BE53,IF(RIGHT($K53,2)=RIGHT(CA$39,2),SUM($AX53:BE53),0)+IF(RIGHT(CA$39,2)>RIGHT($K53,2),BE53,0)) -> 0 | CB53: =+IF($K53="Ongoing",BF53,IF(RIGHT($K53,2)=RIGHT(CB$39,2),SUM($AX53:BF53),0)+IF(RIGHT(CB$39,2)>RIGHT($K53,2),BF53,0)) -> 0 | CC53: =+IF($K53="Ongoing",BG53,IF(RIGHT($K53,2)=RIGHT(CC$39,2),SUM($AX53:BG53),0)+IF(RIGHT(CC$39,2)>RIGHT($K53,2),BG53,0)) -> 0 | CE53: =+Q53*KeyAssumptionsPriceControl_FO!AC$15 -> 1.070217918 | CF53: =+R53*KeyAssumptionsPriceControl_FO!AD$15 -> 5.538377724 | CG53: =+S53*KeyAssumptionsPriceControl_FO!AE$15 -> 11.46444189 | CH53: =+T53*KeyAssumptionsPriceControl_FO!AF$15 -> 11.86569735 | CI53: =+U53*KeyAssumptionsPriceControl_FO!AG$15 -> 0 | CJ53: =+V53*KeyAssumptionsPriceControl_FO!AH$15 -> 0 | CK53: =+W53*KeyAssumptionsPriceControl_FO!AI$15 -> 0 | CL53: =+X53*KeyAssumptionsPriceControl_FO!AJ$15 -> 0 | CM53: =+Y53*KeyAssumptionsPriceControl_FO!AK$15 -> 0 | CN53: =+Z53*KeyAssumptionsPriceControl_FO!AL$15 -> 0 | CP53: =IF($M53=0,0, IF($M53<=0.5,CE53, IF($J53="straight line", IF((LEFT(CP$39,4)*1)-INT($M53)<LEFT($CP$39,4)*1,0,((OFFSET(CE53,0,-INT($M53+0.5),1,1))/$M53)*(IF($M53-INT($M53)>0.5,$M53-0.5-INT($M53),IF($M53-INT($M53)<=0.5,$M53-0.5-INT($M53)+1,0)))) +CE53/$M53*0.5, IF($J53="Declining Balance",-$CP$38,0)))) -> 0.006688861985 | CQ53: =IF($M53=0,0, IF($M53<=0.5,CF53, IF(AND($J53="straight line",$M53<1.51),(CE53-((CE53/$M53)*0.5))+CF53/$M53*0.5, IF($J53="straight line", IF((LEFT(CQ$39,4)*1)-INT($M53)<LEFT($CP$39,4)*1,0,((OFFSET(CF53,0,-INT($M53+0.5),1,1))/$M53)*(IF($M53-INT($M53)>0.5,$M53-0.5-INT($M53),IF($M53-INT($M53)<=0.5,$M53-0.5-INT($M53)+1,0)))) +CF53/$M53*0.5 +SUM(OFFSET(CF53,0,MAX(-INT($M53+(0.5-(10^-12))),-CQ$40)+1,1,MIN(INT($M53+(0.5-(10^-12))),CQ$40)-1))*1/$M53, IF($J53="Declining Balance",-$CP$38,0))))) -> 0.04799258475 | CR53: =IF($M53=0,0, IF($M53<=0.5,CG53, IF(AND($J53="straight line",$M53<1.51),(CF53-((CF53/$M53)*0.5))+CG53/$M53*0.5, IF($J53="straight line", IF((LEFT(CR$39,4)*1)-INT($M53)<LEFT($CP$39,4)*1,0,((OFFSET(CG53,0,-INT($M53+0.5),1,1))/$M53)*(IF($M53-INT($M53)>0.5,$M53-0.5-INT($M53),IF($M53-INT($M53)<=0.5,$M53-0.5-INT($M53)+1,0)))) +CG53/$M53*0.5 +SUM(OFFSET(CG53,0,MAX(-INT($M53+(0.5-(10^-12))),-CR$40)+1,1,MIN(INT($M53+(0.5-(10^-12))),CR$40)-1))*1/$M53, IF($J53="Declining Balance",-$CP$38,0))))) -> 0.1542602073 | CS53: =IF($M53=0,0, IF($M53<=0.5,CH53, IF(AND($J53="straight line",$M53<1.51),(CG53-((CG53/$M53)*0.5))+CH53/$M53*0.5, IF($J53="straight line", IF((LEFT(CS$39,4)*1)-INT($M53)<LEFT($CP$39,4)*1,0,((OFFSET(CH53,0,-INT($M53+0.5),1,1))/$M53)*(IF($M53-INT($M53)>0.5,$M53-0.5-INT($M53),IF($M53-INT($M53)<=0.5,$M53-0.5-INT($M53)+1,0)))) +CH53/$M53*0.5 +SUM(OFFSET(CH53,0,MAX(-INT($M53+(0.5-(10^-12))),-CS$40)+1,1,MIN(INT($M53+(0.5-(10^-12))),CS$40)-1))*1/$M53, IF($J53="Declining Balance",-$CP$38,0))))) -> 0.3000735776 | CT53: =IF($M53=0,0, IF($M53<=0.5,CI53, IF(AND($J53="straight line",$M53<1.51),(CH53-((CH53/$M53)*0.5))+CI53/$M53*0.5, IF($J53="straight line", IF((LEFT(CT$39,4)*1)-INT($M53)<LEFT($CP$39,4)*1,0,((OFFSET(CI53,0,-INT($M53+0.5),1,1))/$M53)*(IF($M53-INT($M53)>0.5,$M53-0.5-INT($M53),IF($M53-INT($M53)<=0.5,$M53-0.5-INT($M53)+1,0)))) +CI53/$M53*0.5 +SUM(OFFSET(CI53,0,MAX(-INT($M53+(0.5-(10^-12))),-CT$40)+1,1,MIN(INT($M53+(0.5-(10^-12))),CT$40)-1))*1/$M53, IF($J53="Declining Balance",-$CP$38,0))))) -> 0.3742341861 | CU53: =IF($M53=0,0, IF($M53<=0.5,CJ53, IF(AND($J53="straight line",$M53<1.51),(CI53-((CI53/$M53)*0.5))+CJ53/$M53*0.5, IF($J53="straight line", IF((LEFT(CU$39,4)*1)-INT($M53)<LEFT($CP$39,4)*1,0,((OFFSET(CJ53,0,-INT($M53+0.5),1,1))/$M53)*(IF($M53-INT($M53)>0.5,$M53-0.5-INT($M53),IF($M53-INT($M53)<=0.5,$M53-0.5-INT($M53)+1,0)))) +CJ53/$M53*0.5 +SUM(OFFSET(CJ53,0,MAX(-INT($M53+(0.5-(10^-12))),-CU$40)+1,1,MIN(INT($M53+(0.5-(10^-12))),CU$40)-1))*1/$M53, IF($J53="Declining Balance",-$CP$38,0))))) -> 0.3742341861 | CV53: =IF($M53=0,0, IF($M53<=0.5,CK53, IF(AND($J53="straight line",$M53<1.51),(CJ53-((CJ53/$M53)*0.5))+CK53/$M53*0.5, IF($J53="straight line", IF((LEFT(CV$39,4)*1)-INT($M53)<LEFT($CP$39,4)*1,0,((OFFSET(CK53,0,-INT($M53+0.5),1,1))/$M53)*(IF($M53-INT($M53)>0.5,$M53-0.5-INT($M53),IF($M53-INT($M53)<=0.5,$M53-0.5-INT($M53)+1,0)))) +CK53/$M53*0.5 +SUM(OFFSET(CK53,0,MAX(-INT($M53+(0.5-(10^-12))),-CV$40)+1,1,MIN(INT($M53+(0.5-(10^-12))),CV$40)-1))*1/$M53, IF($J53="Declining Balance",-$CP$38,0))))) -> 0.3742341861 | CW53: =IF($M53=0,0, IF($M53<=0.5,CL53, IF(AND($J53="straight line",$M53<1.51),(CK53-((CK53/$M53)*0.5))+CL53/$M53*0.5, IF($J53="straight line", IF((LEFT(CW$39,4)*1)-INT($M53)<LEFT($CP$39,4)*1,0,((OFFSET(CL53,0,-INT($M53+0.5),1,1))/$M53)*(IF($M53-INT($M53)>0.5,$M53-0.5-INT($M53),IF($M53-INT($M53)<=0.5,$M53-0.5-INT($M53)+1,0)))) +CL53/$M53*0.5 +SUM(OFFSET(CL53,0,MAX(-INT($M53+(0.5-(10^-12))),-CW$40)+1,1,MIN(INT($M53+(0.5-(10^-12))),CW$40)-1))*1/$M53, IF($J53="Declining Balance",-$CP$38,0))))) -> 0.3742341861 | CX53: =IF($M53=0,0, IF($M53<=0.5,CM53, IF(AND($J53="straight line",$M53<1.51),(CL53-((CL53/$M53)*0.5))+CM53/$M53*0.5, IF($J53="straight line", IF((LEFT(CX$39,4)*1)-INT($M53)<LEFT($CP$39,4)*1,0,((OFFSET(CM53,0,-INT($M53+0.5),1,1))/$M53)*(IF($M53-INT($M53)>0.5,$M53-0.5-INT($M53),IF($M53-INT($M53)<=0.5,$M53-0.5-INT($M53)+1,0)))) +CM53/$M53*0.5 +SUM(OFFSET(CM53,0,MAX(-INT($M53+(0.5-(10^-12))),-CX$40)+1,1,MIN(INT($M53+(0.5-(10^-12))),CX$40)-1))*1/$M53, IF($J53="Declining Balance",-$CP$38,0))))) -> 0.3742341861 | CY53: =IF($M53=0,0, IF($M53<=0.5,CN53, IF(AND($J53="straight line",$M53<1.51),(CM53-((CM53/$M53)*0.5))+CN53/$M53*0.5, IF($J53="straight line", IF((LEFT(CY$39,4)*1)-INT($M53)<LEFT($CP$39,4)*1,0,((OFFSET(CN53,0,-INT($M53+0.5),1,1))/$M53)*(IF($M53-INT($M53)>0.5,$M53-0.5-INT($M53),IF($M53-INT($M53)<=0.5,$M53-0.5-INT($M53)+1,0)))) +CN53/$M53*0.5 +SUM(OFFSET(CN53,0,MAX(-INT($M53+(0.5-(10^-12))),-CY$40)+1,1,MIN(INT($M53+(0.5-(10^-12))),CY$40)-1))*1/$M53, IF($J53="Declining Balance",-$CP$38,0))))) -> 0.3742341861
C54: Romsey RWP - Upgrade Stage 1 | E54: Sewerage | F54: Growth | G54: Treatment | H54: Top 10 Major Projects | J54: Straight line | K54: 2026-27 | L54: 80 | M54: 80 | Q54: 0.2675544794 | R54: 6.011529107 | S54: 12.31431906 | T54: 5.226004659 | U54: 0.05351089588 | V54: 0 | W54: 0 | X54: 0 | Y54: 0 | Z54: 0 | AB54: 0 | AC54: 0 | AD54: 0 | AE54: 0 | AF54: 0 | AG54: 0 | AH54: 0 | AI54: 0 | AJ54: 0 | AK54: 0 | AM54: 0 | AN54: 0 | AO54: 0 | AP54: 0 | AQ54: 0 | AR54: 0 | AS54: 0 | AT54: 0 | AU54: 0 | AV54: 0 | AX54: 0.2675544794 | AY54: 6.011529107 | AZ54: 12.31431906 | BA54: 5.226004659 | BB54: 0.05351089588 | BC54: 0 | BD54: 0 | BE54: 0 | BF54: 0 | BG54: 0 | BI54: 0 | BJ54: 0 | BK54: 0 | BL54: 0.1488712957 | BM54: 0.2980770344 | BN54: 0.2984114775 | BO54: 0.2984114775 | BP54: 0.2984114775 | BQ54: 0.2984114775 | BR54: 0.2984114775 | BT54: =+IF($K54="Ongoing",AX54,IF(RIGHT($K54,2)=RIGHT(BT$39,2),SUM($AX54:AX54),0)+IF(RIGHT(BT$39,2)>RIGHT($K54,2),AX54,0)) -> 0 | BU54: =+IF($K54="Ongoing",AY54,IF(RIGHT($K54,2)=RIGHT(BU$39,2),SUM($AX54:AY54),0)+IF(RIGHT(BU$39,2)>RIGHT($K54,2),AY54,0)) -> 0 | BV54: =+IF($K54="Ongoing",AZ54,IF(RIGHT($K54,2)=RIGHT(BV$39,2),SUM($AX54:AZ54),0)+IF(RIGHT(BV$39,2)>RIGHT($K54,2),AZ54,0)) -> 0 | BW54: =+IF($K54="Ongoing",BA54,IF(RIGHT($K54,2)=RIGHT(BW$39,2),SUM($AX54:BA54),0)+IF(RIGHT(BW$39,2)>RIGHT($K54,2),BA54,0)) -> 23.81940731 | BX54: =+IF($K54="Ongoing",BB54,IF(RIGHT($K54,2)=RIGHT(BX$39,2),SUM($AX54:BB54),0)+IF(RIGHT(BX$39,2)>RIGHT($K54,2),BB54,0)) -> 0.05351089588 | BY54: =+IF($K54="Ongoing",BC54,IF(RIGHT($K54,2)=RIGHT(BY$39,2),SUM($AX54:BC54),0)+IF(RIGHT(BY$39,2)>RIGHT($K54,2),BC54,0)) -> 0 | BZ54: =+IF($K54="Ongoing",BD54,IF(RIGHT($K54,2)=RIGHT(BZ$39,2),SUM($AX54:BD54),0)+IF(RIGHT(BZ$39,2)>RIGHT($K54,2),BD54,0)) -> 0 | CA54: =+IF($K54="Ongoing",BE54,IF(RIGHT($K54,2)=RIGHT(CA$39,2),SUM($AX54:BE54),0)+IF(RIGHT(CA$39,2)>RIGHT($K54,2),BE54,0)) -> 0 | CB54: =+IF($K54="Ongoing",BF54,IF(RIGHT($K54,2)=RIGHT(CB$39,2),SUM($AX54:BF54),0)+IF(RIGHT(CB$39,2)>RIGHT($K54,2),BF54,0)) -> 0 | CC54: =+IF($K54="Ongoing",BG54,IF(RIGHT($K54,2)=RIGHT(CC$39,2),SUM($AX54:BG54),0)+IF(RIGHT(CC$39,2)>RIGHT($K54,2),BG54,0)) -> 0 | CE54: =+Q54*KeyAssumptionsPriceControl_FO!AC$15 -> 0.2675544794 | CF54: =+R54*KeyAssumptionsPriceControl_FO!AD$15 -> 6.221932626 | CG54: =+S54*KeyAssumptionsPriceControl_FO!AE$15 -> 13.19140644 | CH54: =+T54*KeyAssumptionsPriceControl_FO!AF$15 -> 5.79416478 | CI54: =+U54*KeyAssumptionsPriceControl_FO!AG$15 -> 0.06140498381 | CJ54: =+V54*KeyAssumptionsPriceControl_FO!AH$15 -> 0 | CK54: =+W54*KeyAssumptionsPriceControl_FO!AI$15 -> 0 | CL54: =+X54*KeyAssumptionsPriceControl_FO!AJ$15 -> 0 | CM54: =+Y54*KeyAssumptionsPriceControl_FO!AK$15 -> 0 | CN54: =+Z54*KeyAssumptionsPriceControl_FO!AL$15 -> 0 | CP54: 0.001672215496 | CQ54: 0.0422315099 | CR54: 0.163564879 | CS54: 0.2822246991 | CT54: 0.3188220102 | CU54: 0.3192057913 | CV54: 0.3192057913 | CW54: 0.3192057913 | CX54: 0.3192057913 | CY54: 0.3192057913
AX55: 0 | AY55: 0 | AZ55: 0 | BA55: 0 | BB55: 0 | BC55: 0 | BD55: 0 | BE55: 0 | BF55: 0 | BG55: 0 | BI55: 0 | BJ55: 0 | BK55: 0 | BL55: 0 | BM55: 0 | BN55: 0 | BO55: 0 | BP55: 0 | BQ55: 0 | BR55: 0 | BT55: =+IF($K55="Ongoing",AX55,IF(RIGHT($K55,2)=RIGHT(BT$39,2),SUM($AX55:AX55),0)+IF(RIGHT(BT$39,2)>RIGHT($K55,2),AX55,0)) -> 0 | BU55: =+IF($K55="Ongoing",AY55,IF(RIGHT($K55,2)=RIGHT(BU$39,2),SUM($AX55:AY55),0)+IF(RIGHT(BU$39,2)>RIGHT($K55,2),AY55,0)) -> 0 | BV55: =+IF($K55="Ongoing",AZ55,IF(RIGHT($K55,2)=RIGHT(BV$39,2),SUM($AX55:AZ55),0)+IF(RIGHT(BV$39,2)>RIGHT($K55,2),AZ55,0)) -> 0 | BW55: =+IF($K55="Ongoing",BA55,IF(RIGHT($K55,2)=RIGHT(BW$39,2),SUM($AX55:BA55),0)+IF(RIGHT(BW$39,2)>RIGHT($K55,2),BA55,0)) -> 0 | BX55: =+IF($K55="Ongoing",BB55,IF(RIGHT($K55,2)=RIGHT(BX$39,2),SUM($AX55:BB55),0)+IF(RIGHT(BX$39,2)>RIGHT($K55,2),BB55,0)) -> 0 | BY55: =+IF($K55="Ongoing",BC55,IF(RIGHT($K55,2)=RIGHT(BY$39,2),SUM($AX55:BC55),0)+IF(RIGHT(BY$39,2)>RIGHT($K55,2),BC55,0)) -> 0 | BZ55: =+IF($K55="Ongoing",BD55,IF(RIGHT($K55,2)=RIGHT(BZ$39,2),SUM($AX55:BD55),0)+IF(RIGHT(BZ$39,2)>RIGHT($K55,2),BD55,0)) -> 0 | CA55: =+IF($K55="Ongoing",BE55,IF(RIGHT($K55,2)=RIGHT(CA$39,2),SUM($AX55:BE55),0)+IF(RIGHT(CA$39,2)>RIGHT($K55,2),BE55,0)) -> 0 | CB55: =+IF($K55="Ongoing",BF55,IF(RIGHT($K55,2)=RIGHT(CB$39,2),SUM($AX55:BF55),0)+IF(RIGHT(CB$39,2)>RIGHT($K55,2),BF55,0)) -> 0 | CC55: =+IF($K55="Ongoing",BG55,IF(RIGHT($K55,2)=RIGHT(CC$39,2),SUM($AX55:BG55),0)+IF(RIGHT(CC$39,2)>RIGHT($K55,2),BG55,0)) -> 0 | CE55: =+Q55*KeyAssumptionsPriceControl_FO!AC$15 -> 0 | CF55: =+R55*KeyAssumptionsPriceControl_FO!AD$15 -> 0 | CG55: =+S55*KeyAssumptionsPriceControl_FO!AE$15 -> 0 | CH55: =+T55*KeyAssumptionsPriceControl_FO!AF$15 -> 0 | CI55: =+U55*KeyAssumptionsPriceControl_FO!AG$15 -> 0 | CJ55: =+V55*KeyAssumptionsPriceControl_FO!AH$15 -> 0 | CK55: =+W55*KeyAssumptionsPriceControl_FO!AI$15 -> 0 | CL55: =+X55*KeyAssumptionsPriceControl_FO!AJ$15 -> 0 | CM55: =+Y55*KeyAssumptionsPriceControl_FO!AK$15 -> 0 | CN55: =+Z55*KeyAssumptionsPriceControl_FO!AL$15 -> 0 | CP55: 0 | CQ55: 0 | CR55: 0 | CS55: 0 | CT55: 0 | CU55: 0 | CV55: 0 | CW55: 0 | CX55: 0 | CY55: 0
C56: WIN | E56: Recycled Water | F56: Growth | G56: Pipelines/network | H56: Significant projects | J56: Straight line | K56: Ongoing | L56: 90 | M56: 90 | Q56: 9.913883775 | R56: 10.0993053 | S56: 8.687472863 | T56: 1.25429968 | U56: 0 | V56: 0 | W56: 0 | X56: 0 | Y56: 0 | Z56: 0 | AB56: 15.6 | AC56: 18.16425121 | AD56: 0.1596303298 | AE56: 0 | AF56: 0 | AG56: 0 | AH56: 0 | AI56: 0 | AJ56: 0 | AK56: 0 | AM56: 0 | AN56: 0 | AO56: 0 | AP56: 0 | AQ56: 0 | AR56: 0 | AS56: 0 | AT56: 0 | AU56: 0 | AV56: 0 | AX56: -5.686116225 | AY56: -8.06494591 | AZ56: 8.527842534 | BA56: 1.25429968 | BB56: 0 | BC56: 0 | BD56: 0 | BE56: 0 | BF56: 0 | BG56: 0 | BI56: -0.03158953458 | BJ56: -0.1079843242 | BK56: -0.1054126763 | BL56: -0.05106744179 | BM56: -0.04409911023 | BN56: -0.04409911023 | BO56: -0.04409911023 | BP56: -0.04409911023 | BQ56: -0.04409911023 | BR56: -0.04409911023 | BT56: =+IF($K56="Ongoing",AX56,IF(RIGHT($K56,2)=RIGHT(BT$39,2),SUM($AX56:AX56),0)+IF(RIGHT(BT$39,2)>RIGHT($K56,2),AX56,0)) -> -5.686116225 | BU56: =+IF($K56="Ongoing",AY56,IF(RIGHT($K56,2)=RIGHT(BU$39,2),SUM($AX56:AY56),0)+IF(RIGHT(BU$39,2)>RIGHT($K56,2),AY56,0)) -> -8.06494591 | BV56: =+IF($K56="Ongoing",AZ56,IF(RIGHT($K56,2)=RIGHT(BV$39,2),SUM($AX56:AZ56),0)+IF(RIGHT(BV$39,2)>RIGHT($K56,2),AZ56,0)) -> 8.527842534 | BW56: =+IF($K56="Ongoing",BA56,IF(RIGHT($K56,2)=RIGHT(BW$39,2),SUM($AX56:BA56),0)+IF(RIGHT(BW$39,2)>RIGHT($K56,2),BA56,0)) -> 1.25429968 | BX56: =+IF($K56="Ongoing",BB56,IF(RIGHT($K56,2)=RIGHT(BX$39,2),SUM($AX56:BB56),0)+IF(RIGHT(BX$39,2)>RIGHT($K56,2),BB56,0)) -> 0 | BY56: =+IF($K56="Ongoing",BC56,IF(RIGHT($K56,2)=RIGHT(BY$39,2),SUM($AX56:BC56),0)+IF(RIGHT(BY$39,2)>RIGHT($K56,2),BC56,0)) -> 0 | BZ56: =+IF($K56="Ongoing",BD56,IF(RIGHT($K56,2)=RIGHT(BZ$39,2),SUM($AX56:BD56),0)+IF(RIGHT(BZ$39,2)>RIGHT($K56,2),BD56,0)) -> 0 | CA56: =+IF($K56="Ongoing",BE56,IF(RIGHT($K56,2)=RIGHT(CA$39,2),SUM($AX56:BE56),0)+IF(RIGHT(CA$39,2)>RIGHT($K56,2),BE56,0)) -> 0 | CB56: =+IF($K56="Ongoing",BF56,IF(RIGHT($K56,2)=RIGHT(CB$39,2),SUM($AX56:BF56),0)+IF(RIGHT(CB$39,2)>RIGHT($K56,2),BF56,0)) -> 0 | CC56: =+IF($K56="Ongoing",BG56,IF(RIGHT($K56,2)=RIGHT(CC$39,2),SUM($AX56:BG56),0)+IF(RIGHT(CC$39,2)>RIGHT($K56,2),BG56,0)) -> 0 | CE56: =+Q56*KeyAssumptionsPriceControl_FO!AC$15 -> 9.913883775 | CF56: =+R56*KeyAssumptionsPriceControl_FO!AD$15 -> 10.45278098 | CG56: =+S56*KeyAssumptionsPriceControl_FO!AE$15 -> 9.306238118 | CH56: =+T56*KeyAssumptionsPriceControl_FO!AF$15 -> 1.390664476 | CI56: =+U56*KeyAssumptionsPriceControl_FO!AG$15 -> 0 | CJ56: =+V56*KeyAssumptionsPriceControl_FO!AH$15 -> 0 | CK56: =+W56*KeyAssumptionsPriceControl_FO!AI$15 -> 0 | CL56: =+X56*KeyAssumptionsPriceControl_FO!AJ$15 -> 0 | CM56: =+Y56*KeyAssumptionsPriceControl_FO!AK$15 -> 0 | CN56: =+Z56*KeyAssumptionsPriceControl_FO!AL$15 -> 0 | CP56: 0.05507713208 | CQ56: 0.1682252696 | CR56: 0.277997598 | CS56: 0.3374248346 | CT56: 0.3451507484 | CU56: 0.3451507484 | CV56: 0.3451507484 | CW56: 0.3451507484 | CX56: 0.3451507484 | CY56: 0.3451507484
C57: Recycled Water Growth | E57: Recycled Water | F57: Growth | G57: Pipelines/network | H57: Capital Programs / Allocation | J57: Straight line | K57: Ongoing | L57: 90 | M57: 90 | Q57: 5.644669959 | R57: 6.270254809 | S57: 1.176475574 | T57: 0.62503723 | U57: 0.5736368039 | V57: 8.400140436 | W57: 23.43670218 | X57: 33.31481356 | Y57: 40.19631477 | Z57: 25.65205327 | AB57: 0 | AC57: 0 | AD57: 0 | AE57: 0 | AF57: 0 | AG57: 0 | AH57: 0 | AI57: 0 | AJ57: 0 | AK57: 0 | AM57: 0 | AN57: 0 | AO57: 0 | AP57: 0 | AQ57: 0 | AR57: 0 | AS57: 0 | AT57: 0 | AU57: 0 | AV57: 0 | AX57: 5.644669959 | AY57: 6.270254809 | AZ57: 1.176475574 | BA57: 0.62503723 | BB57: 0.5736368039 | BC57: 8.400140436 | BD57: 23.43670218 | BE57: 33.31481356 | BF57: 40.19631477 | BG57: 25.65205327 | BI57: 0.03135927755 | BJ57: 0.09755330404 | BK57: 0.1389240284 | BL57: 0.1489324328 | BM57: 0.155591733 | BN57: 0.205446051 | BO57: 0.3823173989 | BP57: 0.6976035974 | BQ57: 1.105998755 | BR57: 1.471823022 | BT57: =+IF($K57="Ongoing",AX57,IF(RIGHT($K57,2)=RIGHT(BT$39,2),SUM($AX57:AX57),0)+IF(RIGHT(BT$39,2)>RIGHT($K57,2),AX57,0)) -> 5.644669959 | BU57: =+IF($K57="Ongoing",AY57,IF(RIGHT($K57,2)=RIGHT(BU$39,2),SUM($AX57:AY57),0)+IF(RIGHT(BU$39,2)>RIGHT($K57,2),AY57,0)) -> 6.270254809 | BV57: =+IF($K57="Ongoing",AZ57,IF(RIGHT($K57,2)=RIGHT(BV$39,2),SUM($AX57:AZ57),0)+IF(RIGHT(BV$39,2)>RIGHT($K57,2),AZ57,0)) -> 1.176475574 | BW57: =+IF($K57="Ongoing",BA57,IF(RIGHT($K57,2)=RIGHT(BW$39,2),SUM($AX57:BA57),0)+IF(RIGHT(BW$39,2)>RIGHT($K57,2),BA57,0)) -> 0.62503723 | BX57: =+IF($K57="Ongoing",BB57,IF(RIGHT($K57,2)=RIGHT(BX$39,2),SUM($AX57:BB57),0)+IF(RIGHT(BX$39,2)>RIGHT($K57,2),BB57,0)) -> 0.5736368039 | BY57: =+IF($K57="Ongoing",BC57,IF(RIGHT($K57,2)=RIGHT(BY$39,2),SUM($AX57:BC57),0)+IF(RIGHT(BY$39,2)>RIGHT($K57,2),BC57,0)) -> 8.400140436 | BZ57: =+IF($K57="Ongoing",BD57,IF(RIGHT($K57,2)=RIGHT(BZ$39,2),SUM($AX57:BD57),0)+IF(RIGHT(BZ$39,2)>RIGHT($K57,2),BD57,0)) -> 23.43670218 | CA57: =+IF($K57="Ongoing",BE57,IF(RIGHT($K57,2)=RIGHT(CA$39,2),SUM($AX57:BE57),0)+IF(RIGHT(CA$39,2)>RIGHT($K57,2),BE57,0)) -> 33.31481356 | CB57: =+IF($K57="Ongoing",BF57,IF(RIGHT($K57,2)=RIGHT(CB$39,2),SUM($AX57:BF57),0)+IF(RIGHT(CB$39,2)>RIGHT($K57,2),BF57,0)) -> 40.19631477 | CC57: =+IF($K57="Ongoing",BG57,IF(RIGHT($K57,2)=RIGHT(CC$39,2),SUM($AX57:BG57),0)+IF(RIGHT(CC$39,2)>RIGHT($K57,2),BG57,0)) -> 25.65205327 | CE57: =+Q57*KeyAssumptionsPriceControl_FO!AC$15 -> 5.644669959 | CF57: =+R57*KeyAssumptionsPriceControl_FO!AD$15 -> 6.489713727 | CG57: =+S57*KeyAssumptionsPriceControl_FO!AE$15 -> 1.260270047 | CH57: =+T57*KeyAssumptionsPriceControl_FO!AF$15 -> 0.6929899495 | CI57: =+U57*KeyAssumptionsPriceControl_FO!AG$15 -> 0.6582614265 | CJ57: =+V57*KeyAssumptionsPriceControl_FO!AH$15 -> 9.976731761 | CK57: =+W57*KeyAssumptionsPriceControl_FO!AI$15 -> 28.80969099 | CL57: =+X57*KeyAssumptionsPriceControl_FO!AJ$15 -> 42.38574643 | CM57: =+Y57*KeyAssumptionsPriceControl_FO!AK$15 -> 52.93087054 | CN57: =+Z57*KeyAssumptionsPriceControl_FO!AL$15 -> 34.96111551 | CP57: 0.03135927755 | CQ57: 0.09877252025 | CR57: 0.1418279857 | CS57: 0.1526794301 | CT57: 0.1601863822 | CU57: 0.2192696777 | CV57: 0.434749804 | CW57: 0.8302800119 | CX57: 1.359816773 | CY57: 1.848105584
C58: Recycled Water Renewals | E58: Recycled Water | F58: Renewals | G58: Pipelines/network | H58: Capital Programs / Allocation | J58: Straight line | K58: Ongoing | L58: 90 | M58: 90 | Q58: 0.7491525424 | R58: 0.796783661 | S58: 1.994430286 | T58: 1.641661845 | U58: 1.658120726 | V58: 1.658120726 | W58: 1.658120726 | X58: 1.658120726 | Y58: 1.658120726 | Z58: 1.658120726 | AB58: 0 | AC58: 0 | AD58: 0 | AE58: 0 | AF58: 0 | AG58: 0 | AH58: 0 | AI58: 0 | AJ58: 0 | AK58: 0 | AM58: 0 | AN58: 0 | AO58: 0 | AP58: 0 | AQ58: 0 | AR58: 0 | AS58: 0 | AT58: 0 | AU58: 0 | AV58: 0 | AX58: 0.7491525424 | AY58: 0.796783661 | AZ58: 1.994430286 | BA58: 1.641661845 | BB58: 1.658120726 | BC58: 1.658120726 | BD58: 1.658120726 | BE58: 1.658120726 | BF58: 1.658120726 | BG58: 1.658120726 | BI58: 0.004161958569 | BJ58: 0.01275049303 | BK58: 0.02825723718 | BL58: 0.04845774902 | BM58: 0.06678987441 | BN58: 0.08521343804 | BO58: 0.1036370017 | BP58: 0.1220605653 | BQ58: 0.1404841289 | BR58: 0.1589076925 | BT58: =+IF($K58="Ongoing",AX58,IF(RIGHT($K58,2)=RIGHT(BT$39,2),SUM($AX58:AX58),0)+IF(RIGHT(BT$39,2)>RIGHT($K58,2),AX58,0)) -> 0.7491525424 | BU58: =+IF($K58="Ongoing",AY58,IF(RIGHT($K58,2)=RIGHT(BU$39,2),SUM($AX58:AY58),0)+IF(RIGHT(BU$39,2)>RIGHT($K58,2),AY58,0)) -> 0.796783661 | BV58: =+IF($K58="Ongoing",AZ58,IF(RIGHT($K58,2)=RIGHT(BV$39,2),SUM($AX58:AZ58),0)+IF(RIGHT(BV$39,2)>RIGHT($K58,2),AZ58,0)) -> 1.994430286 | BW58: =+IF($K58="Ongoing",BA58,IF(RIGHT($K58,2)=RIGHT(BW$39,2),SUM($AX58:BA58),0)+IF(RIGHT(BW$39,2)>RIGHT($K58,2),BA58,0)) -> 1.641661845 | BX58: =+IF($K58="Ongoing",BB58,IF(RIGHT($K58,2)=RIGHT(BX$39,2),SUM($AX58:BB58),0)+IF(RIGHT(BX$39,2)>RIGHT($K58,2),BB58,0)) -> 1.658120726 | BY58: =+IF($K58="Ongoing",BC58,IF(RIGHT($K58,2)=RIGHT(BY$39,2),SUM($AX58:BC58),0)+IF(RIGHT(BY$39,2)>RIGHT($K58,2),BC58,0)) -> 1.658120726 | BZ58: =+IF($K58="Ongoing",BD58,IF(RIGHT($K58,2)=RIGHT(BZ$39,2),SUM($AX58:BD58),0)+IF(RIGHT(BZ$39,2)>RIGHT($K58,2),BD58,0)) -> 1.658120726 | CA58: =+IF($K58="Ongoing",BE58,IF(RIGHT($K58,2)=RIGHT(CA$39,2),SUM($AX58:BE58),0)+IF(RIGHT(CA$39,2)>RIGHT($K58,2),BE58,0)) -> 1.658120726 | CB58: =+IF($K58="Ongoing",BF58,IF(RIGHT($K58,2)=RIGHT(CB$39,2),SUM($AX58:BF58),0)+IF(RIGHT(CB$39,2)>RIGHT($K58,2),BF58,0)) -> 1.658120726 | CC58: =+IF($K58="Ongoing",BG58,IF(RIGHT($K58,2)=RIGHT(CC$39,2),SUM($AX58:BG58),0)+IF(RIGHT(CC$39,2)>RIGHT($K58,2),BG58,0)) -> 1.658120726 | CE58: =+Q58*KeyAssumptionsPriceControl_FO!AC$15 -> 0.7491525424 | CF58: =+R58*KeyAssumptionsPriceControl_FO!AD$15 -> 0.8246710892 | CG58: =+S58*KeyAssumptionsPriceControl_FO!AE$15 -> 2.136483583 | CH58: =+T58*KeyAssumptionsPriceControl_FO!AF$15 -> 1.820139832 | CI58: =+U58*KeyAssumptionsPriceControl_FO!AG$15 -> 1.902731671 | CJ58: =+V58*KeyAssumptionsPriceControl_FO!AH$15 -> 1.96932728 | CK58: =+W58*KeyAssumptionsPriceControl_FO!AI$15 -> 2.038253735 | CL58: =+X58*KeyAssumptionsPriceControl_FO!AJ$15 -> 2.109592615 | CM58: =+Y58*KeyAssumptionsPriceControl_FO!AK$15 -> 2.183428357 | CN58: =+Z58*KeyAssumptionsPriceControl_FO!AL$15 -> 2.259848349 | CP58: 0.004161958569 | CQ58: 0.01290542319 | CR58: 0.02935628248 | CS58: 0.05133752367 | CT58: 0.07202014314 | CU58: 0.09353158175 | CV58: 0.1157959207 | CW58: 0.1388395116 | CX58: 0.1626896281 | CY58: 0.1873744987
C59: Sewer Growth | E59: Sewerage | F59: Growth | G59: Pipelines/network | H59: Capital Programs / Allocation | J59: Straight line | K59: Ongoing | L59: 90 | M59: 90 | Q59: 42.78731235 | R59: 33.56096368 | S59: 29.81627119 | T59: 27.19316707 | U59: 24.49086683 | V59: 76.73018329 | W59: 68.28734116 | X59: 48.44962131 | Y59: 65.84526441 | Z59: 36.73908281 | AB59: 0 | AC59: 0 | AD59: 0 | AE59: 0 | AF59: 0 | AG59: 0 | AH59: 0 | AI59: 0 | AJ59: 0 | AK59: 0 | AM59: 0 | AN59: 0 | AO59: 0 | AP59: 0 | AQ59: 0 | AR59: 0 | AS59: 0 | AT59: 0 | AU59: 0 | AV59: 0 | AX59: 42.78731235 | AY59: 33.56096368 | AZ59: 29.81627119 | BA59: 27.19316707 | BB59: 24.49086683 | BC59: 76.73018329 | BD59: 68.28734116 | BE59: 48.44962131 | BF59: 65.84526441 | BG59: 36.73908281 | BI59: 0.2377072908 | BJ59: 0.6618643799 | BK59: 1.013960129 | BL59: 1.330679231 | BM59: 1.617812752 | BN59: 2.18015192 | BO59: 2.985804833 | BP59: 3.634343514 | BQ59: 4.269315101 | BR59: 4.839228141 | BT59: =+IF($K59="Ongoing",AX59,IF(RIGHT($K59,2)=RIGHT(BT$39,2),SUM($AX59:AX59),0)+IF(RIGHT(BT$39,2)>RIGHT($K59,2),AX59,0)) -> 42.78731235 | BU59: =+IF($K59="Ongoing",AY59,IF(RIGHT($K59,2)=RIGHT(BU$39,2),SUM($AX59:AY59),0)+IF(RIGHT(BU$39,2)>RIGHT($K59,2),AY59,0)) -> 33.56096368 | BV59: =+IF($K59="Ongoing",AZ59,IF(RIGHT($K59,2)=RIGHT(BV$39,2),SUM($AX59:AZ59),0)+IF(RIGHT(BV$39,2)>RIGHT($K59,2),AZ59,0)) -> 29.81627119 | BW59: =+IF($K59="Ongoing",BA59,IF(RIGHT($K59,2)=RIGHT(BW$39,2),SUM($AX59:BA59),0)+IF(RIGHT(BW$39,2)>RIGHT($K59,2),BA59,0)) -> 27.19316707 | BX59: =+IF($K59="Ongoing",BB59,IF(RIGHT($K59,2)=RIGHT(BX$39,2),SUM($AX59:BB59),0)+IF(RIGHT(BX$39,2)>RIGHT($K59,2),BB59,0)) -> 24.49086683 | BY59: =+IF($K59="Ongoing",BC59,IF(RIGHT($K59,2)=RIGHT(BY$39,2),SUM($AX59:BC59),0)+IF(RIGHT(BY$39,2)>RIGHT($K59,2),BC59,0)) -> 76.73018329 | BZ59: =+IF($K59="Ongoing",BD59,IF(RIGHT($K59,2)=RIGHT(BZ$39,2),SUM($AX59:BD59),0)+IF(RIGHT(BZ$39,2)>RIGHT($K59,2),BD59,0)) -> 68.28734116 | CA59: =+IF($K59="Ongoing",BE59,IF(RIGHT($K59,2)=RIGHT(CA$39,2),SUM($AX59:BE59),0)+IF(RIGHT(CA$39,2)>RIGHT($K59,2),BE59,0)) -> 48.44962131 | CB59: =+IF($K59="Ongoing",BF59,IF(RIGHT($K59,2)=RIGHT(CB$39,2),SUM($AX59:BF59),0)+IF(RIGHT(CB$39,2)>RIGHT($K59,2),BF59,0)) -> 65.84526441 | CC59: =+IF($K59="Ongoing",BG59,IF(RIGHT($K59,2)=RIGHT(CC$39,2),SUM($AX59:BG59),0)+IF(RIGHT(CC$39,2)>RIGHT($K59,2),BG59,0)) -> 36.73908281 | CE59: =+Q59*KeyAssumptionsPriceControl_FO!AC$15 -> 42.78731235 | CF59: =+R59*KeyAssumptionsPriceControl_FO!AD$15 -> 34.73559741 | CG59: =+S59*KeyAssumptionsPriceControl_FO!AE$15 -> 31.9399351 | CH59: =+T59*KeyAssumptionsPriceControl_FO!AF$15 -> 30.14955041 | CI59: =+U59*KeyAssumptionsPriceControl_FO!AG$15 -> 28.10383299 | CJ59: =+V59*KeyAssumptionsPriceControl_FO!AH$15 -> 91.13138793 | CK59: =+W59*KeyAssumptionsPriceControl_FO!AI$15 -> 83.94257785 | CL59: =+X59*KeyAssumptionsPriceControl_FO!AJ$15 -> 61.64144848 | CM59: =+Y59*KeyAssumptionsPriceControl_FO!AK$15 -> 86.70563921 | CN59: =+Z59*KeyAssumptionsPriceControl_FO!AL$15 -> 50.07159872 | CP59: 0.2377072908 | CQ59: 0.6683901228 | CR59: 1.038809748 | CS59: 1.383751334 | CT59: 1.707381242 | CU59: 2.369799136 | CV59: 3.342432279 | CW59: 4.151232425 | CX59: 4.975382912 | CY59: 5.735256456
C60: Sewer Performance Renewals | E60: Sewerage | F60: Renewals | G60: Pipelines/network | H60: Capital Programs / Allocation | J60: Straight line | K60: Ongoing | L60: 90 | M60: 90 | Q60: 13.57720221 | R60: 16.75388738 | S60: 16.36554479 | T60: 16.36554479 | U60: 16.36554479 | V60: 18.61108959 | W60: 18.61108959 | X60: 18.61108959 | Y60: 18.61108959 | Z60: 18.61108959 | AB60: 0 | AC60: 0 | AD60: 0 | AE60: 0 | AF60: 0 | AG60: 0 | AH60: 0 | AI60: 0 | AJ60: 0 | AK60: 0 | AM60: 0 | AN60: 0 | AO60: 0 | AP60: 0 | AQ60: 0 | AR60: 0 | AS60: 0 | AT60: 0 | AU60: 0 | AV60: 0 | AX60: 13.57720221 | AY60: 16.75388738 | AZ60: 16.36554479 | BA60: 16.36554479 | BB60: 16.36554479 | BC60: 18.61108959 | BD60: 18.61108959 | BE60: 18.61108959 | BF60: 18.61108959 | BG60: 18.61108959 | BI60: 0.07542890117 | BJ60: 0.2439349544 | BK60: 0.4279317998 | BL60: 0.6097711864 | BM60: 0.791610573 | BN60: 0.9859252085 | BO60: 1.192715093 | BP60: 1.399504977 | BQ60: 1.606294861 | BR60: 1.813084746 | BT60: =+IF($K60="Ongoing",AX60,IF(RIGHT($K60,2)=RIGHT(BT$39,2),SUM($AX60:AX60),0)+IF(RIGHT(BT$39,2)>RIGHT($K60,2),AX60,0)) -> 13.57720221 | BU60: =+IF($K60="Ongoing",AY60,IF(RIGHT($K60,2)=RIGHT(BU$39,2),SUM($AX60:AY60),0)+IF(RIGHT(BU$39,2)>RIGHT($K60,2),AY60,0)) -> 16.75388738 | BV60: =+IF($K60="Ongoing",AZ60,IF(RIGHT($K60,2)=RIGHT(BV$39,2),SUM($AX60:AZ60),0)+IF(RIGHT(BV$39,2)>RIGHT($K60,2),AZ60,0)) -> 16.36554479 | BW60: =+IF($K60="Ongoing",BA60,IF(RIGHT($K60,2)=RIGHT(BW$39,2),SUM($AX60:BA60),0)+IF(RIGHT(BW$39,2)>RIGHT($K60,2),BA60,0)) -> 16.36554479 | BX60: =+IF($K60="Ongoing",BB60,IF(RIGHT($K60,2)=RIGHT(BX$39,2),SUM($AX60:BB60),0)+IF(RIGHT(BX$39,2)>RIGHT($K60,2),BB60,0)) -> 16.36554479 | BY60: =+IF($K60="Ongoing",BC60,IF(RIGHT($K60,2)=RIGHT(BY$39,2),SUM($AX60:BC60),0)+IF(RIGHT(BY$39,2)>RIGHT($K60,2),BC60,0)) -> 18.61108959 | BZ60: =+IF($K60="Ongoing",BD60,IF(RIGHT($K60,2)=RIGHT(BZ$39,2),SUM($AX60:BD60),0)+IF(RIGHT(BZ$39,2)>RIGHT($K60,2),BD60,0)) -> 18.61108959 | CA60: =+IF($K60="Ongoing",BE60,IF(RIGHT($K60,2)=RIGHT(CA$39,2),SUM($AX60:BE60),0)+IF(RIGHT(CA$39,2)>RIGHT($K60,2),BE60,0)) -> 18.61108959 | CB60: =+IF($K60="Ongoing",BF60,IF(RIGHT($K60,2)=RIGHT(CB$39,2),SUM($AX60:BF60),0)+IF(RIGHT(CB$39,2)>RIGHT($K60,2),BF60,0)) -> 18.61108959 | CC60: =+IF($K60="Ongoing",BG60,IF(RIGHT($K60,2)=RIGHT(CC$39,2),SUM($AX60:BG60),0)+IF(RIGHT(CC$39,2)>RIGHT($K60,2),BG60,0)) -> 18.61108959 | CE60: =+Q60*KeyAssumptionsPriceControl_FO!AC$15 -> 13.57720221 | CF60: =+R60*KeyAssumptionsPriceControl_FO!AD$15 -> 17.34027344 | CG60: =+S60*KeyAssumptionsPriceControl_FO!AE$15 -> 17.53118072 | CH60: =+T60*KeyAssumptionsPriceControl_FO!AF$15 -> 18.14477205 | CI60: =+U60*KeyAssumptionsPriceControl_FO!AG$15 -> 18.77983907 | CJ60: =+V60*KeyAssumptionsPriceControl_FO!AH$15 -> 22.10413624 | CK60: =+W60*KeyAssumptionsPriceControl_FO!AI$15 -> 22.87778101 | CL60: =+X60*KeyAssumptionsPriceControl_FO!AJ$15 -> 23.67850334 | CM60: =+Y60*KeyAssumptionsPriceControl_FO!AK$15 -> 24.50725096 | CN60: =+Z60*KeyAssumptionsPriceControl_FO!AL$15 -> 25.36500474 | CP60: 0.07542890117 | CQ60: 0.2471926548 | CR60: 0.4409229556 | CS60: 0.6391226932 | CT60: 0.8442594217 | CU60: 1.071392618 | CV60: 1.321292158 | CW60: 1.579938182 | CX60: 1.847636817 | CY60: 2.124704904
C61: Sewer Hydraulic Compliance Works | E61: Sewerage | F61: Improvements / Compliance | G61: Pipelines/network | H61: Capital Programs / Allocation | J61: Straight line | K61: Ongoing | L61: 90 | M61: 90 | Q61: 0.922527845 | R61: 2.461545946 | S61: 6.465910122 | T61: 5.351089588 | U61: 2.782566586 | V61: 5.18685 | W61: 10.98195 | X61: 9.2375 | Y61: 3.4939 | Z61: 8.0607 | AB61: 0 | AC61: 0 | AD61: 0 | AE61: 0 | AF61: 0 | AG61: 0 | AH61: 0 | AI61: 0 | AJ61: 0 | AK61: 0 | AM61: 0 | AN61: 0 | AO61: 0 | AP61: 0 | AQ61: 0 | AR61: 0 | AS61: 0 | AT61: 0 | AU61: 0 | AV61: 0 | AX61: 0.922527845 | AY61: 2.461545946 | AZ61: 6.465910122 | BA61: 5.351089588 | BB61: 2.782566586 | BC61: 5.18685 | BD61: 10.98195 | BE61: 9.2375 | BF61: 3.4939 | BG61: 8.0607 | BI61: 0.005125154695 | BJ61: 0.02392556464 | BK61: 0.0735225428 | BL61: 0.1391725412 | BM61: 0.1843595199 | BN61: 0.2286340565 | BO61: 0.3184607232 | BP61: 0.430791001 | BQ61: 0.501521001 | BR61: 0.5657132232 | BT61: =+IF($K61="Ongoing",AX61,IF(RIGHT($K61,2)=RIGHT(BT$39,2),SUM($AX61:AX61),0)+IF(RIGHT(BT$39,2)>RIGHT($K61,2),AX61,0)) -> 0.922527845 | BU61: =+IF($K61="Ongoing",AY61,IF(RIGHT($K61,2)=RIGHT(BU$39,2),SUM($AX61:AY61),0)+IF(RIGHT(BU$39,2)>RIGHT($K61,2),AY61,0)) -> 2.461545946 | BV61: =+IF($K61="Ongoing",AZ61,IF(RIGHT($K61,2)=RIGHT(BV$39,2),SUM($AX61:AZ61),0)+IF(RIGHT(BV$39,2)>RIGHT($K61,2),AZ61,0)) -> 6.465910122 | BW61: =+IF($K61="Ongoing",BA61,IF(RIGHT($K61,2)=RIGHT(BW$39,2),SUM($AX61:BA61),0)+IF(RIGHT(BW$39,2)>RIGHT($K61,2),BA61,0)) -> 5.351089588 | BX61: =+IF($K61="Ongoing",BB61,IF(RIGHT($K61,2)=RIGHT(BX$39,2),SUM($AX61:BB61),0)+IF(RIGHT(BX$39,2)>RIGHT($K61,2),BB61,0)) -> 2.782566586 | BY61: =+IF($K61="Ongoing",BC61,IF(RIGHT($K61,2)=RIGHT(BY$39,2),SUM($AX61:BC61),0)+IF(RIGHT(BY$39,2)>RIGHT($K61,2),BC61,0)) -> 5.18685 | BZ61: =+IF($K61="Ongoing",BD61,IF(RIGHT($K61,2)=RIGHT(BZ$39,2),SUM($AX61:BD61),0)+IF(RIGHT(BZ$39,2)>RIGHT($K61,2),BD61,0)) -> 10.98195 | CA61: =+IF($K61="Ongoing",BE61,IF(RIGHT($K61,2)=RIGHT(CA$39,2),SUM($AX61:BE61),0)+IF(RIGHT(CA$39,2)>RIGHT($K61,2),BE61,0)) -> 9.2375 | CB61: =+IF($K61="Ongoing",BF61,IF(RIGHT($K61,2)=RIGHT(CB$39,2),SUM($AX61:BF61),0)+IF(RIGHT(CB$39,2)>RIGHT($K61,2),BF61,0)) -> 3.4939 | CC61: =+IF($K61="Ongoing",BG61,IF(RIGHT($K61,2)=RIGHT(CC$39,2),SUM($AX61:BG61),0)+IF(RIGHT(CC$39,2)>RIGHT($K61,2),BG61,0)) -> 8.0607 | CE61: =+Q61*KeyAssumptionsPriceControl_FO!AC$15 -> 0.922527845 | CF61: =+R61*KeyAssumptionsPriceControl_FO!AD$15 -> 2.547700054 | CG61: =+S61*KeyAssumptionsPriceControl_FO!AE$15 -> 6.92644457 | CH61: =+T61*KeyAssumptionsPriceControl_FO!AF$15 -> 5.932848677 | CI61: =+U61*KeyAssumptionsPriceControl_FO!AG$15 -> 3.193059158 | CJ61: =+V61*KeyAssumptionsPriceControl_FO!AH$15 -> 6.160350714 | CK61: =+W61*KeyAssumptionsPriceControl_FO!AI$15 -> 13.49962053 | CL61: =+X61*KeyAssumptionsPriceControl_FO!AJ$15 -> 11.75267969 | CM61: =+Y61*KeyAssumptionsPriceControl_FO!AK$15 -> 4.600799094 | CN61: =+Z61*KeyAssumptionsPriceControl_FO!AL$15 -> 10.9859067 | CP61: 0.005125154695 | CQ61: 0.02440419858 | CR61: 0.07703833538 | CS61: 0.1484788534 | CT61: 0.1991783414 | CU61: 0.2511417296 | CV61: 0.3603637921 | CW61: 0.5006543488 | CX61: 0.5915070087 | CY61: 0.6780998187
C62: Sewer Risk Renewals | E62: Sewerage | F62: Renewals | G62: Pipelines/network | H62: Capital Programs / Allocation | J62: Straight line | K62: Ongoing | L62: 90 | M62: 90 | Q62: 7.26 | R62: 11.04 | S62: 6.94 | T62: 13.72 | U62: 16.09 | V62: 4.923002421 | W62: 4.923002421 | X62: 4.923002421 | Y62: 4.923002421 | Z62: 4.923002421 | AB62: 0 | AC62: 0 | AD62: 0 | AE62: 0 | AF62: 0 | AG62: 0 | AH62: 0 | AI62: 0 | AJ62: 0 | AK62: 0 | AM62: 0 | AN62: 0 | AO62: 0 | AP62: 0 | AQ62: 0 | AR62: 0 | AS62: 0 | AT62: 0 | AU62: 0 | AV62: 0 | AX62: 7.26 | AY62: 11.04 | AZ62: 6.94 | BA62: 13.72 | BB62: 16.09 | BC62: 4.923002421 | BD62: 4.923002421 | BE62: 4.923002421 | BF62: 4.923002421 | BG62: 4.923002421 | BI62: 0.04033333333 | BJ62: 0.142 | BK62: 0.2418888889 | BL62: 0.3566666667 | BM62: 0.5222777778 | BN62: 0.6390166801 | BO62: 0.693716707 | BP62: 0.7484167339 | BQ62: 0.8031167608 | BR62: 0.8578167877 | BT62: =+IF($K62="Ongoing",AX62,IF(RIGHT($K62,2)=RIGHT(BT$39,2),SUM($AX62:AX62),0)+IF(RIGHT(BT$39,2)>RIGHT($K62,2),AX62,0)) -> 7.26 | BU62: =+IF($K62="Ongoing",AY62,IF(RIGHT($K62,2)=RIGHT(BU$39,2),SUM($AX62:AY62),0)+IF(RIGHT(BU$39,2)>RIGHT($K62,2),AY62,0)) -> 11.04 | BV62: =+IF($K62="Ongoing",AZ62,IF(RIGHT($K62,2)=RIGHT(BV$39,2),SUM($AX62:AZ62),0)+IF(RIGHT(BV$39,2)>RIGHT($K62,2),AZ62,0)) -> 6.94 | BW62: =+IF($K62="Ongoing",BA62,IF(RIGHT($K62,2)=RIGHT(BW$39,2),SUM($AX62:BA62),0)+IF(RIGHT(BW$39,2)>RIGHT($K62,2),BA62,0)) -> 13.72 | BX62: =+IF($K62="Ongoing",BB62,IF(RIGHT($K62,2)=RIGHT(BX$39,2),SUM($AX62:BB62),0)+IF(RIGHT(BX$39,2)>RIGHT($K62,2),BB62,0)) -> 16.09 | BY62: =+IF($K62="Ongoing",BC62,IF(RIGHT($K62,2)=RIGHT(BY$39,2),SUM($AX62:BC62),0)+IF(RIGHT(BY$39,2)>RIGHT($K62,2),BC62,0)) -> 4.923002421 | BZ62: =+IF($K62="Ongoing",BD62,IF(RIGHT($K62,2)=RIGHT(BZ$39,2),SUM($AX62:BD62),0)+IF(RIGHT(BZ$39,2)>RIGHT($K62,2),BD62,0)) -> 4.923002421 | CA62: =+IF($K62="Ongoing",BE62,IF(RIGHT($K62,2)=RIGHT(CA$39,2),SUM($AX62:BE62),0)+IF(RIGHT(CA$39,2)>RIGHT($K62,2),BE62,0)) -> 4.923002421 | CB62: =+IF($K62="Ongoing",BF62,IF(RIGHT($K62,2)=RIGHT(CB$39,2),SUM($AX62:BF62),0)+IF(RIGHT(CB$39,2)>RIGHT($K62,2),BF62,0)) -> 4.923002421 | CC62: =+IF($K62="Ongoing",BG62,IF(RIGHT($K62,2)=RIGHT(CC$39,2),SUM($AX62:BG62),0)+IF(RIGHT(CC$39,2)>RIGHT($K62,2),BG62,0)) -> 4.923002421 | CE62: =+Q62*KeyAssumptionsPriceControl_FO!AC$15 -> 7.26 | CF62: =+R62*KeyAssumptionsPriceControl_FO!AD$15 -> 11.4264 | CG62: =+S62*KeyAssumptionsPriceControl_FO!AE$15 -> 7.4343015 | CH62: =+T62*KeyAssumptionsPriceControl_FO!AF$15 -> 15.21160924 | CI62: =+U62*KeyAssumptionsPriceControl_FO!AG$15 -> 18.46364508 | CJ62: =+V62*KeyAssumptionsPriceControl_FO!AH$15 -> 5.846982558 | CK62: =+W62*KeyAssumptionsPriceControl_FO!AI$15 -> 6.051626948 | CL62: =+X62*KeyAssumptionsPriceControl_FO!AJ$15 -> 6.263433891 | CM62: =+Y62*KeyAssumptionsPriceControl_FO!AK$15 -> 6.482654077 | CN62: =+Z62*KeyAssumptionsPriceControl_FO!AL$15 -> 6.70954697 | CP62: 0.04033333333 | CQ62: 0.1441466667 | CR62: 0.2489283417 | CS62: 0.3747389569 | CT62: 0.5618237032 | CU62: 0.6968827456 | CV62: 0.7629861318 | CW62: 0.8314031364 | CX62: 0.9022147362 | CY62: 0.9755047421
C63: Sewer Treatment Growth | E63: Sewerage | F63: Growth | G63: Treatment | H63: Capital Programs / Allocation | J63: Straight line | K63: Ongoing | L63: 80 | M63: 80 | Q63: 17.72708959 | R63: 37.21692349 | S63: 25.9729046 | T63: 18.59664165 | U63: 15.58825908 | V63: 26.75544794 | W63: 37.45762712 | X63: 32.10653753 | Y63: 32.10653753 | Z63: 32.10653753 | AB63: 0 | AC63: 0 | AD63: 0 | AE63: 0 | AF63: 0 | AG63: 0 | AH63: 0 | AI63: 0 | AJ63: 0 | AK63: 0 | AM63: 0 | AN63: 0 | AO63: 0 | AP63: 0 | AQ63: 0 | AR63: 0 | AS63: 0 | AT63: 0 | AU63: 0 | AV63: 0 | AX63: 17.72708959 | AY63: 37.21692349 | AZ63: 25.9729046 | BA63: 18.59664165 | BB63: 15.58825908 | BC63: 26.75544794 | BD63: 37.45762712 | BE63: 32.10653753 | BF63: 32.10653753 | BG63: 32.10653753 | BI63: 0.1107943099 | BJ63: 0.4541943916 | BK63: 0.8491308172 | BL63: 1.127690481 | BM63: 1.341346111 | BN63: 1.60599428 | BO63: 2.007325999 | BP63: 2.442102028 | BQ63: 2.843433747 | BR63: 3.244765466 | BT63: =+IF($K63="Ongoing",AX63,IF(RIGHT($K63,2)=RIGHT(BT$39,2),SUM($AX63:AX63),0)+IF(RIGHT(BT$39,2)>RIGHT($K63,2),AX63,0)) -> 17.72708959 | BU63: =+IF($K63="Ongoing",AY63,IF(RIGHT($K63,2)=RIGHT(BU$39,2),SUM($AX63:AY63),0)+IF(RIGHT(BU$39,2)>RIGHT($K63,2),AY63,0)) -> 37.21692349 | BV63: =+IF($K63="Ongoing",AZ63,IF(RIGHT($K63,2)=RIGHT(BV$39,2),SUM($AX63:AZ63),0)+IF(RIGHT(BV$39,2)>RIGHT($K63,2),AZ63,0)) -> 25.9729046 | BW63: =+IF($K63="Ongoing",BA63,IF(RIGHT($K63,2)=RIGHT(BW$39,2),SUM($AX63:BA63),0)+IF(RIGHT(BW$39,2)>RIGHT($K63,2),BA63,0)) -> 18.59664165 | BX63: =+IF($K63="Ongoing",BB63,IF(RIGHT($K63,2)=RIGHT(BX$39,2),SUM($AX63:BB63),0)+IF(RIGHT(BX$39,2)>RIGHT($K63,2),BB63,0)) -> 15.58825908 | BY63: =+IF($K63="Ongoing",BC63,IF(RIGHT($K63,2)=RIGHT(BY$39,2),SUM($AX63:BC63),0)+IF(RIGHT(BY$39,2)>RIGHT($K63,2),BC63,0)) -> 26.75544794 | BZ63: =+IF($K63="Ongoing",BD63,IF(RIGHT($K63,2)=RIGHT(BZ$39,2),SUM($AX63:BD63),0)+IF(RIGHT(BZ$39,2)>RIGHT($K63,2),BD63,0)) -> 37.45762712 | CA63: =+IF($K63="Ongoing",BE63,IF(RIGHT($K63,2)=RIGHT(CA$39,2),SUM($AX63:BE63),0)+IF(RIGHT(CA$39,2)>RIGHT($K63,2),BE63,0)) -> 32.10653753 | CB63: =+IF($K63="Ongoing",BF63,IF(RIGHT($K63,2)=RIGHT(CB$39,2),SUM($AX63:BF63),0)+IF(RIGHT(CB$39,2)>RIGHT($K63,2),BF63,0)) -> 32.10653753 | CC63: =+IF($K63="Ongoing",BG63,IF(RIGHT($K63,2)=RIGHT(CC$39,2),SUM($AX63:BG63),0)+IF(RIGHT(CC$39,2)>RIGHT($K63,2),BG63,0)) -> 32.10653753 | CE63: =+Q63*KeyAssumptionsPriceControl_FO!AC$15 -> 17.72708959 | CF63: =+R63*KeyAssumptionsPriceControl_FO!AD$15 -> 38.51951581 | CG63: =+S63*KeyAssumptionsPriceControl_FO!AE$15 -> 27.82282473 | CH63: =+T63*KeyAssumptionsPriceControl_FO!AF$15 -> 20.61842901 | CI63: =+U63*KeyAssumptionsPriceControl_FO!AG$15 -> 17.88788583 | CJ63: =+V63*KeyAssumptionsPriceControl_FO!AH$15 -> 31.77707912 | CK63: =+W63*KeyAssumptionsPriceControl_FO!AI$15 -> 46.04498765 | CL63: =+X63*KeyAssumptionsPriceControl_FO!AJ$15 -> 40.8484819 | CM63: =+Y63*KeyAssumptionsPriceControl_FO!AK$15 -> 42.27817877 | CN63: =+Z63*KeyAssumptionsPriceControl_FO!AL$15 -> 43.75791502 | CP63: 0.1107943099 | CQ63: 0.4623355937 | CR63: 0.876975222 | CS63: 1.179733058 | CT63: 1.420397526 | CU63: 1.730803557 | CV63: 2.217191474 | CW63: 2.760275659 | CX63: 3.279817288 | CY63: 3.817542874
C64: Sewer Treatment Growth | E64: Sewerage | F64: Improvements / Compliance | G64: Treatment | H64: Capital Programs / Allocation | J64: Straight line | K64: Ongoing | L64: 80 | M64: 80 | Q64: 2.943099274 | R64: 1.177239709 | S64: 1.123728814 | T64: 1.123728814 | U64: 1.123728814 | V64: 0 | W64: 0 | X64: 0 | Y64: 0 | Z64: 0 | AB64: 0 | AC64: 0 | AD64: 0 | AE64: 0 | AF64: 0 | AG64: 0 | AH64: 0 | AI64: 0 | AJ64: 0 | AK64: 0 | AM64: 0 | AN64: 0 | AO64: 0 | AP64: 0 | AQ64: 0 | AR64: 0 | AS64: 0 | AT64: 0 | AU64: 0 | AV64: 0 | AX64: 2.943099274 | AY64: 1.177239709 | AZ64: 1.123728814 | BA64: 1.123728814 | BB64: 1.123728814 | BC64: 0 | BD64: 0 | BE64: 0 | BF64: 0 | BG64: 0 | BI64: 0.01839437046 | BJ64: 0.0441464891 | BK64: 0.05852754237 | BL64: 0.07257415254 | BM64: 0.08662076271 | BN64: 0.0936440678 | BO64: 0.0936440678 | BP64: 0.0936440678 | BQ64: 0.0936440678 | BR64: 0.0936440678 | BT64: =+IF($K64="Ongoing",AX64,IF(RIGHT($K64,2)=RIGHT(BT$39,2),SUM($AX64:AX64),0)+IF(RIGHT(BT$39,2)>RIGHT($K64,2),AX64,0)) -> 2.943099274 | BU64: =+IF($K64="Ongoing",AY64,IF(RIGHT($K64,2)=RIGHT(BU$39,2),SUM($AX64:AY64),0)+IF(RIGHT(BU$39,2)>RIGHT($K64,2),AY64,0)) -> 1.177239709 | BV64: =+IF($K64="Ongoing",AZ64,IF(RIGHT($K64,2)=RIGHT(BV$39,2),SUM($AX64:AZ64),0)+IF(RIGHT(BV$39,2)>RIGHT($K64,2),AZ64,0)) -> 1.123728814 | BW64: =+IF($K64="Ongoing",BA64,IF(RIGHT($K64,2)=RIGHT(BW$39,2),SUM($AX64:BA64),0)+IF(RIGHT(BW$39,2)>RIGHT($K64,2),BA64,0)) -> 1.123728814 | BX64: =+IF($K64="Ongoing",BB64,IF(RIGHT($K64,2)=RIGHT(BX$39,2),SUM($AX64:BB64),0)+IF(RIGHT(BX$39,2)>RIGHT($K64,2),BB64,0)) -> 1.123728814 | BY64: =+IF($K64="Ongoing",BC64,IF(RIGHT($K64,2)=RIGHT(BY$39,2),SUM($AX64:BC64),0)+IF(RIGHT(BY$39,2)>RIGHT($K64,2),BC64,0)) -> 0 | BZ64: =+IF($K64="Ongoing",BD64,IF(RIGHT($K64,2)=RIGHT(BZ$39,2),SUM($AX64:BD64),0)+IF(RIGHT(BZ$39,2)>RIGHT($K64,2),BD64,0)) -> 0 | CA64: =+IF($K64="Ongoing",BE64,IF(RIGHT($K64,2)=RIGHT(CA$39,2),SUM($AX64:BE64),0)+IF(RIGHT(CA$39,2)>RIGHT($K64,2),BE64,0)) -> 0 | CB64: =+IF($K64="Ongoing",BF64,IF(RIGHT($K64,2)=RIGHT(CB$39,2),SUM($AX64:BF64),0)+IF(RIGHT(CB$39,2)>RIGHT($K64,2),BF64,0)) -> 0 | CC64: =+IF($K64="Ongoing",BG64,IF(RIGHT($K64,2)=RIGHT(CC$39,2),SUM($AX64:BG64),0)+IF(RIGHT(CC$39,2)>RIGHT($K64,2),BG64,0)) -> 0 | CE64: =+Q64*KeyAssumptionsPriceControl_FO!AC$15 -> 2.943099274 | CF64: =+R64*KeyAssumptionsPriceControl_FO!AD$15 -> 1.218443099 | CG64: =+S64*KeyAssumptionsPriceControl_FO!AE$15 -> 1.203766398 | CH64: =+T64*KeyAssumptionsPriceControl_FO!AF$15 -> 1.245898222 | CI64: =+U64*KeyAssumptionsPriceControl_FO!AG$15 -> 1.28950466 | CJ64: =+V64*KeyAssumptionsPriceControl_FO!AH$15 -> 0 | CK64: =+W64*KeyAssumptionsPriceControl_FO!AI$15 -> 0 | CL64: =+X64*KeyAssumptionsPriceControl_FO!AJ$15 -> 0 | CM64: =+Y64*KeyAssumptionsPriceControl_FO!AK$15 -> 0 | CN64: =+Z64*KeyAssumptionsPriceControl_FO!AL$15 -> 0 | CP64: 0.01839437046 | CQ64: 0.04440401029 | CR64: 0.05954281965 | CS64: 0.07485322353 | CT64: 0.09069949154 | CU64: 0.09875889567 | CV64: 0.09875889567 | CW64: 0.09875889567 | CX64: 0.09875889567 | CY64: 0.09875889567
C65: Sewer Treatment Renewals | E65: Sewerage | F65: Renewals | G65: Treatment | H65: Capital Programs / Allocation | J65: Straight line | K65: Ongoing | L65: 80 | M65: 80 | Q65: 1.605326877 | R65: 2.140435835 | S65: 2.140435835 | T65: 2.140435835 | U65: 2.140435835 | V65: 3.745762712 | W65: 3.745762712 | X65: 3.745762712 | Y65: 3.745762712 | Z65: 3.745762712 | AB65: 0 | AC65: 0 | AD65: 0 | AE65: 0 | AF65: 0 | AG65: 0 | AH65: 0 | AI65: 0 | AJ65: 0 | AK65: 0 | AM65: 0 | AN65: 0 | AO65: 0 | AP65: 0 | AQ65: 0 | AR65: 0 | AS65: 0 | AT65: 0 | AU65: 0 | AV65: 0 | AX65: 1.605326877 | AY65: 2.140435835 | AZ65: 2.140435835 | BA65: 2.140435835 | BB65: 2.140435835 | BC65: 3.745762712 | BD65: 3.745762712 | BE65: 3.745762712 | BF65: 3.745762712 | BG65: 3.745762712 | BI65: 0.01003329298 | BJ65: 0.03344430993 | BK65: 0.06019975787 | BL65: 0.08695520581 | BM65: 0.1137106538 | BN65: 0.1504993947 | BO65: 0.1973214286 | BP65: 0.2441434625 | BQ65: 0.2909654964 | BR65: 0.3377875303 | BT65: =+IF($K65="Ongoing",AX65,IF(RIGHT($K65,2)=RIGHT(BT$39,2),SUM($AX65:AX65),0)+IF(RIGHT(BT$39,2)>RIGHT($K65,2),AX65,0)) -> 1.605326877 | BU65: =+IF($K65="Ongoing",AY65,IF(RIGHT($K65,2)=RIGHT(BU$39,2),SUM($AX65:AY65),0)+IF(RIGHT(BU$39,2)>RIGHT($K65,2),AY65,0)) -> 2.140435835 | BV65: =+IF($K65="Ongoing",AZ65,IF(RIGHT($K65,2)=RIGHT(BV$39,2),SUM($AX65:AZ65),0)+IF(RIGHT(BV$39,2)>RIGHT($K65,2),AZ65,0)) -> 2.140435835 | BW65: =+IF($K65="Ongoing",BA65,IF(RIGHT($K65,2)=RIGHT(BW$39,2),SUM($AX65:BA65),0)+IF(RIGHT(BW$39,2)>RIGHT($K65,2),BA65,0)) -> 2.140435835 | BX65: =+IF($K65="Ongoing",BB65,IF(RIGHT($K65,2)=RIGHT(BX$39,2),SUM($AX65:BB65),0)+IF(RIGHT(BX$39,2)>RIGHT($K65,2),BB65,0)) -> 2.140435835 | BY65: =+IF($K65="Ongoing",BC65,IF(RIGHT($K65,2)=RIGHT(BY$39,2),SUM($AX65:BC65),0)+IF(RIGHT(BY$39,2)>RIGHT($K65,2),BC65,0)) -> 3.745762712 | BZ65: =+IF($K65="Ongoing",BD65,IF(RIGHT($K65,2)=RIGHT(BZ$39,2),SUM($AX65:BD65),0)+IF(RIGHT(BZ$39,2)>RIGHT($K65,2),BD65,0)) -> 3.745762712 | CA65: =+IF($K65="Ongoing",BE65,IF(RIGHT($K65,2)=RIGHT(CA$39,2),SUM($AX65:BE65),0)+IF(RIGHT(CA$39,2)>RIGHT($K65,2),BE65,0)) -> 3.745762712 | CB65: =+IF($K65="Ongoing",BF65,IF(RIGHT($K65,2)=RIGHT(CB$39,2),SUM($AX65:BF65),0)+IF(RIGHT(CB$39,2)>RIGHT($K65,2),BF65,0)) -> 3.745762712 | CC65: =+IF($K65="Ongoing",BG65,IF(RIGHT($K65,2)=RIGHT(CC$39,2),SUM($AX65:BG65),0)+IF(RIGHT(CC$39,2)>RIGHT($K65,2),BG65,0)) -> 3.745762712 | CE65: =+Q65*KeyAssumptionsPriceControl_FO!AC$15 -> 1.605326877 | CF65: =+R65*KeyAssumptionsPriceControl_FO!AD$15 -> 2.21535109 | CG65: =+S65*KeyAssumptionsPriceControl_FO!AE$15 -> 2.292888378 | CH65: =+T65*KeyAssumptionsPriceControl_FO!AF$15 -> 2.373139471 | CI65: =+U65*KeyAssumptionsPriceControl_FO!AG$15 -> 2.456199352 | CJ65: =+V65*KeyAssumptionsPriceControl_FO!AH$15 -> 4.448791077 | CK65: =+W65*KeyAssumptionsPriceControl_FO!AI$15 -> 4.604498765 | CL65: =+X65*KeyAssumptionsPriceControl_FO!AJ$15 -> 4.765656222 | CM65: =+Y65*KeyAssumptionsPriceControl_FO!AK$15 -> 4.932454189 | CN65: =+Z65*KeyAssumptionsPriceControl_FO!AL$15 -> 5.105090086 | CP65: 0.01003329298 | CQ65: 0.03391253027 | CR65: 0.06208902694 | CS65: 0.09125170099 | CT65: 0.1214350686 | CU65: 0.1645912588 | CV65: 0.2211743203 | CW65: 0.279737789 | CX65: 0.3403509791 | CY65: 0.4030856308
C66: Dams works | E66: Water | F66: Renewals | G66: Headworks | H66: Capital Programs / Allocation | J66: Straight line | K66: Ongoing | L66: 60 | M66: 60 | Q66: 4.3630675 | R66: 5.8708875 | S66: 5.077625673 | T66: 2.557343391 | U66: 3.389713641 | V66: 3.389713641 | W66: 3.389713641 | X66: 3.389713641 | Y66: 3.389713641 | Z66: 3.389713641 | AB66: 0 | AC66: 0 | AD66: 0 | AE66: 0 | AF66: 0 | AG66: 0 | AH66: 0 | AI66: 0 | AJ66: 0 | AK66: 0 | AM66: 0 | AN66: 0 | AO66: 0 | AP66: 0 | AQ66: 0 | AR66: 0 | AS66: 0 | AT66: 0 | AU66: 0 | AV66: 0 | AX66: 4.3630675 | AY66: 5.8708875 | AZ66: 5.077625673 | BA66: 2.557343391 | BB66: 3.389713641 | BC66: 3.389713641 | BD66: 3.389713641 | BE66: 3.389713641 | BF66: 3.389713641 | BG66: 3.389713641 | BI66: 0.03635889583 | BJ66: 0.1216418542 | BK66: 0.2128794639 | BL66: 0.2765042061 | BM66: 0.3260630147 | BN66: 0.3825582421 | BO66: 0.4390534694 | BP66: 0.4955486968 | BQ66: 0.5520439241 | BR66: 0.6085391515 | BT66: =+IF($K66="Ongoing",AX66,IF(RIGHT($K66,2)=RIGHT(BT$39,2),SUM($AX66:AX66),0)+IF(RIGHT(BT$39,2)>RIGHT($K66,2),AX66,0)) -> 4.3630675 | BU66: =+IF($K66="Ongoing",AY66,IF(RIGHT($K66,2)=RIGHT(BU$39,2),SUM($AX66:AY66),0)+IF(RIGHT(BU$39,2)>RIGHT($K66,2),AY66,0)) -> 5.8708875 | BV66: =+IF($K66="Ongoing",AZ66,IF(RIGHT($K66,2)=RIGHT(BV$39,2),SUM($AX66:AZ66),0)+IF(RIGHT(BV$39,2)>RIGHT($K66,2),AZ66,0)) -> 5.077625673 | BW66: =+IF($K66="Ongoing",BA66,IF(RIGHT($K66,2)=RIGHT(BW$39,2),SUM($AX66:BA66),0)+IF(RIGHT(BW$39,2)>RIGHT($K66,2),BA66,0)) -> 2.557343391 | BX66: =+IF($K66="Ongoing",BB66,IF(RIGHT($K66,2)=RIGHT(BX$39,2),SUM($AX66:BB66),0)+IF(RIGHT(BX$39,2)>RIGHT($K66,2),BB66,0)) -> 3.389713641 | BY66: =+IF($K66="Ongoing",BC66,IF(RIGHT($K66,2)=RIGHT(BY$39,2),SUM($AX66:BC66),0)+IF(RIGHT(BY$39,2)>RIGHT($K66,2),BC66,0)) -> 3.389713641 | BZ66: =+IF($K66="Ongoing",BD66,IF(RIGHT($K66,2)=RIGHT(BZ$39,2),SUM($AX66:BD66),0)+IF(RIGHT(BZ$39,2)>RIGHT($K66,2),BD66,0)) -> 3.389713641 | CA66: =+IF($K66="Ongoing",BE66,IF(RIGHT($K66,2)=RIGHT(CA$39,2),SUM($AX66:BE66),0)+IF(RIGHT(CA$39,2)>RIGHT($K66,2),BE66,0)) -> 3.389713641 | CB66: =+IF($K66="Ongoing",BF66,IF(RIGHT($K66,2)=RIGHT(CB$39,2),SUM($AX66:BF66),0)+IF(RIGHT(CB$39,2)>RIGHT($K66,2),BF66,0)) -> 3.389713641 | CC66: =+IF($K66="Ongoing",BG66,IF(RIGHT($K66,2)=RIGHT(CC$39,2),SUM($AX66:BG66),0)+IF(RIGHT(CC$39,2)>RIGHT($K66,2),BG66,0)) -> 3.389713641 | CE66: =+Q66*KeyAssumptionsPriceControl_FO!AC$15 -> 4.3630675 | CF66: =+R66*KeyAssumptionsPriceControl_FO!AD$15 -> 6.076368562 | CG66: =+S66*KeyAssumptionsPriceControl_FO!AE$15 -> 5.439279562 | CH66: =+T66*KeyAssumptionsPriceControl_FO!AF$15 -> 2.83537233 | CI66: =+U66*KeyAssumptionsPriceControl_FO!AG$15 -> 3.889774369 | CJ66: =+V66*KeyAssumptionsPriceControl_FO!AH$15 -> 4.025916471 | CK66: =+W66*KeyAssumptionsPriceControl_FO!AI$15 -> 4.166823548 | CL66: =+X66*KeyAssumptionsPriceControl_FO!AJ$15 -> 4.312662372 | CM66: =+Y66*KeyAssumptionsPriceControl_FO!AK$15 -> 4.463605555 | CN66: =+Z66*KeyAssumptionsPriceControl_FO!AL$15 -> 4.61983175 | CP66: 0.03635889583 | CQ66: 0.1233541964 | CR66: 0.2193179307 | CS66: 0.2882733632 | CT66: 0.3443162523 | CU66: 0.4102803426 | CV66: 0.4785531761 | CW66: 0.5492155588 | CX66: 0.6223511249 | CY66: 0.6980464357
C67: Water Growth | E67: Water | F67: Growth | G67: Pipelines/network | H67: Capital Programs / Allocation | J67: Straight line | K67: Ongoing | L67: 90 | M67: 90 | Q67: 18.48090736 | R67: 20.95236088 | S67: 15.87164679 | T67: 13.59651547 | U67: 19.07442588 | V67: 36.68246127 | W67: 37.4653632 | X67: 52.29675248 | Y67: 53.04191017 | Z67: 35.9011674 | AB67: 0 | AC67: 0 | AD67: 0 | AE67: 0 | AF67: 0 | AG67: 0 | AH67: 0 | AI67: 0 | AJ67: 0 | AK67: 0 | AM67: 0 | AN67: 0 | AO67: 0 | AP67: 0 | AQ67: 0 | AR67: 0 | AS67: 0 | AT67: 0 | AU67: 0 | AV67: 0 | AX67: 18.48090736 | AY67: 20.95236088 | AZ67: 15.87164679 | BA67: 13.59651547 | BB67: 19.07442588 | BC67: 36.68246127 | BD67: 37.4653632 | BE67: 52.29675248 | BF67: 53.04191017 | BG67: 35.9011674 | BI67: 0.1026717076 | BJ67: 0.32174542 | BK67: 0.5263232404 | BL67: 0.6900352529 | BM67: 0.8715404827 | BN67: 1.181300967 | BO67: 1.593233325 | BP67: 2.091911745 | BQ67: 2.677126538 | BR67: 3.171254747 | BT67: =+IF($K67="Ongoing",AX67,IF(RIGHT($K67,2)=RIGHT(BT$39,2),SUM($AX67:AX67),0)+IF(RIGHT(BT$39,2)>RIGHT($K67,2),AX67,0)) -> 18.48090736 | BU67: =+IF($K67="Ongoing",AY67,IF(RIGHT($K67,2)=RIGHT(BU$39,2),SUM($AX67:AY67),0)+IF(RIGHT(BU$39,2)>RIGHT($K67,2),AY67,0)) -> 20.95236088 | BV67: =+IF($K67="Ongoing",AZ67,IF(RIGHT($K67,2)=RIGHT(BV$39,2),SUM($AX67:AZ67),0)+IF(RIGHT(BV$39,2)>RIGHT($K67,2),AZ67,0)) -> 15.87164679 | BW67: =+IF($K67="Ongoing",BA67,IF(RIGHT($K67,2)=RIGHT(BW$39,2),SUM($AX67:BA67),0)+IF(RIGHT(BW$39,2)>RIGHT($K67,2),BA67,0)) -> 13.59651547 | BX67: =+IF($K67="Ongoing",BB67,IF(RIGHT($K67,2)=RIGHT(BX$39,2),SUM($AX67:BB67),0)+IF(RIGHT(BX$39,2)>RIGHT($K67,2),BB67,0)) -> 19.07442588 | BY67: =+IF($K67="Ongoing",BC67,IF(RIGHT($K67,2)=RIGHT(BY$39,2),SUM($AX67:BC67),0)+IF(RIGHT(BY$39,2)>RIGHT($K67,2),BC67,0)) -> 36.68246127 | BZ67: =+IF($K67="Ongoing",BD67,IF(RIGHT($K67,2)=RIGHT(BZ$39,2),SUM($AX67:BD67),0)+IF(RIGHT(BZ$39,2)>RIGHT($K67,2),BD67,0)) -> 37.4653632 | CA67: =+IF($K67="Ongoing",BE67,IF(RIGHT($K67,2)=RIGHT(CA$39,2),SUM($AX67:BE67),0)+IF(RIGHT(CA$39,2)>RIGHT($K67,2),BE67,0)) -> 52.29675248 | CB67: =+IF($K67="Ongoing",BF67,IF(RIGHT($K67,2)=RIGHT(CB$39,2),SUM($AX67:BF67),0)+IF(RIGHT(CB$39,2)>RIGHT($K67,2),BF67,0)) -> 53.04191017 | CC67: =+IF($K67="Ongoing",BG67,IF(RIGHT($K67,2)=RIGHT(CC$39,2),SUM($AX67:BG67),0)+IF(RIGHT(CC$39,2)>RIGHT($K67,2),BG67,0)) -> 35.9011674 | CE67: =+Q67*KeyAssumptionsPriceControl_FO!AC$15 -> 18.48090736 | CF67: =+R67*KeyAssumptionsPriceControl_FO!AD$15 -> 21.68569351 | CG67: =+S67*KeyAssumptionsPriceControl_FO!AE$15 -> 17.00210483 | CH67: =+T67*KeyAssumptionsPriceControl_FO!AF$15 -> 15.07469974 | CI67: =+U67*KeyAssumptionsPriceControl_FO!AG$15 -> 21.88834242 | CJ67: =+V67*KeyAssumptionsPriceControl_FO!AH$15 -> 43.56725691 | CK67: =+W67*KeyAssumptionsPriceControl_FO!AI$15 -> 46.05449727 | CL67: =+X67*KeyAssumptionsPriceControl_FO!AJ$15 -> 66.53607369 | CM67: =+Y67*KeyAssumptionsPriceControl_FO!AK$15 -> 69.84606665 | CN67: =+Z67*KeyAssumptionsPriceControl_FO!AL$15 -> 48.92960603 | CP67: 0.1026717076 | CQ67: 0.3258194902 | CR67: 0.5407517032 | CS67: 0.718956173 | CT67: 0.9243064073 | CU67: 1.287948626 | CV67: 1.78584726 | CW67: 2.411350432 | CX67: 3.169028989 | CY67: 3.828893838
C68: Water Main Risk Renewals | E68: Water | F68: Renewals | G68: Pipelines/network | H68: Capital Programs / Allocation | J68: Straight line | K68: Ongoing | L68: 90 | M68: 90 | Q68: 15.47 | R68: 24.94 | S68: 23 | T68: 23.44 | U68: 14.98 | V68: 17.64789346 | W68: 31.02561743 | X68: 42.58397094 | Y68: 39.90842615 | Z68: 47.39995157 | AB68: 0 | AC68: 0 | AD68: 0 | AE68: 0 | AF68: 0 | AG68: 0 | AH68: 0 | AI68: 0 | AJ68: 0 | AK68: 0 | AM68: 0 | AN68: 0 | AO68: 0 | AP68: 0 | AQ68: 0 | AR68: 0 | AS68: 0 | AT68: 0 | AU68: 0 | AV68: 0 | AX68: 15.47 | AY68: 24.94 | AZ68: 23 | BA68: 23.44 | BB68: 14.98 | BC68: 17.64789346 | BD68: 31.02561743 | BE68: 42.58397094 | BF68: 39.90842615 | BG68: 47.39995157 | BI68: 0.08594444444 | BJ68: 0.3104444444 | BK68: 0.5767777778 | BL68: 0.8347777778 | BM68: 1.048222222 | BN68: 1.229488297 | BO68: 1.499896691 | BP68: 1.908838849 | BQ68: 2.367129944 | BR68: 2.852176486 | BT68: =+IF($K68="Ongoing",AX68,IF(RIGHT($K68,2)=RIGHT(BT$39,2),SUM($AX68:AX68),0)+IF(RIGHT(BT$39,2)>RIGHT($K68,2),AX68,0)) -> 15.47 | BU68: =+IF($K68="Ongoing",AY68,IF(RIGHT($K68,2)=RIGHT(BU$39,2),SUM($AX68:AY68),0)+IF(RIGHT(BU$39,2)>RIGHT($K68,2),AY68,0)) -> 24.94 | BV68: =+IF($K68="Ongoing",AZ68,IF(RIGHT($K68,2)=RIGHT(BV$39,2),SUM($AX68:AZ68),0)+IF(RIGHT(BV$39,2)>RIGHT($K68,2),AZ68,0)) -> 23 | BW68: =+IF($K68="Ongoing",BA68,IF(RIGHT($K68,2)=RIGHT(BW$39,2),SUM($AX68:BA68),0)+IF(RIGHT(BW$39,2)>RIGHT($K68,2),BA68,0)) -> 23.44 | BX68: =+IF($K68="Ongoing",BB68,IF(RIGHT($K68,2)=RIGHT(BX$39,2),SUM($AX68:BB68),0)+IF(RIGHT(BX$39,2)>RIGHT($K68,2),BB68,0)) -> 14.98 | BY68: =+IF($K68="Ongoing",BC68,IF(RIGHT($K68,2)=RIGHT(BY$39,2),SUM($AX68:BC68),0)+IF(RIGHT(BY$39,2)>RIGHT($K68,2),BC68,0)) -> 17.64789346 | BZ68: =+IF($K68="Ongoing",BD68,IF(RIGHT($K68,2)=RIGHT(BZ$39,2),SUM($AX68:BD68),0)+IF(RIGHT(BZ$39,2)>RIGHT($K68,2),BD68,0)) -> 31.02561743 | CA68: =+IF($K68="Ongoing",BE68,IF(RIGHT($K68,2)=RIGHT(CA$39,2),SUM($AX68:BE68),0)+IF(RIGHT(CA$39,2)>RIGHT($K68,2),BE68,0)) -> 42.58397094 | CB68: =+IF($K68="Ongoing",BF68,IF(RIGHT($K68,2)=RIGHT(CB$39,2),SUM($AX68:BF68),0)+IF(RIGHT(CB$39,2)>RIGHT($K68,2),BF68,0)) -> 39.90842615 | CC68: =+IF($K68="Ongoing",BG68,IF(RIGHT($K68,2)=RIGHT(CC$39,2),SUM($AX68:BG68),0)+IF(RIGHT(CC$39,2)>RIGHT($K68,2),BG68,0)) -> 47.39995157 | CE68: =+Q68*KeyAssumptionsPriceControl_FO!AC$15 -> 15.47 | CF68: =+R68*KeyAssumptionsPriceControl_FO!AD$15 -> 25.8129 | CG68: =+S68*KeyAssumptionsPriceControl_FO!AE$15 -> 24.638175 | CH68: =+T68*KeyAssumptionsPriceControl_FO!AF$15 -> 25.98834699 | CI68: =+U68*KeyAssumptionsPriceControl_FO!AG$15 -> 17.18989455 | CJ68: =+V68*KeyAssumptionsPriceControl_FO!AH$15 -> 20.96016139 | CK68: =+W68*KeyAssumptionsPriceControl_FO!AI$15 -> 38.13840548 | CL68: =+X68*KeyAssumptionsPriceControl_FO!AJ$15 -> 54.17870316 | CM68: =+Y68*KeyAssumptionsPriceControl_FO!AK$15 -> 52.55177621 | CN68: =+Z68*KeyAssumptionsPriceControl_FO!AL$15 -> 64.60126854 | CP68: 0.08594444444 | CQ68: 0.3152938889 | CR68: 0.5955776389 | CS68: 0.8768360944 | CT68: 1.116715214 | CU68: 1.328659969 | CV68: 1.656985341 | CW68: 2.169858167 | CX68: 2.762805274 | CY68: 3.413655523
C69: Water Main Performance Renewals | E69: Water | F69: Renewals | G69: Pipelines/network | H69: Capital Programs / Allocation | J69: Straight line | K69: Ongoing | L69: 90 | M69: 90 | Q69: 38.67791923 | R69: 39.86315354 | S69: 39.18278598 | T69: 39.79235075 | U69: 39.71563956 | V69: 41.25690073 | W69: 41.25690073 | X69: 41.25690073 | Y69: 41.25690073 | Z69: 41.25690073 | AB69: 0 | AC69: 0 | AD69: 0 | AE69: 0 | AF69: 0 | AG69: 0 | AH69: 0 | AI69: 0 | AJ69: 0 | AK69: 0 | AM69: 0 | AN69: 0 | AO69: 0 | AP69: 0 | AQ69: 0 | AR69: 0 | AS69: 0 | AT69: 0 | AU69: 0 | AV69: 0 | AX69: 38.67791923 | AY69: 39.86315354 | AZ69: 39.18278598 | BA69: 39.79235075 | BB69: 39.71563956 | BC69: 41.25690073 | BD69: 41.25690073 | BE69: 41.25690073 | BF69: 41.25690073 | BG69: 41.25690073 | BI69: 0.214877329 | BJ69: 0.6512166222 | BK69: 1.090360731 | BL69: 1.52911149 | BM69: 1.970822548 | BN69: 2.420669994 | BO69: 2.879080002 | BP69: 3.33749001 | BQ69: 3.795900018 | BR69: 4.254310026 | BT69: =+IF($K69="Ongoing",AX69,IF(RIGHT($K69,2)=RIGHT(BT$39,2),SUM($AX69:AX69),0)+IF(RIGHT(BT$39,2)>RIGHT($K69,2),AX69,0)) -> 38.67791923 | BU69: =+IF($K69="Ongoing",AY69,IF(RIGHT($K69,2)=RIGHT(BU$39,2),SUM($AX69:AY69),0)+IF(RIGHT(BU$39,2)>RIGHT($K69,2),AY69,0)) -> 39.86315354 | BV69: =+IF($K69="Ongoing",AZ69,IF(RIGHT($K69,2)=RIGHT(BV$39,2),SUM($AX69:AZ69),0)+IF(RIGHT(BV$39,2)>RIGHT($K69,2),AZ69,0)) -> 39.18278598 | BW69: =+IF($K69="Ongoing",BA69,IF(RIGHT($K69,2)=RIGHT(BW$39,2),SUM($AX69:BA69),0)+IF(RIGHT(BW$39,2)>RIGHT($K69,2),BA69,0)) -> 39.79235075 | BX69: =+IF($K69="Ongoing",BB69,IF(RIGHT($K69,2)=RIGHT(BX$39,2),SUM($AX69:BB69),0)+IF(RIGHT(BX$39,2)>RIGHT($K69,2),BB69,0)) -> 39.71563956 | BY69: =+IF($K69="Ongoing",BC69,IF(RIGHT($K69,2)=RIGHT(BY$39,2),SUM($AX69:BC69),0)+IF(RIGHT(BY$39,2)>RIGHT($K69,2),BC69,0)) -> 41.25690073 | BZ69: =+IF($K69="Ongoing",BD69,IF(RIGHT($K69,2)=RIGHT(BZ$39,2),SUM($AX69:BD69),0)+IF(RIGHT(BZ$39,2)>RIGHT($K69,2),BD69,0)) -> 41.25690073 | CA69: =+IF($K69="Ongoing",BE69,IF(RIGHT($K69,2)=RIGHT(CA$39,2),SUM($AX69:BE69),0)+IF(RIGHT(CA$39,2)>RIGHT($K69,2),BE69,0)) -> 41.25690073 | CB69: =+IF($K69="Ongoing",BF69,IF(RIGHT($K69,2)=RIGHT(CB$39,2),SUM($AX69:BF69),0)+IF(RIGHT(CB$39,2)>RIGHT($K69,2),BF69,0)) -> 41.25690073 | CC69: =+IF($K69="Ongoing",BG69,IF(RIGHT($K69,2)=RIGHT(CC$39,2),SUM($AX69:BG69),0)+IF(RIGHT(CC$39,2)>RIGHT($K69,2),BG69,0)) -> 41.25690073 | CE69: =+Q69*KeyAssumptionsPriceControl_FO!AC$15 -> 38.67791923 | CF69: =+R69*KeyAssumptionsPriceControl_FO!AD$15 -> 41.25836392 | CG69: =+S69*KeyAssumptionsPriceControl_FO!AE$15 -> 41.97357991 | CH69: =+T69*KeyAssumptionsPriceControl_FO!AF$15 -> 44.11849057 | CI69: =+U69*KeyAssumptionsPriceControl_FO!AG$15 -> 45.57460988 | CJ69: =+V69*KeyAssumptionsPriceControl_FO!AH$15 -> 49.00025601 | CK69: =+W69*KeyAssumptionsPriceControl_FO!AI$15 -> 50.71526497 | CL69: =+X69*KeyAssumptionsPriceControl_FO!AJ$15 -> 52.49029924 | CM69: =+Y69*KeyAssumptionsPriceControl_FO!AK$15 -> 54.32745971 | CN69: =+Z69*KeyAssumptionsPriceControl_FO!AL$15 -> 56.2289208 | CP69: 0.214877329 | CQ69: 0.6589677909 | CR69: 1.121367479 | CS69: 1.599656759 | CT69: 2.097951762 | CU69: 2.623367683 | CV69: 3.1773428 | CW69: 3.750707046 | CX69: 4.34413904 | CY69: 4.958341154
C70: Water Main Performance Renewals | E70: Water | F70: Improvements / Compliance | G70: Pipelines/network | H70: Capital Programs / Allocation | J70: Straight line | K70: Ongoing | L70: 90 | M70: 90 | Q70: 0 | R70: 0.1070217918 | S70: 0.1070217918 | T70: 0.1070217918 | U70: 0.1070217918 | V70: 0 | W70: 0 | X70: 0 | Y70: 0 | Z70: 0 | AB70: 0 | AC70: 0 | AD70: 0 | AE70: 0 | AF70: 0 | AG70: 0 | AH70: 0 | AI70: 0 | AJ70: 0 | AK70: 0 | AM70: 0 | AN70: 0 | AO70: 0 | AP70: 0 | AQ70: 0 | AR70: 0 | AS70: 0 | AT70: 0 | AU70: 0 | AV70: 0 | AX70: 0 | AY70: 0.1070217918 | AZ70: 0.1070217918 | BA70: 0.1070217918 | BB70: 0.1070217918 | BC70: 0 | BD70: 0 | BE70: 0 | BF70: 0 | BG70: 0 | BI70: 0 | BJ70: 0.0005945655098 | BK70: 0.001783696529 | BL70: 0.002972827549 | BM70: 0.004161958569 | BN70: 0.004756524079 | BO70: 0.004756524079 | BP70: 0.004756524079 | BQ70: 0.004756524079 | BR70: 0.004756524079 | BT70: =+IF($K70="Ongoing",AX70,IF(RIGHT($K70,2)=RIGHT(BT$39,2),SUM($AX70:AX70),0)+IF(RIGHT(BT$39,2)>RIGHT($K70,2),AX70,0)) -> 0 | BU70: =+IF($K70="Ongoing",AY70,IF(RIGHT($K70,2)=RIGHT(BU$39,2),SUM($AX70:AY70),0)+IF(RIGHT(BU$39,2)>RIGHT($K70,2),AY70,0)) -> 0.1070217918 | BV70: =+IF($K70="Ongoing",AZ70,IF(RIGHT($K70,2)=RIGHT(BV$39,2),SUM($AX70:AZ70),0)+IF(RIGHT(BV$39,2)>RIGHT($K70,2),AZ70,0)) -> 0.1070217918 | BW70: =+IF($K70="Ongoing",BA70,IF(RIGHT($K70,2)=RIGHT(BW$39,2),SUM($AX70:BA70),0)+IF(RIGHT(BW$39,2)>RIGHT($K70,2),BA70,0)) -> 0.1070217918 | BX70: =+IF($K70="Ongoing",BB70,IF(RIGHT($K70,2)=RIGHT(BX$39,2),SUM($AX70:BB70),0)+IF(RIGHT(BX$39,2)>RIGHT($K70,2),BB70,0)) -> 0.1070217918 | BY70: =+IF($K70="Ongoing",BC70,IF(RIGHT($K70,2)=RIGHT(BY$39,2),SUM($AX70:BC70),0)+IF(RIGHT(BY$39,2)>RIGHT($K70,2),BC70,0)) -> 0 | BZ70: =+IF($K70="Ongoing",BD70,IF(RIGHT($K70,2)=RIGHT(BZ$39,2),SUM($AX70:BD70),0)+IF(RIGHT(BZ$39,2)>RIGHT($K70,2),BD70,0)) -> 0 | CA70: =+IF($K70="Ongoing",BE70,IF(RIGHT($K70,2)=RIGHT(CA$39,2),SUM($AX70:BE70),0)+IF(RIGHT(CA$39,2)>RIGHT($K70,2),BE70,0)) -> 0 | CB70: =+IF($K70="Ongoing",BF70,IF(RIGHT($K70,2)=RIGHT(CB$39,2),SUM($AX70:BF70),0)+IF(RIGHT(CB$39,2)>RIGHT($K70,2),BF70,0)) -> 0 | CC70: =+IF($K70="Ongoing",BG70,IF(RIGHT($K70,2)=RIGHT(CC$39,2),SUM($AX70:BG70),0)+IF(RIGHT(CC$39,2)>RIGHT($K70,2),BG70,0)) -> 0 | CE70: =+Q70*KeyAssumptionsPriceControl_FO!AC$15 -> 0 | CF70: =+R70*KeyAssumptionsPriceControl_FO!AD$15 -> 0.1107675545 | CG70: =+S70*KeyAssumptionsPriceControl_FO!AE$15 -> 0.1146444189 | CH70: =+T70*KeyAssumptionsPriceControl_FO!AF$15 -> 0.1186569735 | CI70: =+U70*KeyAssumptionsPriceControl_FO!AG$15 -> 0.1228099676 | CJ70: =+V70*KeyAssumptionsPriceControl_FO!AH$15 -> 0 | CK70: =+W70*KeyAssumptionsPriceControl_FO!AI$15 -> 0 | CL70: =+X70*KeyAssumptionsPriceControl_FO!AJ$15 -> 0 | CM70: =+Y70*KeyAssumptionsPriceControl_FO!AK$15 -> 0 | CN70: =+Z70*KeyAssumptionsPriceControl_FO!AL$15 -> 0 | CP70: 0 | CQ70: 0.0006153753027 | CR70: 0.001867664044 | CS70: 0.00316378289 | CT70: 0.004505265897 | CU70: 0.005187543495 | CV70: 0.005187543495 | CW70: 0.005187543495 | CX70: 0.005187543495 | CY70: 0.005187543495
C71: Water Tank Renewals | E71: Water | F71: Renewals | G71: Pipelines/network | H71: Capital Programs / Allocation | J71: Straight line | K71: Ongoing | L71: 90 | M71: 90 | Q71: 6.921307506 | R71: 2 | S71: 1.8 | T71: 1.85 | U71: 2.75 | V71: 2.889588378 | W71: 2.889588378 | X71: 2.889588378 | Y71: 2.889588378 | Z71: 2.889588378 | AB71: 0 | AC71: 0 | AD71: 0 | AE71: 0 | AF71: 0 | AG71: 0 | AH71: 0 | AI71: 0 | AJ71: 0 | AK71: 0 | AM71: 0 | AN71: 0 | AO71: 0 | AP71: 0 | AQ71: 0 | AR71: 0 | AS71: 0 | AT71: 0 | AU71: 0 | AV71: 0 | AX71: 6.921307506 | AY71: 2 | AZ71: 1.8 | BA71: 1.85 | BB71: 2.75 | BC71: 2.889588378 | BD71: 2.889588378 | BE71: 2.889588378 | BF71: 2.889588378 | BG71: 2.889588378 | BI71: 0.03845170837 | BJ71: 0.08801452785 | BK71: 0.109125639 | BL71: 0.1294034167 | BM71: 0.1549589723 | BN71: 0.1862900188 | BO71: 0.2183965564 | BP71: 0.2505030939 | BQ71: 0.2826096314 | BR71: 0.314716169 | BT71: =+IF($K71="Ongoing",AX71,IF(RIGHT($K71,2)=RIGHT(BT$39,2),SUM($AX71:AX71),0)+IF(RIGHT(BT$39,2)>RIGHT($K71,2),AX71,0)) -> 6.921307506 | BU71: =+IF($K71="Ongoing",AY71,IF(RIGHT($K71,2)=RIGHT(BU$39,2),SUM($AX71:AY71),0)+IF(RIGHT(BU$39,2)>RIGHT($K71,2),AY71,0)) -> 2 | BV71: =+IF($K71="Ongoing",AZ71,IF(RIGHT($K71,2)=RIGHT(BV$39,2),SUM($AX71:AZ71),0)+IF(RIGHT(BV$39,2)>RIGHT($K71,2),AZ71,0)) -> 1.8 | BW71: =+IF($K71="Ongoing",BA71,IF(RIGHT($K71,2)=RIGHT(BW$39,2),SUM($AX71:BA71),0)+IF(RIGHT(BW$39,2)>RIGHT($K71,2),BA71,0)) -> 1.85 | BX71: =+IF($K71="Ongoing",BB71,IF(RIGHT($K71,2)=RIGHT(BX$39,2),SUM($AX71:BB71),0)+IF(RIGHT(BX$39,2)>RIGHT($K71,2),BB71,0)) -> 2.75 | BY71: =+IF($K71="Ongoing",BC71,IF(RIGHT($K71,2)=RIGHT(BY$39,2),SUM($AX71:BC71),0)+IF(RIGHT(BY$39,2)>RIGHT($K71,2),BC71,0)) -> 2.889588378 | BZ71: =+IF($K71="Ongoing",BD71,IF(RIGHT($K71,2)=RIGHT(BZ$39,2),SUM($AX71:BD71),0)+IF(RIGHT(BZ$39,2)>RIGHT($K71,2),BD71,0)) -> 2.889588378 | CA71: =+IF($K71="Ongoing",BE71,IF(RIGHT($K71,2)=RIGHT(CA$39,2),SUM($AX71:BE71),0)+IF(RIGHT(CA$39,2)>RIGHT($K71,2),BE71,0)) -> 2.889588378 | CB71: =+IF($K71="Ongoing",BF71,IF(RIGHT($K71,2)=RIGHT(CB$39,2),SUM($AX71:BF71),0)+IF(RIGHT(CB$39,2)>RIGHT($K71,2),BF71,0)) -> 2.889588378 | CC71: =+IF($K71="Ongoing",BG71,IF(RIGHT($K71,2)=RIGHT(CC$39,2),SUM($AX71:BG71),0)+IF(RIGHT(CC$39,2)>RIGHT($K71,2),BG71,0)) -> 2.889588378 | CE71: =+Q71*KeyAssumptionsPriceControl_FO!AC$15 -> 6.921307506 | CF71: =+R71*KeyAssumptionsPriceControl_FO!AD$15 -> 2.07 | CG71: =+S71*KeyAssumptionsPriceControl_FO!AE$15 -> 1.928205 | CH71: =+T71*KeyAssumptionsPriceControl_FO!AF$15 -> 2.051128069 | CI71: =+U71*KeyAssumptionsPriceControl_FO!AG$15 -> 3.155688252 | CJ71: =+V71*KeyAssumptionsPriceControl_FO!AH$15 -> 3.431924545 | CK71: =+W71*KeyAssumptionsPriceControl_FO!AI$15 -> 3.552041904 | CL71: =+X71*KeyAssumptionsPriceControl_FO!AJ$15 -> 3.676363371 | CM71: =+Y71*KeyAssumptionsPriceControl_FO!AK$15 -> 3.805036089 | CN71: =+Z71*KeyAssumptionsPriceControl_FO!AL$15 -> 3.938212352 | CP71: 0.03845170837 | CQ71: 0.08840341673 | CR71: 0.1106156667 | CS71: 0.1327230727 | CT71: 0.16164983 | CU71: 0.1982476789 | CV71: 0.2370474925 | CW71: 0.2772052996 | CX71: 0.3187686299 | CY71: 0.3617866768
C72: Water Treatment Growth | E72: Water | F72: Growth | G72: Treatment | H72: Capital Programs / Allocation | J72: Straight line | K72: Ongoing | L72: 80 | M72: 80 | Q72: 2.114636092 | R72: 11.06070218 | S72: 5.661452785 | T72: 5.351089588 | U72: 12.09346247 | V72: 13.91283293 | W72: 19.26392252 | X72: 19.26392252 | Y72: 8.561743341 | Z72: 8.561743341 | AB72: 0 | AC72: 0 | AD72: 0 | AE72: 0 | AF72: 0 | AG72: 0 | AH72: 0 | AI72: 0 | AJ72: 0 | AK72: 0 | AM72: 0 | AN72: 0 | AO72: 0 | AP72: 0 | AQ72: 0 | AR72: 0 | AS72: 0 | AT72: 0 | AU72: 0 | AV72: 0 | AX72: 2.114636092 | AY72: 11.06070218 | AZ72: 5.661452785 | BA72: 5.351089588 | BB72: 12.09346247 | BC72: 13.91283293 | BD72: 19.26392252 | BE72: 19.26392252 | BF72: 8.561743341 | BG72: 8.561743341 | BI72: 0.01321647558 | BJ72: 0.09556233977 | BK72: 0.2000758083 | BL72: 0.2689041981 | BM72: 0.3779326485 | BN72: 0.5404719947 | BO72: 0.7478267163 | BP72: 0.9886257478 | BQ72: 1.162536159 | BR72: 1.269557951 | BT72: =+IF($K72="Ongoing",AX72,IF(RIGHT($K72,2)=RIGHT(BT$39,2),SUM($AX72:AX72),0)+IF(RIGHT(BT$39,2)>RIGHT($K72,2),AX72,0)) -> 2.114636092 | BU72: =+IF($K72="Ongoing",AY72,IF(RIGHT($K72,2)=RIGHT(BU$39,2),SUM($AX72:AY72),0)+IF(RIGHT(BU$39,2)>RIGHT($K72,2),AY72,0)) -> 11.06070218 | BV72: =+IF($K72="Ongoing",AZ72,IF(RIGHT($K72,2)=RIGHT(BV$39,2),SUM($AX72:AZ72),0)+IF(RIGHT(BV$39,2)>RIGHT($K72,2),AZ72,0)) -> 5.661452785 | BW72: =+IF($K72="Ongoing",BA72,IF(RIGHT($K72,2)=RIGHT(BW$39,2),SUM($AX72:BA72),0)+IF(RIGHT(BW$39,2)>RIGHT($K72,2),BA72,0)) -> 5.351089588 | BX72: =+IF($K72="Ongoing",BB72,IF(RIGHT($K72,2)=RIGHT(BX$39,2),SUM($AX72:BB72),0)+IF(RIGHT(BX$39,2)>RIGHT($K72,2),BB72,0)) -> 12.09346247 | BY72: =+IF($K72="Ongoing",BC72,IF(RIGHT($K72,2)=RIGHT(BY$39,2),SUM($AX72:BC72),0)+IF(RIGHT(BY$39,2)>RIGHT($K72,2),BC72,0)) -> 13.91283293 | BZ72: =+IF($K72="Ongoing",BD72,IF(RIGHT($K72,2)=RIGHT(BZ$39,2),SUM($AX72:BD72),0)+IF(RIGHT(BZ$39,2)>RIGHT($K72,2),BD72,0)) -> 19.26392252 | CA72: =+IF($K72="Ongoing",BE72,IF(RIGHT($K72,2)=RIGHT(CA$39,2),SUM($AX72:BE72),0)+IF(RIGHT(CA$39,2)>RIGHT($K72,2),BE72,0)) -> 19.26392252 | CB72: =+IF($K72="Ongoing",BF72,IF(RIGHT($K72,2)=RIGHT(CB$39,2),SUM($AX72:BF72),0)+IF(RIGHT(CB$39,2)>RIGHT($K72,2),BF72,0)) -> 8.561743341 | CC72: =+IF($K72="Ongoing",BG72,IF(RIGHT($K72,2)=RIGHT(CC$39,2),SUM($AX72:BG72),0)+IF(RIGHT(CC$39,2)>RIGHT($K72,2),BG72,0)) -> 8.561743341 | CE72: =+Q72*KeyAssumptionsPriceControl_FO!AC$15 -> 2.114636092 | CF72: =+R72*KeyAssumptionsPriceControl_FO!AD$15 -> 11.44782676 | CG72: =+S72*KeyAssumptionsPriceControl_FO!AE$15 -> 6.064689759 | CH72: =+T72*KeyAssumptionsPriceControl_FO!AF$15 -> 5.932848677 | CI72: =+U72*KeyAssumptionsPriceControl_FO!AG$15 -> 13.87752634 | CJ72: =+V72*KeyAssumptionsPriceControl_FO!AH$15 -> 16.52408114 | CK72: =+W72*KeyAssumptionsPriceControl_FO!AI$15 -> 23.68027936 | CL72: =+X72*KeyAssumptionsPriceControl_FO!AJ$15 -> 24.50908914 | CM72: =+Y72*KeyAssumptionsPriceControl_FO!AK$15 -> 11.274181 | CN72: =+Z72*KeyAssumptionsPriceControl_FO!AL$15 -> 11.66877734 | CP72: 0.01321647558 | CQ72: 0.09798186837 | CR72: 0.2074350966 | CS72: 0.2824197118 | CT72: 0.4062345557 | CU72: 0.5962446025 | CV72: 0.8475218556 | CW72: 1.148705409 | CX72: 1.372350847 | CY72: 1.515744337
C73: Water Treatment Growth | E73: Water | F73: Improvements / Compliance | G73: Treatment | H73: Capital Programs / Allocation | J73: Straight line | K73: Ongoing | L73: 80 | M73: 80 | Q73: 1.765859564 | R73: 3.210653753 | S73: 2.782566586 | T73: 2.72905569 | U73: 0 | V73: 0 | W73: 0 | X73: 0 | Y73: 0 | Z73: 0 | AB73: 0 | AC73: 0 | AD73: 0 | AE73: 0 | AF73: 0 | AG73: 0 | AH73: 0 | AI73: 0 | AJ73: 0 | AK73: 0 | AM73: 0 | AN73: 0 | AO73: 0 | AP73: 0 | AQ73: 0 | AR73: 0 | AS73: 0 | AT73: 0 | AU73: 0 | AV73: 0 | AX73: 1.765859564 | AY73: 3.210653753 | AZ73: 2.782566586 | BA73: 2.72905569 | BB73: 0 | BC73: 0 | BD73: 0 | BE73: 0 | BF73: 0 | BG73: 0 | BI73: 0.01103662228 | BJ73: 0.04213983051 | BK73: 0.07959745763 | BL73: 0.1140450969 | BM73: 0.1311016949 | BN73: 0.1311016949 | BO73: 0.1311016949 | BP73: 0.1311016949 | BQ73: 0.1311016949 | BR73: 0.1311016949 | BT73: =+IF($K73="Ongoing",AX73,IF(RIGHT($K73,2)=RIGHT(BT$39,2),SUM($AX73:AX73),0)+IF(RIGHT(BT$39,2)>RIGHT($K73,2),AX73,0)) -> 1.765859564 | BU73: =+IF($K73="Ongoing",AY73,IF(RIGHT($K73,2)=RIGHT(BU$39,2),SUM($AX73:AY73),0)+IF(RIGHT(BU$39,2)>RIGHT($K73,2),AY73,0)) -> 3.210653753 | BV73: =+IF($K73="Ongoing",AZ73,IF(RIGHT($K73,2)=RIGHT(BV$39,2),SUM($AX73:AZ73),0)+IF(RIGHT(BV$39,2)>RIGHT($K73,2),AZ73,0)) -> 2.782566586 | BW73: =+IF($K73="Ongoing",BA73,IF(RIGHT($K73,2)=RIGHT(BW$39,2),SUM($AX73:BA73),0)+IF(RIGHT(BW$39,2)>RIGHT($K73,2),BA73,0)) -> 2.72905569 | BX73: =+IF($K73="Ongoing",BB73,IF(RIGHT($K73,2)=RIGHT(BX$39,2),SUM($AX73:BB73),0)+IF(RIGHT(BX$39,2)>RIGHT($K73,2),BB73,0)) -> 0 | BY73: =+IF($K73="Ongoing",BC73,IF(RIGHT($K73,2)=RIGHT(BY$39,2),SUM($AX73:BC73),0)+IF(RIGHT(BY$39,2)>RIGHT($K73,2),BC73,0)) -> 0 | BZ73: =+IF($K73="Ongoing",BD73,IF(RIGHT($K73,2)=RIGHT(BZ$39,2),SUM($AX73:BD73),0)+IF(RIGHT(BZ$39,2)>RIGHT($K73,2),BD73,0)) -> 0 | CA73: =+IF($K73="Ongoing",BE73,IF(RIGHT($K73,2)=RIGHT(CA$39,2),SUM($AX73:BE73),0)+IF(RIGHT(CA$39,2)>RIGHT($K73,2),BE73,0)) -> 0 | CB73: =+IF($K73="Ongoing",BF73,IF(RIGHT($K73,2)=RIGHT(CB$39,2),SUM($AX73:BF73),0)+IF(RIGHT(CB$39,2)>RIGHT($K73,2),BF73,0)) -> 0 | CC73: =+IF($K73="Ongoing",BG73,IF(RIGHT($K73,2)=RIGHT(CC$39,2),SUM($AX73:BG73),0)+IF(RIGHT(CC$39,2)>RIGHT($K73,2),BG73,0)) -> 0 | CE73: =+Q73*KeyAssumptionsPriceControl_FO!AC$15 -> 1.765859564 | CF73: =+R73*KeyAssumptionsPriceControl_FO!AD$15 -> 3.323026634 | CG73: =+S73*KeyAssumptionsPriceControl_FO!AE$15 -> 2.980754891 | CH73: =+T73*KeyAssumptionsPriceControl_FO!AF$15 -> 3.025752825 | CI73: =+U73*KeyAssumptionsPriceControl_FO!AG$15 -> 0 | CJ73: =+V73*KeyAssumptionsPriceControl_FO!AH$15 -> 0 | CK73: =+W73*KeyAssumptionsPriceControl_FO!AI$15 -> 0 | CL73: =+X73*KeyAssumptionsPriceControl_FO!AJ$15 -> 0 | CM73: =+Y73*KeyAssumptionsPriceControl_FO!AK$15 -> 0 | CN73: =+Z73*KeyAssumptionsPriceControl_FO!AL$15 -> 0 | CP73: 0.01103662228 | CQ73: 0.04284216102 | CR73: 0.08224079555 | CS73: 0.1197814688 | CT73: 0.1386924239 | CU73: 0.1386924239 | CV73: 0.1386924239 | CW73: 0.1386924239 | CX73: 0.1386924239 | CY73: 0.1386924239
C74: Water Treatment Renewals | E74: Water | F74: Renewals | G74: Treatment | H74: Capital Programs / Allocation | J74: Straight line | K74: Ongoing | L74: 80 | M74: 80 | Q74: 1.365521007 | R74: 1.605326877 | S74: 1.605326877 | T74: 1.605326877 | U74: 1.605326877 | V74: 5.351089588 | W74: 5.351089588 | X74: 5.351089588 | Y74: 5.351089588 | Z74: 5.351089588 | AB74: 0 | AC74: 0 | AD74: 0 | AE74: 0 | AF74: 0 | AG74: 0 | AH74: 0 | AI74: 0 | AJ74: 0 | AK74: 0 | AM74: 0 | AN74: 0 | AO74: 0 | AP74: 0 | AQ74: 0 | AR74: 0 | AS74: 0 | AT74: 0 | AU74: 0 | AV74: 0 | AX74: 1.365521007 | AY74: 1.605326877 | AZ74: 1.605326877 | BA74: 1.605326877 | BB74: 1.605326877 | BC74: 5.351089588 | BD74: 5.351089588 | BE74: 5.351089588 | BF74: 5.351089588 | BG74: 5.351089588 | BI74: 0.008534506295 | BJ74: 0.02710230557 | BK74: 0.04716889153 | BL74: 0.06723547748 | BM74: 0.08730206344 | BN74: 0.1307796663 | BO74: 0.1976682862 | BP74: 0.2645569061 | BQ74: 0.3314455259 | BR74: 0.3983341458 | BT74: =+IF($K74="Ongoing",AX74,IF(RIGHT($K74,2)=RIGHT(BT$39,2),SUM($AX74:AX74),0)+IF(RIGHT(BT$39,2)>RIGHT($K74,2),AX74,0)) -> 1.365521007 | BU74: =+IF($K74="Ongoing",AY74,IF(RIGHT($K74,2)=RIGHT(BU$39,2),SUM($AX74:AY74),0)+IF(RIGHT(BU$39,2)>RIGHT($K74,2),AY74,0)) -> 1.605326877 | BV74: =+IF($K74="Ongoing",AZ74,IF(RIGHT($K74,2)=RIGHT(BV$39,2),SUM($AX74:AZ74),0)+IF(RIGHT(BV$39,2)>RIGHT($K74,2),AZ74,0)) -> 1.605326877 | BW74: =+IF($K74="Ongoing",BA74,IF(RIGHT($K74,2)=RIGHT(BW$39,2),SUM($AX74:BA74),0)+IF(RIGHT(BW$39,2)>RIGHT($K74,2),BA74,0)) -> 1.605326877 | BX74: =+IF($K74="Ongoing",BB74,IF(RIGHT($K74,2)=RIGHT(BX$39,2),SUM($AX74:BB74),0)+IF(RIGHT(BX$39,2)>RIGHT($K74,2),BB74,0)) -> 1.605326877 | BY74: =+IF($K74="Ongoing",BC74,IF(RIGHT($K74,2)=RIGHT(BY$39,2),SUM($AX74:BC74),0)+IF(RIGHT(BY$39,2)>RIGHT($K74,2),BC74,0)) -> 5.351089588 | BZ74: =+IF($K74="Ongoing",BD74,IF(RIGHT($K74,2)=RIGHT(BZ$39,2),SUM($AX74:BD74),0)+IF(RIGHT(BZ$39,2)>RIGHT($K74,2),BD74,0)) -> 5.351089588 | CA74: =+IF($K74="Ongoing",BE74,IF(RIGHT($K74,2)=RIGHT(CA$39,2),SUM($AX74:BE74),0)+IF(RIGHT(CA$39,2)>RIGHT($K74,2),BE74,0)) -> 5.351089588 | CB74: =+IF($K74="Ongoing",BF74,IF(RIGHT($K74,2)=RIGHT(CB$39,2),SUM($AX74:BF74),0)+IF(RIGHT(CB$39,2)>RIGHT($K74,2),BF74,0)) -> 5.351089588 | CC74: =+IF($K74="Ongoing",BG74,IF(RIGHT($K74,2)=RIGHT(CC$39,2),SUM($AX74:BG74),0)+IF(RIGHT(CC$39,2)>RIGHT($K74,2),BG74,0)) -> 5.351089588 | CE74: =+Q74*KeyAssumptionsPriceControl_FO!AC$15 -> 1.365521007 | CF74: =+R74*KeyAssumptionsPriceControl_FO!AD$15 -> 1.661513317 | CG74: =+S74*KeyAssumptionsPriceControl_FO!AE$15 -> 1.719666283 | CH74: =+T74*KeyAssumptionsPriceControl_FO!AF$15 -> 1.779854603 | CI74: =+U74*KeyAssumptionsPriceControl_FO!AG$15 -> 1.842149514 | CJ74: =+V74*KeyAssumptionsPriceControl_FO!AH$15 -> 6.355415824 | CK74: =+W74*KeyAssumptionsPriceControl_FO!AI$15 -> 6.577855378 | CL74: =+X74*KeyAssumptionsPriceControl_FO!AJ$15 -> 6.808080316 | CM74: =+Y74*KeyAssumptionsPriceControl_FO!AK$15 -> 7.046363128 | CN74: =+Z74*KeyAssumptionsPriceControl_FO!AL$15 -> 7.292985837 | CP74: 0.008534506295 | CQ74: 0.02745347082 | CR74: 0.04858584333 | CS74: 0.07045784887 | CT74: 0.0930953746 | CU74: 0.144330158 | CV74: 0.225163103 | CW74: 0.3088252011 | CX74: 0.3954154726 | CY74: 0.4850364036
C75: Water Compliance | E75: Water | F75: Improvements / Compliance | G75: Pipelines/network | H75: Capital Programs / Allocation | J75: Straight line | K75: Ongoing | L75: 90 | M75: 90 | Q75: 2.730532688 | R75: 4.835528496 | S75: 5.172157008 | T75: 4.248522639 | U75: 3.71341368 | V75: 3.71341368 | W75: 3.71341368 | X75: 3.71341368 | Y75: 3.71341368 | Z75: 3.71341368 | AB75: 0 | AC75: 0 | AD75: 0 | AE75: 0 | AF75: 0 | AG75: 0 | AH75: 0 | AI75: 0 | AJ75: 0 | AK75: 0 | AM75: 0 | AN75: 0 | AO75: 0 | AP75: 0 | AQ75: 0 | AR75: 0 | AS75: 0 | AT75: 0 | AU75: 0 | AV75: 0 | AX75: 2.730532688 | AY75: 4.835528496 | AZ75: 5.172157008 | BA75: 4.248522639 | BB75: 3.71341368 | BC75: 3.71341368 | BD75: 3.71341368 | BE75: 3.71341368 | BF75: 3.71341368 | BG75: 3.71341368 | BI75: 0.01516962604 | BJ75: 0.05720329928 | BK75: 0.1128015521 | BL75: 0.1651386612 | BM75: 0.2093716408 | BN75: 0.2506317928 | BO75: 0.2918919448 | BP75: 0.3331520968 | BQ75: 0.3744122488 | BR75: 0.4156724008 | BT75: =+IF($K75="Ongoing",AX75,IF(RIGHT($K75,2)=RIGHT(BT$39,2),SUM($AX75:AX75),0)+IF(RIGHT(BT$39,2)>RIGHT($K75,2),AX75,0)) -> 2.730532688 | BU75: =+IF($K75="Ongoing",AY75,IF(RIGHT($K75,2)=RIGHT(BU$39,2),SUM($AX75:AY75),0)+IF(RIGHT(BU$39,2)>RIGHT($K75,2),AY75,0)) -> 4.835528496 | BV75: =+IF($K75="Ongoing",AZ75,IF(RIGHT($K75,2)=RIGHT(BV$39,2),SUM($AX75:AZ75),0)+IF(RIGHT(BV$39,2)>RIGHT($K75,2),AZ75,0)) -> 5.172157008 | BW75: =+IF($K75="Ongoing",BA75,IF(RIGHT($K75,2)=RIGHT(BW$39,2),SUM($AX75:BA75),0)+IF(RIGHT(BW$39,2)>RIGHT($K75,2),BA75,0)) -> 4.248522639 | BX75: =+IF($K75="Ongoing",BB75,IF(RIGHT($K75,2)=RIGHT(BX$39,2),SUM($AX75:BB75),0)+IF(RIGHT(BX$39,2)>RIGHT($K75,2),BB75,0)) -> 3.71341368 | BY75: =+IF($K75="Ongoing",BC75,IF(RIGHT($K75,2)=RIGHT(BY$39,2),SUM($AX75:BC75),0)+IF(RIGHT(BY$39,2)>RIGHT($K75,2),BC75,0)) -> 3.71341368 | BZ75: =+IF($K75="Ongoing",BD75,IF(RIGHT($K75,2)=RIGHT(BZ$39,2),SUM($AX75:BD75),0)+IF(RIGHT(BZ$39,2)>RIGHT($K75,2),BD75,0)) -> 3.71341368 | CA75: =+IF($K75="Ongoing",BE75,IF(RIGHT($K75,2)=RIGHT(CA$39,2),SUM($AX75:BE75),0)+IF(RIGHT(CA$39,2)>RIGHT($K75,2),BE75,0)) -> 3.71341368 | CB75: =+IF($K75="Ongoing",BF75,IF(RIGHT($K75,2)=RIGHT(CB$39,2),SUM($AX75:BF75),0)+IF(RIGHT(CB$39,2)>RIGHT($K75,2),BF75,0)) -> 3.71341368 | CC75: =+IF($K75="Ongoing",BG75,IF(RIGHT($K75,2)=RIGHT(CC$39,2),SUM($AX75:BG75),0)+IF(RIGHT(CC$39,2)>RIGHT($K75,2),BG75,0)) -> 3.71341368 | CE75: =+Q75*KeyAssumptionsPriceControl_FO!AC$15 -> 2.730532688 | CF75: =+R75*KeyAssumptionsPriceControl_FO!AD$15 -> 5.004771993 | CG75: =+S75*KeyAssumptionsPriceControl_FO!AE$15 -> 5.540543891 | CH75: =+T75*KeyAssumptionsPriceControl_FO!AF$15 -> 4.710412992 | CI75: =+U75*KeyAssumptionsPriceControl_FO!AG$15 -> 4.261227609 | CJ75: =+V75*KeyAssumptionsPriceControl_FO!AH$15 -> 4.410370575 | CK75: =+W75*KeyAssumptionsPriceControl_FO!AI$15 -> 4.564733546 | CL75: =+X75*KeyAssumptionsPriceControl_FO!AJ$15 -> 4.72449922 | CM75: =+Y75*KeyAssumptionsPriceControl_FO!AK$15 -> 4.889856692 | CN75: =+Z75*KeyAssumptionsPriceControl_FO!AL$15 -> 5.061001677 | CP75: 0.01516962604 | CQ75: 0.05814354094 | CR75: 0.1167286292 | CS75: 0.1736783896 | CT75: 0.2235208374 | CU75: 0.2716963829 | CV75: 0.3215580725 | CW75: 0.3731649212 | CX75: 0.4265780096 | CY75: 0.481860556
C76: Corporate Works | E76: Water | F76: Renewals | G76: Corporate | H76: Capital Programs / Allocation | J76: Straight line | K76: Ongoing | L76: 15 | M76: 15 | Q76: 1.349841253 | R76: 1.797223805 | S76: 1.164040932 | T76: 1.156347337 | U76: 1.160194135 | V76: 1.160194135 | W76: 1.160194135 | X76: 1.160194135 | Y76: 1.160194135 | Z76: 1.160194135 | AB76: 0 | AC76: 0 | AD76: 0 | AE76: 0 | AF76: 0 | AG76: 0 | AH76: 0 | AI76: 0 | AJ76: 0 | AK76: 0 | AM76: 0 | AN76: 0 | AO76: 0 | AP76: 0 | AQ76: 0 | AR76: 0 | AS76: 0 | AT76: 0 | AU76: 0 | AV76: 0 | AX76: 1.349841253 | AY76: 1.797223805 | AZ76: 1.164040932 | BA76: 1.156347337 | BB76: 1.160194135 | BC76: 1.160194135 | BD76: 1.160194135 | BE76: 1.160194135 | BF76: 1.160194135 | BG76: 1.160194135 | BI76: 0.04499470843 | BJ76: 0.149896877 | BK76: 0.2486057016 | BL76: 0.3259519772 | BM76: 0.4031700263 | BN76: 0.4805163019 | BO76: 0.5578625776 | BP76: 0.6352088532 | BQ76: 0.7125551289 | BR76: 0.7899014045 | BT76: =+IF($K76="Ongoing",AX76,IF(RIGHT($K76,2)=RIGHT(BT$39,2),SUM($AX76:AX76),0)+IF(RIGHT(BT$39,2)>RIGHT($K76,2),AX76,0)) -> 1.349841253 | BU76: =+IF($K76="Ongoing",AY76,IF(RIGHT($K76,2)=RIGHT(BU$39,2),SUM($AX76:AY76),0)+IF(RIGHT(BU$39,2)>RIGHT($K76,2),AY76,0)) -> 1.797223805 | BV76: =+IF($K76="Ongoing",AZ76,IF(RIGHT($K76,2)=RIGHT(BV$39,2),SUM($AX76:AZ76),0)+IF(RIGHT(BV$39,2)>RIGHT($K76,2),AZ76,0)) -> 1.164040932 | BW76: =+IF($K76="Ongoing",BA76,IF(RIGHT($K76,2)=RIGHT(BW$39,2),SUM($AX76:BA76),0)+IF(RIGHT(BW$39,2)>RIGHT($K76,2),BA76,0)) -> 1.156347337 | BX76: =+IF($K76="Ongoing",BB76,IF(RIGHT($K76,2)=RIGHT(BX$39,2),SUM($AX76:BB76),0)+IF(RIGHT(BX$39,2)>RIGHT($K76,2),BB76,0)) -> 1.160194135 | BY76: =+IF($K76="Ongoing",BC76,IF(RIGHT($K76,2)=RIGHT(BY$39,2),SUM($AX76:BC76),0)+IF(RIGHT(BY$39,2)>RIGHT($K76,2),BC76,0)) -> 1.160194135 | BZ76: =+IF($K76="Ongoing",BD76,IF(RIGHT($K76,2)=RIGHT(BZ$39,2),SUM($AX76:BD76),0)+IF(RIGHT(BZ$39,2)>RIGHT($K76,2),BD76,0)) -> 1.160194135 | CA76: =+IF($K76="Ongoing",BE76,IF(RIGHT($K76,2)=RIGHT(CA$39,2),SUM($AX76:BE76),0)+IF(RIGHT(CA$39,2)>RIGHT($K76,2),BE76,0)) -> 1.160194135 | CB76: =+IF($K76="Ongoing",BF76,IF(RIGHT($K76,2)=RIGHT(CB$39,2),SUM($AX76:BF76),0)+IF(RIGHT(CB$39,2)>RIGHT($K76,2),BF76,0)) -> 1.160194135 | CC76: =+IF($K76="Ongoing",BG76,IF(RIGHT($K76,2)=RIGHT(CC$39,2),SUM($AX76:BG76),0)+IF(RIGHT(CC$39,2)>RIGHT($K76,2),BG76,0)) -> 1.160194135 | CE76: =+Q76*KeyAssumptionsPriceControl_FO!AC$15 -> 1.349841253 | CF76: =+R76*KeyAssumptionsPriceControl_FO!AD$15 -> 1.860126639 | CG76: =+S76*KeyAssumptionsPriceControl_FO!AE$15 -> 1.246949748 | CH76: =+T76*KeyAssumptionsPriceControl_FO!AF$15 -> 1.282062962 | CI76: =+U76*KeyAssumptionsPriceControl_FO!AG$15 -> 1.331349455 | CJ76: =+V76*KeyAssumptionsPriceControl_FO!AH$15 -> 1.377946686 | CK76: =+W76*KeyAssumptionsPriceControl_FO!AI$15 -> 1.42617482 | CL76: =+X76*KeyAssumptionsPriceControl_FO!AJ$15 -> 1.476090938 | CM76: =+Y76*KeyAssumptionsPriceControl_FO!AK$15 -> 1.527754121 | CN76: =+Z76*KeyAssumptionsPriceControl_FO!AL$15 -> 1.581225515 | CP76: 0.04499470843 | CQ76: 0.1519936381 | CR76: 0.255562851 | CS76: 0.3398632747 | CT76: 0.4269770219 | CU76: 0.5172868932 | CV76: 0.6107576101 | CW76: 0.707499802 | CX76: 0.8076279706 | CY76: 0.9112606252
C77: Corporate Works | E77: Sewerage | F77: Renewals | G77: Corporate | H77: Capital Programs / Allocation | J77: Straight line | K77: Ongoing | L77: 15 | M77: 15 | Q77: 1.33683026 | R77: 1.779900535 | S77: 1.152820851 | T77: 1.145201414 | U77: 1.149011133 | V77: 1.149011133 | W77: 1.149011133 | X77: 1.149011133 | Y77: 1.149011133 | Z77: 1.149011133 | AB77: 0 | AC77: 0 | AD77: 0 | AE77: 0 | AF77: 0 | AG77: 0 | AH77: 0 | AI77: 0 | AJ77: 0 | AK77: 0 | AM77: 0 | AN77: 0 | AO77: 0 | AP77: 0 | AQ77: 0 | AR77: 0 | AS77: 0 | AT77: 0 | AU77: 0 | AV77: 0 | AX77: 1.33683026 | AY77: 1.779900535 | AZ77: 1.152820851 | BA77: 1.145201414 | BB77: 1.149011133 | BC77: 1.149011133 | BD77: 1.149011133 | BE77: 1.149011133 | BF77: 1.149011133 | BG77: 1.149011133 | BI77: 0.04456100868 | BJ77: 0.1484520352 | BK77: 0.2462094147 | BL77: 0.3228101569 | BM77: 0.3992839085 | BN77: 0.4758846507 | BO77: 0.5524853929 | BP77: 0.629086135 | BQ77: 0.7056868772 | BR77: 0.7822876194 | BT77: =+IF($K77="Ongoing",AX77,IF(RIGHT($K77,2)=RIGHT(BT$39,2),SUM($AX77:AX77),0)+IF(RIGHT(BT$39,2)>RIGHT($K77,2),AX77,0)) -> 1.33683026 | BU77: =+IF($K77="Ongoing",AY77,IF(RIGHT($K77,2)=RIGHT(BU$39,2),SUM($AX77:AY77),0)+IF(RIGHT(BU$39,2)>RIGHT($K77,2),AY77,0)) -> 1.779900535 | BV77: =+IF($K77="Ongoing",AZ77,IF(RIGHT($K77,2)=RIGHT(BV$39,2),SUM($AX77:AZ77),0)+IF(RIGHT(BV$39,2)>RIGHT($K77,2),AZ77,0)) -> 1.152820851 | BW77: =+IF($K77="Ongoing",BA77,IF(RIGHT($K77,2)=RIGHT(BW$39,2),SUM($AX77:BA77),0)+IF(RIGHT(BW$39,2)>RIGHT($K77,2),BA77,0)) -> 1.145201414 | BX77: =+IF($K77="Ongoing",BB77,IF(RIGHT($K77,2)=RIGHT(BX$39,2),SUM($AX77:BB77),0)+IF(RIGHT(BX$39,2)>RIGHT($K77,2),BB77,0)) -> 1.149011133 | BY77: =+IF($K77="Ongoing",BC77,IF(RIGHT($K77,2)=RIGHT(BY$39,2),SUM($AX77:BC77),0)+IF(RIGHT(BY$39,2)>RIGHT($K77,2),BC77,0)) -> 1.149011133 | BZ77: =+IF($K77="Ongoing",BD77,IF(RIGHT($K77,2)=RIGHT(BZ$39,2),SUM($AX77:BD77),0)+IF(RIGHT(BZ$39,2)>RIGHT($K77,2),BD77,0)) -> 1.149011133 | CA77: =+IF($K77="Ongoing",BE77,IF(RIGHT($K77,2)=RIGHT(CA$39,2),SUM($AX77:BE77),0)+IF(RIGHT(CA$39,2)>RIGHT($K77,2),BE77,0)) -> 1.149011133 | CB77: =+IF($K77="Ongoing",BF77,IF(RIGHT($K77,2)=RIGHT(CB$39,2),SUM($AX77:BF77),0)+IF(RIGHT(CB$39,2)>RIGHT($K77,2),BF77,0)) -> 1.149011133 | CC77: =+IF($K77="Ongoing",BG77,IF(RIGHT($K77,2)=RIGHT(CC$39,2),SUM($AX77:BG77),0)+IF(RIGHT(CC$39,2)>RIGHT($K77,2),BG77,0)) -> 1.149011133 | CE77: =+Q77*KeyAssumptionsPriceControl_FO!AC$15 -> 1.33683026 | CF77: =+R77*KeyAssumptionsPriceControl_FO!AD$15 -> 1.842197053 | CG77: =+S77*KeyAssumptionsPriceControl_FO!AE$15 -> 1.234930517 | CH77: =+T77*KeyAssumptionsPriceControl_FO!AF$15 -> 1.269705278 | CI77: =+U77*KeyAssumptionsPriceControl_FO!AG$15 -> 1.318516703 | CJ77: =+V77*KeyAssumptionsPriceControl_FO!AH$15 -> 1.364664788 | CK77: =+W77*KeyAssumptionsPriceControl_FO!AI$15 -> 1.412428055 | CL77: =+X77*KeyAssumptionsPriceControl_FO!AJ$15 -> 1.461863037 | CM77: =+Y77*KeyAssumptionsPriceControl_FO!AK$15 -> 1.513028243 | CN77: =+Z77*KeyAssumptionsPriceControl_FO!AL$15 -> 1.565984232 | CP77: 0.04456100868 | CQ77: 0.1505285858 | CR77: 0.2530995048 | CS77: 0.3365873646 | CT77: 0.4228614307 | CU77: 0.5123008137 | CV77: 0.6048705751 | CW77: 0.7006802782 | CX77: 0.7998433209 | CY77: 0.90247707
C78: Corporate Works | E78: Recycled Water | F78: Renewals | G78: Corporate | H78: Capital Programs / Allocation | J78: Straight line | K78: Ongoing | L78: 15 | M78: 15 | Q78: 0.8223284869 | R78: 1.09487566 | S78: 0.7091382164 | T78: 0.7044512487 | U78: 0.7067947326 | V78: 0.7067947326 | W78: 0.7067947326 | X78: 0.7067947326 | Y78: 0.7067947326 | Z78: 0.7067947326 | AB78: 0 | AC78: 0 | AD78: 0 | AE78: 0 | AF78: 0 | AG78: 0 | AH78: 0 | AI78: 0 | AJ78: 0 | AK78: 0 | AM78: 0 | AN78: 0 | AO78: 0 | AP78: 0 | AQ78: 0 | AR78: 0 | AS78: 0 | AT78: 0 | AU78: 0 | AV78: 0 | AX78: 0.8223284869 | AY78: 1.09487566 | AZ78: 0.7091382164 | BA78: 0.7044512487 | BB78: 0.7067947326 | BC78: 0.7067947326 | BD78: 0.7067947326 | BE78: 0.7067947326 | BF78: 0.7067947326 | BG78: 0.7067947326 | BI78: 0.02741094956 | BJ78: 0.09131775446 | BK78: 0.1514515503 | BL78: 0.1985711992 | BM78: 0.2456127319 | BN78: 0.2927323807 | BO78: 0.3398520296 | BP78: 0.3869716784 | BQ78: 0.4340913272 | BR78: 0.4812109761 | BT78: =+IF($K78="Ongoing",AX78,IF(RIGHT($K78,2)=RIGHT(BT$39,2),SUM($AX78:AX78),0)+IF(RIGHT(BT$39,2)>RIGHT($K78,2),AX78,0)) -> 0.8223284869 | BU78: =+IF($K78="Ongoing",AY78,IF(RIGHT($K78,2)=RIGHT(BU$39,2),SUM($AX78:AY78),0)+IF(RIGHT(BU$39,2)>RIGHT($K78,2),AY78,0)) -> 1.09487566 | BV78: =+IF($K78="Ongoing",AZ78,IF(RIGHT($K78,2)=RIGHT(BV$39,2),SUM($AX78:AZ78),0)+IF(RIGHT(BV$39,2)>RIGHT($K78,2),AZ78,0)) -> 0.7091382164 | BW78: =+IF($K78="Ongoing",BA78,IF(RIGHT($K78,2)=RIGHT(BW$39,2),SUM($AX78:BA78),0)+IF(RIGHT(BW$39,2)>RIGHT($K78,2),BA78,0)) -> 0.7044512487 | BX78: =+IF($K78="Ongoing",BB78,IF(RIGHT($K78,2)=RIGHT(BX$39,2),SUM($AX78:BB78),0)+IF(RIGHT(BX$39,2)>RIGHT($K78,2),BB78,0)) -> 0.7067947326 | BY78: =+IF($K78="Ongoing",BC78,IF(RIGHT($K78,2)=RIGHT(BY$39,2),SUM($AX78:BC78),0)+IF(RIGHT(BY$39,2)>RIGHT($K78,2),BC78,0)) -> 0.7067947326 | BZ78: =+IF($K78="Ongoing",BD78,IF(RIGHT($K78,2)=RIGHT(BZ$39,2),SUM($AX78:BD78),0)+IF(RIGHT(BZ$39,2)>RIGHT($K78,2),BD78,0)) -> 0.7067947326 | CA78: =+IF($K78="Ongoing",BE78,IF(RIGHT($K78,2)=RIGHT(CA$39,2),SUM($AX78:BE78),0)+IF(RIGHT(CA$39,2)>RIGHT($K78,2),BE78,0)) -> 0.7067947326 | CB78: =+IF($K78="Ongoing",BF78,IF(RIGHT($K78,2)=RIGHT(CB$39,2),SUM($AX78:BF78),0)+IF(RIGHT(CB$39,2)>RIGHT($K78,2),BF78,0)) -> 0.7067947326 | CC78: =+IF($K78="Ongoing",BG78,IF(RIGHT($K78,2)=RIGHT(CC$39,2),SUM($AX78:BG78),0)+IF(RIGHT(CC$39,2)>RIGHT($K78,2),BG78,0)) -> 0.7067947326 | CE78: =+Q78*KeyAssumptionsPriceControl_FO!AC$15 -> 0.8223284869 | CF78: =+R78*KeyAssumptionsPriceControl_FO!AD$15 -> 1.133196308 | CG78: =+S78*KeyAssumptionsPriceControl_FO!AE$15 -> 0.7596465859 | CH78: =+T78*KeyAssumptionsPriceControl_FO!AF$15 -> 0.7810376915 | CI78: =+U78*KeyAssumptionsPriceControl_FO!AG$15 -> 0.8110632123 | CJ78: =+V78*KeyAssumptionsPriceControl_FO!AH$15 -> 0.8394504248 | CK78: =+W78*KeyAssumptionsPriceControl_FO!AI$15 -> 0.8688311896 | CL78: =+X78*KeyAssumptionsPriceControl_FO!AJ$15 -> 0.8992402813 | CM78: =+Y78*KeyAssumptionsPriceControl_FO!AK$15 -> 0.9307136911 | CN78: =+Z78*KeyAssumptionsPriceControl_FO!AL$15 -> 0.9632886703 | CP78: 0.02741094956 | CQ78: 0.0925951094 | CR78: 0.1556898725 | CS78: 0.2070460151 | CT78: 0.2601160452 | CU78: 0.3151331665 | CV78: 0.372075887 | CW78: 0.4310116026 | CX78: 0.4920100684 | CY78: 0.5551434804
